Workbook

Sheet Get Started
A1: =Search!A1 -> EQ Excel Integrator. Version: 0.19

Sheet Query
A1: =Search!A1 -> EQ Excel Integrator. Version: 0.19
J3: de
B4: Begin date: | C4: 2021-01-01 | I4: 2 | J4: =+VLOOKUP(I4,I7:O17,2,FALSE) -> Hydro Precipitation Energy MWh H Climate
B5: End date: | C5: =+C4+365 -> 2022-01-01 | I5: =+I4 -> 2 | J5: =+VLOOKUP(I5,I18:L26,2,FALSE) -> Hydro Precipitation Energy MWh H Synthetic
B6: Frequency: | C6: P1D-Day
B7: Aggregation: | C7: AVERAGE | I7: 1 | J7: Consumption Temperature °C 15min Climate | K7: NO Consumption Temperature °C 15min synthetic | Q7: Deg C | R7: Sum Deg days
B8: Hour filter: | C8: BASE | I8: 2 | J8: Hydro Precipitation Energy MWh H Climate | Q8: MWh H
B9: Output sheet: | C9: Data_Clim | I9: 3 | J9: Solar Photovoltaic Production MWh/h 15min Climate | Q9: MWh H
I10: 4 | J10: Wind Power Production MWh/h 15min Climate | Q10: MWh H
D11: Options for curve type "Instance" | I11: 5 | J11: Wind Power Production Offshore MWh/h 15min Climate | Q11: MWh H
B12: Curve type | C12: Curve names | D12: Forecast tag | E12: Forecast issued | F12: # Forecasts | G12: Ensemble | I12: 6 | J12: Wind Power Production Onshore MWh/h 15min Climate | Q12: MWh H
D13: Optional | E13: Optional | F13: Optional | G13: Optional | I13: 7 | J13: Consumption MWh/h 15min Climate | Q13: MWh H
B14: SCENARIO_TIMESERIES | C14: =+$J$3&" "&J4 -> de Hydro Precipitation Energy MWh H Climate | I14: 8 | J14: Residual Load MWh/h 15min Climate | Q14: MWh H
B15: TIMESERIES | C15: =+$J$3&" "&J5 -> de Hydro Precipitation Energy MWh H Synthetic
C18: d | I18: 1 | J18: Consumption Temperature °C 15min synthetic
I19: 2 | J19: Hydro Precipitation Energy MWh H Synthetic
I20: 3 | J20: Solar Photovoltaic Production MWh/h 15min Backcast
I21: 4 | J21: Wind Power Production MWh/h 15min Backcast
I22: 5 | J22: Wind Power Production Offshore MWh/h 15min Backcast
I23: 6 | J23: Wind Power Production Onshore MWh/h 15min Backcast
I24: 7 | J24: Consumption MWh/h 15min Backcast
I25: 8 | J25: Residual Load MWh/h 15min Backcast

Sheet Relative
A1: =Search!A1 -> EQ Excel Integrator. Version: 0.19
B4: Begin date: | C4: =TODAY()-3 -> 2021-02-21
B5: End date: | C5: =TODAY()+2 -> 2021-02-26
B6: Frequency: | C6: PT1H-Hour
B7: Aggregation: | C7: AVERAGE
B8: Hour filter: | C8: BASE
B9: Output sheet: | C9: Data Relative
D11: Options for curve type "Instance"
B12: Curve type | C12: Curve names | D12: Days ahead | E12: Forecast tag | F12: Issued | G12: At-time-of-day | H12: Before-time-of-day | I12: After-time-of-day
D13: Required | E13: Required | F13: Required | G13: Optional | H13: Optional | I13: Optional
B14: TIMESERIES | C14: DE Wind Power Production MWh/h 15min Actual
B15: INSTANCE | C15: DE Wind Power Production MWh/h 15min Forecast | D15: 1 | E15: EC | F15: Earliest | G15: 00:00:00
B16: INSTANCE | C16: DE Wind Power Production MWh/h 15min Forecast | D16: 2 | E16: GFS | F16: Earliest | G16: 00:00:00
G17: 12:00:00
B18: TIMESERIES | C18: DE Price Spot EUR/MWh EPEX H Actual
B19: INSTANCE | C19: DE Price Spot EUR/MWh H Forecast | D19: 1 | E19: PREFIX

Sheet Closing Prices
A1: =Search!A1 -> EQ Excel Integrator. Version: 0.19
B4: Begin Date: | C4: =TODAY()-7 -> 2021-02-17
B5: End Date: | C5: =TODAY()+1 -> 2021-02-25
B6: Frequency: | C6: P1D-Day
B7: Aggregation: | C7: AVERAGE
B8: Hour Filter: | C8: BASE
B9: Output Sheet: | C9: Data Closing
D11: Options for curve type "OHLC"
B12: Curve type | C12: Curve names | D12: Contract field | E12: Contract period | F12: Contract trades | G12: Delivery | H12: Front | I12: Calendar fill
D13: Required | E13: Required | F13: Required | G13: Optional | H13: Optional | I13: Required
B14: OHLC | C14: Futures Crude Oil Brent USD/bbl ICE OHLC | D14: settlement | E14: month | F14: continues front | H14: 1 | I14: no-fill
B15: OHLC | C15: Futures Coal API-2 USD/t ICE OHLC | D15: settlement | E15: year | F15: contract delivery | G15: 2021-01-01 | I15: no-fill
B16: OHLC | C16: Futures EUA EUR/t ICE OHLC | D16: settlement | E16: mdec | F16: continues front | H16: 2 | I16: no-fill
B17: OHLC | C17: DE Futures Power Base EUR/MWh EEX OHLC | D17: settlement | E17: year | F17: contract delivery | G17: 2021-01-01 | I17: no-fill
B18: OHLC | C18: NL Futures Natural Gas EUR/MWh ICE-TTF OHLC | D18: settlement | E18: year | F18: contract delivery | G18: 2021-01-01 | I18: no-fill
B60: OHLC | C60: PL Futures Natural Gas PLN/MWh TGE OHLC

Sheet OHLC
A1: =Search!A1 -> EQ Excel Integrator. Version: 0.19
B4: Begin date: | C4: =TODAY()-3 -> 2021-02-21
B5: End date: | C5: =TODAY()+1 -> 2021-02-25
B6: Output sheet: | C6: Data OHLC
C11: Curve names future contracts | D11: Contract period | E11: Contract trades | F11: Delivery | G11: Front
D12: Optional | E12: Optional | F12: Optional | G12: Optional
C13: DE Futures Power Base EUR/MWh EEX OHLC | D13: year | E13: contract delivery | F13: 2022-01-01
C14: DE Futures Power Base EUR/MWh EEX OHLC | D14: month | E14: continues front | G14: 1
C16: NL Futures Natural Gas EUR/MWh ICE-TTF OHLC
C17: Futures Crude Oil Brent USD/bbl ICE OHLC | D17: month

Sheet Search
A1: EQ Excel Integrator. Version: 0.19
B7: Filter by: | C7: Search for: | D7: Filter by: | E7: Filter by:
B8: Include units | C8: France | D8: Select Area | E8: Select Type
B10: Curve type | C10: Name | D10: Frequency | E10: Time-zone | R10: Select Area
B11: INSTANCE | C11: FR-BFC Consumption Index Chilling % 15min Forecast | D11: PT15M | E11: CET | R11: NP | S11: Nord Pool
B12: INSTANCE | C12: FR-BFC Consumption Index Cloudiness % 15min Forecast | D12: PT15M | E12: CET | R12: NO | S12: Norway
B13: INSTANCE | C13: FR-BFC Consumption Index Cooling % 15min Forecast | D13: PT15M | E13: CET | R13: NO1 | S13: NO1 – Oslo
B14: INSTANCE | C14: FR-BFC Consumption Index Heating % 15min Forecast | D14: PT15M | E14: CET | R14: NO2 | S14: NO2 – Kristiansand
B15: TIMESERIES | C15: FR-BFC Consumption Index Heating % H Actual | D15: PT1H | E15: CET | R15: NO3 | S15: NO3 – Trondheim
B16: TIMESERIES | C16: FR-BFC Consumption MWh/h 15min Backcast | D16: PT15M | E16: CET | R16: NO4 | S16: NO4 – Tromsø
B17: INSTANCE | C17: FR-BFC Consumption MWh/h 15min Forecast | D17: PT15M | E17: CET | R17: NO5 | S17: NO5 – Bergen
B18: TIMESERIES | C18: FR-BFC Consumption MWh/h 15min Normal | D18: PT15M | E18: CET | R18: SE | S18: Sweden
B19: TIMESERIES | C19: FR-BFC Consumption MWh/h 30min Actual | D19: PT30M | E19: CET | R19: SE1 | S19: SE1 – Luleå
B20: INSTANCE | C20: FR-BFC Consumption Temperature °C 15min Forecast | D20: PT15M | E20: CET | R20: SE2 | S20: SE2 – Sundsvall
B21: TIMESERIES | C21: FR-BFC Consumption Temperature °C 15min Normal | D21: PT15M | E21: CET | R21: SE3 | S21: SE3 – Stockholm
B22: TIMESERIES | C22: FR-BFC Consumption Temperature °C 15min Synthetic | D22: PT15M | E22: CET | R22: SE4 | S22: SE4 – Malmö
B23: TIMESERIES | C23: FR-BFC Consumption Temperature °C H Actual | D23: PT1H | E23: CET | R23: DK | S23: Denmark
B24: TIMESERIES | C24: FR-BFC Residual Load MWh/h 15min Backcast | D24: PT15M | E24: CET | R24: DK1 | S24: DK1 – Jylland
B25: INSTANCE | C25: FR-BFC Residual Load MWh/h 15min Forecast | D25: PT15M | E25: CET | R25: DK2 | S25: DK2 – København
B26: TIMESERIES | C26: FR-BFC Residual Load MWh/h 15min Normal | D26: PT15M | E26: CET | R26: FI | S26: Finland
B27: TIMESERIES | C27: FR-BFC Residual Load MWh/h 30min Actual | D27: PT30M | E27: CET | R27: EE | S27: Estonia
B28: TIMESERIES | C28: FR-BFC Consumption Holiday-Reduction MWh/h 15min Normal | D28: PT15M | E28: CET | R28: LV | S28: Latvia
B29: INSTANCE | C29: FR-BFC Consumption Medium-term MWh/h 15min Forecast | D29: PT15M | E29: CET | R29: LT | S29: Lithuania
B30: INSTANCE | C30: FR-BFC Consumption Temperature Medium-term °C 15min Forecast | D30: PT15M | E30: CET | R30: DE | S30: Germany
B31: TIMESERIES | C31: FR-BFC Hydro Power Production MWh/h 30min Actual | D31: PT30M | E31: CET | R31: DE-50Hertz | S31: Germany – 50Hertz
B32: TIMESERIES | C32: FR-BFC Solar Photovoltaic Production MWh/h 15min Backcast | D32: PT15M | E32: CET | R32: DE-Amprion | S32: Germany – Amprion
B33: INSTANCE | C33: FR-BFC Solar Photovoltaic Production MWh/h 15min Forecast | D33: PT15M | E33: CET | R33: DE-TenneT | S33: Germany – TenneT GER
B34: TIMESERIES | C34: FR-BFC Solar Photovoltaic Production MWh/h 15min Normal | D34: PT15M | E34: CET | R34: DE-TransnetBW | S34: Germany – TransnetBW
B35: TIMESERIES | C35: FR-BFC Solar Photovoltaic Production MWh/h 30min Actual | D35: PT30M | E35: CET | R35: FR | S35: France
B36: TIMESERIES | C36: FR-BFC Wind Power Production MWh/h 15min Backcast | D36: PT15M | E36: CET | R36: FR-ARA | S36: Auvergne-Rhône-Alpes
B37: INSTANCE | C37: FR-BFC Wind Power Production MWh/h 15min Forecast | D37: PT15M | E37: CET | R37: FR-BFC | S37: Bourgogne-Franche-Comté
B38: TIMESERIES | C38: FR-BFC Wind Power Production MWh/h 15min Normal | D38: PT15M | E38: CET | R38: FR-BRE | S38: Bretagne
B39: TIMESERIES | C39: FR-BFC Wind Power Production MWh/h 30min Actual | D39: PT30M | E39: CET | R39: FR-COR | S39: Corse
B40: TIMESERIES | C40: FR-BFC Hydro Pumped-storage Pumping MWh/h 30min Actual | D40: PT30M | E40: CET | R40: FR-CVL | S40: Centre-Val de Loire
B41: INSTANCE | C41: FR-BFC Residual Load Medium-term MWh/h 15min Forecast | D41: PT15M | E41: CET | R41: FR-GES | S41: Grand-Est
B42: INSTANCE | C42: FR-BFC Solar Photovoltaic Production Medium-term MWh/h 15min Forecast | D42: PT15M | E42: CET | R42: FR-HDF | S42: Hauts-de-France
B43: INSTANCE | C43: FR-BFC Wind Power Production Medium-term MWh/h 15min Forecast | D43: PT15M | E43: CET | R43: FR-IDF | S43: Île-de-France
B44: INSTANCE | C44: FR-HDF Consumption Index Chilling % 15min Forecast | D44: PT15M | E44: CET | R44: FR-NAQ | S44: Nouvelle-Aquitaine
B45: INSTANCE | C45: FR-HDF Consumption Index Cloudiness % 15min Forecast | D45: PT15M | E45: CET | R45: FR-NOR | S45: Normandie
B46: INSTANCE | C46: FR-HDF Consumption Index Cooling % 15min Forecast | D46: PT15M | E46: CET | R46: FR-OCC | S46: Occitanie
B47: INSTANCE | C47: FR-HDF Consumption Index Heating % 15min Forecast | D47: PT15M | E47: CET | R47: FR-PAC | S47: Provence-Alpes-Côte d'Azur
B48: TIMESERIES | C48: FR-HDF Consumption Index Heating % H Actual | D48: PT1H | E48: CET | R48: FR-PDL | S48: Pays de la Loire
B49: TIMESERIES | C49: FR-HDF Consumption MWh/h 15min Backcast | D49: PT15M | E49: CET | R49: NL | S49: Netherlands
B50: INSTANCE | C50: FR-HDF Consumption MWh/h 15min Forecast | D50: PT15M | E50: CET | R50: BE | S50: Belgium
B51: TIMESERIES | C51: FR-HDF Consumption MWh/h 15min Normal | D51: PT15M | E51: CET | R51: AT | S51: Austria
B52: TIMESERIES | C52: FR-HDF Consumption MWh/h 30min Actual | D52: PT30M | E52: CET | R52: CH | S52: Switzerland
B53: INSTANCE | C53: FR-HDF Consumption Temperature °C 15min Forecast | D53: PT15M | E53: CET | R53: GB | S53: Great Britain
B54: TIMESERIES | C54: FR-HDF Consumption Temperature °C 15min Normal | D54: PT15M | E54: CET | R54: NIE | S54: Northern Ireland
B55: TIMESERIES | C55: FR-HDF Consumption Temperature °C 15min Synthetic | D55: PT15M | E55: CET | R55: IE | S55: Ireland
B56: TIMESERIES | C56: FR-HDF Consumption Temperature °C H Actual | D56: PT1H | E56: CET | R56: PL | S56: Poland
B57: INSTANCE | C57: FR-IDF Consumption Index Chilling % 15min Forecast | D57: PT15M | E57: CET | R57: CZ | S57: Czech Republic
B58: INSTANCE | C58: FR-IDF Consumption Index Cloudiness % 15min Forecast | D58: PT15M | E58: CET | R58: HU | S58: Hungary
B59: INSTANCE | C59: FR-IDF Consumption Index Cooling % 15min Forecast | D59: PT15M | E59: CET | R59: SK | S59: Slovakia
B60: INSTANCE | C60: FR-IDF Consumption Index Heating % 15min Forecast | D60: PT15M | E60: CET | R60: ES | S60: Spain
B61: TIMESERIES | C61: FR-IDF Consumption Index Heating % H Actual | D61: PT1H | E61: CET | R61: PT | S61: Portugal
B62: TIMESERIES | C62: FR-IDF Consumption MWh/h 15min Backcast | D62: PT15M | E62: CET | R62: IT | S62: Italy
B63: INSTANCE | C63: FR-IDF Consumption MWh/h 15min Forecast | D63: PT15M | E63: CET | R63: IT-NORD | S63: Italy – Northern
B64: TIMESERIES | C64: FR-IDF Consumption MWh/h 15min Normal | D64: PT15M | E64: CET | R64: IT-SUD | S64: Italy – Southern
B65: TIMESERIES | C65: FR-IDF Consumption MWh/h 30min Actual | D65: PT30M | E65: CET | R65: IT-CNOR | S65: Italy – Central-Northern
B66: INSTANCE | C66: FR-IDF Consumption Temperature °C 15min Forecast | D66: PT15M | E66: CET | R66: IT-CSUD | S66: Italy – Central-Southern
B67: TIMESERIES | C67: FR-IDF Consumption Temperature °C 15min Normal | D67: PT15M | E67: CET | R67: IT-SARD | S67: Italy – Sardegna
B68: TIMESERIES | C68: FR-IDF Consumption Temperature °C 15min Synthetic | D68: PT15M | E68: CET | R68: IT-SICI | S68: Italy – Sicily
B69: TIMESERIES | C69: FR-IDF Consumption Temperature °C H Actual | D69: PT1H | E69: CET | R69: SI | S69: Slovenia
B70: TIMESERIES | C70: FR-HDF Residual Load MWh/h 15min Backcast | D70: PT15M | E70: CET | R70: RO | S70: Romania
B71: INSTANCE | C71: FR-HDF Residual Load MWh/h 15min Forecast | D71: PT15M | E71: CET | R71: HR | S71: Croatia
B72: TIMESERIES | C72: FR-HDF Residual Load MWh/h 15min Normal | D72: PT15M | E72: CET | R72: BA | S72: Bosnia Herzegovina
B73: TIMESERIES | C73: FR-HDF Residual Load MWh/h 30min Actual | D73: PT30M | E73: CET | R73: RS | S73: Serbia
B74: TIMESERIES | C74: FR-IDF Residual Load MWh/h 15min Backcast | D74: PT15M | E74: CET | R74: ME | S74: Montenegro
B75: INSTANCE | C75: FR-IDF Residual Load MWh/h 15min Forecast | D75: PT15M | E75: CET | R75: BG | S75: Bulgaria
B76: TIMESERIES | C76: FR-IDF Residual Load MWh/h 15min Normal | D76: PT15M | E76: CET | R76: AL | S76: Albania
B77: TIMESERIES | C77: FR-IDF Residual Load MWh/h 30min Actual | D77: PT30M | E77: CET | R77: MK | S77: Macedonia
B78: TIMESERIES | C78: FR-HDF Consumption Holiday-Reduction MWh/h 15min Normal | D78: PT15M | E78: CET | R78: GR | S78: Greece
B79: INSTANCE | C79: FR-HDF Consumption Medium-term MWh/h 15min Forecast | D79: PT15M | E79: CET | R79: TR | S79: Turkey
B80: INSTANCE | C80: FR-HDF Consumption Temperature Medium-term °C 15min Forecast | D80: PT15M | E80: CET
B81: TIMESERIES | C81: FR-HDF Hydro Power Production MWh/h 30min Actual | D81: PT30M | E81: CET
B82: TIMESERIES | C82: FR-HDF Solar Photovoltaic Production MWh/h 15min Backcast | D82: PT15M | E82: CET
B83: INSTANCE | C83: FR-HDF Solar Photovoltaic Production MWh/h 15min Forecast | D83: PT15M | E83: CET
B84: TIMESERIES | C84: FR-HDF Solar Photovoltaic Production MWh/h 15min Normal | D84: PT15M | E84: CET
B85: TIMESERIES | C85: FR-HDF Solar Photovoltaic Production MWh/h 30min Actual | D85: PT30M | E85: CET
B86: TIMESERIES | C86: FR-HDF Wind Power Production MWh/h 15min Backcast | D86: PT15M | E86: CET
B87: INSTANCE | C87: FR-HDF Wind Power Production MWh/h 15min Forecast | D87: PT15M | E87: CET
B88: TIMESERIES | C88: FR-HDF Wind Power Production MWh/h 15min Normal | D88: PT15M | E88: CET
B89: TIMESERIES | C89: FR-HDF Wind Power Production MWh/h 30min Actual | D89: PT30M | E89: CET
B90: TIMESERIES | C90: FR-IDF Consumption Holiday-Reduction MWh/h 15min Normal | D90: PT15M | E90: CET
B91: INSTANCE | C91: FR-IDF Consumption Medium-term MWh/h 15min Forecast | D91: PT15M | E91: CET
B92: INSTANCE | C92: FR-IDF Consumption Temperature Medium-term °C 15min Forecast | D92: PT15M | E92: CET
B93: TIMESERIES | C93: FR-IDF Hydro Power Production MWh/h 30min Actual | D93: PT30M | E93: CET
B94: TIMESERIES | C94: FR-IDF Solar Photovoltaic Production MWh/h 15min Backcast | D94: PT15M | E94: CET
B95: INSTANCE | C95: FR-IDF Solar Photovoltaic Production MWh/h 15min Forecast | D95: PT15M | E95: CET
B96: TIMESERIES | C96: FR-IDF Solar Photovoltaic Production MWh/h 15min Normal | D96: PT15M | E96: CET
B97: TIMESERIES | C97: FR-IDF Solar Photovoltaic Production MWh/h 30min Actual | D97: PT30M | E97: CET
B98: TIMESERIES | C98: FR-IDF Wind Power Production MWh/h 15min Backcast | D98: PT15M | E98: CET
B99: INSTANCE | C99: FR-IDF Wind Power Production MWh/h 15min Forecast | D99: PT15M | E99: CET
B100: TIMESERIES | C100: FR-IDF Wind Power Production MWh/h 15min Normal | D100: PT15M | E100: CET
B101: TIMESERIES | C101: FR-IDF Wind Power Production MWh/h 30min Actual | D101: PT30M | E101: CET
B102: TIMESERIES | C102: FR-HDF Hydro Pumped-storage Pumping MWh/h 30min Actual | D102: PT30M | E102: CET
B103: INSTANCE | C103: FR-HDF Residual Load Medium-term MWh/h 15min Forecast | D103: PT15M | E103: CET
B104: INSTANCE | C104: FR-IDF Residual Load Medium-term MWh/h 15min Forecast | D104: PT15M | E104: CET
B105: INSTANCE | C105: FR-HDF Solar Photovoltaic Production Medium-term MWh/h 15min Forecast | D105: PT15M | E105: CET
B106: INSTANCE | C106: FR-HDF Wind Power Production Medium-term MWh/h 15min Forecast | D106: PT15M | E106: CET
B107: INSTANCE | C107: FR-IDF Solar Photovoltaic Production Medium-term MWh/h 15min Forecast | D107: PT15M | E107: CET
B108: INSTANCE | C108: FR-IDF Wind Power Production Medium-term MWh/h 15min Forecast | D108: PT15M | E108: CET
B109: PERIOD | C109: FR Nuclear Installed MW Capacity | D109: NONE | E109: CET
B110: INSTANCE | C110: FR Consumption Index Chilling % 15min Forecast | D110: PT15M | E110: CET
B111: INSTANCE | C111: FR Consumption Index Cloudiness % 15min Forecast | D111: PT15M | E111: CET
B112: INSTANCE | C112: FR Consumption Index Cooling % 15min Forecast | D112: PT15M | E112: CET
B113: INSTANCE | C113: FR Consumption Index Heating % 15min Forecast | D113: PT15M | E113: CET
B114: TIMESERIES | C114: FR Consumption Index Heating % H Actual | D114: PT1H | E114: CET
B115: TIMESERIES | C115: FR Consumption MWh/h 15min Backcast | D115: PT15M | E115: CET
B116: SCENARIO_TIMESERIES | C116: FR Consumption MWh/h 15min Climate | D116: PT15M | E116: CET
B117: INSTANCE | C117: FR Consumption MWh/h 15min Forecast | D117: PT15M | E117: CET
B118: TIMESERIES | C118: FR Consumption MWh/h 15min Normal | D118: PT15M | E118: CET
B119: TIMESERIES | C119: FR Consumption MWh/h 30min Actual | D119: PT30M | E119: CET
B120: SCENARIO_TIMESERIES | C120: FR Consumption Temperature °C 15min Climate | D120: PT15M | E120: CET
B121: INSTANCE | C121: FR Consumption Temperature °C 15min Forecast | D121: PT15M | E121: CET
B122: TIMESERIES | C122: FR Consumption Temperature °C 15min Normal | D122: PT15M | E122: CET
B123: TIMESERIES | C123: FR Consumption Temperature °C 15min Synthetic | D123: PT15M | E123: CET
B124: TIMESERIES | C124: FR Consumption Temperature °C H Actual | D124: PT1H | E124: CET
B125: INSTANCE | C125: FR Hydro Inflow MWh D Forecast | D125: P1D | E125: CET
B126: TIMESERIES | C126: FR Hydro Inflow MWh D Normal | D126: P1D | E126: CET
B127: TIMESERIES | C127: FR Hydro Inflow MWh D Synthetic | D127: P1D | E127: CET
B128: TIMESERIES | C128: FR Hydro Inflow MWh W Actual | D128: P1W | E128: CET
B129: INSTANCE_PERIOD | C129: FR Nuclear Capacity Available MW REMIT | D129: NONE | E129: CET
B130: PERIOD | C130: FR Solar Photovoltaic Installed MW Capacity | D130: NONE | E130: CET
B131: PERIOD | C131: FR Wind Power Installed MW Capacity | D131: NONE | E131: CET
B132: TIMESERIES | C132: FR Hydro Evaporation Energy MWh H Normal | D132: PT1H | E132: CET
B133: TIMESERIES | C133: FR Hydro Evaporation Energy MWh H Synthetic | D133: PT1H | E133: CET
B134: INSTANCE | C134: FR Hydro Hydrological-Balance MWh D Forecast | D134: P1D | E134: CET
B135: TIMESERIES | C135: FR Hydro Hydrological-Balance MWh D Synthetic | D135: P1D | E135: CET
B136: INSTANCE | C136: FR Hydro Hydrological-Resource MWh D Forecast | D136: P1D | E136: CET
B137: TIMESERIES | C137: FR Hydro Hydrological-Resource MWh D Normal | D137: P1D | E137: CET
B138: TIMESERIES | C138: FR Hydro Hydrological-Resource MWh D Synthetic | D138: P1D | E138: CET
B139: SCENARIO_TIMESERIES | C139: FR Hydro Precipitation Energy MWh H Climate | D139: PT1H | E139: CET
B140: INSTANCE | C140: FR Hydro Precipitation Energy MWh H Forecast | D140: PT1H | E140: CET
B141: TIMESERIES | C141: FR Hydro Precipitation Energy MWh H Normal | D141: PT1H | E141: CET
B142: TIMESERIES | C142: FR Hydro Precipitation Energy MWh H Synthetic | D142: PT1H | E142: CET
B143: INSTANCE | C143: FR Hydro Reservoir Water Filling % D Forecast | D143: P1D | E143: CET
B144: TIMESERIES | C144: FR Hydro Reservoir Water Filling % D Normal | D144: P1D | E144: CET
B145: TIMESERIES | C145: FR Hydro Reservoir Water Filling % D Synthetic | D145: P1D | E145: CET
B146: TIMESERIES | C146: FR Hydro Reservoir Water Filling % W Actual | D146: P1W | E146: CET
B147: INSTANCE | C147: FR Hydro Snow-and-Groundwater MWh D Forecast | D147: P1D | E147: CET
B148: TIMESERIES | C148: FR Hydro Snow-and-Groundwater MWh D Normal | D148: P1D | E148: CET
B149: TIMESERIES | C149: FR Hydro Snow-and-Groundwater MWh D Synthetic | D149: P1D | E149: CET
B150: INSTANCE | C150: FR Net Hydro Production MWh D Forecast | D150: P1D | E150: CET
B151: TIMESERIES | C151: FR Net Hydro Production MWh D Normal | D151: P1D | E151: CET
B152: TIMESERIES | C152: FR Net Hydro Production MWh D Synthetic | D152: P1D | E152: CET
B153: TIMESERIES | C153: FR Nuclear Production MWh/h 15min Backcast | D153: PT15M | E153: CET
B154: INSTANCE | C154: FR Nuclear Production MWh/h 15min Forecast | D154: PT15M | E154: CET
B155: TIMESERIES | C155: FR Nuclear Production MWh/h 30min Actual | D155: PT30M | E155: CET
B156: INSTANCE | C156: FR Price Spot EUR/MWh H Forecast | D156: PT1H | E156: CET
B157: TIMESERIES | C157: FR Residual Load MWh/h 15min Backcast | D157: PT15M | E157: CET
B158: SCENARIO_TIMESERIES | C158: FR Residual Load MWh/h 15min Climate | D158: PT15M | E158: CET
B159: INSTANCE | C159: FR Residual Load MWh/h 15min Forecast | D159: PT15M | E159: CET
B160: TIMESERIES | C160: FR Residual Load MWh/h 15min Normal | D160: PT15M | E160: CET
B161: TIMESERIES | C161: FR Residual Load MWh/h 30min Actual | D161: PT30M | E161: CET
B162: INSTANCE | C162: FR Sensitivity Spot EUR/MWh H Forecast | D162: PT1H | E162: CET
B163: TIMESERIES | C163: FR Volume Imbalance Net MWh 30min Actual | D163: PT30M | E163: CET
B164: TIMESERIES | C164: FR Volume Regulation Down MWh 30min Actual | D164: PT30M | E164: CET
B165: TIMESERIES | C165: FR Volume Regulation Net MWh 30min Actual | D165: PT30M | E165: CET
B166: TIMESERIES | C166: FR Volume Regulation Up MWh 30min Actual | D166: PT30M | E166: CET
B167: INSTANCE_PERIOD | C167: FR Biomass Power Capacity Available MW REMIT | D167: NONE | E167: CET
B168: PERIOD | C168: FR Hard Coal Power Installed MW Capacity | D168: NONE | E168: CET
B169: INSTANCE_PERIOD | C169: FR Hydro Reservoir Capacity Available MW REMIT | D169: NONE | E169: CET
B170: INSTANCE_PERIOD | C170: FR Oil Power Capacity Available MW REMIT | D170: NONE | E170: CET
B171: INSTANCE | C171: FR-BRE Consumption Index Chilling % 15min Forecast | D171: PT15M | E171: CET
B172: INSTANCE | C172: FR-BRE Consumption Index Cloudiness % 15min Forecast | D172: PT15M | E172: CET
B173: INSTANCE | C173: FR-BRE Consumption Index Cooling % 15min Forecast | D173: PT15M | E173: CET
B174: INSTANCE | C174: FR-BRE Consumption Index Heating % 15min Forecast | D174: PT15M | E174: CET
B175: TIMESERIES | C175: FR-BRE Consumption Index Heating % H Actual | D175: PT1H | E175: CET
B176: TIMESERIES | C176: FR-BRE Consumption MWh/h 15min Backcast | D176: PT15M | E176: CET
B177: INSTANCE | C177: FR-BRE Consumption MWh/h 15min Forecast | D177: PT15M | E177: CET
B178: TIMESERIES | C178: FR-BRE Consumption MWh/h 15min Normal | D178: PT15M | E178: CET
B179: TIMESERIES | C179: FR-BRE Consumption MWh/h 30min Actual | D179: PT30M | E179: CET
B180: INSTANCE | C180: FR-BRE Consumption Temperature °C 15min Forecast | D180: PT15M | E180: CET
B181: TIMESERIES | C181: FR-BRE Consumption Temperature °C 15min Normal | D181: PT15M | E181: CET
B182: TIMESERIES | C182: FR-BRE Consumption Temperature °C 15min Synthetic | D182: PT15M | E182: CET
B183: TIMESERIES | C183: FR-BRE Consumption Temperature °C H Actual | D183: PT1H | E183: CET
B184: INSTANCE | C184: FR-NOR Consumption Index Chilling % 15min Forecast | D184: PT15M | E184: CET
B185: INSTANCE | C185: FR-NOR Consumption Index Cloudiness % 15min Forecast | D185: PT15M | E185: CET
B186: INSTANCE | C186: FR-NOR Consumption Index Cooling % 15min Forecast | D186: PT15M | E186: CET
B187: INSTANCE | C187: FR-NOR Consumption Index Heating % 15min Forecast | D187: PT15M | E187: CET
B188: TIMESERIES | C188: FR-NOR Consumption Index Heating % H Actual | D188: PT1H | E188: CET
B189: TIMESERIES | C189: FR-NOR Consumption MWh/h 15min Backcast | D189: PT15M | E189: CET
B190: INSTANCE | C190: FR-NOR Consumption MWh/h 15min Forecast | D190: PT15M | E190: CET
B191: TIMESERIES | C191: FR-NOR Consumption MWh/h 15min Normal | D191: PT15M | E191: CET
B192: TIMESERIES | C192: FR-NOR Consumption MWh/h 30min Actual | D192: PT30M | E192: CET
B193: INSTANCE | C193: FR-NOR Consumption Temperature °C 15min Forecast | D193: PT15M | E193: CET
B194: TIMESERIES | C194: FR-NOR Consumption Temperature °C 15min Normal | D194: PT15M | E194: CET
B195: TIMESERIES | C195: FR-NOR Consumption Temperature °C 15min Synthetic | D195: PT15M | E195: CET
B196: TIMESERIES | C196: FR-NOR Consumption Temperature °C H Actual | D196: PT1H | E196: CET
B197: INSTANCE | C197: FR-OCC Consumption Index Chilling % 15min Forecast | D197: PT15M | E197: CET
B198: INSTANCE | C198: FR-OCC Consumption Index Cloudiness % 15min Forecast | D198: PT15M | E198: CET
B199: INSTANCE | C199: FR-OCC Consumption Index Cooling % 15min Forecast | D199: PT15M | E199: CET
B200: INSTANCE | C200: FR-OCC Consumption Index Heating % 15min Forecast | D200: PT15M | E200: CET
B201: TIMESERIES | C201: FR-OCC Consumption Index Heating % H Actual | D201: PT1H | E201: CET
B202: TIMESERIES | C202: FR-OCC Consumption MWh/h 15min Backcast | D202: PT15M | E202: CET
B203: INSTANCE | C203: FR-OCC Consumption MWh/h 15min Forecast | D203: PT15M | E203: CET
B204: TIMESERIES | C204: FR-OCC Consumption MWh/h 15min Normal | D204: PT15M | E204: CET
B205: TIMESERIES | C205: FR-OCC Consumption MWh/h 30min Actual | D205: PT30M | E205: CET
B206: INSTANCE | C206: FR-OCC Consumption Temperature °C 15min Forecast | D206: PT15M | E206: CET
... 54 more rows

Sheet Data_Clim
A1: Datetime | B1: DE Hydro Precipitation Energy MWh H Climate (y1980) | C1: DE Hydro Precipitation Energy MWh H Climate (y1981) | D1: DE Hydro Precipitation Energy MWh H Climate (y1982) | E1: DE Hydro Precipitation Energy MWh H Climate (y1983) | F1: DE Hydro Precipitation Energy MWh H Climate (y1984) | G1: DE Hydro Precipitation Energy MWh H Climate (y1985) | H1: DE Hydro Precipitation Energy MWh H Climate (y1986) | I1: DE Hydro Precipitation Energy MWh H Climate (y1987) | J1: DE Hydro Precipitation Energy MWh H Climate (y1988) | K1: DE Hydro Precipitation Energy MWh H Climate (y1989) | L1: DE Hydro Precipitation Energy MWh H Climate (y1990) | M1: DE Hydro Precipitation Energy MWh H Climate (y1991) | N1: DE Hydro Precipitation Energy MWh H Climate (y1992) | O1: DE Hydro Precipitation Energy MWh H Climate (y1993) | P1: DE Hydro Precipitation Energy MWh H Climate (y1994) | Q1: DE Hydro Precipitation Energy MWh H Climate (y1995) | R1: DE Hydro Precipitation Energy MWh H Climate (y1996) | S1: DE Hydro Precipitation Energy MWh H Climate (y1997) | T1: DE Hydro Precipitation Energy MWh H Climate (y1998) | U1: DE Hydro Precipitation Energy MWh H Climate (y1999) | V1: DE Hydro Precipitation Energy MWh H Climate (y2000) | W1: DE Hydro Precipitation Energy MWh H Climate (y2001) | X1: DE Hydro Precipitation Energy MWh H Climate (y2002) | Y1: DE Hydro Precipitation Energy MWh H Climate (y2003) | Z1: DE Hydro Precipitation Energy MWh H Climate (y2004) | AA1: DE Hydro Precipitation Energy MWh H Climate (y2005) | AB1: DE Hydro Precipitation Energy MWh H Climate (y2006) | AC1: DE Hydro Precipitation Energy MWh H Climate (y2007) | AD1: DE Hydro Precipitation Energy MWh H Climate (y2008) | AE1: DE Hydro Precipitation Energy MWh H Climate (y2009) | AF1: DE Hydro Precipitation Energy MWh H Climate (y2010) | AG1: DE Hydro Precipitation Energy MWh H Climate (y2011) | AH1: DE Hydro Precipitation Energy MWh H Climate (y2012) | AI1: DE Hydro Precipitation Energy MWh H Climate (y2013) | AJ1: DE Hydro Precipitation Energy MWh H Climate (y2014) | AK1: DE Hydro Precipitation Energy MWh H Climate (y2015) | AL1: DE Hydro Precipitation Energy MWh H Climate (y2016) | AM1: DE Hydro Precipitation Energy MWh H Climate (y2017) | AN1: DE Hydro Precipitation Energy MWh H Climate (y2018) | AO1: DE Hydro Precipitation Energy MWh H Climate (y2019) | AP1: DE Hydro Precipitation Energy MWh H Synthetic
A2: 2021-01-01 | B2: 485.7 | C2: 3036.4 | D2: 5304.8 | E2: -58.6 | F2: -195.1 | G2: 3549.9 | H2: 209.1 | I2: 12723.7 | J2: 1685.7 | K2: -22.5 | L2: 298.9 | M2: 3149.4 | N2: -119.4 | O2: 1449.7 | P2: 11039.3 | Q2: 3903.3 | R2: 448.9 | S2: 352.2 | T2: 544.5 | U2: -43.1 | V2: 2556.5 | W2: 60.1 | X2: -23.1 | Y2: 2365.2 | Z2: 840.5 | AA2: 2036.4 | AB2: 4744.5 | AC2: 11682.6 | AD2: 127.1 | AE2: 642.7 | AF2: 4201.7 | AG2: 269.4 | AH2: 1232.1 | AI2: 3647.1 | AJ2: 767.2 | AK2: 275.2 | AL2: 966 | AM2: 33 | AN2: 2927.5 | AO2: 749.9 | AP2: 1904.5
A3: 2021-01-02 | B3: 2680.9 | C3: 10902.2 | D3: 407.4 | E3: 3821 | F3: -145.3 | G3: 5767.7 | H3: 3188 | I3: 6017.5 | J3: 2557.7 | K3: -93.2 | L3: -29.6 | M3: 6599.1 | N3: -104.2 | O3: -76.7 | P3: 6390.7 | Q3: 9882.1 | R3: 31.9 | S3: 679.3 | T3: 5797.9 | U3: 1160.7 | V3: 373.4 | W3: 7684.9 | X3: -20.9 | Y3: 8259.6 | Z3: 1277.5 | AA3: 4463.5 | AB3: 2255.5 | AC3: 9974.6 | AD3: -94.3 | AE3: 148.9 | AF3: 1466.1 | AG3: 868.9 | AH3: 7280.8 | AI3: 852.1 | AJ3: 3343.9 | AK3: 2829.5 | AL3: 6398.4 | AM3: 1884 | AN3: 3040.8 | AO3: 2259.2 | AP3: 1009.8
A4: 2021-01-03 | B4: 1817.4 | C4: 13689.6 | D4: 271.3 | E4: 3955.5 | F4: 5300.5 | G4: 3059.2 | H4: 160.2 | I4: 3232.8 | J4: 3532.7 | K4: -70.1 | L4: -4.2 | M4: 749.6 | N4: -96.8 | O4: -58 | P4: 1868.7 | Q4: 1752.7 | R4: 214.2 | S4: 34.8 | T4: 4255.3 | U4: 4039.9 | V4: -102.7 | W4: 1220.3 | X4: -105.9 | Y4: 4620.7 | Z4: -64.7 | AA4: 388.2 | AB4: 1263.7 | AC4: 2015.2 | AD4: -101.5 | AE4: -117 | AF4: -54.5 | AG4: 3.4 | AH4: -129.6 | AI4: 744.5 | AJ4: 853.3 | AK4: 12060.7 | AL4: 2557.4 | AM4: 54.1 | AN4: 11974.6 | AO4: 289 | AP4: 451
A5: 2021-01-04 | B5: 6089.6 | C5: 18335.4 | D5: 2119 | E5: 2377 | F5: 3666 | G5: 5287.6 | H5: 3406.7 | I5: 439.5 | J5: 7052.9 | K5: -90.1 | L5: -40.7 | M5: 2787.3 | N5: -3.4 | O5: -56.8 | P5: 8285.4 | Q5: 172.2 | R5: -114.1 | S5: 1699.1 | T5: 2464.1 | U5: 1506.6 | V5: 558.5 | W5: 1619.3 | X5: -79.3 | Y5: 12846.5 | Z5: 530.1 | AA5: -119.9 | AB5: 144.2 | AC5: 3443.7 | AD5: -56.3 | AE5: -68.2 | AF5: 79.6 | AG5: 1.7 | AH5: 7958.5 | AI5: 2580.3 | AJ5: 8970.3 | AK5: 3531.7 | AL5: 12135.5 | AM5: 4329.8 | AN5: 23610.7 | AO5: 920.8 | AP5: -112.6
A6: 2021-01-05 | B6: 5517.1 | C6: 2553.5 | D6: 6744 | E6: 11607.2 | F6: 1945.8 | G6: 696.8 | H6: 8.3 | I6: 8551.9 | J6: 666.2 | K6: 3183.4 | L6: 2636.3 | M6: 477.7 | N6: 824.2 | O6: -62.8 | P6: 1969.2 | Q6: -69.7 | R6: -52 | S6: 339.7 | T6: 2369.1 | U6: -106.5 | V6: 1872.1 | W6: 5967.9 | X6: -70.8 | Y6: 2519.6 | Z6: 1297.2 | AA6: 406.6 | AB6: -79.8 | AC6: 1131.3 | AD6: 8151.3 | AE6: 600.3 | AF6: 404.4 | AG6: -91.2 | AH6: 16317.5 | AI6: 4794.4 | AJ6: 2607.5 | AK6: -57.4 | AL6: 3082.9 | AM6: 2357 | AN6: 8600.7 | AO6: 9306.5 | AP6: 40.8
A7: 2021-01-06 | B7: 4718.9 | C7: 9681 | D7: 11095.5 | E7: -139.4 | F7: 1295.8 | G7: 96.5 | H7: 1715.6 | I7: 7251.2 | J7: 3344.7 | K7: 5192 | L7: 3907.7 | M7: 1703.6 | N7: -14.1 | O7: 44.3 | P7: 1823 | Q7: -62.1 | R7: 175.3 | S7: 0.8 | T7: 5553.9 | U7: -131 | V7: -38.8 | W7: 16830.3 | X7: -66.5 | Y7: -37.5 | Z7: 731.3 | AA7: 3419.7 | AB7: -80 | AC7: 1014.2 | AD7: 12518.6 | AE7: 290.7 | AF7: 974.9 | AG7: 4775.1 | AH7: 4617.6 | AI7: 1634 | AJ7: -55.2 | AK7: -88.1 | AL7: 3291.3 | AM7: 127.7 | AN7: 2527.3 | AO7: 6648.9 | AP7: 3669
A8: 2021-01-07 | B8: 4780.6 | C8: 1493.3 | D8: -155.9 | E8: 2642.5 | F8: 3454.4 | G8: 15.8 | H8: 219.4 | I8: 2716.6 | J8: 1162.8 | K8: 3516.1 | L8: -102.1 | M8: 12494.3 | N8: -114.6 | O8: 4300.3 | P8: 1561.1 | Q8: 714.5 | R8: 4788.2 | S8: -21.9 | T8: 350.7 | U8: 2605.2 | V8: 77.9 | W8: 7633.2 | X8: 125.5 | Y8: 1015.6 | Z8: 2071.7 | AA8: -110.8 | AB8: -46.3 | AC8: 2655 | AD8: 8686.4 | AE8: -63.8 | AF8: 118.8 | AG8: 4036.2 | AH8: 5877.6 | AI8: 405.8 | AJ8: -131.8 | AK8: 549.4 | AL8: 6193.7 | AM8: 717.9 | AN8: -112.4 | AO8: 1339.1 | AP8: 245.3
A9: 2021-01-08 | B9: 533.6 | C9: 565.5 | D9: 14691.6 | E9: 2805.1 | F9: 1529.1 | G9: 49.7 | H9: 388.8 | I9: 82.4 | J9: 395.6 | K9: 1990.2 | L9: -79.9 | M9: -29.1 | N9: -83.7 | O9: 3282.5 | P9: 2518.1 | Q9: 67.2 | R9: 982.9 | S9: -81.2 | T9: -172.3 | U9: 9715.2 | V9: -85.8 | W9: 6263.9 | X9: -59.1 | Y9: -118.3 | Z9: 4882.4 | AA9: -126.4 | AB9: -68.1 | AC9: 1827.8 | AD9: -117 | AE9: -83.3 | AF9: 3661.7 | AG9: 2056.7 | AH9: 4229.9 | AI9: 908.3 | AJ9: -24.9 | AK9: 1159.8 | AL9: 8712.9 | AM9: 3942 | AN9: -97.6 | AO9: 7198.3 | AP9: -10.2
A10: 2021-01-09 | B10: 176.8 | C10: 113.1 | D10: 17505.8 | E10: -10.5 | F10: 2326 | G10: 84.7 | H10: 1911.9 | I10: 94 | J10: -89.8 | K10: -91 | L10: -64.5 | M10: 1133.7 | N10: 3387.6 | O10: 115.9 | P10: -37.8 | Q10: 2402.7 | R10: -98.2 | S10: 193.9 | T10: -170.7 | U10: 2739.9 | V10: 2631.2 | W10: 128 | X10: -63.7 | Y10: -31.3 | Z10: 9174.6 | AA10: 610.1 | AB10: -60.9 | AC10: 2881.7 | AD10: 1479.8 | AE10: -49.1 | AF10: 2275.6 | AG10: 8844.7 | AH10: 2350.7 | AI10: 261 | AJ10: 1262.4 | AK10: 3501.7 | AL10: 8856 | AM10: 64.8 | AN10: 426.7 | AO10: 6218 | AP10: -78.3
A11: 2021-01-10 | B11: 318.1 | C11: 2191.8 | D11: 17614.8 | E11: 363 | F11: 1051.5 | G11: 184 | H11: 3473.5 | I11: 2590.1 | J11: 16.8 | K11: -72.5 | L11: -47.3 | M11: 556.9 | N11: 8685.4 | O11: -140.1 | P11: -90.8 | Q11: 12356.8 | R11: -59.4 | S11: 404.2 | T11: -123.7 | U11: -66.1 | V11: 1917.5 | W11: 1183 | X11: -47.1 | Y11: 271.1 | Z11: 4999.7 | AA11: -124.6 | AB11: -72.6 | AC11: -13 | AD11: -121.2 | AE11: -38.8 | AF11: 663.4 | AG11: 3333.7 | AH11: 1513.9 | AI11: 4808.6 | AJ11: 5701.5 | AK11: 3097.6 | AL11: 11823 | AM11: 2893.7 | AN11: -95.5 | AO11: 4688.4 | AP11: -127
A12: 2021-01-11 | B12: 342.4 | C12: 356.3 | D12: 4384 | E12: -84.4 | F12: -71.6 | G12: 88.6 | H12: 18136.4 | I12: 4077.5 | J12: 4150 | K12: -14.8 | L12: -83.5 | M12: 6358 | N12: -65.2 | O12: 1935.4 | P12: 1724.7 | Q12: 15990.2 | R12: 153.5 | S12: -56.1 | T12: -116 | U12: 4689.1 | V12: 166.9 | W12: 2732.1 | X12: -51.3 | Y12: -63.6 | Z12: 5879.5 | AA12: -139.3 | AB12: -65.3 | AC12: 3292.4 | AD12: -177 | AE12: -61.7 | AF12: 2334.2 | AG12: 3326.4 | AH12: -118.9 | AI12: 4855 | AJ12: 1556.8 | AK12: 11322.7 | AL12: 13529.1 | AM12: 2980.5 | AN12: 930 | AO12: 2567.6 | AP12: -94.5
A13: 2021-01-12 | B13: 62.9 | C13: 349 | D13: 5322.7 | E13: -109.8 | F13: 3216.9 | G13: 1588.3 | H13: 5537.3 | I13: 406.6 | J13: -160.6 | K13: 398.1 | L13: -64.8 | M13: 4229.5 | N13: -47.5 | O13: 3851.2 | P13: -188.3 | Q13: 5203.9 | R13: -71.5 | S13: -111.1 | T13: -116.7 | U13: 1104.4 | V13: -96.4 | W13: 896.9 | X13: 238.5 | Y13: -79.5 | Z13: 11869.7 | AA13: 3974.5 | AB13: -46 | AC13: 3356.5 | AD13: 4032.8 | AE13: -69.8 | AF13: 281.7 | AG13: 5066.8 | AH13: -47.7 | AI13: 399.8 | AJ13: -68.1 | AK13: -239.7 | AL13: 11334.2 | AM13: 5118.3 | AN13: -45.8 | AO13: 4770.9 | AP13: 9331.2
A14: 2021-01-13 | B14: -75.6 | C14: 3464.7 | D14: -85.7 | E14: 1727 | F14: 4249.1 | G14: 1045.5 | H14: 15333.9 | I14: 330.5 | J14: -140.1 | K14: 2773.9 | L14: -58.5 | M14: 5643.8 | N14: 4 | O14: -95.4 | P14: 3222.1 | Q14: 1213.6 | R14: -78.9 | S14: -124.4 | T14: -102.3 | U14: 5110 | V14: -133.3 | W14: -204.3 | X14: 44.9 | Y14: 2883.5 | Z14: 30446.2 | AA14: 1243.4 | AB14: -56.2 | AC14: -82 | AD14: 79.7 | AE14: -55.8 | AF14: 1566 | AG14: 6345.2 | AH14: 2045.4 | AI14: 60.7 | AJ14: 1250.1 | AK14: -244.2 | AL14: 4941.2 | AM14: 3088.6 | AN14: -117.1 | AO14: 19348.2 | AP14: 7178.1
A15: 2021-01-14 | B15: -68 | C15: 563.6 | D15: -69 | E15: 5984 | F15: 11790.9 | G15: 329.4 | H15: 8650.7 | I15: -19.9 | J15: -85.9 | K15: 811 | L15: -15.1 | M15: 395.6 | N15: -14.4 | O15: 4561.4 | P15: 11365.8 | Q15: -87.7 | R15: -86 | S15: -77.9 | T15: 149.9 | U15: 2649.2 | V15: -124.8 | W15: -163.2 | X15: -63.7 | Y15: 1189.2 | Z15: 4094.1 | AA15: -0.4 | AB15: -63.4 | AC15: 181.3 | AD15: 549.9 | AE15: 1898.6 | AF15: 49.4 | AG15: 415.9 | AH15: 61.6 | AI15: 693 | AJ15: 7489 | AK15: 7563.2 | AL15: 1690.6 | AM15: 5885.6 | AN15: 12 | AO15: 7958.9 | AP15: 24883.5
A16: 2021-01-15 | B16: -99.9 | C16: 12502.7 | D16: -69.8 | E16: 8912.3 | F16: 4248.5 | G16: 90.7 | H16: 7732.2 | I16: 1162.5 | J16: -74.9 | K16: 144.7 | L16: 109.5 | M16: -230.2 | N16: 41.7 | O16: -101.1 | P16: 2587.3 | Q16: 24.4 | R16: -115.3 | S16: -60.6 | T16: 218.5 | U16: -189.1 | V16: -129.6 | W16: -126 | X16: -81.2 | Y16: -54.8 | Z16: 4790.6 | AA16: -96.3 | AB16: -57.8 | AC16: -83.8 | AD16: -88.9 | AE16: 31.7 | AF16: -65.9 | AG16: 1355.4 | AH16: -93.2 | AI16: 405.4 | AJ16: 49.1 | AK16: -185.3 | AL16: 3806.2 | AM16: 2574.8 | AN16: 1158.6 | AO16: 54.3 | AP16: 6515.8
A17: 2021-01-16 | B17: 156.1 | C17: 1568.1 | D17: -56.2 | E17: 8756.9 | F17: 2205.3 | G17: 278.9 | H17: 5174.2 | I17: 59.3 | J17: -69.5 | K17: -119.3 | L17: 131.7 | M17: -137.9 | N17: 37.6 | O17: -143.1 | P17: 1792.6 | Q17: -85.5 | R17: -37.3 | S17: -62.8 | T17: 10652.2 | U17: -224.9 | V17: -12.6 | W17: -90.5 | X17: 173.6 | Y17: 518.9 | Z17: 4484 | AA17: -98.3 | AB17: 301.8 | AC17: -107 | AD17: 3793 | AE17: -41.1 | AF17: 1108.5 | AG17: -135.3 | AH17: -125.2 | AI17: 1595.2 | AJ17: 4681.3 | AK17: 4505.4 | AL17: 3324.8 | AM17: 1497.6 | AN17: 13517.3 | AO17: -121.9 | AP17: 1076.5
A18: 2021-01-17 | B18: -21.7 | C18: 8392.9 | D18: -39.8 | E18: 1412.3 | F18: 6649.1 | G18: 4.2 | H18: 1322.3 | I18: 208.4 | J18: 4212.8 | K18: -124.2 | L18: 981.5 | M18: -99.5 | N18: -38.4 | O18: -183 | P18: 4013.7 | Q18: -116.7 | R18: -90.7 | S18: -60.3 | T18: 2052.3 | U18: -149.1 | V18: 790.3 | W18: -38.7 | X18: 102.1 | Y18: -102.7 | Z18: 11429.6 | AA18: -99.8 | AB18: 10831.2 | AC18: 167.9 | AD18: 795.2 | AE18: -69.5 | AF18: 5883.9 | AG18: -137.7 | AH18: -97.8 | AI18: 5018.7 | AJ18: 2323 | AK18: 11352.1 | AL18: 2483.4 | AM18: 198.5 | AN18: 8841.9 | AO18: 2709.5 | AP18: 4791.5
A19: 2021-01-18 | B19: -26 | C19: 4509.6 | D19: -19.4 | E19: 112.3 | F19: 894.6 | G19: 214 | H19: 4536.7 | I19: 319.3 | J19: -79.4 | K19: -64.6 | L19: 2170.1 | M19: -81.7 | N19: -94.3 | O19: -54.3 | P19: -117.9 | Q19: 2453.8 | R19: -107.6 | S19: -41.4 | T19: 2635.1 | U19: 72.9 | V19: 3781.1 | W19: -40.9 | X19: -81.4 | Y19: -96.3 | Z19: 2639.3 | AA19: 7543.5 | AB19: 8402.2 | AC19: 4676.4 | AD19: 6569 | AE19: 6787.1 | AF19: 603.9 | AG19: 29.8 | AH19: -104.1 | AI19: 214.7 | AJ19: -127.8 | AK19: -29.8 | AL19: -80.9 | AM19: -151.7 | AN19: 9579.9 | AO19: 637.5 | AP19: 651.6
A20: 2021-01-19 | B20: -63 | C20: 8476.6 | D20: -68.6 | E20: 2271 | F20: 4554.4 | G20: 2231.4 | H20: 3977.4 | I20: 100.3 | J20: -128.2 | K20: -112.2 | L20: -139.5 | M20: 1869 | N20: 3433.6 | O20: -14.2 | P20: -108.1 | Q20: 2364.9 | R20: -97.4 | S20: 4080.3 | T20: 11187.4 | U20: -93.6 | V20: 488.7 | W20: 690.8 | X20: 418.2 | Y20: 281 | Z20: 1615.1 | AA20: 1591.7 | AB20: 377.1 | AC20: 9274.8 | AD20: -95.3 | AE20: 5146.3 | AF20: 11.6 | AG20: 3711.7 | AH20: 9698.7 | AI20: 1352.5 | AJ20: -1.2 | AK20: 579.7 | AL20: 815.6 | AM20: -103.7 | AN20: 9343.4 | AO20: -88 | AP20: 319.6
A21: 2021-01-20 | B21: 48.1 | C21: 6603.7 | D21: -66.5 | E21: 2284.9 | F21: 4410.6 | G21: 551.7 | H21: 4528.6 | I21: -17.7 | J21: -126.8 | K21: -135.1 | L21: 1654.7 | M21: 480.9 | N21: 4129.8 | O21: -181.7 | P21: 53.2 | Q21: 2491.3 | R21: -86.9 | S21: 2587.1 | T21: 7842.6 | U21: -117.2 | V21: 45.8 | W21: 1449 | X21: 1345.1 | Y21: -130.1 | Z21: 13641.6 | AA21: 8240.6 | AB21: 401.7 | AC21: -198 | AD21: -156 | AE21: 7081 | AF21: 1455.8 | AG21: 4765.8 | AH21: 15503.8 | AI21: 1811.6 | AJ21: 1901.8 | AK21: 3581.3 | AL21: 908.8 | AM21: -96.6 | AN21: 13275 | AO21: 101.7 | AP21: -140.3
A22: 2021-01-21 | B22: 346.7 | C22: 410.5 | D22: 254.3 | E22: 514.1 | F22: 2995.1 | G22: 2152 | H22: -184 | I22: -44.4 | J22: 4354 | K22: -3 | L22: -0.4 | M22: 2834 | N22: -227.3 | O22: -70.2 | P22: -13.9 | Q22: 203.4 | R22: -71.7 | S22: 1940.5 | T22: 1384.9 | U22: -131 | V22: 2962 | W22: 211.4 | X22: 2060.7 | Y22: 1408.5 | Z22: 854.5 | AA22: 13995.1 | AB22: 2470.9 | AC22: 2338.8 | AD22: -165.6 | AE22: 2943.9 | AF22: 1852.7 | AG22: 444.1 | AH22: 12380.3 | AI22: 1732.8 | AJ22: 2999.8 | AK22: -158.1 | AL22: -35.6 | AM22: -84.4 | AN22: 6947.9 | AO22: -50.5 | AP22: 1078.8
A23: 2021-01-22 | B23: 14093.9 | C23: -39.4 | D23: 1080.7 | E23: 203.2 | F23: 5594.2 | G23: 9608.7 | H23: 1303.5 | I23: -61.3 | J23: 2685.8 | K23: 1604.9 | L23: -97.1 | M23: 465.7 | N23: -62.3 | O23: 1276.1 | P23: -119.7 | Q23: 5159.7 | R23: -107.2 | S23: 292.8 | T23: 354.4 | U23: -102.8 | V23: 6639 | W23: 1215.5 | X23: -145.3 | Y23: 1421.4 | Z23: -89.5 | AA23: 1701.7 | AB23: 1376.2 | AC23: 2247.6 | AD23: 9460.4 | AE23: -54.3 | AF23: 6.7 | AG23: -89.9 | AH23: 4275.4 | AI23: 356.9 | AJ23: -94.7 | AK23: -33.3 | AL23: -50.7 | AM23: -91.6 | AN23: 23691 | AO23: -47.7 | AP23: 6934.2
A24: 2021-01-23 | B24: 4038 | C24: -110 | D24: 1605.8 | E24: -103.5 | F24: 10403.4 | G24: 13241 | H24: 20262.9 | I24: 923.8 | J24: 1558.9 | K24: -105.6 | L24: -166 | M24: -122.7 | N24: -77.9 | O24: 3636 | P24: 5090.2 | Q24: 11373.6 | R24: 209.5 | S24: -49.6 | T24: -92.7 | U24: -83.1 | V24: 5515.1 | W24: 3774.9 | X24: 887.6 | Y24: 6588.8 | Z24: -160.4 | AA24: 1102.2 | AB24: -185.6 | AC24: 4493.4 | AD24: -73.5 | AE24: 8647.4 | AF24: -116.4 | AG24: -69.7 | AH24: 2624.1 | AI24: -94.4 | AJ24: 1396.1 | AK24: 1040 | AL24: 2493.5 | AM24: -90.8 | AN24: 224.8 | AO24: 108.4 | AP24: 6997.6
A25: 2021-01-24 | B25: 18325.2 | C25: -74.6 | D25: 1234 | E25: -103.8 | F25: 4564 | G25: 5788.7 | H25: 9909.8 | I25: 1666.6 | J25: 3072.9 | K25: -128 | L25: 6872.5 | M25: -133.8 | N25: -62.1 | O25: 851.9 | P25: 9541 | Q25: 2276.2 | R25: 1447.1 | S25: -58.3 | T25: 1501.8 | U25: -91.6 | V25: 436.4 | W25: 10137.5 | X25: 3723.3 | Y25: 3851.2 | Z25: 3300.7 | AA25: 5830 | AB25: -110.2 | AC25: 8015.9 | AD25: -200.2 | AE25: 260.9 | AF25: 202.5 | AG25: 1763.5 | AH25: 3838.6 | AI25: 263.4 | AJ25: 4560.1 | AK25: 1439.6 | AL25: 67.2 | AM25: -16.1 | AN25: -217.7 | AO25: 530.8 | AP25: 978.9
A26: 2021-01-25 | B26: 3307.4 | C26: 788 | D26: 53.4 | E26: -99.9 | F26: 1633.3 | G26: 130.6 | H26: 5062.9 | I26: -46.9 | J26: 6239.2 | K26: -127.3 | L26: 3854.4 | M26: -89.4 | N26: -47.4 | O26: 9272.5 | P26: 7906.3 | Q26: 16214.7 | R26: 69.2 | S26: -12.5 | T26: 135.5 | U26: -128.5 | V26: -97.2 | W26: 2359.7 | X26: 1691.1 | Y26: -81.6 | Z26: 2769.9 | AA26: 2249.9 | AB26: 125.7 | AC26: 451.8 | AD26: 1711 | AE26: -88 | AF26: 1526.7 | AG26: 2396.4 | AH26: 300.2 | AI26: 205.4 | AJ26: 285.7 | AK26: 2313.9 | AL26: 295.4 | AM26: -55.9 | AN26: -192.7 | AO26: 48 | AP26: 4286.7
A27: 2021-01-26 | B27: 529.7 | C27: 1815.8 | D27: 2431.5 | E27: 1436.1 | F27: 112.7 | G27: 8612.5 | H27: 2349.8 | I27: 412.1 | J27: 5834.4 | K27: -116.8 | L27: 4183.2 | M27: -92 | N27: 8.4 | O27: 393.5 | P27: 8822.6 | Q27: 4173.9 | R27: 130.8 | S27: 215.1 | T27: -133.1 | U27: 10233.2 | V27: -117.3 | W27: 301 | X27: 1772.2 | Y27: 1688.6 | Z27: 2322.9 | AA27: 1677 | AB27: 977.1 | AC27: 117.4 | AD27: -220.9 | AE27: -88.7 | AF27: 2061.9 | AG27: 2041.8 | AH27: 200.2 | AI27: -130.4 | AJ27: 4884.8 | AK27: 5680.6 | AL27: -150 | AM27: -69.9 | AN27: 1626 | AO27: 1020.5 | AP27: 731.6
A28: 2021-01-27 | B28: 1115.6 | C28: -64.4 | D28: 4343.8 | E28: 454.3 | F28: 1822 | G28: 3518.7 | H28: -164 | I28: 31.7 | J28: 1084.3 | K28: -113.3 | L28: -43.5 | M28: -69.3 | N28: 71.4 | O28: 7700 | P28: 545.4 | Q28: 991.2 | R28: 143.1 | S28: 50.4 | T28: -124.8 | U28: 8242.4 | V28: -126 | W28: 1846.9 | X28: 7345.9 | Y28: 4287.7 | Z28: 6762.3 | AA28: 278.2 | AB28: -50.5 | AC28: 2160.4 | AD28: -98.8 | AE28: 208 | AF28: -112.2 | AG28: 495 | AH28: 3021.8 | AI28: 2117.6 | AJ28: 5805 | AK28: 3757.5 | AL28: -178.4 | AM28: -96.1 | AN28: 424.6 | AO28: 4425.7 | AP28: 3807.2
A29: 2021-01-28 | B29: -93.8 | C29: -144 | D29: 737.5 | E29: 1319.4 | F29: 358.3 | G29: 228.8 | H29: 248 | I29: 1776.5 | J29: 4513.2 | K29: -110.4 | L29: 2818.6 | M29: -91.4 | N29: -110.9 | O29: 4449.1 | P29: 8617.6 | Q29: 6551.8 | R29: 86.7 | S29: -32.5 | T29: -65.4 | U29: 17238.9 | V29: -138.4 | W29: -269.4 | X29: -180.5 | Y29: 3897.2 | Z29: 2557.2 | AA29: 783.6 | AB29: -106.9 | AC29: 236.1 | AD29: -166.1 | AE29: 281.8 | AF29: 4670.3 | AG29: -142.7 | AH29: 3452.7 | AI29: 4383.5 | AJ29: -131.3 | AK29: 1073.1 | AL29: 1935.2 | AM29: -73.1 | AN29: -134.1 | AO29: 3728.8 | AP29: 15922
A30: 2021-01-29 | B30: -20.6 | C30: -127.8 | D30: 14838.9 | E30: 1589.6 | F30: -9 | G30: -29.4 | H30: -66.5 | I30: -59.8 | J30: 4482.4 | K30: -104 | L30: 90.1 | M30: -88.1 | N30: -89.4 | O30: 2398.8 | P30: 328.6 | Q30: 4500.5 | R30: -118 | S30: -135.8 | T30: 182.2 | U30: 3373.9 | V30: 5120.6 | W30: 58.8 | X30: -218.7 | Y30: 8467.4 | Z30: 2614.4 | AA30: -13.5 | AB30: -91.3 | AC30: 518.9 | AD30: -104 | AE30: -76.7 | AF30: 5215.5 | AG30: -144.9 | AH30: 610 | AI30: 6851.6 | AJ30: -169.1 | AK30: 8888.7 | AL30: 1872.6 | AM30: -68.5 | AN30: 55.8 | AO30: 397.7 | AP30: 18882.6
A31: 2021-01-30 | B31: 806 | C31: -114.4 | D31: 10759.9 | E31: 13181.8 | F31: 2774.2 | G31: 3931.3 | H31: -55.4 | I31: -142.2 | J31: 4576.3 | K31: -83 | L31: 13.8 | M31: -83.8 | N31: -19.2 | O31: -118.2 | P31: -90.7 | Q31: 10917.8 | R31: -112.7 | S31: -165.9 | T31: -102.3 | U31: 1113 | V31: 13903.2 | W31: 596 | X31: -254.1 | Y31: 5375.6 | Z31: 284.3 | AA31: -77.3 | AB31: -87.9 | AC31: -64.6 | AD31: 1121.5 | AE31: -158.4 | AF31: 3390.3 | AG31: -141.4 | AH31: 1119.4 | AI31: 6970.3 | AJ31: 23.3 | AK31: 7938.7 | AL31: 5927.6 | AM31: 7549.8 | AN31: 433.6 | AO31: 542.9 | AP31: 6268.8
A32: 2021-01-31 | B32: 6610.3 | C32: -144.9 | D32: 7172.9 | E32: 6396.7 | F32: 3385.6 | G32: 5269 | H32: 312.2 | I32: -98.2 | J32: 2808.9 | K32: -94.1 | L32: -211.6 | M32: -85.2 | N32: -114.7 | O32: -179.9 | P32: 938.7 | Q32: -218.2 | R32: -128.7 | S32: -157 | T32: 50.3 | U32: 409.2 | V32: -77.7 | W32: -70.8 | X32: -185.4 | Y32: 1638.2 | Z32: 6.7 | AA32: 3271.9 | AB32: -93.5 | AC32: -172.3 | AD32: 436.3 | AE32: -134.6 | AF32: 970.1 | AG32: -111 | AH32: 1558 | AI32: 1710.3 | AJ32: 0.2 | AK32: 1554.5 | AL32: 21716.9 | AM32: 16658.1 | AN32: 1897.2 | AO32: 2135.1 | AP32: 1501.7
A33: 2021-02-01 | B33: 2383 | C33: -107.4 | D33: 117.6 | E33: 8058.6 | F33: 1320.8 | G33: 6131.1 | H33: 3448.8 | I33: -105.6 | J33: 2347.6 | K33: -93.9 | L33: -147.9 | M33: -73.4 | N33: -71.8 | O33: -200.3 | P33: -233.3 | Q33: -251.2 | R33: -72 | S33: -92.4 | T33: -121.3 | U33: 75.1 | V33: -208.8 | W33: 495.4 | X33: -132.5 | Y33: 79.6 | Z33: -228 | AA33: 6087 | AB33: -93.9 | AC33: 858.3 | AD33: 2824.4 | AE33: 597 | AF33: 1504.8 | AG33: -102.8 | AH33: 67.2 | AI33: 15572 | AJ33: 1353.3 | AK33: 3742.6 | AL33: 2509.5 | AM33: 3184.1 | AN33: 11997.8 | AO33: 5104.1 | AP33: 8246.1
A34: 2021-02-02 | B34: 2828.7 | C34: -90.5 | D34: -252.1 | E34: 1392.1 | F34: 3599 | G34: 7562.6 | H34: -44.9 | I34: -117.4 | J34: 1580.8 | K34: -103.8 | L34: 3359.6 | M34: -91.5 | N34: -134.7 | O34: -181.3 | P34: 3867.4 | Q34: 1064.9 | R34: 279.6 | S34: -126.8 | T34: -76.6 | U34: 367.6 | V34: 6288.3 | W34: 2278.4 | X34: -277.2 | Y34: 1251.6 | Z34: 76.2 | AA34: 5591.4 | AB34: -95.5 | AC34: -149.4 | AD34: 7335.2 | AE34: -94.3 | AF34: 1099.8 | AG34: -111.1 | AH34: 824.8 | AI34: 14003.2 | AJ34: 3873.7 | AK34: 5722.1 | AL34: -141.8 | AM34: -132.8 | AN34: -259.8 | AO34: 6255.1 | AP34: 4441.1
A35: 2021-02-03 | B35: 10050.7 | C35: 4960.4 | D35: -169.7 | E35: 5154.9 | F35: 5875.5 | G35: 922.6 | H35: -157.1 | I35: -17.7 | J35: 1401.1 | K35: -99.2 | L35: 232.9 | M35: -86.4 | N35: 2256.8 | O35: -234.1 | P35: -126.5 | Q35: -154.4 | R35: 2128.2 | S35: -107.6 | T35: -88.9 | U35: 865.8 | V35: 416.2 | W35: 9033.2 | X35: -278.3 | Y35: 16114 | Z35: -219.9 | AA35: 2223.3 | AB35: -84.4 | AC35: 343.7 | AD35: -185.1 | AE35: -135 | AF35: 6758.4 | AG35: 444.7 | AH35: -106.6 | AI35: 1847 | AJ35: -73.5 | AK35: -117.8 | AL35: 11509.3 | AM35: 2579.8 | AN35: 567.4 | AO35: 20936.8 | AP35: 9324.6
A36: 2021-02-04 | B36: 16814.5 | C36: 12607.9 | D36: -143.3 | E36: 882.7 | F36: 1702.6 | G36: -316.4 | H36: -167.4 | I36: -105 | J36: -293.2 | K36: -101.4 | L36: -285.8 | M36: 196.7 | N36: 13161 | O36: -190.3 | P36: -218.1 | Q36: 1237.7 | R36: 1246 | S36: -117.7 | T36: -147.9 | U36: 483.9 | V36: -178.5 | W36: 6548.1 | X36: -234.9 | Y36: 7612.5 | Z36: -232.9 | AA36: -138.1 | AB36: 120.4 | AC36: -76.7 | AD36: 2293.4 | AE36: -134.6 | AF36: -91.5 | AG36: -75.3 | AH36: -80.6 | AI36: 9035.3 | AJ36: 288 | AK36: -83.9 | AL36: 6199.2 | AM36: 1935.9 | AN36: 275.6 | AO36: 35.9 | AP36: -182.8
A37: 2021-02-05 | B37: 7000.3 | C37: 2863.8 | D37: -163.7 | E37: 11588.3 | F37: 3050.9 | G37: -97.2 | H37: -44.8 | I37: -121.5 | J37: 3065.7 | K37: 130 | L37: -251.3 | M37: 487.9 | N37: 10739.6 | O37: -220.8 | P37: -249.1 | Q37: 466.5 | R37: -9.9 | S37: 4303.8 | T37: -131.3 | U37: 8395.2 | V37: 439.9 | W37: 2073.2 | X37: 932.7 | Y37: 4260.3 | Z37: -358.3 | AA37: -150 | AB37: 42.9 | AC37: 2164.8 | AD37: 514.3 | AE37: 265.2 | AF37: 9402.8 | AG37: -238 | AH37: -104.7 | AI37: 8530.4 | AJ37: 1318.8 | AK37: 1447.3 | AL37: 1286.6 | AM37: 4581 | AN37: -210.5 | AO37: -125.2 | AP37: 1606.5
A38: 2021-02-06 | B38: 2482.2 | C38: 6190.1 | D38: 1172.8 | E38: 7247.6 | F38: 9341.4 | G38: 3046.5 | H38: 540 | I38: 44.7 | J38: 8079.1 | K38: 36.5 | L38: -234.8 | M38: 386.7 | N38: 793.9 | O38: 103.6 | P38: 509.2 | Q38: 213.6 | R38: -126.8 | S38: -90.6 | T38: -121.3 | U38: 7025.8 | V38: -235.4 | W38: -246.6 | X38: 12569.7 | Y38: 2134.9 | Z38: -357.3 | AA38: -163.1 | AB38: 304.1 | AC38: 7805.3 | AD38: 6479.8 | AE38: 2413.6 | AF38: 1528.1 | AG38: -236.4 | AH38: -67.9 | AI38: 4015 | AJ38: -338.2 | AK38: -44.4 | AL38: -244.4 | AM38: 2006.7 | AN38: -180.4 | AO38: -124.4 | AP38: 629.6
A39: 2021-02-07 | B39: 5627.8 | C39: 3018.6 | D39: 817.5 | E39: 3240.6 | F39: 20264.9 | G39: 792.8 | H39: 560.1 | I39: 7609.5 | J39: 9536.3 | K39: -125.5 | L39: -270 | M39: 233.2 | N39: -193.3 | O39: -34.3 | P39: 1455.2 | Q39: -367.3 | R39: 558.5 | S39: -227.6 | T39: 412.2 | U39: 10728.4 | V39: 1348.8 | W39: -275.4 | X39: 2788.7 | Y39: 391.7 | Z39: 1636.4 | AA39: -182.3 | AB39: 2349.2 | AC39: 2617.5 | AD39: 223.9 | AE39: 5646.1 | AF39: 897.8 | AG39: -234.3 | AH39: 679.5 | AI39: 5047.6 | AJ39: 5461.9 | AK39: -241.2 | AL39: 2068.2 | AM39: 1954.9 | AN39: 1458 | AO39: 7250.4 | AP39: 4399.5
A40: 2021-02-08 | B40: -270.7 | C40: 236.5 | D40: 2293.8 | E40: 97.8 | F40: 12546.2 | G40: 6512.6 | H40: 74.8 | I40: 898.1 | J40: 8209.8 | K40: -176 | L40: 815.5 | M40: 1314.6 | N40: -177.6 | O40: -188.8 | P40: 5156.6 | Q40: 2267.4 | R40: 2707.9 | S40: -310.2 | T40: -66.8 | U40: 2476.6 | V40: 12190.7 | W40: 471.4 | X40: 4237 | Y40: 2063.4 | Z40: 7807 | AA40: -199.3 | AB40: 3107.9 | AC40: 7191.4 | AD40: -322.7 | AE40: 5210.4 | AF40: -189.7 | AG40: -152.7 | AH40: -66.4 | AI40: 3050.3 | AJ40: 2087.9 | AK40: 1526.9 | AL40: 3857 | AM40: 796.2 | AN40: 1067.2 | AO40: -117.1 | AP40: 1352.2
A41: 2021-02-09 | B41: -251.3 | C41: -154.7 | D41: -110.3 | E41: 1008.7 | F41: 4696.1 | G41: 6950.4 | H41: 1695.5 | I41: 663.5 | J41: 2949.3 | K41: -188.9 | L41: 10 | M41: 4470.9 | N41: -220.8 | O41: -207.8 | P41: 501.6 | Q41: 8081.5 | R41: 87.3 | S41: -322.2 | T41: -187.8 | U41: 16756.4 | V41: 4416.6 | W41: 2395.6 | X41: 1425.8 | Y41: -4.9 | Z41: 2002.7 | AA41: -235 | AB41: 3072.8 | AC41: 735.3 | AD41: -302.2 | AE41: 1865.3 | AF41: 231.5 | AG41: -144.7 | AH41: 583.8 | AI41: 2471.7 | AJ41: 788 | AK41: 414 | AL41: 8936.3 | AM41: -194.5 | AN41: -182.9 | AO41: 1352.2 | AP41: 2586.4
A42: 2021-02-10 | B42: 3168 | C42: 2928.5 | D42: -290.2 | E42: 232 | F42: 647 | G42: 1644.1 | H42: 1739.2 | I42: 5768.3 | J42: 2733.2 | K42: -160 | L42: 1723.8 | M42: 3899.8 | N42: 3120.9 | O42: -237.3 | P42: 3546.5 | Q42: 47.5 | R42: 87.5 | S42: -392.4 | T42: -237.5 | U42: 698.9 | V42: -9.4 | W42: -150.5 | X42: 3846.3 | Y42: -92.7 | Z42: -54.3 | AA42: 590.5 | AB42: 3218.3 | AC42: 1469.3 | AD42: -260.3 | AE42: 4744.1 | AF42: 3787 | AG42: -268.8 | AH42: 391.1 | AI42: -27.5 | AJ42: 2076.3 | AK42: -41.3 | AL42: 2943.5 | AM42: 197.8 | AN42: 343.9 | AO42: 11570.7 | AP42: 7651.2
A43: 2021-02-11 | B43: 2364.6 | C43: 478.4 | D43: -254.5 | E43: 1638.8 | F43: 5298.9 | G43: 935.8 | H43: 461.5 | I43: -135 | J43: 4920.2 | K43: -155 | L43: 3490.5 | M43: 484.8 | N43: 3289.2 | O43: -243.5 | P43: 3483.6 | Q43: 1869 | R43: 2861.9 | S43: 4007.1 | T43: -244.4 | U43: 1783.7 | V43: 9140.8 | W43: -280.3 | X43: -96.6 | Y43: -163.5 | Z43: 7990.4 | AA43: 6695.4 | AB43: 184.7 | AC43: 6511.6 | AD43: -297.9 | AE43: 1813.2 | AF43: 4499.5 | AG43: 805.6 | AH43: 63.5 | AI43: 2128 | AJ43: 1074.4 | AK43: -127.7 | AL43: 211.8 | AM43: -148.4 | AN43: 3358.7 | AO43: 10730.9 | AP43: 263
A44: 2021-02-12 | B44: 1082.9 | C44: 93.3 | D44: -261.4 | E44: 2906.1 | F44: -261 | G44: -190.1 | H44: -101.7 | I44: 227.9 | J44: 5160.5 | K44: 1411 | L44: 6162.3 | M44: 920 | N44: 3401.9 | O44: -257.2 | P44: 85 | Q44: 1746.4 | R44: 7222.5 | S44: 3557 | T44: -356.9 | U44: -36.3 | V44: -84.4 | W44: -344.7 | X44: -299.5 | Y44: -148.2 | Z44: -33.3 | AA44: 13723.5 | AB44: -117.3 | AC44: 6293.7 | AD44: -280.9 | AE44: 4599.8 | AF44: 1030.7 | AG44: 699.1 | AH44: -88.5 | AI44: 2063.6 | AJ44: 173.2 | AK44: -137.2 | AL44: 3384.5 | AM44: -270.3 | AN44: 3770.7 | AO44: 1096.6 | AP44: -175.9
A45: 2021-02-13 | B45: -167.7 | C45: -193.8 | D45: -243.3 | E45: -195.4 | F45: -173.8 | G45: 2522.3 | H45: -121.3 | I45: 2666 | J45: -34.7 | K45: 1630.8 | L45: 9899.5 | M45: 1031.1 | N45: 5627.3 | O45: -259.4 | P45: 51.2 | Q45: 2337.2 | R45: 7993.7 | S45: 4974.8 | T45: -294.9 | U45: 1242.9 | V45: 10159.2 | W45: 969.2 | X45: 1013.2 | Y45: -148.1 | Z45: -161.2 | AA45: 6725.3 | AB45: -33 | AC45: 3456.5 | AD45: -203.2 | AE45: 910.3 | AF45: -9.2 | AG45: 388.3 | AH45: 699.9 | AI45: 79 | AJ45: 9231.3 | AK45: -134 | AL45: 6727.7 | AM45: -265.6 | AN45: -249.7 | AO45: -222.6 | AP45: -175.9
A46: 2021-02-14 | B46: -99 | C46: -148.7 | D46: 910.7 | E46: 263.3 | F46: -115.5 | G46: 5753.6 | H46: -127.2 | I46: 335.8 | J46: -337 | K46: 7259.8 | L46: 35108.6 | M46: 762.4 | N46: 912 | O46: -258.5 | P46: -196.4 | Q46: 2516 | R46: 4431.8 | S46: 9584.4 | T46: -217 | U46: 1221.7 | V46: 1565.1 | W46: -313.2 | X46: 2219.5 | Y46: -165.6 | Z46: -119.2 | AA46: 5840.9 | AB46: -42.1 | AC46: 2827.9 | AD46: -179.6 | AE46: 3418.7 | AF46: 14.6 | AG46: -288.6 | AH46: 1303.1 | AI46: 94.3 | AJ46: -151.1 | AK46: 202.7 | AL46: 5495.1 | AM46: -249.6 | AN46: -185.8 | AO46: -196.5 | AP46: -146.1
A47: 2021-02-15 | B47: -204 | C47: -174.1 | D47: 680.3 | E47: -173.4 | F47: -95.4 | G47: 9534.2 | H47: 27 | I47: 1784.5 | J47: -294.5 | K47: -98.2 | L47: 22280.1 | M47: 2910.4 | N47: 4859 | O47: -254.4 | P47: 1.9 | Q47: 3746.4 | R47: 78.3 | S47: 11638.7 | T47: -267 | U47: -44.5 | V47: 4582.3 | W47: -335.3 | X47: -215.3 | Y47: -153.7 | Z47: 51.1 | AA47: 5261.9 | AB47: 7676.4 | AC47: 2976.2 | AD47: -85.2 | AE47: 36.2 | AF47: -170.9 | AG47: 614.8 | AH47: 9405.1 | AI47: 3717.8 | AJ47: 5365.2 | AK47: 110.8 | AL47: 1473.6 | AM47: -285.2 | AN47: 8517.2 | AO47: -229.6 | AP47: 531
A48: 2021-02-16 | B48: 3530.9 | C48: -189.6 | D48: -301.1 | E48: -265.4 | F48: -78.7 | G48: -220.6 | H48: -101.2 | I48: 557.9 | J48: -337.2 | K48: 5415.2 | L48: 3592 | M48: 4179.2 | N48: 5269 | O48: 729.2 | P48: -123.7 | Q48: 8905.3 | R48: 4359.3 | S48: -132.5 | T48: -252.7 | U48: 2698.4 | V48: 8975.1 | W48: -288.3 | X48: -144.4 | Y48: -10.3 | Z48: -220 | AA48: 5018.2 | AB48: 16323.7 | AC48: -364.7 | AD48: -261.7 | AE48: 1416.3 | AF48: -162.9 | AG48: 60 | AH48: 891.5 | AI48: 533.1 | AJ48: 2246.1 | AK48: -237.1 | AL48: 515 | AM48: -167.8 | AN48: 5588.6 | AO48: -223.9 | AP48: 314.6
A49: 2021-02-17 | B49: 4406.3 | C49: -29.5 | D49: -283.3 | E49: -214.4 | F49: -136.9 | G49: 302.8 | H49: 614.7 | I49: 3304.9 | J49: -115.6 | K49: -100.1 | L49: 48.9 | M49: -162.3 | N49: 3718 | O49: 5139.8 | P49: -16.4 | Q49: 6852.8 | R49: 4248.1 | S49: 136.9 | T49: 1981.9 | U49: 4983 | V49: 3923.7 | W49: 1211.1 | X49: -272.7 | Y49: -230.7 | Z49: -272.4 | AA49: 573.7 | AB49: 6310.1 | AC49: -329.4 | AD49: -219.4 | AE49: 13477.8 | AF49: 718.3 | AG49: -134.9 | AH49: 754.2 | AI49: -19.9 | AJ49: -285.2 | AK49: -178.5 | AL49: 371.4 | AM49: 6664.4 | AN49: 12696.1 | AO49: -252 | AP49: 1015.6
A50: 2021-02-18 | B50: -91.5 | C50: 867.5 | D50: 531.8 | E50: -210.9 | F50: -123.4 | G50: -181.7 | H50: 6246 | I50: 3998.6 | J50: 462.2 | K50: 3604.7 | L50: -270.7 | M50: 122.8 | N50: 261.7 | O50: 194.4 | P50: -156.5 | Q50: 8564.8 | R50: 6337.1 | S50: 5625.9 | T50: -295.9 | U50: 9975.7 | V50: 6216.3 | W50: -276.7 | X50: 296 | Y50: -197.5 | Z50: 807.2 | AA50: 10.3 | AB50: 3996.8 | AC50: -360.5 | AD50: -218.4 | AE50: -206.2 | AF50: 1352 | AG50: 243.3 | AH50: 9.6 | AI50: -181.4 | AJ50: -286.3 | AK50: -181.5 | AL50: -210.9 | AM50: -129.7 | AN50: 523.1 | AO50: -250.1 | AP50: -279.4
A51: 2021-02-19 | B51: -349.9 | C51: 421.8 | D51: 2226.6 | E51: -146.7 | F51: -128.9 | G51: -228 | H51: 3579 | I51: 2603.1 | J51: 3599.8 | K51: -119.1 | L51: -247.9 | M51: -170.3 | N51: -182.8 | O51: 3546 | P51: -178 | Q51: -264 | R51: 2613.1 | S51: 1426.3 | T51: -427.3 | U51: 13105.7 | V51: 8965.4 | W51: -234.8 | X51: 2929 | Y51: -207.6 | Z51: 116.7 | AA51: 2877.7 | AB51: 350.9 | AC51: -149.6 | AD51: -225.1 | AE51: -186.3 | AF51: 6430.6 | AG51: -167.2 | AH51: 5013.5 | AI51: 1510.6 | AJ51: 412.3 | AK51: -262 | AL51: 1956.4 | AM51: -232.9 | AN51: -185.7 | AO51: -270.7 | AP51: 2164.8
A52: 2021-02-20 | B52: -371.4 | C52: 61.3 | D52: -75.3 | E52: -141.7 | F52: 1458.7 | G52: -218.4 | H52: -55.6 | I52: 3364.3 | J52: 1590.8 | K52: 2951 | L52: -410.6 | M52: -179.7 | N52: -46.8 | O52: 2064.2 | P52: 3050 | Q52: 369.4 | R52: 219.8 | S52: 642.1 | T52: -318.2 | U52: 15976.2 | V52: 3268.1 | W52: 893.1 | X52: 13574.7 | Y52: -170.1 | Z52: -352.4 | AA52: 2321.6 | AB52: 4447.8 | AC52: -349.1 | AD52: 653.1 | AE52: 1541.5 | AF52: 788.8 | AG52: 6689.7 | AH52: -113.2 | AI52: 871.8 | AJ52: 63.8 | AK52: -256.4 | AL52: 6037 | AM52: 2567.5 | AN52: 438.9 | AO52: -287.8 | AP52: -406.5
A53: 2021-02-21 | B53: -390.5 | C53: 685.1 | D53: -354.8 | E53: -47 | F53: 321.5 | G53: -62.3 | H53: -148.7 | I53: 3211.7 | J53: -349.9 | K53: 13710.4 | L53: -444.3 | M53: -196.9 | N53: 125.4 | O53: 9069.4 | P53: 2714.3 | Q53: 2056.2 | R53: 493.1 | S53: -405.1 | T53: -456.6 | U53: 12058.5 | V53: -108 | W53: 857.2 | X53: 3670.9 | Y53: -160.9 | Z53: -28.3 | AA53: 2631.8 | AB53: -107.8 | AC53: -415.9 | AD53: 1060.1 | AE53: 1747.5 | AF53: -152.8 | AG53: 3093.1 | AH53: -200.1 | AI53: -87 | AJ53: 4729.1 | AK53: 3549.2 | AL53: 440.8 | AM53: 5144.8 | AN53: -64 | AO53: -316.1 | AP53: -442.3
A54: 2021-02-22 | B54: -236.2 | C54: -29.7 | D54: -293.5 | E54: -281.4 | F54: 2921.8 | G54: 124.5 | H54: -169.6 | I54: 207 | J54: -263 | K54: 2169.4 | L54: -368.7 | M54: 1252.9 | N54: -66.5 | O54: 1723.6 | P54: 737 | Q54: 350.9 | R54: 1018.9 | S54: -284.8 | T54: 7650.2 | U54: 10119.8 | V54: -343.4 | W54: 8846.7 | X54: 3465.6 | Y54: -175.4 | Z54: 2415.1 | AA54: 2612.6 | AB54: 267.6 | AC54: -374.1 | AD54: -151.3 | AE54: 9127.4 | AF54: 1112.8 | AG54: 347.5 | AH54: -210.7 | AI54: 316.7 | AJ54: 1333.9 | AK54: 2003.3 | AL54: 260.5 | AM54: 136.6 | AN54: 119.7 | AO54: 1001 | AP54: -476.8
A55: 2021-02-23 | B55: 2333.6 | C55: -113.3 | D55: 3146.5 | E55: -253.4 | F55: -39.5 | G55: -168.6 | H55: 12674.6 | I55: 1284.3 | J55: 2614.5 | K55: 2074.9 | L55: -456.2 | M55: -139.1 | N55: -331.4 | O55: 1149.8 | P55: 1004.9 | Q55: 1942.9 | R55: 21.5 | S55: -443.4 | T55: 5945.3 | U55: 4109.6 | V55: -136.8 | W55: 11347.9 | X55: 9883.4 | Y55: -202 | Z55: 11696.4 | AA55: 710.5 | AB55: -6.3 | AC55: -367.9 | AD55: -265.9 | AE55: 5252 | AF55: 3793.2 | AG55: -238.3 | AH55: 132.3 | AI55: 405.4 | AJ55: -356.9 | AK55: 6857.9 | AL55: 8504.6 | AM55: 182.8 | AN55: -166.9 | AO55: -523.5 | AP55: -481.1
A56: 2021-02-24 | B56: -417.3 | C56: 319.1 | D56: 3916.2 | E56: -207.3 | F56: 1780.4 | G56: 952 | H56: 8235.7 | I56: -305.1 | J56: 5107.3 | K56: 1829.4 | L56: -560.6 | M56: -353 | N56: -352.3 | O56: 857 | P56: 4558.4 | Q56: 9571.4 | R56: -203.9 | S56: 105.8 | T56: 37.2 | U56: 6065.9 | V56: 1430.1 | W56: 2535.5 | X56: 3612.3 | Y56: -266.5 | Z56: 1047.3 | AA56: -48.4 | AB56: 385 | AC56: 2747.9 | AD56: -453.5 | AE56: 2442 | AF56: 1856 | AG56: 1607.8 | AH56: -36.9 | AI56: 1549.2 | AJ56: -393.6 | AK56: 1284.9 | AL56: 2358.9 | AM56: 4454.8 | AN56: -368.8 | AO56: -533.3
A57: 2021-02-25 | B57: -405.4 | C57: -204.1 | D57: 1676.6 | E57: 1256.7 | F57: 276.9 | G57: -262.3 | H57: -143.6 | I57: -259.7 | J57: 3977.6 | K57: 2843.5 | L57: -447.8 | M57: -388.2 | N57: -366.4 | O57: 160.7 | P57: 2566.3 | Q57: 10465.9 | R57: -349.6 | S57: 2076.5 | T57: 695.8 | U57: 251.5 | V57: 2952.6 | W57: 584 | X57: 6421.3 | Y57: -302.7 | Z57: -307.1 | AA57: 124.7 | AB57: 974.8 | AC57: 4576.9 | AD57: -426.7 | AE57: -303.8 | AF57: 2184.7 | AG57: 1768.6 | AH57: 559.5 | AI57: 78 | AJ57: -352.9 | AK57: 315.6 | AL57: 12005.2 | AM57: -428.5 | AN57: -305.1 | AO57: -425.8
A58: 2021-02-26 | B58: -369.9 | C58: -187 | D58: 380.3 | E58: 4821.5 | F58: 2741.9 | G58: -124 | H58: -173.2 | I58: 5103.1 | J58: 4952.5 | K58: 2838.8 | L58: 7844.5 | M58: -357.5 | N58: -355.4 | O58: -280.8 | P58: -381.6 | Q58: 8173.6 | R58: -380.3 | S58: 15452.6 | T58: -289.3 | U58: -367.8 | V58: 82.6 | W58: 20.1 | X58: 1212.4 | Y58: -392.6 | Z58: 772.9 | AA58: -79.5 | AB58: 2579.5 | AC58: 7694.3 | AD58: 1332.2 | AE58: 784.2 | AF58: 3580 | AG58: 3622.8 | AH58: 2828.9 | AI58: 1665.3 | AJ58: 5688.3 | AK58: -375.4 | AL58: -292.7 | AM58: -305.9 | AN58: -63.2 | AO58: -409.8
A59: 2021-02-27 | B59: -439.2 | C59: -314.3 | D59: -201.5 | E59: 4596.1 | F59: 4447 | G59: -145 | H59: 275.3 | I59: 8551 | J59: 4821.7 | K59: 5643.8 | L59: 14919.8 | M59: -342.7 | N59: -392.3 | O59: -240.5 | P59: -462.4 | Q59: 1314.2 | R59: -382.1 | S59: 3365.1 | T59: -360.1 | U59: -460.1 | V59: -401.5 | W59: -361.9 | X59: 10990.1 | Y59: -380.8 | Z59: 674.6 | AA59: 4105.6 | AB59: -176.4 | AC59: 3994.8 | AD59: 2355.8 | AE59: 1448.7 | AF59: -436.2 | AG59: 5547.1 | AH59: -127.5 | AI59: 55.6 | AJ59: 6587.3 | AK59: 8107.7 | AL59: -399.2 | AM59: -495.2 | AN59: 80.8 | AO59: -471.2
A60: 2021-02-28 | B60: -386.3 | C60: 2208.4 | D60: 59.4 | E60: 4723.6 | F60: 2353.6 | G60: 209.2 | H60: 1214.6 | I60: 15317.1 | J60: 2596.2 | K60: 7203.5 | L60: 10006.4 | M60: 1436.2 | N60: -429.9 | O60: 206.2 | P60: 408.4 | Q60: -407.6 | R60: -365.5 | S60: -524.8 | T60: 1875.9 | U60: 1330.3 | V60: -11.5 | W60: -120.6 | X60: 2526.3 | Y60: -451.7 | Z60: 9.5 | AA60: -181.3 | AB60: 1811.1 | AC60: 3872.9 | AD60: -378 | AE60: -247.1 | AF60: 362.8 | AG60: 778.4 | AH60: 689.9 | AI60: -193.5 | AJ60: 2326.6 | AK60: 664.8 | AL60: -172 | AM60: 14582.1 | AN60: -160.7 | AO60: -422.3
A61: 2021-03-01 | B61: -327.2 | C61: 3211.6 | D61: 270.2 | E61: 3108 | F61: -145.8 | G61: 411.4 | H61: -246.2 | I61: 5960.6 | J61: 6549 | K61: 1921.6 | L61: 5871 | M61: -355.3 | N61: -519.3 | O61: -322.5 | P61: 3853.7 | Q61: -573.7 | R61: 1120.5 | S61: -506.8 | T61: 3763.6 | U61: 1724 | V61: 11423.5 | W61: 2744.2 | X61: 3772 | Y61: 878.9 | Z61: 365.3 | AA61: -216.9 | AB61: 3110.3 | AC61: 9781.6 | AD61: 9516.5 | AE61: -138.3 | AF61: -549 | AG61: -412.2 | AH61: -341 | AI61: -260.6 | AJ61: 1081.4 | AK61: 3124.5 | AL61: 2511.6 | AM61: 4110.3 | AN61: 1391.3 | AO61: 10628.6
A62: 2021-03-02 | B62: -316.3 | C62: 2985.8 | D62: 6531 | E62: 1144.8 | F62: 4132.1 | G62: 11089.3 | H62: 402.2 | I62: 13899.9 | J62: 2253.5 | K62: 2898.4 | L62: 3148.5 | M62: 43 | N62: 2723.7 | O62: -354.1 | P62: 5259.9 | Q62: 100.8 | R62: 346.2 | S62: -685.1 | T62: -309.2 | U62: 4099.3 | V62: 727.5 | W62: 3779.9 | X62: 7473.9 | Y62: 5981.3 | Z62: 971.2 | AA62: -242.3 | AB62: 2255.5 | AC62: 6340 | AD62: 708.6 | AE62: 2450.1 | AF62: 2693.2 | AG62: -564.8 | AH62: -446.3 | AI62: -260.7 | AJ62: 1076.2 | AK62: 11564.5 | AL62: 9593.6 | AM62: 5296.8 | AN62: 1641.8 | AO62: 392.2
A63: 2021-03-03 | B63: 636.9 | C63: 12696.5 | D63: -411.5 | E63: -390.9 | F63: 3209.6 | G63: -124 | H63: 3030.8 | I63: 7204.5 | J63: -270.5 | K63: 10212.2 | L63: 52.8 | M63: 2492.5 | N63: -607.9 | O63: 4037.8 | P63: 3284.2 | Q63: 5870.8 | R63: 614.9 | S63: 362.3 | T63: -695.9 | U63: 130.4 | V63: 1197.5 | W63: 16046.2 | X63: 547.4 | Y63: 2628 | Z63: -133.1 | AA63: -277.7 | AB63: 11371.3 | AC63: 7153.1 | AD63: 4883.8 | AE63: 739.3 | AF63: -514.9 | AG63: -438.4 | AH63: -361.8 | AI63: -407.1 | AJ63: 1113.8 | AK63: -494.7 | AL63: 3962 | AM63: -517.3 | AN63: 940.3 | AO63: -573.4
A64: 2021-03-04 | B64: -317.6 | C64: 4940.7 | D64: 4778.1 | E64: -358.5 | F64: -42 | G64: 239.3 | H64: 3.8 | I64: 483.8 | J64: 257.4 | K64: 1929.7 | L64: -506.7 | M64: -405.3 | N64: -589.1 | O64: 732.9 | P64: 724.9 | Q64: 2295.7 | R64: -94.3 | S64: 325 | T64: -756.1 | U64: 12076.9 | V64: 7306.2 | W64: 17977.2 | X64: -489.6 | Y64: -380.9 | Z64: -372.7 | AA64: -44.4 | AB64: 34697.9 | AC64: -539.6 | AD64: 5548.9 | AE64: -332.3 | AF64: 173.6 | AG64: -349.1 | AH64: 31.2 | AI64: -389.7 | AJ64: 4679.9 | AK64: 2909.5 | AL64: 2386 | AM64: 1789.8 | AN64: 18.8 | AO64: 1625.7
A65: 2021-03-05 | B65: -499.2 | C65: -246.6 | D65: 1080.7 | E65: -442.5 | F65: -329 | G65: 1037.2 | H65: 358.3 | I65: 1432.6 | J65: 3097.2 | K65: -551.8 | L65: -556.2 | M65: -477.1 | N65: -522.3 | O65: -177.3 | P65: -624 | Q65: 3374.5 | R65: -354.9 | S65: 1103.5 | T65: 7525 | U65: 2247.9 | V65: -276.7 | W65: 3740.7 | X65: -417.8 | Y65: -469.3 | Z65: 605.8 | AA65: 2554.6 | AB65: 9461.3 | AC65: 974.7 | AD65: 1438 | AE65: 12344.4 | AF65: 109.7 | AG65: -349.8 | AH65: 3506.5 | AI65: -338.7 | AJ65: 1496.3 | AK65: 762.1 | AL65: 8643.2 | AM65: 3570.6 | AN65: -344.5 | AO65: 597.2
A66: 2021-03-06 | B66: 3149.4 | C66: 1348.3 | D66: -73.2 | E66: -405.6 | F66: -238.3 | G66: 400.7 | H66: 1070.1 | I66: -306.5 | J66: 82.8 | K66: -615.8 | L66: -780.2 | M66: -502 | N66: 989.4 | O66: 2994.1 | P66: 5174.6 | Q66: 5628.7 | R66: 189.1 | S66: 1993.9 | T66: 2112.1 | U66: 1053.3 | V66: -537.8 | W66: -434.6 | X66: -492.4 | Y66: 4534 | Z66: 5892.3 | AA66: 2483.2 | AB66: 1628 | AC66: -229.6 | AD66: -400.2 | AE66: 13859 | AF66: 6311.7 | AG66: -321 | AH66: -402.6 | AI66: -334.9 | AJ66: -441.7 | AK66: -376.8 | AL66: 2973.1 | AM66: 10661.5 | AN66: 1889.7 | AO66: -543.5
A67: 2021-03-07 | B67: 3600.9 | C67: 327 | D67: -451 | E67: -175.2 | F67: 547.7 | G67: 451.5 | H67: 1919.1 | I67: -354 | J67: 11188.3 | K67: -194.3 | L67: -665.6 | M67: -489.8 | N67: -441.6 | O67: 2951 | P67: -251.2 | Q67: 901.7 | R67: -25.1 | S67: -481.8 | T67: 3842 | U67: 1259.5 | V67: -602 | W67: 1983.6 | X67: 250.9 | Y67: 245 | Z67: 449.2 | AA67: 436.4 | AB67: 992.5 | AC67: 5896.9 | AD67: -222.9 | AE67: 2432.2 | AF67: -326.2 | AG67: -577.1 | AH67: -423.5 | AI67: -460.7 | AJ67: -504.8 | AK67: -454.5 | AL67: 1104.2 | AM67: 2809.4 | AN67: 986.3 | AO67: 2679.6
A68: 2021-03-08 | B68: 834.3 | C68: 3119.9 | D68: -468.2 | E68: -379.2 | F68: 2252 | G68: -234.4 | H68: 1064.7 | I68: -380 | J68: 2164.3 | K68: 2066.7 | L68: -721.8 | M68: -147.2 | N68: -457.2 | O68: -509.7 | P68: 686.3 | Q68: -136 | R68: -539 | S68: -493.2 | T68: 10217.6 | U68: 2249.7 | V68: 3322.3 | W68: 2979.6 | X68: -307.2 | Y68: -172.4 | Z68: 2295.3 | AA68: 3206.4 | AB68: 10415.3 | AC68: 1697.4 | AD68: 701.5 | AE68: 2893.1 | AF68: -350.4 | AG68: -438.4 | AH68: 4395.1 | AI68: 1235.6 | AJ68: -583.2 | AK68: -532.1 | AL68: 2875.5 | AM68: 4089 | AN68: -399.5 | AO68: 1502.4
A69: 2021-03-09 | B69: 3198.6 | C69: 193.6 | D69: -369.3 | E69: -590.2 | F69: 677 | G69: -112 | H69: 0.6 | I69: -362.8 | J69: 225.3 | K69: -363.9 | L69: -63.2 | M69: 5316.2 | N69: -409 | O69: -419.5 | P69: -483.3 | Q69: 120.3 | R69: -497.1 | S69: -672.7 | T69: 3548.4 | U69: 6702.5 | V69: 517.8 | W69: 4709.1 | X69: -412.4 | Y69: -507.8 | Z69: -55.2 | AA69: 2732.8 | AB69: 11819.7 | AC69: 510.4 | AD69: -168.2 | AE69: 6423.4 | AF69: -59.3 | AG69: -597.8 | AH69: -502.5 | AI69: 353.8 | AJ69: -682.2 | AK69: -623.4 | AL69: -426.4 | AM69: 15898.6 | AN69: -440.2 | AO69: 1495.1
A70: 2021-03-10 | B70: 408.1 | C70: 3889.3 | D70: 952.4 | E70: -557.2 | F70: -255.9 | G70: -205.7 | H70: -203.2 | I70: -354.7 | J70: 329.4 | K70: -557.8 | L70: 584 | M70: 332.4 | N70: -494.4 | O70: -518.6 | P70: 332.3 | Q70: -604.7 | R70: -516.8 | S70: -673.2 | T70: -279.4 | U70: 2502.5 | V70: 2067.8 | W70: 4690.4 | X70: -419.8 | Y70: -759.3 | Z70: 790 | AA70: 569 | AB70: 4009.3 | AC70: 3112.4 | AD70: 1511.1 | AE70: 8000.9 | AF70: 159.6 | AG70: -263.2 | AH70: -538.3 | AI70: 1602.1 | AJ70: -659.6 | AK70: -509.1 | AL70: -468.8 | AM70: 17.1 | AN70: 1286.8 | AO70: 8373.4
A71: 2021-03-11 | B71: 4456.2 | C71: 5429.4 | D71: 7594.1 | E71: -291.5 | F71: -396.2 | G71: 564.1 | H71: -263.1 | I71: -336.7 | J71: 5902.8 | K71: -718.9 | L71: -670.2 | M71: 1674.7 | N71: 1177.7 | O71: -358.2 | P71: -603.8 | Q71: -631.4 | R71: -251.1 | S71: -753.5 | T71: 103.6 | U71: 5855.6 | V71: 86.3 | W71: 9237.4 | X71: -707.9 | Y71: -795.9 | Z71: 1526.9 | AA71: -527.8 | AB71: 4298.4 | AC71: -629.3 | AD71: 2023.8 | AE71: 3968 | AF71: 4567.5 | AG71: -571 | AH71: 815.5 | AI71: 2687.5 | AJ71: -717.1 | AK71: 396.7 | AL71: -321.4 | AM71: -678.3 | AN71: 2349 | AO71: 3779.6
A72: 2021-03-12 | B72: 419.3 | C72: 16995.3 | D72: 2487.7 | E72: -298.2 | F72: -333.1 | G72: 33.9 | H72: -186.1 | I72: -350.4 | J72: 18966.3 | K72: -405.3 | L72: -385.6 | M72: -551.9 | N72: -138.4 | O72: -521.4 | P72: 2101.4 | Q72: -706.7 | R72: 146.7 | S72: -754.1 | T72: 3345.7 | U72: -631 | V72: -304.9 | W72: 15571.8 | X72: -731.4 | Y72: 3749.2 | Z72: -176.9 | AA72: 4656.5 | AB72: 1716.3 | AC72: -649 | AD72: 12552.8 | AE72: 1544.1 | AF72: -142.6 | AG72: -504.7 | AH72: -232.6 | AI72: 2112.2 | AJ72: -705.2 | AK72: -520.6 | AL72: -108.6 | AM72: -714.6 | AN72: 3637.9 | AO72: -222.9
A73: 2021-03-13 | B73: 1238.2 | C73: 5649.7 | D73: 3899.3 | E73: -616.5 | F73: -496.9 | G73: -345.1 | H73: -42.4 | I73: 599.6 | J73: 5252.3 | K73: 3111.8 | L73: -509.4 | M73: -617 | N73: 7036.5 | O73: -602.3 | P73: 1057.5 | Q73: -654.4 | R73: -271.9 | S73: -646.3 | T73: 137 | U73: -620.2 | V73: -613.3 | W73: 9906.2 | X73: -796.5 | Y73: -71.2 | Z73: 1596.5 | AA73: -209.4 | AB73: -321.5 | AC73: -698.9 | AD73: 502.7 | AE73: 1351.4 | AF73: -55.3 | AG73: -49.5 | AH73: -458 | AI73: 2331 | AJ73: -697.8 | AK73: -538.6 | AL73: -75.3 | AM73: -550 | AN73: 3800.2 | AO73: 5559.2
A74: 2021-03-14 | B74: 850.4 | C74: 168 | D74: 389.2 | E74: 1503.5 | F74: -562.9 | G74: 887.7 | H74: -278.2 | I74: 1361.6 | J74: 3459.9 | K74: -507.2 | L74: 5523.3 | M74: -685.1 | N74: 12572.3 | O74: -610.5 | P74: 426.6 | Q74: 129.1 | R74: -430.5 | S74: -39.6 | T74: 1700.2 | U74: -477.3 | V74: 6218.6 | W74: 6927.3 | X74: 65.4 | Y74: -567.3 | Z74: 2530.3 | AA74: 215.5 | AB74: -383.4 | AC74: -690.5 | AD74: 4176.5 | AE74: -428.1 | AF74: -53 | AG74: -454.4 | AH74: -626.3 | AI74: 1055.3 | AJ74: -715.6 | AK74: -511 | AL74: -431.9 | AM74: -669.8 | AN74: 235.5 | AO74: 14127.6
A75: 2021-03-15 | B75: -73.3 | C75: 554.4 | D75: -713.1 | E75: 3921.6 | F75: -535.4 | G75: 1835.7 | H75: -322 | I75: -216.1 | J75: 84.6 | K75: 4165.7 | L75: -455 | M75: -630.7 | N75: 18945.4 | O75: -577 | P75: 62.4 | Q75: 3311.8 | R75: -525.8 | S75: 1361.9 | T75: 6941.9 | U75: -349.3 | V75: 1263.6 | W75: 3946.3 | X75: -30.7 | Y75: -567.6 | Z75: -683.5 | AA75: -400.7 | AB75: -366.7 | AC75: -663.6 | AD75: -310.1 | AE75: 2378.6 | AF75: 1916 | AG75: -751.1 | AH75: -666.4 | AI75: 340.2 | AJ75: 376.2 | AK75: -572.8 | AL75: 3191.8 | AM75: -658.8 | AN75: 661.9 | AO75: 14226.8
A76: 2021-03-16 | B76: 417.8 | C76: 2996.1 | D76: 2160.5 | E76: 6322 | F76: -556.1 | G76: 1445.3 | H76: -544.3 | I76: 3918.1 | J76: 12112.5 | K76: 7879.8 | L76: -717.8 | M76: -806.4 | N76: 989.7 | O76: -632.8 | P76: 2275.7 | Q76: 1263.5 | R76: -543.1 | S76: 3241.9 | T76: 5715.3 | U76: -619.4 | V76: 4616.4 | W76: -437 | X76: -554.9 | Y76: -587.1 | Z76: -726.3 | AA76: -744.2 | AB76: -329.9 | AC76: -644.8 | AD76: 3634 | AE76: -410.9 | AF76: 4355.8 | AG76: 2368.7 | AH76: -835.9 | AI76: -425 | AJ76: -33.9 | AK76: -629.9 | AL76: -404.5 | AM76: -729.2 | AN76: 1468.8 | AO76: 429.4
A77: 2021-03-17 | B77: -118.6 | C77: 2535.3 | D77: 8465.1 | E77: 113.5 | F77: -574.8 | G77: 2928.2 | H77: -628.9 | I77: 1926.3 | J77: 7951.7 | K77: 7493.4 | L77: -783 | M77: -77.2 | N77: -629 | O77: 2504 | P77: 3225.8 | Q77: 937.5 | R77: 409.8 | S77: 895.2 | T77: 1334.8 | U77: -698.3 | V77: 6504.1 | W77: 5425 | X77: -730.5 | Y77: -641.7 | Z77: -818.5 | AA77: -938.8 | AB77: -401.5 | AC77: -368.5 | AD77: 7423.1 | AE77: -577.7 | AF77: -654.5 | AG77: 9747.9 | AH77: -585.9 | AI77: 2142.3 | AJ77: -815.7 | AK77: -738.6 | AL77: -614.8 | AM77: -242 | AN77: 5568.8 | AO77: 3013.6
A78: 2021-03-18 | B78: -583.9 | C78: 1856.2 | D78: 3646.7 | E78: 3233.9 | F78: 570.4 | G78: 10587.4 | H78: -525.3 | I78: 4048.3 | J78: 7096.1 | K78: 3198.4 | L78: -796.3 | M78: 1200 | N78: -686.6 | O78: -806.4 | P78: 644.7 | Q78: 10321.8 | R78: 32.2 | S78: 324.3 | T78: -384 | U78: -668.8 | V78: 5746.2 | W78: 888.2 | X78: 1135.4 | Y78: -671 | Z78: -876 | AA78: -711.8 | AB78: -498.6 | AC78: 6006.6 | AD78: -14.6 | AE78: -688.8 | AF78: -777.6 | AG78: 3180.8 | AH78: 4608 | AI78: 9081.3 | AJ78: -737 | AK78: -557.9 | AL78: -553.4 | AM78: 11231.1 | AN78: 1715 | AO78: 1292.8
A79: 2021-03-19 | B79: -434.7 | C79: -668 | D79: 963.8 | E79: 9121.1 | F79: -523.6 | G79: 1765.4 | H79: 4253.7 | I79: 4599.9 | J79: 516 | K79: -558.2 | L79: -637 | M79: 6545.8 | N79: 1070.1 | O79: -664.8 | P79: 3035 | Q79: 26204 | R79: -204.6 | S79: 8249.2 | T79: 1183.2 | U79: 2035.9 | V79: 899.1 | W79: 2658.2 | X79: 25013.5 | Y79: -703.3 | Z79: -604.8 | AA79: 1623.5 | AB79: -552.6 | AC79: 4778.6 | AD79: 393.1 | AE79: -680.3 | AF79: -889.5 | AG79: 7923.9 | AH79: 8757.2 | AI79: 1303.6 | AJ79: -352.7 | AK79: -730.7 | AL79: -636.7 | AM79: 2437.3 | AN79: 244.7 | AO79: -39.8
A80: 2021-03-20 | B80: 3594.7 | C80: -780.6 | D80: 7577.4 | E80: 390 | F80: -139 | G80: -363.7 | H80: 1468.2 | I80: 3320.6 | J80: 1208.5 | K80: -597 | L80: -650.4 | M80: 2923.6 | N80: 158.8 | O80: -771.8 | P80: 8177.5 | Q80: 5044.2 | R80: -163.4 | S80: 2338 | T80: 1262.3 | U80: 1316.4 | V80: -738.6 | W80: 9031.8 | X80: 9919 | Y80: -773.6 | Z80: 1855 | AA80: -422.2 | AB80: -472.4 | AC80: 4212 | AD80: 559.2 | AE80: -363.7 | AF80: 1935.1 | AG80: -792.5 | AH80: -552.2 | AI80: 2740.9 | AJ80: -879.4 | AK80: -819 | AL80: -676.8 | AM80: -415.8 | AN80: 285.2 | AO80: -680.3
A81: 2021-03-21 | B81: 3922.2 | C81: -824.8 | D81: 885 | E81: 184.5 | F81: -675.9 | G81: -255.9 | H81: 8193.1 | I81: -698 | J81: 17029.1 | K81: 347 | L81: -1135.8 | M81: 2556.6 | N81: 1990.5 | O81: 1100.4 | P81: 4891 | Q81: 3101.2 | R81: 6502.7 | S81: 1948.2 | T81: 2191.8 | U81: 648.7 | V81: -803.6 | W81: 17483.7 | X81: 8713.4 | Y81: -717.6 | Z81: 2573.1 | AA81: -688.8 | AB81: 1795.7 | AC81: 2548.5 | AD81: 16967.7 | AE81: -536.5 | AF81: 4888.3 | AG81: -784.4 | AH81: -802.7 | AI81: 356.9 | AJ81: -925.2 | AK81: 3682.7 | AL81: -477.6 | AM81: 770 | AN81: 262.3 | AO81: -796.2
A82: 2021-03-22 | B82: -544.6 | C82: -472.4 | D82: 2177.1 | E82: 5694.4 | F82: -730.3 | G82: 51.6 | H82: 63.7 | I82: 866.6 | J82: 6803.4 | K82: 752.4 | L82: 995.4 | M82: 18494.5 | N82: 14848.9 | O82: 6563 | P82: -26.7 | Q82: -299.4 | R82: 7176.4 | S82: -398.1 | T82: -652.2 | U82: 9554.1 | V82: -879.8 | W82: 10441.5 | X82: 6611.9 | Y82: -747.5 | Z82: 2023.7 | AA82: 2827.1 | AB82: 1767.3 | AC82: 4968.5 | AD82: 777.4 | AE82: -729.9 | AF82: -514.6 | AG82: -794.1 | AH82: -901.2 | AI82: -727 | AJ82: 9986.2 | AK82: 1590.5 | AL82: -499.3 | AM82: 5497.4 | AN82: 922.8 | AO82: -775.3
A83: 2021-03-23 | B83: 2976.3 | C83: 4771.6 | D83: 3094.2 | E83: 1094 | F83: -510.1 | G83: 1316.4 | H83: 7100.1 | I83: 10.1 | J83: 8780.9 | K83: 3710 | L83: 5455.1 | M83: 636.3 | N83: 16055.1 | O83: 4306.3 | P83: -517.2 | Q83: -814.8 | R83: 2781.1 | S83: 1475.9 | T83: 7511.4 | U83: 5163.6 | V83: -384 | W83: 4148.8 | X83: 1674.8 | Y83: -744 | Z83: 5820.1 | AA83: -347.7 | AB83: 2154.8 | AC83: 11151 | AD83: 1952.6 | AE83: 1493.1 | AF83: -808 | AG83: -888 | AH83: -723 | AI83: 1261.9 | AJ83: 8072.3 | AK83: -666.2 | AL83: 1208.5 | AM83: 419.6 | AN83: 1088.5 | AO83: -849.5
A84: 2021-03-24 | B84: 1807.5 | C84: 4111.2 | D84: -846.4 | E84: 4793.9 | F84: -119.2 | G84: 848.9 | H84: 7036.3 | I84: 1734.7 | J84: 12826.4 | K84: -445.8 | L84: -908 | M84: -290.2 | N84: 6075.1 | O84: 6909.6 | P84: -374.3 | Q84: -989.3 | R84: -575.6 | S84: 4070.6 | T84: 49.4 | U84: -447.3 | V84: 2176.5 | W84: 6470.1 | X84: 508.3 | Y84: -837.4 | Z84: 13534.4 | AA84: 4598.5 | AB84: 964.7 | AC84: 2638.2 | AD84: 2138.2 | AE84: 12163.4 | AF84: -930.7 | AG84: -877.3 | AH84: 977.6 | AI84: 683.6 | AJ84: 3513.1 | AK84: -645.3 | AL84: -114.2 | AM84: -516.3 | AN84: -687.5 | AO84: -908.9
A85: 2021-03-25 | B85: 148.2 | C85: 1006.4 | D85: -896.6 | E85: 9868.3 | F85: 7192.2 | G85: -304.5 | H85: 1160 | I85: 1565.8 | J85: 15209.3 | K85: 360.2 | L85: 2791 | M85: 452.2 | N85: 2961 | O85: 2063 | P85: -364.9 | Q85: -444.4 | R85: 2781.5 | S85: 2185.9 | T85: -688.8 | U85: -745.8 | V85: -395 | W85: 7207.5 | X85: -611.4 | Y85: -876.3 | Z85: 4347.2 | AA85: 4370.1 | AB85: 5445.4 | AC85: -400 | AD85: 3666.1 | AE85: 7809.4 | AF85: -930.4 | AG85: -997.5 | AH85: -939.2 | AI85: 2446.3 | AJ85: -107.5 | AK85: 2887 | AL85: 5629.1 | AM85: -866.6 | AN85: -704.9 | AO85: 1017.8
A86: 2021-03-26 | B86: 1620.5 | C86: 6683.5 | D86: -927.2 | E86: 5925.3 | F86: 1097.4 | G86: 977.2 | H86: 1003.1 | I86: 6591.1 | J86: 9912.5 | K86: -815.9 | L86: 3109.2 | M86: 5093.8 | N86: -661.2 | O86: 3497.6 | P86: 5711.7 | Q86: 2763.1 | R86: 4287 | S86: -594.7 | T86: -803.7 | U86: 1089.7 | V86: 4566.9 | W86: 796.3 | X86: -621.1 | Y86: -829 | Z86: -89.7 | AA86: 1522.7 | AB86: 3696.6 | AC86: -767.1 | AD86: 2219.4 | AE86: 5674.9 | AF86: 3986.2 | AG86: -97.7 | AH86: -1087.7 | AI86: 2748.1 | AJ86: -435.5 | AK86: 2857.4 | AL86: 1063.8 | AM86: -640.5 | AN86: 1240 | AO86: 315.9
A87: 2021-03-27 | B87: 9863.7 | C87: -920.2 | D87: -914.1 | E87: 280.3 | F87: 549.5 | G87: 3912.2 | H87: -97.2 | I87: -527.8 | J87: 7121.8 | K87: -1019.9 | L87: 3878.2 | M87: 2097.3 | N87: 208 | O87: 719 | P87: -817.9 | Q87: 17184.7 | R87: 5888.1 | S87: 328 | T87: -471.9 | U87: 7192.9 | V87: 4512.2 | W87: -311.2 | X87: -712.9 | Y87: -788.8 | Z87: -609.3 | AA87: 2933.3 | AB87: 932.5 | AC87: -252.8 | AD87: 1367.6 | AE87: 4343.9 | AF87: 3406.7 | AG87: 3656 | AH87: -1076.5 | AI87: -434.6 | AJ87: -713.4 | AK87: 1377.6 | AL87: 564.7 | AM87: -993.9 | AN87: 2943.3 | AO87: -243.9
A88: 2021-03-28 | B88: 4873 | C88: -1014.6 | D88: 429.1 | E88: 1067.3 | F88: 609.5 | G88: 2161.5 | H88: 4096.8 | I88: 10309.2 | J88: 2245.6 | K88: -1158.1 | L88: 9154 | M88: -40.8 | N88: 3582 | O88: -236.8 | P88: -689.3 | Q88: 863 | R88: -753.2 | S88: 8693.3 | T88: -859.1 | U88: 760.3 | V88: 1227.6 | W88: 435.3 | X88: -871.4 | Y88: 153.6 | Z88: -712.5 | AA88: 2132.7 | AB88: 13852 | AC88: 252.9 | AD88: -441.3 | AE88: 8008.7 | AF88: 6914 | AG88: 3896.4 | AH88: -1122.8 | AI88: 9019.8 | AJ88: -948.8 | AK88: 138.5 | AL88: 65.4 | AM88: -955.4 | AN88: 11442 | AO88: -905.4
A89: 2021-03-29 | B89: -147.3 | C89: -1030.7 | D89: 4009.1 | E89: 119.3 | F89: 5514.5 | G89: -764.2 | H89: 2221 | I89: 3302 | J89: -592 | K89: -847.4 | L89: 2105.7 | M89: -319.2 | N89: 1934.9 | O89: -507.9 | P89: -341.9 | Q89: 8886.8 | R89: 705.4 | S89: 1768.2 | T89: -1031.4 | U89: -25 | V89: 4917 | W89: 7461.9 | X89: -984.6 | Y89: -10.7 | Z89: -900.5 | AA89: 283.9 | AB89: 2244.4 | AC89: -21.1 | AD89: -60.9 | AE89: 3249.4 | AF89: 220.6 | AG89: -797.8 | AH89: -1126.1 | AI89: 5154.6 | AJ89: -1012.1 | AK89: 7775.4 | AL89: 901.5 | AM89: -1011 | AN89: 3721.2 | AO89: -918.9
A90: 2021-03-30 | B90: 1309.4 | C90: 2538.3 | D90: 8124.4 | E90: -737.8 | F90: 2991.1 | G90: -1115.2 | H90: 3008.6 | I90: 1661.7 | J90: 893.6 | K90: -1150.3 | L90: 656.9 | M90: -601.4 | N90: -721 | O90: -735 | P90: -999.6 | Q90: 791.9 | R90: 1346.7 | S90: 1339.6 | T90: -1065.2 | U90: -472.9 | V90: 6791.7 | W90: 5016.4 | X90: -978.2 | Y90: 1963.9 | Z90: -969.9 | AA90: 6004.3 | AB90: 7013.3 | AC90: 667 | AD90: -1059.4 | AE90: 589.3 | AF90: 832.7 | AG90: 389.5 | AH90: 53.1 | AI90: 6822.4 | AJ90: -1085.3 | AK90: 18018.8 | AL90: 1343.3 | AM90: -1053.4 | AN90: 1358.3 | AO90: -1029.9
A91: 2021-03-31 | B91: 7640.3 | C91: -94.6 | D91: 4861.1 | E91: 1206.4 | F91: -535 | G91: -52.6 | H91: 5144.5 | I91: 136.4 | J91: 12545.4 | K91: -1000.7 | L91: -897.9 | M91: -679.8 | N91: 5180.6 | O91: -946.8 | P91: 1283.9 | Q91: 1265.5 | R91: -295.8 | S91: -776.8 | T91: -1047.7 | U91: -809.8 | V91: -117.6 | W91: -814.9 | X91: -795.8 | Y91: 2049.6 | Z91: -1033.4 | AA91: 4664.7 | AB91: 4237.8 | AC91: 2076.1 | AD91: 1502.9 | AE91: -625.6 | AF91: 540 | AG91: 2663.2 | AH91: -680.1 | AI91: 3775.5 | AJ91: -1070.2 | AK91: 4635.2 | AL91: -900.8 | AM91: -1052.1 | AN91: 2277.8 | AO91: -1062.6
A92: 2021-04-01 | B92: 11847.4 | C92: -659.9 | D92: -965.9 | E92: 1674.2 | F92: 7214.5 | G92: -990.1 | H92: 127.6 | I92: 1320.5 | J92: 2702.4 | K92: 10446.5 | L92: -1049.2 | M92: -847.2 | N92: 4618.8 | O92: -505 | P92: 7487.1 | Q92: 9783.5 | R92: 173 | S92: -1025.2 | T92: -195.6 | U92: -1040.2 | V92: 2448.6 | W92: -1095.2 | X92: -935.3 | Y92: -963.1 | Z92: -1112.2 | AA92: -1090.4 | AB92: 903.7 | AC92: -785.1 | AD92: 76.6 | AE92: -705.3 | AF92: 4697.7 | AG92: -481.8 | AH92: -633.3 | AI92: -804.8 | AJ92: -798.6 | AK92: 3768.7 | AL92: 1063.4 | AM92: -517.2 | AN92: 2411.7 | AO92: -934.4
A93: 2021-04-02 | B93: 2111.6 | C93: -794.9 | D93: 1709.5 | E93: 9512.4 | F93: 8945.8 | G93: 829.7 | H93: -102.9 | I93: -532.8 | J93: -799.4 | K93: 10221.9 | L93: -865.6 | M93: -804.7 | N93: 262.5 | O93: 6049.9 | P93: 3829.2 | Q93: 563.9 | R93: 2212.5 | S93: -1058.6 | T93: 2127.4 | U93: 729.3 | V93: -985 | W93: -1130.5 | X93: -1150.3 | Y93: 11034.1 | Z93: -944 | AA93: -1148.4 | AB93: 1708.9 | AC93: -630.8 | AD93: 4116.1 | AE93: -524.6 | AF93: -658.3 | AG93: -1125.7 | AH93: -947 | AI93: -733.8 | AJ93: -1069.1 | AK93: 11508 | AL93: -985.2 | AM93: 1640.1 | AN93: -977.5 | AO93: -872.4
A94: 2021-04-03 | B94: 5072.8 | C94: -789.8 | D94: 1398.9 | E94: 10010.4 | F94: 2892.2 | G94: -1035.7 | H94: 11167.2 | I94: -817 | J94: -1026.2 | K94: -502.3 | L94: 4934.1 | M94: -8.6 | N94: 16835.2 | O94: 1968.6 | P94: 714.1 | Q94: -1201.4 | R94: 1551.7 | S94: -566.3 | T94: 1117.4 | U94: 941.1 | V94: -1050 | W94: -768.6 | X94: -1222.7 | Y94: 1810.1 | Z94: 1205.2 | AA94: -983.4 | AB94: 4146.3 | AC94: 3063.1 | AD94: 6220 | AE94: -731.3 | AF94: 1704.7 | AG94: -1020.8 | AH94: 2782.6 | AI94: -575.5 | AJ94: -937.9 | AK94: 522.1 | AL94: -1034.6 | AM94: 7037 | AN94: -1053.9 | AO94: 4803.2
A95: 2021-04-04 | B95: 4142.5 | C95: 829.3 | D95: -1060.7 | E95: 5489.9 | F95: 615.3 | G95: -1191.4 | H95: 1882 | I95: 4503.4 | J95: -946.1 | K95: 1356.2 | L95: -438.8 | M95: 5914.1 | N95: 12258.4 | O95: 2993.8 | P95: 7055.9 | Q95: -1016.4 | R95: 1691.5 | S95: 2152.6 | T95: 5492 | U95: 3538.1 | V95: -738.8 | W95: 5228.8 | X95: -1174.9 | Y95: -328.2 | Z95: 2005.4 | AA95: -1113.8 | AB95: -419.6 | AC95: 5223.6 | AD95: 531.1 | AE95: 443.1 | AF95: 3619.6 | AG95: 9116.4 | AH95: 5003.1 | AI95: -841.2 | AJ95: -901.1 | AK95: 13110.5 | AL95: 2258.1 | AM95: 4467.1 | AN95: -245.9 | AO95: 13982.4
A96: 2021-04-05 | B96: 279.2 | C96: 3057.7 | D96: -1112.9 | E96: 2047.6 | F96: 917.2 | G96: -650.7 | H96: 4805.6 | I96: 1411.8 | J96: -375 | K96: 5672.9 | L96: 829 | M96: 6792.5 | N96: 11923.2 | O96: 563.7 | P96: 657.2 | Q96: -392.5 | R96: -468.9 | S96: 1263.5 | T96: 1019.7 | U96: 292.3 | V96: 5930.8 | W96: 821.8 | X96: -1102.2 | Y96: -315.9 | Z96: 7009.2 | AA96: 896.7 | AB96: 17918.9 | AC96: -1013 | AD96: 1057.8 | AE96: 3119 | AF96: 22.1 | AG96: -705.7 | AH96: 12831.9 | AI96: 1.8 | AJ96: 5623.2 | AK96: -280.9 | AL96: 3936.5 | AM96: 955.5 | AN96: 886.4 | AO96: -189.3
A97: 2021-04-06 | B97: 738.6 | C97: 4031.2 | D97: 558 | E97: 13313.2 | F97: 1114.4 | G97: 4813.1 | H97: 937.5 | I97: -268.8 | J97: -414.7 | K97: -44.3 | L97: 2402 | M97: 1391.1 | N97: -760.7 | O97: 5523.4 | P97: 2359.9 | Q97: -184.5 | R97: -861 | S97: 5435.8 | T97: 991.9 | U97: -721 | V97: 3354.9 | W97: 4167.3 | X97: -1002.6 | Y97: 424.9 | Z97: 9723.1 | AA97: -482.6 | AB97: -470.7 | AC97: -1139.2 | AD97: 5956 | AE97: -873.9 | AF97: -1084 | AG97: -917.7 | AH97: 2192.4 | AI97: -408.4 | AJ97: 1931.5 | AK97: -46.3 | AL97: 2224 | AM97: -350.2 | AN97: -1111.9 | AO97: -804.7
A98: 2021-04-07 | B98: -358.7 | C98: -1126.4 | D98: 1445.5 | E98: 9897.9 | F98: 3 | G98: -903.2 | H98: -787.2 | I98: 394.6 | J98: 1144.6 | K98: 1503.2 | L98: 4665.4 | M98: 161.2 | N98: -869.4 | O98: 4104.8 | P98: 2021.6 | Q98: -573.2 | R98: -650.7 | S98: -1062.6 | T98: 7240.3 | U98: 12989.4 | V98: -1040.6 | W98: 11692 | X98: -576.1 | Y98: 228.5 | Z98: 4811.4 | AA98: 8831.6 | AB98: -908.8 | AC98: -823.7 | AD98: 2276.4 | AE98: -725.4 | AF98: -1216.7 | AG98: -1365.1 | AH98: 2185.4 | AI98: -299.4 | AJ98: -1156.6 | AK98: -924.5 | AL98: 935 | AM98: -824.9 | AN98: -1245.9 | AO98: 2151.8
A99: 2021-04-08 | B99: 6802.2 | C99: 983 | D99: 10527.9 | E99: 4208.9 | F99: 2494.8 | G99: 17235.1 | H99: -976.2 | I99: 9304.6 | J99: 4589.2 | K99: 6545.3 | L99: 1439.2 | M99: 1144 | N99: -1032 | O99: 2164 | P99: 4797.6 | Q99: 247.2 | R99: 5241.3 | S99: -1140.7 | T99: 309.2 | U99: 3168.4 | V99: -1050.4 | W99: 4823.7 | X99: 253.2 | Y99: -573.5 | Z99: 371 | AA99: 11437.8 | AB99: -1088.3 | AC99: -880.4 | AD99: -373.6 | AE99: -826.9 | AF99: -284.3 | AG99: -1132.3 | AH99: 4539.7 | AI99: 1688.9 | AJ99: 4385.8 | AK99: -1067.5 | AL99: 2256 | AM99: -1137 | AN99: -1298.8 | AO99: 463.3
A100: 2021-04-09 | B100: 3841.3 | C100: 664.8 | D100: -573.8 | E100: 17540.1 | F100: 119.4 | G100: 7134.7 | H100: 4856.8 | I100: 9573.2 | J100: 6743.1 | K100: -88.6 | L100: 462 | M100: -403.7 | N100: -1074.7 | O100: -911.4 | P100: 5572.6 | Q100: -452.7 | R100: 824.6 | S100: -1171.8 | T100: -222.7 | U100: -677.9 | V100: -960.3 | W100: 7118 | X100: -1028.3 | Y100: 1038.8 | Z100: -403.8 | AA100: 11518.4 | AB100: 17118.9 | AC100: -1152.3 | AD100: 3294.8 | AE100: -1165 | AF100: -642.1 | AG100: -1321.9 | AH100: -375.8 | AI100: 5016.8 | AJ100: -687.9 | AK100: -1183.5 | AL100: 1522.1 | AM100: -1314.8 | AN100: -927.6 | AO100: 4945.1
A101: 2021-04-10 | B101: 1045.7 | C101: -1343.1 | D101: -449.9 | E101: 7623.5 | F101: 921.3 | G101: 6645.4 | H101: 21261.6 | I101: 12186.7 | J101: 3336.3 | K101: -818.4 | L101: -511.9 | M101: -1185.5 | N101: -1218.8 | O101: 4136.1 | P101: 913.6 | Q101: 538.5 | R101: -364.9 | S101: -1231.6 | T101: 4848.7 | U101: -1004.3 | V101: -775.8 | W101: 6843.3 | X101: -815.2 | Y101: 6469.5 | Z101: 4033.1 | AA101: -458.4 | AB101: 22187.3 | AC101: -1267.6 | AD101: 6555.7 | AE101: -1350.9 | AF101: -616.9 | AG101: -1364.8 | AH101: 320.3 | AI101: 2063 | AJ101: -524.4 | AK101: -1238.7 | AL101: -1079.6 | AM101: -894.1 | AN101: 925.4 | AO101: 9612.9
A102: 2021-04-11 | B102: -248.7 | C102: -1097.5 | D102: 481.2 | E102: 4590.3 | F102: 3285.3 | G102: 1943.2 | H102: 2725.8 | I102: -449.3 | J102: -1124.4 | K102: -795.3 | L102: 8856 | M102: -1351.6 | N102: -1237.7 | O102: 5623.2 | P102: 4164.4 | Q102: 537.5 | R102: 5809.2 | S102: 1769.4 | T102: 5180.7 | U102: 4515.2 | V102: 5417.7 | W102: 4478.3 | X102: -1060 | Y102: -684.1 | Z102: 3828.3 | AA102: -904.3 | AB102: 5724 | AC102: -1295.4 | AD102: 8781.8 | AE102: -1348.2 | AF102: 1039.2 | AG102: -1332.9 | AH102: 6225.8 | AI102: 9926.7 | AJ102: -912.3 | AK102: -553.3 | AL102: -732 | AM102: 137.4 | AN102: -698.5 | AO102: -290
A103: 2021-04-12 | B103: -1134.1 | C103: -590.6 | D103: 443.3 | E103: 6283.7 | F103: 2387.4 | G103: 4364.1 | H103: 2185.8 | I103: 2612.1 | J103: 2574.1 | K103: 745.4 | L103: 2889.2 | M103: -1222.7 | N103: -1208.2 | O103: 1245 | P103: 11013.8 | Q103: 1329.1 | R103: 2493 | S103: -587 | T103: 11589.9 | U103: 1513.2 | V103: 6423.9 | W103: 994.2 | X103: 1625.2 | Y103: 960 | Z103: -835.5 | AA103: -611.5 | AB103: 1548.7 | AC103: -1342.2 | AD103: 363.7 | AE103: -1392.1 | AF103: -380.9 | AG103: 3457 | AH103: 2429.1 | AI103: 7938.1 | AJ103: -905.2 | AK103: -1078.2 | AL103: 2576.6 | AM103: -1307.6 | AN103: -820 | AO103: -750.2
A104: 2021-04-13 | B104: -1212.6 | C104: -987.2 | D104: -280.4 | E104: 2655 | F104: -301.8 | G104: 4196.3 | H104: -157.6 | I104: 1738.5 | J104: 13544.2 | K104: 11810.4 | L104: -287.7 | M104: -506.2 | N104: 1180 | O104: -42.6 | P104: 17304.6 | Q104: 1464.7 | R104: 5482.6 | S104: -725.2 | T104: 6179.3 | U104: 5021.4 | V104: 8128.9 | W104: -352.2 | X104: 13657.1 | Y104: -1092 | Z104: -331.6 | AA104: -150.4 | AB104: 1511.4 | AC104: -1446.9 | AD104: -897.8 | AE104: -1095.3 | AF104: -312.2 | AG104: -545.9 | AH104: -345.5 | AI104: 565.9 | AJ104: -537 | AK104: -1097.5 | AL104: 4742.6 | AM104: -870.5 | AN104: 15.8 | AO104: 46.3
A105: 2021-04-14 | B105: -1334.6 | C105: -811.6 | D105: -960.7 | E105: 1452 | F105: -1150.2 | G105: 4186.6 | H105: -535.5 | I105: -650.9 | J105: -1336.7 | K105: 12138.2 | L105: 2661.6 | M105: -601.5 | N105: -1120.1 | O105: -101.9 | P105: 3450 | Q105: 494.4 | R105: -892.3 | S105: -1040.7 | T105: 501.8 | U105: 243.2 | V105: 296.8 | W105: -80.9 | X105: 9346.9 | Y105: -1235.4 | Z105: -843.6 | AA105: -1045.5 | AB105: -295.8 | AC105: -1522.9 | AD105: 2777.4 | AE105: -1003.7 | AF105: 5003 | AG105: -703.8 | AH105: 2166.2 | AI105: -1348.7 | AJ105: -377.2 | AK105: -1304.3 | AL105: 1916.1 | AM105: -889.4 | AN105: -1337.1 | AO105: 2435.2
A106: 2021-04-15 | B106: -1274.7 | C106: 448.6 | D106: -1246.1 | E106: 5613.5 | F106: -1258.7 | G106: 5247.3 | H106: -1088.9 | I106: -907.2 | J106: -890.4 | K106: 3545.8 | L106: 6111.2 | M106: -1270.4 | N106: 6022.5 | O106: 3446.4 | P106: 4117.1 | Q106: 1994.2 | R106: -1107.1 | S106: 288.9 | T106: 135.7 | U106: 9656.7 | V106: 710.7 | W106: 13473.9 | X106: 484.5 | Y106: -1301.7 | Z106: -608.8 | AA106: -612.9 | AB106: 2645 | AC106: -1519.3 | AD106: 5917.1 | AE106: -1463.3 | AF106: -274.4 | AG106: -873.9 | AH106: 8617.5 | AI106: -1507.7 | AJ106: -438.9 | AK106: -1517.8 | AL106: 4471.3 | AM106: 1275.1 | AN106: -585.9 | AO106: -1080.7
A107: 2021-04-16 | B107: -1189.1 | C107: -1228.2 | D107: -1213.8 | E107: -764.9 | F107: 7870.7 | G107: 2631.5 | H107: -294.7 | I107: -1119.3 | J107: -1261.6 | K107: 2409.6 | L107: 804.6 | M107: -1379.4 | N107: 4639.9 | O107: 5517.9 | P107: -485.1 | Q107: 4335.8 | R107: -1378.8 | S107: -529 | T107: 810.8 | U107: 6797.6 | V107: -914.8 | W107: 7305.6 | X107: 99 | Y107: -1291.5 | Z107: -1386.2 | AA107: 5552.7 | AB107: 3628.1 | AC107: -1509.8 | AD107: 1657.5 | AE107: 1629 | AF107: -391.1 | AG107: -953.9 | AH107: 6886.6 | AI107: -880.1 | AJ107: -863.9 | AK107: -366.7 | AL107: 5334.2 | AM107: 6605.5 | AN107: 2777.5 | AO107: -40.1
A108: 2021-04-17 | B108: 2438.7 | C108: -1229.9 | D108: -831.9 | E108: -1321.5 | F108: 1849.6 | G108: 388 | H108: 6022.3 | I108: -1105.9 | J108: -181.1 | K108: 19278.7 | L108: 984.2 | M108: 1454.7 | N108: 282.1 | O108: 1565.2 | P108: 6074.7 | Q108: 823.5 | R108: -1031.4 | S108: -866.7 | T108: 1595.4 | U108: 2624.2 | V108: 1613.4 | W108: 2011.1 | X108: 395.3 | Y108: -1232.4 | Z108: -159 | AA108: 14118.3 | AB108: 818.7 | AC108: -1485.8 | AD108: -305.8 | AE108: 1520.4 | AF108: -1213.9 | AG108: -1089.2 | AH108: -577.2 | AI108: -1341.1 | AJ108: -1178.8 | AK108: 12052.9 | AL108: 16739.5 | AM108: 5147.6 | AN108: -1218.2 | AO108: -86.7
A109: 2021-04-18 | B109: 2191.4 | C109: -798.8 | D109: -1145.4 | E109: -808.5 | F109: -874.7 | G109: -1176.9 | H109: 4620.9 | I109: -1410.5 | J109: -279.9 | K109: 3589.8 | L109: 3527.3 | M109: 1316.7 | N109: 4214 | O109: 1120.4 | P109: 4226.1 | Q109: 1934.8 | R109: -61.3 | S109: -1100.6 | T109: 4388.2 | U109: 4157 | V109: 2764.6 | W109: 1808 | X109: -535.8 | Y109: -1143.9 | Z109: 2817.6 | AA109: 6676.5 | AB109: 1232.2 | AC109: -459.5 | AD109: -606.8 | AE109: 420.7 | AF109: -242.9 | AG109: -1144.7 | AH109: 660.9 | AI109: -750.5 | AJ109: 5348.7 | AK109: 478.5 | AL109: 9626.9 | AM109: 3437.2 | AN109: -1587.2 | AO109: -1259.2
A110: 2021-04-19 | B110: 5310.8 | C110: 8.5 | D110: -1243.1 | E110: 1322.4 | F110: -1304.6 | G110: -1346.5 | H110: 2913.4 | I110: 1709.3 | J110: -1512.6 | K110: 2671.6 | L110: 953.9 | M110: 2467.6 | N110: 2681.2 | O110: 46.8 | P110: -796.2 | Q110: 4931.5 | R110: -1323 | S110: 685.4 | T110: 2149.8 | U110: 4302 | V110: 360.5 | W110: 2733 | X110: 814.1 | Y110: -470.7 | Z110: 3641.7 | AA110: 9410.2 | AB110: -589.6 | AC110: -1270.8 | AD110: 977.3 | AE110: -785.9 | AF110: -1157.3 | AG110: -1218.4 | AH110: -76.3 | AI110: 16231.4 | AJ110: 672.8 | AK110: -1475.9 | AL110: -1057.9 | AM110: 3187.7 | AN110: -1534.9 | AO110: -1369.6
A111: 2021-04-20 | B111: 1654.1 | C111: -361.1 | D111: -728.2 | E111: -1014.8 | F111: -1371.6 | G111: -1418.9 | H111: 7026.7 | I111: 7073.5 | J111: 4748.5 | K111: 3971 | L111: -865.2 | M111: 1725.9 | N111: -703.2 | O111: -1402.8 | P111: -628.6 | Q111: 2628.8 | R111: -1568.1 | S111: 5634 | T111: -695 | U111: -522.7 | V111: -1318.6 | W111: 4216 | X111: 4245.1 | Y111: -912.5 | Z111: -1167.4 | AA111: 11985.5 | AB111: -58.9 | AC111: -1324.3 | AD111: -1241.6 | AE111: 581.1 | AF111: -319.3 | AG111: -1212 | AH111: 1905.3 | AI111: 11149 | AJ111: -550.2 | AK111: -1458.2 | AL111: -1459 | AM111: -894.8 | AN111: -1529.7 | AO111: -1652.1
A112: 2021-04-21 | B112: 4231.8 | C112: -1120.8 | D112: -744.6 | E112: 814.3 | F112: -1443.5 | G112: -1502.3 | H112: 1553.3 | I112: 1956.3 | J112: -653.4 | K112: 7566.8 | L112: -455.8 | M112: -249.8 | N112: -1343.9 | O112: -1414.7 | P112: 4297.5 | Q112: 450.9 | R112: -1572.3 | S112: -1069.2 | T112: 3811.2 | U112: 6931.5 | V112: -1475.1 | W112: 12106.6 | X112: 77.6 | Y112: 7701.7 | Z112: -1334.9 | AA112: 563.9 | AB112: -1420.6 | AC112: -1317.3 | AD112: 12053.4 | AE112: 506.8 | AF112: -1116.5 | AG112: -1137.4 | AH112: 3275.1 | AI112: 248.1 | AJ112: 936.3 | AK112: -1567.5 | AL112: -1481.6 | AM112: -1089.5 | AN112: -1511.6 | AO112: -1733.6
A113: 2021-04-22 | B113: 3788.5 | C113: -1068.6 | D113: -505.2 | E113: 3030.1 | F113: -1481 | G113: -843.9 | H113: 7639.8 | I113: -1024.8 | J113: -1186.2 | K113: 1628.2 | L113: 673.3 | M113: -660.5 | N113: 1820.3 | O113: -1275 | P113: -680.7 | Q113: -298.5 | R113: -1655.1 | S113: -703.7 | T113: -1441.3 | U113: 493.6 | V113: -1602.6 | W113: 3503 | X113: -863.9 | Y113: 2679.7 | Z113: -1292.2 | AA113: -1346.2 | AB113: 586.2 | AC113: -1368 | AD113: 28095.7 | AE113: -883.7 | AF113: -1333.2 | AG113: -1249.8 | AH113: 3478.1 | AI113: 588.2 | AJ113: 490.8 | AK113: -1566.9 | AL113: -343.2 | AM113: -130.9 | AN113: -1383.5 | AO113: -1626
A114: 2021-04-23 | B114: 6288.4 | C114: -921.1 | D114: -1173.4 | E114: 1205.1 | F114: -1279.5 | G114: 11570.9 | H114: 4649.6 | I114: -1372.4 | J114: -811.5 | K114: 1933.8 | L114: 9408.6 | M114: 3661.4 | N114: 3745.2 | O114: -1324.5 | P114: -942.9 | Q114: -1022.2 | R114: -199.8 | S114: -967.2 | T114: -1139.3 | U114: -468.8 | V114: 786.4 | W114: -323.6 | X114: -1182.4 | Y114: -187.5 | Z114: 5605.7 | AA114: 2434.7 | AB114: 1063.8 | AC114: -1289.9 | AD114: 5226 | AE114: -205.9 | AF114: -1313.2 | AG114: -970.2 | AH114: 1195.2 | AI114: -537.6 | AJ114: -588.7 | AK114: -1356.1 | AL114: 8404.2 | AM114: -515.5 | AN114: 1117.1 | AO114: -1231.4
A115: 2021-04-24 | B115: 8070 | C115: -815.3 | D115: 5810.7 | E115: 2081.7 | F115: -1586.1 | G115: 379.2 | H115: 6777.5 | I115: -1561.7 | J115: -1397.6 | K115: -1376 | L115: 3904.2 | M115: 302 | N115: -1232.7 | O115: -1691.1 | P115: -176.2 | Q115: -261.1 | R115: 2201.8 | S115: -1319.4 | T115: 327.5 | U115: 2336.8 | V115: 8723.6 | W115: -1205.2 | X115: 8854.9 | Y115: -1117.5 | Z115: -276.7 | AA115: 3166.6 | AB115: -1167.9 | AC115: -1038 | AD115: 1841.3 | AE115: -1056.5 | AF115: -1503.2 | AG115: 3117 | AH115: 6341 | AI115: -1386 | AJ115: -1179.4 | AK115: -1502.1 | AL115: 1578.3 | AM115: -1362.7 | AN115: -1157.9 | AO115: -671.4
A116: 2021-04-25 | B116: 3386.4 | C116: -746 | D116: 4.3 | E116: -913.6 | F116: -1588.3 | G116: -1390.9 | H116: 2248.8 | I116: -1309.9 | J116: -1379.7 | K116: -356.6 | L116: 2322.4 | M116: -1051 | N116: -1734.3 | O116: -1377.8 | P116: 8064.3 | Q116: 8037.2 | R116: -50.3 | S116: -1388.2 | T116: 571.2 | U116: -81.4 | V116: -1182.8 | W116: 2901.5 | X116: 361.9 | Y116: -1169.4 | Z116: -717.3 | AA116: 6669.7 | AB116: 2374.4 | AC116: -1367.9 | AD116: 647.7 | AE116: -1566.5 | AF116: -1380.1 | AG116: -1157.5 | AH116: -1223.5 | AI116: -1632.9 | AJ116: 3510.2 | AK116: 4028.2 | AL116: 1502.1 | AM116: 14052.9 | AN116: -523.2 | AO116: -1353.3
A117: 2021-04-26 | B117: 8067.3 | C117: 2034.5 | D117: -546.5 | E117: -975.2 | F117: -1472.3 | G117: 126 | H117: 1148.2 | I117: 457.2 | J117: -1102.5 | K117: 2936.8 | L117: 3224.6 | M117: -1111.7 | N117: -1302.2 | O117: -1053.6 | P117: 3368.2 | Q117: 10820.3 | R117: -963.7 | S117: 10773.4 | T117: 1285.4 | U117: -462.9 | V117: -1598.3 | W117: -548 | X117: 6409.7 | Y117: 3830 | Z117: -1359.7 | AA117: 1047.5 | AB117: 7069.8 | AC117: -1311.8 | AD117: -1339.9 | AE117: -1333.7 | AF117: 2063.8 | AG117: -605.9 | AH117: -1398.1 | AI117: 1685.9 | AJ117: 2611 | AK117: 655.3 | AL117: 8671.4 | AM117: 18778.9 | AN117: 688.6 | AO117: 7483.2
A118: 2021-04-27 | B118: 5410.5 | C118: 5446 | D118: -439 | E118: -44 | F118: -1276.9 | G118: -792.9 | H118: 1569.5 | I118: 2665 | J118: 1254.5 | K118: 4167.5 | L118: 1468.7 | M118: 954.9 | N118: 5242.1 | O118: -1652.2 | P118: -255.4 | Q118: 5589.7 | R118: -343 | S118: 11371.7 | T118: 1207.6 | U118: 2330.7 | V118: -1552.5 | W118: -957.5 | X118: 517.8 | Y118: -589.6 | Z118: -964.6 | AA118: 6081.3 | AB118: 8810.3 | AC118: -215.4 | AD118: -1533.2 | AE118: 5695.3 | AF118: -1192.8 | AG118: 1670.8 | AH118: -1599.9 | AI118: 12089.6 | AJ118: 10436.4 | AK118: 6524.8 | AL118: 690.5 | AM118: 8649.6 | AN118: -1189.6 | AO118: 4755.2
A119: 2021-04-28 | B119: 779.8 | C119: 5143.1 | D119: -313.4 | E119: -1225.4 | F119: -627.7 | G119: 10163.5 | H119: 10758.1 | I119: -1662.7 | J119: 2513.7 | K119: 5610.7 | L119: -13.3 | M119: 2278.5 | N119: 11839.1 | O119: -1222.3 | P119: -596.1 | Q119: -338.2 | R119: 3223.6 | S119: 985.8 | T119: 5367.6 | U119: -865.7 | V119: -909.7 | W119: 1989.2 | X119: -1291.1 | Y119: -1350.4 | Z119: -1289.2 | AA119: -1299.5 | AB119: 7866.1 | AC119: -474.5 | AD119: 3688.4 | AE119: 7750.1 | AF119: -1518.2 | AG119: -494.3 | AH119: -1994 | AI119: 944.1 | AJ119: 7653.4 | AK119: 18413.9 | AL119: -530.4 | AM119: 10651.7 | AN119: -41 | AO119: 3089.8
A120: 2021-04-29 | B120: -1107.9 | C120: 1075.1 | D120: 7666.6 | E120: 538.3 | F120: -940 | G120: 556.1 | H120: 11843.8 | I120: -1651.4 | J120: -798.5 | K120: 248 | L120: -1477.7 | M120: 2905.4 | N120: 4675.1 | O120: -597.3 | P120: -1653.9 | Q120: 1447.2 | R120: 7048.8 | S120: 10898.7 | T120: -755.9 | U120: 1336.8 | V120: -103.6 | W120: 1506.1 | X120: 1357.7 | Y120: 507.9 | Z120: -1278.7 | AA120: -1066.4 | AB120: 2148.3 | AC120: -76.7 | AD120: 6797.7 | AE120: 4153.7 | AF120: -1593.8 | AG120: 751.5 | AH120: -564.8 | AI120: 4727.3 | AJ120: 1069.9 | AK120: -1036.7 | AL120: -1169.3 | AM120: -1255.6 | AN120: -741.2 | AO120: 1650.6
A121: 2021-04-30 | B121: -1336.6 | C121: 596.6 | D121: 1795.5 | E121: -58.4 | F121: -45.3 | G121: 9183.1 | H121: 7988.1 | I121: -1220.5 | J121: 517.2 | K121: 79.6 | L121: -1612 | M121: 5654.4 | N121: 101.5 | O121: 1568.2 | P121: -1617.9 | Q121: 3430.9 | R121: 6766.1 | S121: 6557.4 | T121: -1580.7 | U121: 6453.7 | V121: 2273.2 | W121: -1508.7 | X121: -1470.9 | Y121: 7687.4 | Z121: -483.3 | AA121: -1676 | AB121: -1141.6 | AC121: -732.3 | AD121: 2454.1 | AE121: 152.6 | AF121: 2680.1 | AG121: 742.4 | AH121: -666.2 | AI121: -41.8 | AJ121: 7327.8 | AK121: 1777.6 | AL121: 5602 | AM121: -1537.8 | AN121: 2466.4 | AO121: 2076.7
A122: 2021-05-01 | B122: -855.2 | C122: 5491.5 | D122: 425.7 | E122: 5990 | F122: -1340.6 | G122: 2866.3 | H122: -767.9 | I122: -1080.7 | J122: -1198.5 | K122: -275.4 | L122: -1770.6 | M122: 8130 | N122: 3562.2 | O122: 3203.6 | P122: 246.7 | Q122: 519.4 | R122: 4605.4 | S122: -252.6 | T122: 5625.1 | U122: 742.5 | V122: 2850.1 | W122: -1183.9 | X122: 1167.5 | Y122: -951.3 | Z122: 3950.3 | AA122: -1825.6 | AB122: -1302.4 | AC122: -914 | AD122: -286 | AE122: 2439.5 | AF122: 11039.2 | AG122: 1454.3 | AH122: 1193.1 | AI122: 1586.6 | AJ122: 1833.6 | AK122: 32839.3 | AL122: 10613.1 | AM122: 6472.8 | AN122: 1511.2 | AO122: -1457.8
A123: 2021-05-02 | B123: 2491.6 | C123: 4468.8 | D123: 1672.4 | E123: 8.1 | F123: -1172.1 | G123: 12868.8 | H123: -498.5 | I123: 1680.5 | J123: -913.3 | K123: -1517.6 | L123: -1843.9 | M123: 1861.1 | N123: 8876.5 | O123: 4106 | P123: -1612.7 | Q123: -1407.5 | R123: 8368.8 | S123: -1526.7 | T123: 5454.9 | U123: -1123.4 | V123: 1017.4 | W123: -1597.2 | X123: 11283.7 | Y123: 2448.5 | Z123: 2842.8 | AA123: -1890 | AB123: -1419.5 | AC123: 1763.4 | AD123: -825.2 | AE123: 6727.4 | AF123: 11942.5 | AG123: 783.9 | AH123: 3062.6 | AI123: 4093.6 | AJ123: 6811.3 | AK123: 6213.9 | AL123: -235.3 | AM123: 99.3 | AN123: 465 | AO123: 1682.4
A124: 2021-05-03 | B124: 4687 | C124: 439.8 | D124: -1452.3 | E124: 4078 | F124: 409.1 | G124: 1124.9 | H124: -1138.3 | I124: 18843.9 | J124: 4006.9 | K124: -1315.2 | L124: -1852.6 | M124: 1543.2 | N124: 836.3 | O124: 5212.4 | P124: -1681.6 | Q124: -1721.3 | R124: 1408.6 | S124: -1762.8 | T124: 705.1 | U124: -1821.9 | V124: 606.7 | W124: -755.9 | X124: 14310.8 | Y124: 1682.4 | Z124: -802.3 | AA124: 7497.5 | AB124: -1779.5 | AC124: 1540.2 | AD124: -1434.5 | AE124: 1298.1 | AF124: 5710.7 | AG124: 2399.8 | AH124: -613.2 | AI124: 8874.4 | AJ124: 3025 | AK124: 19101.7 | AL124: 4012.4 | AM124: 3948.5 | AN124: 2242 | AO124: 5473.4
A125: 2021-05-04 | B125: 9048.9 | C125: 4665.4 | D125: 2966.7 | E125: 9434.8 | F125: 467.9 | G125: -1157.7 | H125: -575.2 | I125: 9742.5 | J125: 46.9 | K125: -1604.6 | L125: -1839.9 | M125: 3184.6 | N125: -88.9 | O125: 350.3 | P125: 5245.9 | Q125: -1777.1 | R125: 500.1 | S125: -108.4 | T125: 48.8 | U125: -585.3 | V125: 3312.1 | W125: 7201 | X125: 22088.5 | Y125: -1593.1 | Z125: 465 | AA125: 1668.4 | AB125: -1783.3 | AC125: 4103.1 | AD125: -1585.7 | AE125: 5221.4 | AF125: 4340.4 | AG125: -959.5 | AH125: -1314.4 | AI125: 3967.6 | AJ125: -1292.3 | AK125: 4877.5 | AL125: -802.2 | AM125: 4722.8 | AN125: -317.7 | AO125: 6904.5
A126: 2021-05-05 | B126: -90.8 | C126: 4113.5 | D126: 8205.8 | E126: -982.3 | F126: 1721.5 | G126: -1068.2 | H126: -321.1 | I126: 15126.8 | J126: -217.3 | K126: -1656.3 | L126: -1540.7 | M126: 2318.5 | N126: -625.2 | O126: -5.7 | P126: 1201.4 | Q126: -1874.2 | R126: -596.3 | S126: 3473.7 | T126: -880.7 | U126: 3350.6 | V126: -616.7 | W126: 12980.3 | X126: 38.5 | Y126: -1424.3 | Z126: 13795.6 | AA126: 6354.3 | AB126: 5632.4 | AC126: 25086.1 | AD126: -1829.2 | AE126: -357.7 | AF126: 2929 | AG126: -1290.8 | AH126: 7060.6 | AI126: -1306.9 | AJ126: -1601.9 | AK126: 2176.9 | AL126: -1604.7 | AM126: -769.2 | AN126: -943.1 | AO126: 1902
A127: 2021-05-06 | B127: -682.2 | C127: 433 | D127: 6378.6 | E127: -288.9 | F127: -506.1 | G127: -1486.5 | H127: 330.2 | I127: 11702.8 | J127: -1534.3 | K127: -788.7 | L127: 951.4 | M127: 2642.2 | N127: -1163.9 | O127: 1328.4 | P127: 504.7 | Q127: -1894.2 | R127: -1320 | S127: 6450.9 | T127: 208.1 | U127: 4918.2 | V127: -1044.8 | W127: 1284.4 | X127: 1412.6 | Y127: -1349 | Z127: 11579.7 | AA127: 4580.7 | AB127: -94.9 | AC127: 2096 | AD127: -1709.4 | AE127: 796.4 | AF127: 4617.2 | AG127: -1189.8 | AH127: 5126.2 | AI127: 2019.5 | AJ127: -1131.3 | AK127: 6772.4 | AL127: -1806 | AM127: 6320.2 | AN127: -1295.4 | AO127: 227.9
A128: 2021-05-07 | B128: 2613.1 | C128: -1528.2 | D128: 966.3 | E128: 8239.7 | F128: 12530.1 | G128: 8272.5 | H128: 2193.1 | I128: 543.5 | J128: -1625.6 | K128: -1561.9 | L128: 1940.5 | M128: 3036 | N128: -1621.8 | O128: -537.8 | P128: -1707.6 | Q128: -1465.3 | R128: -409.4 | S128: 709.7 | T128: -1530.8 | U128: -180 | V128: -1544.6 | W128: 107.3 | X128: -1470.4 | Y128: -1399.8 | Z128: 2265.4 | AA128: 8988 | AB128: -567 | AC128: -381.2 | AD128: -1746.9 | AE128: -1728.4 | AF128: 2328.7 | AG128: -1283.7 | AH128: -490.3 | AI128: -546.7 | AJ128: 9286.9 | AK128: -1312.2 | AL128: -1837.7 | AM128: 6228.8 | AN128: -1389.1 | AO128: -1231.1
A129: 2021-05-08 | B129: 6355.6 | C129: -115.6 | D129: -1150.9 | E129: 7151.9 | F129: 1271 | G129: 19492.5 | H129: 8388.3 | I129: -1354.9 | J129: -89.7 | K129: -1652.5 | L129: 1760.5 | M129: -892.3 | N129: -1184.5 | O129: 582.2 | P129: 6655.1 | Q129: 345.2 | R129: 4575.5 | S129: 2886.7 | T129: -1740.3 | U129: 12780.9 | V129: 4826.2 | W129: -216.8 | X129: -1340.7 | Y129: 4667.7 | Z129: 4267.3 | AA129: 93.1 | AB129: 5528.3 | AC129: 8671.9 | AD129: -1870.1 | AE129: 2534 | AF129: 780.1 | AG129: -1158.3 | AH129: 1535 | AI129: -1269.4 | AJ129: -711.1 | AK129: -38.1 | AL129: -1847.2 | AM129: 9895.5 | AN129: -1026.9 | AO129: 9299.2
A130: 2021-05-09 | B130: 7250.7 | C130: -1641 | D130: 3159 | E130: 2056.8 | F130: -1467.8 | G130: 14670 | H130: -711.7 | I130: -1711.6 | J130: 3777.8 | K130: -1737.3 | L130: -345 | M130: -1108.5 | N130: -1053.8 | O130: -321.2 | P130: 9952.5 | Q130: 4352.7 | R130: 4981.5 | S130: 7387 | T130: -1544.7 | U130: -891 | V130: -1813.6 | W130: -1233.1 | X130: 241.5 | Y130: 4485.8 | Z130: 8945.5 | AA130: 933.4 | AB130: 11737 | AC130: 8032.8 | AD130: -1937.3 | AE130: -5 | AF130: 3947.7 | AG130: -1132.6 | AH130: 2217.3 | AI130: 2813 | AJ130: 2365.8 | AK130: 1177.9 | AL130: -1667.9 | AM130: 230 | AN130: 1861.4 | AO130: 3030.8
A131: 2021-05-10 | B131: -1111.1 | C131: -1805.3 | D131: 4881.2 | E131: 4910.6 | F131: -386 | G131: -316.9 | H131: -1120.1 | I131: 3110.7 | J131: 2788.4 | K131: 6883.2 | L131: -592.9 | M131: 6908.2 | N131: -452.4 | O131: -1476.4 | P131: 1670.9 | Q131: -794.4 | R131: -186.7 | S131: -814.3 | T131: -1845.2 | U131: 363.5 | V131: -1814.7 | W131: -546.7 | X131: 765.6 | Y131: 833.6 | Z131: -129.7 | AA131: 922 | AB131: -134.3 | AC131: -1600.9 | AD131: -1955.3 | AE131: 594.5 | AF131: 6950.3 | AG131: -936.7 | AH131: -1838.8 | AI131: 16884.8 | AJ131: 554.9 | AK131: -1526.8 | AL131: 1119.4 | AM131: -1654 | AN131: 5303.4 | AO131: 1080.3
A132: 2021-05-11 | B132: -1770.1 | C132: 1402.6 | D132: -1360.7 | E132: 3363.5 | F132: -501.9 | G132: -934.2 | H132: 1811.3 | I132: 1084.2 | J132: 5725.7 | K132: 5756.1 | L132: 6766.9 | M132: 21168.6 | N132: 5205.5 | O132: -127.9 | P132: -1514.5 | Q132: -583.7 | R132: -501.5 | S132: -1621.3 | T132: -1910.7 | U132: 18596.9 | V132: -553.2 | W132: -1896.5 | X132: 5272.8 | Y132: 4191 | Z132: 746.4 | AA132: -1414 | AB132: -1704.7 | AC132: -935.9 | AD132: -1054.7 | AE132: 374.5 | AF132: 2457.9 | AG132: 1064 | AH132: -2002.6 | AI132: 3550.4 | AJ132: 2401.9 | AK132: -1823.7 | AL132: 1348.8 | AM132: -12.2 | AN132: -914.4 | AO132: 6835.1
A133: 2021-05-12 | B133: -1862.1 | C133: 2426.5 | D133: -1615.4 | E133: -375.5 | F133: 41.3 | G133: -1027.5 | H133: -738.2 | I133: 4063.4 | J133: -1266.8 | K133: 8483.7 | L133: 425.3 | M133: 10373 | N133: -1605.2 | O133: 6756.6 | P133: 4655.5 | Q133: 6320.4 | R133: 8164.4 | S133: 294.5 | T133: -1947.4 | U133: 21744.7 | V133: 7672.4 | W133: -1977.8 | X133: 8922.2 | Y133: 1706.5 | Z133: 3122.3 | AA133: -1831.8 | AB133: -1081.3 | AC133: 555.3 | AD133: -1324.2 | AE133: 6092.5 | AF133: 5874.3 | AG133: 5894.9 | AH133: 14534.3 | AI133: 3472.5 | AJ133: 1591 | AK133: -2155 | AL133: 17553.2 | AM133: 1645.8 | AN133: -262.1 | AO133: 2569.3
A134: 2021-05-13 | B134: -1752.1 | C134: 4572.5 | D134: -1736.6 | E134: 3624.8 | F134: 1337.6 | G134: 393.6 | H134: 711.5 | I134: 9084.6 | J134: 1479.1 | K134: 822.4 | L134: 1380.4 | M134: -123.1 | N134: -1896.7 | O134: 1273.5 | P134: -159.7 | Q134: 32836.9 | R134: 12667.7 | S134: -451.1 | T134: -1902.6 | U134: 6611.5 | V134: 3524.9 | W134: -1666.4 | X134: 797.4 | Y134: 6451.8 | Z134: 1299.4 | AA134: -740 | AB134: 7108.2 | AC134: -1623.5 | AD134: -1615.9 | AE134: 4215.7 | AF134: 12815 | AG134: -906 | AH134: -1510.4 | AI134: -306.4 | AJ134: 3142.5 | AK134: 5510 | AL134: 23654.3 | AM134: 35.2 | AN134: 5936.4 | AO134: -1418.1
A135: 2021-05-14 | B135: 2553.8 | C135: 2329.2 | D135: -1829.7 | E135: -591.6 | F135: 3963.1 | G135: -679.7 | H135: 2767.3 | I135: -681.4 | J135: 3480.4 | K135: 4104.1 | L135: 2663.4 | M135: 4379 | N135: -1992.6 | O135: 3047.8 | P135: 1672.6 | Q135: 6142.3 | R135: 3217.5 | S135: -1283.4 | T135: -1498.6 | U135: 16586.2 | V135: -1777.9 | W135: 4120 | X135: -1344.7 | Y135: 734.9 | Z135: -895.2 | AA135: 3515.2 | AB135: 6815.7 | AC135: 6564.8 | AD135: -1479.5 | AE135: 5067.7 | AF135: 4911.8 | AG135: 9624.5 | AH135: -1711.8 | AI135: -1359.5 | AJ135: 6399.8 | AK135: 9643.2 | AL135: 10513.4 | AM135: 3685.3 | AN135: 8577.8 | AO135: -1284.9
A136: 2021-05-15 | B136: -1023.3 | C136: 597.6 | D136: -1790.3 | E136: 5354.9 | F136: -1341 | G136: 4689.3 | H136: 6561.3 | I136: 4179.3 | J136: 4636.1 | K136: -853.7 | L136: 1182.9 | M136: 1975.4 | N136: -1988.5 | O136: 1816.8 | P136: -1166.3 | Q136: -1572.1 | R136: 535.7 | S136: -1467.5 | T136: -2071.7 | U136: 257.1 | V136: -1712.1 | W136: 5284.7 | X136: -1845.5 | Y136: -180.6 | Z136: -1469.9 | AA136: 254.6 | AB136: -1461.6 | AC136: 7034.7 | AD136: -106.2 | AE136: 6093.4 | AF136: 1977.2 | AG136: 6273.9 | AH136: 2064 | AI136: 387.1 | AJ136: 2732.4 | AK136: 20392.9 | AL136: -310.9 | AM136: -311.1 | AN136: 10061.7 | AO136: -980.9
A137: 2021-05-16 | B137: -1268.7 | C137: 1620.7 | D137: -1333.1 | E137: 650.1 | F137: 1030.5 | G137: -144.9 | H137: 10105.1 | I137: 3078.6 | J137: 4745.2 | K137: -1614.9 | L137: 256.6 | M137: 7526.9 | N137: -1904.1 | O137: -1028.6 | P137: -644.9 | Q137: 4995 | R137: -274.8 | S137: -1540 | T137: -1763.7 | U137: -1145.6 | V137: -1401.3 | W137: 910.2 | X137: -1943.2 | Y137: -1420.9 | Z137: 112.5 | AA137: 9009.4 | AB137: 7654.8 | AC137: 2823.3 | AD137: 246.4 | AE137: 205.8 | AF137: 769.7 | AG137: -20.1 | AH137: 5586.6 | AI137: 3239.3 | AJ137: -618.3 | AK137: -1430 | AL137: 3156.3 | AM137: -1952.1 | AN137: 10919.5 | AO137: -623.5
A138: 2021-05-17 | B138: -1414.5 | C138: 3066.9 | D138: 373.6 | E138: 1771.5 | F138: 2514 | G138: 2148.4 | H138: 2087.4 | I138: -1427 | J138: 3358.8 | K138: -1410.2 | L138: -1315.8 | M138: 4914.8 | N138: -883.3 | O138: -1702.4 | P138: 1483.4 | Q138: 4940.1 | R138: 3011.3 | S138: -495.1 | T138: -972.9 | U138: 2211.6 | V138: 1324.8 | W138: 10235.3 | X138: -2066.4 | Y138: 1947.9 | Z138: -1856.1 | AA138: -631.9 | AB138: 6372.2 | AC138: 15482.8 | AD138: 4687.1 | AE138: -702.6 | AF138: -53.5 | AG138: -887.3 | AH138: -1545.8 | AI138: 6062.9 | AJ138: 295.6 | AK138: -312.5 | AL138: -368.8 | AM138: -2062.3 | AN138: 5752.3 | AO138: -530.8
A139: 2021-05-18 | B139: 1616.6 | C139: -1615.1 | D139: 728 | E139: -461.7 | F139: -1598.3 | G139: 6217.2 | H139: -608.5 | I139: 3582.1 | J139: 4620.4 | K139: -1584.1 | L139: 173.4 | M139: 2339.1 | N139: -1912.9 | O139: -730.5 | P139: 22280.9 | Q139: 11155.7 | R139: 3284.5 | S139: 2764.9 | T139: 391.4 | U139: 176.2 | V139: 3055.5 | W139: 9151.4 | X139: 9613.9 | Y139: 2190.9 | Z139: -1989.6 | AA139: 4607.6 | AB139: 12430.3 | AC139: -992.6 | AD139: 11415.9 | AE139: 2762 | AF139: 191.5 | AG139: -1371.2 | AH139: 1775.4 | AI139: -1096 | AJ139: -1050.7 | AK139: -1564.8 | AL139: 129.1 | AM139: 529.9 | AN139: -436 | AO139: 227.5
A140: 2021-05-19 | B140: 470.4 | C140: -1628.2 | D140: 1441.7 | E140: 5449 | F140: 1714.9 | G140: 2128.5 | H140: 5916.6 | I140: 10163.9 | J140: 5905.1 | K140: -1219 | L140: -1032.7 | M140: -221.9 | N140: -1886.3 | O140: 1822.4 | P140: 24268.7 | Q140: 1901.3 | R140: 10765.9 | S140: -1476.7 | T140: -1358.5 | U140: 1865.3 | V140: 912.2 | W140: -1390.4 | X140: 3799.2 | Y140: 6334.6 | Z140: -1784.8 | AA140: -1215.1 | AB140: -1067.9 | AC140: -1878.6 | AD140: 1488.4 | AE140: -1155.8 | AF140: 2662.4 | AG140: -32.5 | AH140: -1443 | AI140: 3756.2 | AJ140: -1712.2 | AK140: 4819.4 | AL140: 10059.6 | AM140: 13320 | AN140: 4876.6 | AO140: 8772.5
A141: 2021-05-20 | B141: -931.5 | C141: -1829.8 | D141: 6224.7 | E141: -1364.6 | F141: 1413.9 | G141: 3343.3 | H141: -811.1 | I141: 4577.2 | J141: 6860.6 | K141: -1506.2 | L141: -1482.8 | M141: -523.3 | N141: -239.3 | O141: 2676.4 | P141: 4151.2 | Q141: 1561.4 | R141: 10431.3 | S141: 5412.1 | T141: -1356.5 | U141: 6258.5 | V141: 138.1 | W141: -1912.4 | X141: 56.4 | Y141: 4007.3 | Z141: -1928 | AA141: -1916.6 | AB141: 1573.4 | AC141: -1281 | AD141: 528.8 | AE141: -2052.9 | AF141: 4159.2 | AG141: 1336.6 | AH141: -1618.3 | AI141: 452.8 | AJ141: -2005 | AK141: 10529.3 | AL141: -1513.7 | AM141: -838.6 | AN141: 235.9 | AO141: 23317.6
A142: 2021-05-21 | B142: 1116.8 | C142: 249.7 | D142: 3946.2 | E142: 4841.2 | F142: 16175.1 | G142: 7121.3 | H142: 5609.8 | I142: 4279 | J142: -948.3 | K142: -1664.9 | L142: 3977.8 | M142: -1353 | N142: -1413.4 | O142: 12557.9 | P142: 3762.4 | Q142: -640.7 | R142: 1065.5 | S142: 462.1 | T142: 2144 | U142: 17685.6 | V142: 2077.1 | W142: -1727.7 | X142: -1751.8 | Y142: 4318 | Z142: 15332.7 | AA142: 3158.1 | AB142: -524.8 | AC142: -250.5 | AD142: 139.8 | AE142: 7496.2 | AF142: 474.2 | AG142: -481 | AH142: 9649.6 | AI142: 4574.4 | AJ142: -2029.7 | AK142: 4617.6 | AL142: -1934.8 | AM142: -1634.8 | AN142: 320.1 | AO142: 16073.1
A143: 2021-05-22 | B143: 3531.5 | C143: 7625.2 | D143: -211.4 | E143: 8895.6 | F143: -223.6 | G143: 5611 | H143: -1122.3 | I143: 1432.3 | J143: -1760.2 | K143: -1628.6 | L143: -433.8 | M143: -1462.2 | N143: -1364.4 | O143: -1475.8 | P143: 5173.2 | Q143: -1693.6 | R143: -478.5 | S143: 1883 | T143: 714 | U143: 5548.9 | V143: 1965.3 | W143: -1327.8 | X143: -1660.3 | Y143: 3702 | Z143: 3402.4 | AA143: 6746.8 | AB143: 4823 | AC143: 1083.2 | AD143: -41.3 | AE143: 5333.7 | AF143: -658.6 | AG143: 540.6 | AH143: 4517.5 | AI143: 6960.7 | AJ143: 987.7 | AK143: -953.6 | AL143: 1657.8 | AM143: -1795.4 | AN143: 3016.5 | AO143: 951.4
A144: 2021-05-23 | B144: -1411.2 | C144: -198 | D144: 8586.3 | E144: 11070.1 | F144: 7598.2 | G144: 562.8 | H144: 801.4 | I144: -226.1 | J144: -1753.7 | K144: -1788 | L144: 91.2 | M144: -1138.9 | N144: -1128.3 | O144: -1782 | P144: 2178.8 | Q144: -1817.1 | R144: 528.5 | S144: 256.6 | T144: -1231.5 | U144: -621.7 | V144: -1521.5 | W144: -1390.8 | X144: 12069 | Y144: -1473.8 | Z144: -1042.3 | AA144: 16049.2 | AB144: 12.2 | AC144: 740.4 | AD144: -500.6 | AE144: -2055.1 | AF144: -1551.8 | AG144: -816.8 | AH144: 5479.8 | AI144: 2405.9 | AJ144: 7701.7 | AK144: -1.1 | AL144: 16626.6 | AM144: -1845 | AN144: 2878.8 | AO144: -1850.8
A145: 2021-05-24 | B145: -783.6 | C145: 5611.9 | D145: 4163.8 | E145: 13322.6 | F145: 1044.8 | G145: -1814 | H145: 3307.4 | I145: -1421.6 | J145: 201.5 | K145: -1892.5 | L145: 12971.5 | M145: -970.8 | N145: 1131.7 | O145: -1121.9 | P145: 7700.6 | Q145: -1857.9 | R145: -1618.5 | S145: 815.4 | T145: -924 | U145: -1719.4 | V145: -1419.7 | W145: 6277.2 | X145: 3096.8 | Y145: -542.9 | Z145: -1799.9 | AA145: -1388.7 | AB145: -793.9 | AC145: -1444.2 | AD145: -1321.8 | AE145: -1363 | AF145: -2132.1 | AG145: -1205.6 | AH145: -837.9 | AI145: 2444.1 | AJ145: 958.7 | AK145: -99.3 | AL145: 5513.3 | AM145: -1240.9 | AN145: 1801.3 | AO145: -1554.1
A146: 2021-05-25 | B146: -893.6 | C146: 15767.7 | D146: -1563.9 | E146: 15751.7 | F146: 7662.5 | G146: -1908.6 | H146: -1975.5 | I146: -1100.9 | J146: -1794.4 | K146: -1317.9 | L146: 17533.3 | M146: -965 | N146: 823.7 | O146: -1733.8 | P146: 1623.5 | Q146: -706.1 | R146: 6362.2 | S146: -1628.6 | T146: 114.1 | U146: 2759.2 | V146: 44.9 | W146: 1702.7 | X146: 4272.5 | Y146: 2723.4 | Z146: -1871.4 | AA146: -2075.9 | AB146: 103.2 | AC146: -925.8 | AD146: -1171.8 | AE146: -1694 | AF146: -2057.2 | AG146: -1202.4 | AH146: -2311.4 | AI146: 2160.2 | AJ146: 255.4 | AK146: 7535.7 | AL146: -1161.9 | AM146: -1735.8 | AN146: -1147.5 | AO146: 3650.6
A147: 2021-05-26 | B147: -934 | C147: 16156.9 | D147: -1868 | E147: 12116.9 | F147: 414.7 | G147: -1595.4 | H147: -1432.8 | I147: -1650.4 | J147: 1730.4 | K147: 586.8 | L147: -1617.4 | M147: 3823.1 | N147: 2510.4 | O147: -1651 | P147: 4345 | Q147: 12329 | R147: 5837.4 | S147: -1766.3 | T147: 1658.3 | U147: -1266.7 | V147: -375.6 | W147: -1923.2 | X147: -990.8 | Y147: 1203.6 | Z147: -1626.2 | AA147: -2174.9 | AB147: 1576.3 | AC147: -1214.5 | AD147: -206.4 | AE147: 17765 | AF147: 2235 | AG147: 1735.1 | AH147: -2292.2 | AI147: 3891.8 | AJ147: 5912.4 | AK147: 6640 | AL147: -1480.7 | AM147: -2219.8 | AN147: -1533.1 | AO147: -945.1
A148: 2021-05-27 | B148: 1628.6 | C148: 16879.2 | D148: -1545.8 | E148: 804.6 | F148: 7686.4 | G148: 1892.4 | H148: 5782.6 | I148: 2364 | J148: 8126.8 | K148: 1122.2 | L148: -2020.2 | M148: -1705 | N148: 1674.7 | O148: 7590.9 | P148: 2938.8 | Q148: 3888.6 | R148: 10152.2 | S148: -1716.1 | T148: 472.2 | U148: -1994.4 | V148: 4189.7 | W148: -1543.7 | X148: 15303.7 | Y148: 597.2 | Z148: 3729.4 | AA148: -2258.5 | AB148: 2024.7 | AC148: 8223.7 | AD148: -2042.4 | AE148: 3312.8 | AF148: 3374.1 | AG148: 11957.3 | AH148: -1551.4 | AI148: 991.9 | AJ148: 5378.4 | AK148: -1112.1 | AL148: 162.3 | AM148: -2113 | AN148: -1376.2 | AO148: 342.3
A149: 2021-05-28 | B149: 4748 | C149: 730.1 | D149: 2348.9 | E149: -996.3 | F149: 3386.8 | G149: 11281.1 | H149: 10887.8 | I149: 4104.9 | J149: 840 | K149: 834.1 | L149: -1078.6 | M149: -1895.8 | N149: -1170 | O149: 5074.2 | P149: -1047.6 | Q149: -2025.6 | R149: 1978.3 | S149: -1208.2 | T149: -535.2 | U149: -541.4 | V149: 4829.6 | W149: -1966.4 | X149: 2055 | Y149: 1721.3 | Z149: 727.7 | AA149: -2086.5 | AB149: 6980.7 | AC149: 15944.4 | AD149: -372.7 | AE149: -178 | AF149: 1066.2 | AG149: -403.4 | AH149: -1188.7 | AI149: 1096.1 | AJ149: 307.9 | AK149: -1960.3 | AL149: 1142.8 | AM149: -2028.5 | AN149: -639.8 | AO149: 13637.7
A150: 2021-05-29 | B150: 4352.8 | C150: 3867.3 | D150: -983.4 | E150: 797.1 | F150: -133.7 | G150: 8441.3 | H150: 12144.1 | I150: 4648.8 | J150: 2163.7 | K150: 3647.9 | L150: -1555.2 | M150: -1767.4 | N150: 461.1 | O150: -1676.3 | P150: 6360.8 | Q150: 5696.7 | R150: -1932.5 | S150: -1591.2 | T150: 3544.7 | U150: -2037.8 | V150: 982.5 | W150: -2048.8 | X150: -361.2 | Y150: -317 | Z150: -1889.3 | AA150: -1873.3 | AB150: 13458.3 | AC150: 20540 | AD150: 334.6 | AE150: -1693.2 | AF150: 213 | AG150: -1413.2 | AH150: -1308.6 | AI150: 6121.9 | AJ150: 3075.9 | AK150: -1286.2 | AL150: 18761.9 | AM150: -1557.4 | AN150: 1413.4 | AO150: 4283.8
A151: 2021-05-30 | B151: 2653.6 | C151: -674.4 | D151: -1847.9 | E151: -1005.5 | F151: 14220.4 | G151: 316.7 | H151: 9281.3 | I151: -1035.5 | J151: 978.9 | K151: 2605.6 | L151: -1970.9 | M151: -1880.7 | N151: -914.9 | O151: 503.6 | P151: -726.4 | Q151: 18058.7 | R151: -2148.7 | S151: -1511.8 | T151: 591.7 | U151: -1113.2 | V151: 15854 | W151: -1876.7 | X151: -1576.9 | Y151: -858.1 | Z151: -1905.8 | AA151: 3985.6 | AB151: 6859.8 | AC151: -1223.9 | AD151: 6758.4 | AE151: -1487.7 | AF151: 14871.3 | AG151: -983.8 | AH151: -786.4 | AI151: 1695.1 | AJ151: 2947 | AK151: -439.5 | AL151: 3887.2 | AM151: -385 | AN151: 919.8 | AO151: -1364.3
A152: 2021-05-31 | B152: 2359.7 | C152: -1646.5 | D152: -1444 | E152: -1776 | F152: 2422.5 | G152: -1460.6 | H152: 2747.2 | I152: 3933 | J152: 282.8 | K152: 3862.9 | L152: -1915.1 | M152: -1859 | N152: 990.9 | O152: -1075.8 | P152: -1977.1 | Q152: 23139.1 | R152: -2233.1 | S152: -1390.4 | T152: 6916.6 | U152: 3684 | V152: 17623.6 | W152: 5842.1 | X152: -1917.6 | Y152: 1924 | Z152: 4176.6 | AA152: -1466 | AB152: 5152.2 | AC152: 1893 | AD152: 1696.4 | AE152: -1570.9 | AF152: 4572.5 | AG152: 11215.9 | AH152: 233.4 | AI152: 28878.9 | AJ152: -1422.2 | AK152: -1302.6 | AL152: 666.9 | AM152: 1268.8 | AN152: 4429.8 | AO152: -1499.8
A153: 2021-06-01 | B153: 8724.1 | C153: -996.4 | D153: -1513.9 | E153: -608.7 | F153: -1355.9 | G153: -1195.1 | H153: -1003.7 | I153: 2339.7 | J153: 3622.6 | K153: 3124 | L153: -2009.8 | M153: -1592.5 | N153: 421.5 | O153: -1670.6 | P153: -2157.5 | Q153: 34829.9 | R153: 5009.9 | S153: 829.2 | T153: -1175.4 | U153: -1225.4 | V153: -1765.7 | W153: -753.1 | X153: -2157.5 | Y153: -721.8 | Z153: 9695.1 | AA153: -1744.1 | AB153: 6618.2 | AC153: 12123.4 | AD153: -1656.7 | AE153: -806 | AF153: 2206.7 | AG153: 9940.6 | AH153: 476.6 | AI153: 23886.9 | AJ153: 774 | AK153: -279.5 | AL153: 3163 | AM153: 3916.9 | AN153: 1874.1 | AO153: -2052
A154: 2021-06-02 | B154: 4534.3 | C154: -423 | D154: -337.1 | E154: 6644.4 | F154: -718 | G154: -893.6 | H154: 13685.3 | I154: -1276.2 | J154: -542.8 | K154: 4154.9 | L154: 10994.1 | M154: -635.1 | N154: 1126.8 | O154: 8464.3 | P154: 8765.5 | Q154: 7705.6 | R154: 6352.9 | S154: -702.9 | T154: -810.4 | U154: 10577.6 | V154: -2122.4 | W154: 6672.5 | X154: -2245.9 | Y154: 1751.5 | Z154: 6733.6 | AA154: -2018.8 | AB154: 2225.6 | AC154: 3944.3 | AD154: 3017.4 | AE154: -1252.2 | AF154: 8390.5 | AG154: -470.2 | AH154: -1543.9 | AI154: 10139 | AJ154: 2190.9 | AK154: -1451.6 | AL154: 3150 | AM154: 1705.2 | AN154: -519 | AO154: -2238.3
A155: 2021-06-03 | B155: 909.6 | C155: 10028.3 | D155: -592.1 | E155: -1270.7 | F155: 1661 | G155: -1893.6 | H155: 830.6 | I155: 7190 | J155: -1400 | K155: 3766.6 | L155: 273.9 | M155: 5581.4 | N155: 22165.6 | O155: 5218.9 | P155: 2196.2 | Q155: -928.7 | R155: 848.5 | S155: 4150.1 | T155: 5301.2 | U155: 119.4 | V155: -1545.1 | W155: 9205.1 | X155: 2314.5 | Y155: -1184.3 | Z155: 17427.6 | AA155: -1533.8 | AB155: -961.4 | AC155: -848.6 | AD155: 1244.6 | AE155: -1933.8 | AF155: 8214.9 | AG155: -951.9 | AH155: 14015.1 | AI155: 1225.4 | AJ155: 484.2 | AK155: -2288 | AL155: 4598.3 | AM155: 3244.2 | AN155: -981.6 | AO155: -1468.5
A156: 2021-06-04 | B156: 2445 | C156: 3324.3 | D156: 1493.9 | E156: -2013.1 | F156: 6445 | G156: -869.9 | H156: 19843.1 | I156: 16469.3 | J156: 16502.1 | K156: 844.2 | L156: 5090.9 | M156: -583.1 | N156: 383.6 | O156: 639.9 | P156: 2625.6 | Q156: 3464.6 | R156: -1004 | S156: -1016.2 | T156: 297.2 | U156: 5881.4 | V156: -1057.7 | W156: -1143.9 | X156: -1484.5 | Y156: -1341.2 | Z156: 2205.5 | AA156: 5160.8 | AB156: 4248.3 | AC156: 2526.2 | AD156: 6415.4 | AE156: -1525.3 | AF156: -1804.5 | AG156: 704.1 | AH156: 6532.8 | AI156: -1481.2 | AJ156: 2025.1 | AK156: -2092.7 | AL156: 4597.4 | AM156: 11065.1 | AN156: 3197.5 | AO156: -2312.1
A157: 2021-06-05 | B157: -1103.1 | C157: -1109.1 | D157: 209.8 | E157: -1480.4 | F157: 8055.4 | G157: 1230.6 | H157: 2572.7 | I157: 1601 | J157: 9749.9 | K157: 4866.8 | L157: 4581.4 | M157: -1074.6 | N157: 6307.1 | O157: -1575 | P157: 10325 | Q157: 5197.4 | R157: -2034.4 | S157: -691.4 | T157: -1369.6 | U157: 232.3 | V157: 2416.5 | W157: -1804.8 | X157: 4908.9 | Y157: 2616.4 | Z157: 4314 | AA157: -690.6 | AB157: 47.9 | AC157: -1001 | AD157: 5049.5 | AE157: -620.4 | AF157: -2149.8 | AG157: 1833 | AH157: -312.6 | AI157: -1752.4 | AJ157: -923.2 | AK157: -1531.9 | AL157: 6236 | AM157: 4043.4 | AN157: 362.4 | AO157: -2021.2
A158: 2021-06-06 | B158: 5968.5 | C158: -1281.7 | D158: 2272.8 | E158: 6693.1 | F158: 5335.8 | G158: 6748.3 | H158: 1137.9 | I158: -1282.4 | J158: 18785.5 | K158: -65.9 | L158: 4973.9 | M158: 10606.6 | N158: 1803.2 | O158: -1292 | P158: -265.5 | Q158: 6106.5 | R158: -1716.4 | S158: 1166.4 | T158: -1330.6 | U158: 8150.9 | V158: 3940.6 | W158: 8374 | X158: 12524.6 | Y158: 6400.4 | Z158: -1055.7 | AA158: 2548.1 | AB158: 292.1 | AC158: -830.2 | AD158: 7996.7 | AE158: 9933.4 | AF158: 3896.6 | AG158: 3000.7 | AH158: 2225.3 | AI158: -2073.5 | AJ158: -1986.9 | AK158: 113.1 | AL158: -1660.3 | AM158: 4385.3 | AN158: 4540.2 | AO158: 975.4
A159: 2021-06-07 | B159: 8582.2 | C159: 2767.1 | D159: 7503.5 | E159: -2153.5 | F159: 850.3 | G159: 10054.9 | H159: 4909.7 | I159: 13984.6 | J159: 1176.5 | K159: 818 | L159: 2934.7 | M159: 4484.7 | N159: -839 | O159: -1447.2 | P159: 464.6 | Q159: 394 | R159: -1370.3 | S159: -1417.1 | T159: 12870 | U159: -437.2 | V159: -1231.1 | W159: -997.6 | X159: 9033.6 | Y159: -124.4 | Z159: -2018.3 | AA159: 446 | AB159: -1680.2 | AC159: 2890.9 | AD159: 6640.4 | AE159: 1065.8 | AF159: 2393.8 | AG159: -68.6 | AH159: 6859.4 | AI159: -1359.6 | AJ159: -2122.2 | AK159: 2134.2 | AL159: -364.6 | AM159: 203.5 | AN159: 3438 | AO159: -256.2
A160: 2021-06-08 | B160: 9295.8 | C160: 3886.3 | D160: -252.1 | E160: -2054 | F160: 339.9 | G160: 2476.6 | H160: -582.4 | I160: 8190.7 | J160: 573.8 | K160: -286.7 | L160: 16897.4 | M160: 7780.5 | N160: 5661.2 | O160: -1789.8 | P160: 1417.6 | Q160: 1402 | R160: 5451.2 | S160: 7351.8 | T160: 1411.3 | U160: 12755.6 | V160: -2014.1 | W160: 10877 | X160: 1912.3 | Y160: 661.5 | Z160: -2204.8 | AA160: -1497.9 | AB160: -2051.1 | AC160: 3370.8 | AD160: 2798.7 | AE160: 412.6 | AF160: 121 | AG160: 11044.9 | AH160: 17028.3 | AI160: -1842.5 | AJ160: -1921.4 | AK160: 5915.9 | AL160: 13264.2 | AM160: -2006.4 | AN160: 10632.1 | AO160: -1820
A161: 2021-06-09 | B161: 3474 | C161: 6108.9 | D161: 3216.6 | E161: 2699 | F161: 76 | G161: -1112.9 | H161: -1653.3 | I161: 1219.2 | J161: -1509 | K161: -1556.8 | L161: 4618.9 | M161: 6116.3 | N161: 180.8 | O161: -474.6 | P161: 13447.7 | Q161: 9515.4 | R161: 1965.5 | S161: -971.6 | T161: -1631.2 | U161: -1469.6 | V161: -1846.5 | W161: 16155.7 | X161: 6927.6 | Y161: -318.9 | Z161: -2018.1 | AA161: -1434.9 | AB161: -2206.5 | AC161: 1534 | AD161: 349.5 | AE161: 2954.6 | AF161: -2062.4 | AG161: 1157.8 | AH161: 905.5 | AI161: 6148.3 | AJ161: -1747.8 | AK161: 66.7 | AL161: 11845.7 | AM161: -447.6 | AN161: 4232.1 | AO161: 1424.1
A162: 2021-06-10 | B162: 5570.7 | C162: 919.8 | D162: 1364.9 | E162: 6940.8 | F162: -1752.2 | G162: 9355.5 | H162: -1721.5 | I162: -365.4 | J162: -810.5 | K162: 651.4 | L162: 5189.8 | M162: 2528.7 | N162: 4244.3 | O162: 549.4 | P162: 1777.1 | Q162: 2461.7 | R162: 366.8 | S162: -1521.9 | T162: 7745.3 | U162: 9348.6 | V162: -1366.3 | W162: 13764.1 | X162: 6499.2 | Y162: -1466.9 | Z162: -1633.9 | AA162: -1416.9 | AB162: -2186 | AC162: 1355.9 | AD162: 3012.6 | AE162: -923.6 | AF162: -2446.8 | AG162: -583.5 | AH162: 6083 | AI162: 14773.1 | AJ162: -1622.7 | AK162: -806.3 | AL162: -1980.8 | AM162: -1218 | AN162: -943.2 | AO162: 9472.2
A163: 2021-06-11 | B163: -1167.8 | C163: -2020 | D163: 9371.5 | E163: -994.2 | F163: 44 | G163: -79.9 | H163: 12338.5 | I163: -1855.6 | J163: 6995.4 | K163: 418.9 | L163: 796.4 | M163: -1291.7 | N163: 4245.9 | O163: 8175.6 | P163: 3706.3 | Q163: 13351.5 | R163: -766.4 | S163: 2484.2 | T163: 6585.1 | U163: 7128.2 | V163: 5378.9 | W163: 2936.7 | X163: -1136.2 | Y163: -1189.2 | Z163: 4576.6 | AA163: -1027.3 | AB163: -2363.9 | AC163: 7634.5 | AD163: 12791 | AE163: 1023.3 | AF163: 1322.6 | AG163: 2166.5 | AH163: 7969.9 | AI163: 1936.8 | AJ163: -1511.1 | AK163: -766.7 | AL163: 8260.8 | AM163: -2273 | AN163: 4979.7 | AO163: 7465.1
A164: 2021-06-12 | B164: -2035.6 | C164: -1186.2 | D164: 8897.2 | E164: -1465 | F164: -875.7 | G164: 423.2 | H164: 7100.8 | I164: -27.9 | J164: 3993.8 | K164: -522 | L164: 10156.7 | M164: -1771.3 | N164: 1492.7 | O164: 796.1 | P164: -382 | Q164: 8267.3 | R164: 4052.5 | S164: -322.7 | T164: 15302.4 | U164: 3442.8 | V164: -267.8 | W164: -1961.3 | X164: -2007.4 | Y164: -355.5 | Z164: 4039.5 | AA164: 206 | AB164: -2168.9 | AC164: 3830.7 | AD164: 1982.5 | AE164: -1544.9 | AF164: 739.7 | AG164: -1043.9 | AH164: 10951.1 | AI164: -1366.2 | AJ164: 1744.1 | AK164: -1193.7 | AL164: 6062 | AM164: -900.8 | AN164: 6995.2 | AO164: 4741.4
A165: 2021-06-13 | B165: -1741.5 | C165: -459.9 | D165: 7829.4 | E165: 11541.3 | F165: -1934.8 | G165: 783.2 | H165: 1282.1 | I165: 2272.6 | J165: 3372.7 | K165: -1379.4 | L165: 6758.5 | M165: 1188.1 | N165: 4000.7 | O165: 2357.1 | P165: -1757.1 | Q165: 7287 | R165: 198.3 | S165: 4371.8 | T165: -364.9 | U165: -280 | V165: 1062.9 | W165: -569.1 | X165: -1900.8 | Y165: 2286 | Z165: 4468 | AA165: 6371.2 | AB165: -2132 | AC165: 1890.6 | AD165: 439.8 | AE165: -1677.9 | AF165: 8214.5 | AG165: 679.2 | AH165: 6204.3 | AI165: 760.7 | AJ165: 534.6 | AK165: -203.2 | AL165: 9982.4 | AM165: -2065.2 | AN165: 10087.1 | AO165: -1433.9
A166: 2021-06-14 | B166: 3025.6 | C166: -2135.5 | D166: 5192.9 | E166: 3616.6 | F166: 598.9 | G166: 5540.3 | H166: -549.8 | I166: 2882.6 | J166: -1183 | K166: -1747.9 | L166: 295.9 | M166: 676.4 | N166: -1400 | O166: 3035.2 | P166: -1008.4 | Q166: 3358.2 | R166: -2232.3 | S166: 4072 | T166: 1457.7 | U166: 11048.9 | V166: 10739.6 | W166: 323.5 | X166: -2198.1 | Y166: 1930.2 | Z166: -1239.3 | AA166: 9559.2 | AB166: -2071.2 | AC166: -1417 | AD166: -383.8 | AE166: -1503.9 | AF166: 4155.2 | AG166: 786.8 | AH166: -1571.1 | AI166: 2769.7 | AJ166: -772 | AK166: 16435.8 | AL166: 5548.2 | AM166: -1475.6 | AN166: -1480.7 | AO166: -1613.3
A167: 2021-06-15 | B167: 11478.2 | C167: -2072.2 | D167: -243.8 | E167: 2616.1 | F167: 1962.6 | G167: 3697.3 | H167: -1615.8 | I167: 21478.8 | J167: 83.9 | K167: -1656.6 | L167: 2009.2 | M167: -1816 | N167: -2263 | O167: 4261.7 | P167: -1693.7 | Q167: -444.2 | R167: -2168.8 | S167: -1010.9 | T167: 4406.3 | U167: -56 | V167: 79.9 | W167: 4520.8 | X167: -1221.2 | Y167: 4623.7 | Z167: -1504.8 | AA167: 457 | AB167: -2056.4 | AC167: 17502.7 | AD167: 2092.4 | AE167: 18691.4 | AF167: 386.9 | AG167: -998.4 | AH167: -2117.1 | AI167: -740.3 | AJ167: -1310.6 | AK167: 25765.5 | AL167: 2922.7 | AM167: 2852.2 | AN167: -1565.1 | AO167: 6668.6
A168: 2021-06-16 | B168: -1664.6 | C168: 485.1 | D168: 8964 | E168: 3327.3 | F168: -1566.2 | G168: -1371.5 | H168: 5255.7 | I168: 6601.1 | J168: 4855 | K168: -1184.7 | L168: -385.1 | M168: 27204.5 | N168: -1990.4 | O168: -844.5 | P168: -1927.3 | Q168: -516.1 | R168: -1428.7 | S168: 2394.9 | T168: 1121.9 | U168: -620.1 | V168: -848.6 | W168: 10560 | X168: 3589.4 | Y168: -1196.3 | Z168: 1441.5 | AA168: -1217.5 | AB168: -917 | AC168: -837.8 | AD168: 3763.7 | AE168: 860.1 | AF168: 4581.2 | AG168: 3031.5 | AH168: -2248.8 | AI168: -1664.8 | AJ168: -1480.1 | AK168: 2809.4 | AL168: 14698.3 | AM168: -128.8 | AN168: -1763.3 | AO168: 8784.2
A169: 2021-06-17 | B169: 6407.1 | C169: -380.2 | D169: 301.3 | E169: -881.4 | F169: -1834.1 | G169: 343.4 | H169: 2346.9 | I169: 5980.2 | J169: -994.8 | K169: -1363.1 | L169: -1767.8 | M169: 27294.3 | N169: 817.3 | O169: 4945.6 | P169: -898.6 | Q169: -1807.2 | R169: -2111.7 | S169: 1855.6 | T169: -692.8 | U169: 1346.7 | V169: -2078.1 | W169: 3590.5 | X169: -2283.5 | Y169: 2300.3 | Z169: -2093.7 | AA169: -1551.2 | AB169: 3966.2 | AC169: -11.2 | AD169: 4624.6 | AE169: -2086.6 | AF169: 6851.6 | AG169: 2464.5 | AH169: -992.8 | AI169: -1847.8 | AJ169: -490.8 | AK169: -1121.3 | AL169: 11044.7 | AM169: -1814.9 | AN169: -153.4 | AO169: -2001.1
A170: 2021-06-18 | B170: 2190.1 | C170: 3973.8 | D170: 10372.9 | E170: -932.2 | F170: -1774.7 | G170: -959.3 | H170: 2914.3 | I170: 10506.6 | J170: -2052.3 | K170: -1032.9 | L170: 3302.7 | M170: 4586.4 | N170: -832.7 | O170: -1700 | P170: -2216 | Q170: 4715.5 | R170: -1776.6 | S170: 372.7 | T170: -1004.2 | U170: 992.6 | V170: -2142 | W170: 7778.9 | X170: -2145.1 | Y170: 2573.2 | Z170: -45.3 | AA170: -1307.1 | AB170: -1363 | AC170: 6853.8 | AD170: -683 | AE170: -323.1 | AF170: 20127.1 | AG170: 13845.6 | AH170: -1707 | AI170: -1838.1 | AJ170: -497.9 | AK170: 6808.5 | AL170: 2472.8 | AM170: -1988.1 | AN170: -840.9 | AO170: -1272.1
A171: 2021-06-19 | B171: 471 | C171: 1491.8 | D171: -753.6 | E171: -458.9 | F171: -2022.8 | G171: 6715.8 | H171: 1886.7 | I171: 1537.5 | J171: -744.5 | K171: -1111 | L171: -1621.9 | M171: -553.4 | N171: 13624 | O171: -1699.6 | P171: 1549.4 | Q171: -564.7 | R171: -1768.4 | S171: 6297.6 | T171: -1210.5 | U171: 32.4 | V171: -2083.2 | W171: 2725.4 | X171: -1715.6 | Y171: -1203 | Z171: 2580 | AA171: -2360.9 | AB171: 259.4 | AC171: -2106.4 | AD171: -2073.2 | AE171: 8813.4 | AF171: 10740.6 | AG171: 957.8 | AH171: 465.8 | AI171: -2529.8 | AJ171: -769.5 | AK171: 474.2 | AL171: 3682.2 | AM171: -1884.1 | AN171: -1529.3 | AO171: -1724.2
A172: 2021-06-20 | B172: 868.4 | C172: -1327.1 | D172: -1775.1 | E172: -28.9 | F172: -578.3 | G172: 9735.4 | H172: 2140.8 | I172: 6227.1 | J172: -528.4 | K172: -1277.2 | L172: 14705.3 | M172: 6868.1 | N172: 68.8 | O172: 4734.9 | P172: 5081 | Q172: -2072 | R172: 4458.3 | S172: 3398.8 | T172: -1889.1 | U172: -1523.6 | V172: -1810.6 | W172: -1856 | X172: -527.1 | Y172: -473.3 | Z172: 4058.1 | AA172: -2255.2 | AB172: -1406.6 | AC172: 2366.7 | AD172: -1806.7 | AE172: 1284.6 | AF172: 2872.7 | AG172: -867 | AH172: 5477.4 | AI172: 7469.1 | AJ172: 65.4 | AK172: 3087 | AL172: -478.7 | AM172: -1333.3 | AN172: -1915.1 | AO172: 2318.6
A173: 2021-06-21 | B173: 793.3 | C173: 5424.4 | D173: 1320 | E173: 6334.5 | F173: 5562.8 | G173: -694.6 | H173: 215.2 | I173: 4694.7 | J173: -1288.2 | K173: 2609.8 | L173: 1074.2 | M173: 47.4 | N173: -507.5 | O173: 4430.7 | P173: -1186.5 | Q173: 10616.1 | R173: 11676.2 | S173: 16980.5 | T173: -2001.3 | U173: 12992.9 | V173: -1639.6 | W173: -2159.6 | X173: 2608.5 | Y173: -1461.8 | Z173: -866.6 | AA173: -1933.4 | AB173: 2913.2 | AC173: 13343.1 | AD173: -2085.6 | AE173: 3012.3 | AF173: 897.2 | AG173: -1257.9 | AH173: 4 | AI173: -873.8 | AJ173: -1237 | AK173: 1468.4 | AL173: 1297.8 | AM173: -1203.7 | AN173: -520.3 | AO173: 1348
A174: 2021-06-22 | B174: 4888 | C174: 2854 | D174: 7742 | E174: 3248.4 | F174: 2748.4 | G174: 7817.8 | H174: -320.6 | I174: -736.3 | J174: -637 | K174: 8163 | L174: 5475.8 | M174: -1511.3 | N174: -1451.8 | O174: 7337.9 | P174: -2131 | Q174: 2577.2 | R174: 22944.5 | S174: 16633.5 | T174: 829.8 | U174: 1750.9 | V174: 21.8 | W174: -1839.9 | X174: -1646.2 | Y174: -1468.3 | Z174: 1861.9 | AA174: -1386.8 | AB174: -34.3 | AC174: 3332.5 | AD174: -2125.3 | AE174: 8039.7 | AF174: -1019.3 | AG174: 3213.1 | AH174: -1291.8 | AI174: 2796.1 | AJ174: -1214.4 | AK174: 2087.5 | AL174: -2193.8 | AM174: -1085.3 | AN174: -1091.7 | AO174: 14657.1
A175: 2021-06-23 | B175: 5102.3 | C175: 427.1 | D175: 12565.3 | E175: -1214.1 | F175: 5088.6 | G175: 1222.8 | H175: 4761 | I175: 1979.2 | J175: -247.7 | K175: 9956.3 | L175: 454.2 | M175: 1563.5 | N175: 3523.6 | O175: 13789.1 | P175: -1013.5 | Q175: 2043.6 | R175: 4412.1 | S175: 2923.3 | T175: -1233.9 | U175: -1991.1 | V175: 4581.5 | W175: -1981.5 | X175: -1608.1 | Y175: -1032.4 | Z175: 2079.2 | AA175: -1894.7 | AB175: -946.6 | AC175: -905.8 | AD175: -345.2 | AE175: 12538 | AF175: -1949 | AG175: 1364.6 | AH175: -1730 | AI175: 1731.8 | AJ175: 2537.2 | AK175: 4839.6 | AL175: -2269.7 | AM175: -511.4 | AN175: -1355 | AO175: -452.9
A176: 2021-06-24 | B176: 1475 | C176: 2605.2 | D176: -1653.4 | E176: 1050 | F176: 8185.9 | G176: 3977.6 | H176: -372 | I176: 3169.5 | J176: -1895.4 | K176: 1546.6 | L176: -121.3 | M176: 798.2 | N176: 7461.3 | O176: -467.1 | P176: -1994.6 | Q176: 973.5 | R176: 653.6 | S176: 4824.2 | T176: -1323.2 | U176: -1993.6 | V176: 2804.8 | W176: -2171.9 | X176: 15634.6 | Y176: 1481.4 | Z176: -1852.2 | AA176: 77.3 | AB176: -1588.1 | AC176: -1811.4 | AD176: 82.3 | AE176: 1601.4 | AF176: -2036.7 | AG176: -583.3 | AH176: -1759.4 | AI176: 5812.9 | AJ176: 9081.6 | AK176: -1701.5 | AL176: -1521.7 | AM176: 121.9 | AN176: -1019.4 | AO176: -2397.6
A177: 2021-06-25 | B177: 1597.9 | C177: -169.2 | D177: 1130.8 | E177: 1128.9 | F177: -545.8 | G177: 18.9 | H177: -2129.4 | I177: -644.9 | J177: -744.9 | K177: -1329.2 | L177: -2055 | M177: -1041.5 | N177: 10125 | O177: -1821.3 | P177: -1194.7 | Q177: 1112.7 | R177: -124.3 | S177: -917.4 | T177: 1344.6 | U177: -2155.7 | V177: 1856.3 | W177: -2255.8 | X177: -1673.1 | Y177: 2324.1 | Z177: 75.1 | AA177: 2550.6 | AB177: 2322.4 | AC177: 9098.4 | AD177: 110.7 | AE177: 988 | AF177: -2013.8 | AG177: -1078 | AH177: 7653.2 | AI177: 3426.5 | AJ177: 2285.1 | AK177: -1937.7 | AL177: 5728.2 | AM177: 2592.7 | AN177: -345.9 | AO177: -2441.2
A178: 2021-06-26 | B178: 4065.9 | C178: 3461.9 | D178: 12947 | E178: 35.7 | F178: 96.1 | G178: 1147.5 | H178: -2426.3 | I178: 11705 | J178: 1662.8 | K178: 109.6 | L178: -2134.9 | M178: 3244.3 | N178: 2936.1 | O178: 297.3 | P178: 1119.6 | Q178: -1643 | R178: 611.7 | S178: 7189.8 | T178: 7369.3 | U178: 1301.6 | V178: -762 | W178: -2256.9 | X178: -2207.9 | Y178: 564.1 | Z178: -2066.3 | AA178: -1273.8 | AB178: 290 | AC178: 2617.6 | AD178: 39.2 | AE178: 7487.9 | AF178: -1822.1 | AG178: -1472.3 | AH178: -603.9 | AI178: 249 | AJ178: -1386.5 | AK178: -2137.9 | AL178: 2484.7 | AM178: -596.7 | AN178: -1205.4 | AO178: -2487.3
A179: 2021-06-27 | B179: 5650.9 | C179: -926.2 | D179: 6748.1 | E179: 5260.2 | F179: -1848.7 | G179: -282.1 | H179: -2453.2 | I179: -770.4 | J179: 398.3 | K179: 2548 | L179: 1272.5 | M179: 7918.1 | N179: -1878.6 | O179: 1503.7 | P179: 9867.9 | Q179: -1984.1 | R179: -1125.2 | S179: 7524.6 | T179: 4011.3 | U179: 2384.4 | V179: -1689.4 | W179: 7088.3 | X179: 736.4 | Y179: 721.3 | Z179: 11.1 | AA179: -477.4 | AB179: 1255.5 | AC179: 3790.6 | AD179: -1508.4 | AE179: 10475.5 | AF179: -2145.1 | AG179: -1734.4 | AH179: -1359 | AI179: 692.6 | AJ179: -1310.1 | AK179: 3024.4 | AL179: -405.1 | AM179: 699.4 | AN179: -910.7 | AO179: -2477.1
A180: 2021-06-28 | B180: 9539 | C180: -143.2 | D180: 200.3 | E180: 2559.9 | F180: 8237.6 | G180: -899.1 | H180: -2367.9 | I180: -1937.2 | J180: 914.4 | K180: 2992.8 | L180: 2434.3 | M180: 5138.7 | N180: -2309.4 | O180: -1552.8 | P180: -619.8 | Q180: -2248.5 | R180: -1400.8 | S180: -24.8 | T180: 4941.1 | U180: 3585.9 | V180: 1152.7 | W180: 11845.9 | X180: 7548.8 | Y180: -11.9 | Z180: 589.9 | AA180: -1439.5 | AB180: 5530.9 | AC180: -770.4 | AD180: -1684.8 | AE180: 862.9 | AF180: -2098.1 | AG180: -1693.5 | AH180: -1167.3 | AI180: -667.1 | AJ180: 1323 | AK180: -1937.1 | AL180: -1765.5 | AM180: 14484 | AN180: 2447 | AO180: -2725.3
A181: 2021-06-29 | B181: 14658.5 | C181: 7972.4 | D181: 5352.8 | E181: -1677.6 | F181: 2591.2 | G181: -1712.5 | H181: -1923.1 | I181: -2187 | J181: 151 | K181: 683.4 | L181: -1479.2 | M181: 1327.7 | N181: -1941.6 | O181: -1601 | P181: 5553.2 | Q181: -2463.4 | R181: 1362 | S181: 4722.2 | T181: -1448.1 | U181: -984.2 | V181: -1311.9 | W181: -1808.3 | X181: -1337.8 | Y181: -1038 | Z181: -1956.5 | AA181: 6823.7 | AB181: 4443.8 | AC181: -1675.6 | AD181: 524.9 | AE181: 3237.6 | AF181: -1145.6 | AG181: 13524.2 | AH181: -661.4 | AI181: 9609.7 | AJ181: 10962.7 | AK181: -1870.9 | AL181: -277 | AM181: 8351.2 | AN181: -181.8 | AO181: -2521
A182: 2021-06-30 | B182: -1099.8 | C182: -954.3 | D182: -908.9 | E182: -1401.8 | F182: -1462.1 | G182: -1372.2 | H182: -2191.5 | I182: -1861.4 | J182: -1262.1 | K182: 2402.8 | L182: -919.1 | M182: -1824.7 | N182: -837.6 | O182: -157.7 | P182: -541.8 | Q182: -2350.9 | R182: 699.5 | S182: 9536.9 | T182: -1132.1 | U182: 3055.1 | V182: -1507.8 | W182: 1442.1 | X182: -1939.8 | Y182: -794.6 | Z182: -2105.5 | AA182: 153.6 | AB182: -1400.2 | AC182: -1574 | AD182: 392 | AE182: 1822.9 | AF182: -1150.2 | AG182: 9364.2 | AH182: -1249.4 | AI182: 212.7 | AJ182: 2728.9 | AK182: -2357.9 | AL182: 6536 | AM182: -246.4 | AN182: -1276.4 | AO182: -2271.6
A183: 2021-07-01 | B183: 4404.6 | C183: -1691.7 | D183: -1809.2 | E183: 5724.9 | F183: -1306 | G183: 9725.9 | H183: -2133.3 | I183: 18197.7 | J183: 4139.9 | K183: 4477.1 | L183: 9024.7 | M183: -2217.9 | N183: 877.7 | O183: -1291.6 | P183: -1748.8 | Q183: 316.7 | R183: 2475.6 | S183: 188.1 | T183: 4094 | U183: -1515.6 | V183: -124.9 | W183: 1118.3 | X183: -1851.3 | Y183: 10861.5 | Z183: -632.2 | AA183: 8534.6 | AB183: -1941.2 | AC183: -605.8 | AD183: -1543.4 | AE183: 1810.9 | AF183: -1950.3 | AG183: 2100.7 | AH183: 21192.2 | AI183: -2041.8 | AJ183: -1422 | AK183: -2387 | AL183: -948.6 | AM183: -640 | AN183: -1357.5 | AO183: 1861.7
A184: 2021-07-02 | B184: 8419.3 | C184: -1480.4 | D184: -1282.6 | E184: -1388.5 | F184: 7561.3 | G184: 351.6 | H184: -2132.6 | I184: 6822.2 | J184: 1644 | K184: 12842 | L184: -1289.9 | M184: -2204.3 | N184: 4275.4 | O184: 2040 | P184: -1367.7 | Q184: 1413.8 | R184: 1240.8 | S184: 296.1 | T184: 14103 | U184: -1928.9 | V184: 2743.1 | W184: -1726 | X184: 3287.2 | Y184: -226.7 | Z184: 2759 | AA184: 393 | AB184: -2050.8 | AC184: 13765.8 | AD184: -1538.2 | AE184: 2136.6 | AF184: -1492.2 | AG184: 1.2 | AH184: 5281.1 | AI184: -1161.9 | AJ184: 7779.6 | AK184: -2345.7 | AL184: 7929.3 | AM184: 4198.1 | AN184: -119.2 | AO184: 1880.4
A185: 2021-07-03 | B185: 6759 | C185: 14570.7 | D185: 1037.3 | E185: -1764 | F185: 2473.8 | G185: -2200.8 | H185: 283.7 | I185: 3552.1 | J185: 7902.4 | K185: 5945.9 | L185: 13346.5 | M185: -1977.9 | N185: -1255 | O185: -491 | P185: -1952.7 | Q185: 10168.3 | R185: -1795.6 | S185: 4836.3 | T185: 6747.3 | U185: -1901.5 | V185: 12167.5 | W185: -2103.2 | X185: 958.7 | Y185: 7125.4 | Z185: -1131.3 | AA185: -1617.8 | AB185: -1637 | AC185: 9941.5 | AD185: 6465.5 | AE185: 8985.1 | AF185: -284.7 | AG185: -1169.9 | AH185: 10301.7 | AI185: 9678.8 | AJ185: -1928 | AK185: -1841.6 | AL185: -1473.6 | AM185: -549.1 | AN185: 2336.4 | AO185: -1619.2
A186: 2021-07-04 | B186: -699.1 | C186: -312.5 | D186: 14310 | E186: -1365 | F186: 337.7 | G186: 5375.1 | H186: -759.2 | I186: -146.7 | J186: 1901 | K186: 811.2 | L186: 2297.8 | M186: -1618.6 | N186: 10292.5 | O186: -1572.9 | P186: 2448.5 | Q186: -1332.7 | R186: -456.1 | S186: 8266.5 | T186: -908.8 | U186: -1943.6 | V186: 4426.8 | W186: -1639.1 | X186: 3014.8 | Y186: 5744.9 | Z186: -1791.8 | AA186: 7368.4 | AB186: -1565.9 | AC186: 8829.9 | AD186: -1049.4 | AE186: 7226 | AF186: 11612.5 | AG186: -1588.5 | AH186: -859.8 | AI186: 528.1 | AJ186: 4975.1 | AK186: -2065.5 | AL186: -1829.7 | AM186: -1560.9 | AN186: 565.9 | AO186: -2105.3
A187: 2021-07-05 | B187: -914.9 | C187: -1396.3 | D187: -2050.5 | E187: 2431.1 | F187: -895.6 | G187: 10288.1 | H187: -1654.2 | I187: -1850.7 | J187: 3659.3 | K187: -682.8 | L187: 9870.1 | M187: -1632.1 | N187: 9201.5 | O187: 12905.1 | P187: 6426.8 | Q187: -1286.6 | R187: 7856.1 | S187: 22297.9 | T187: -327.9 | U187: 4593.3 | V187: -1172.8 | W187: -1925.6 | X187: -1598.8 | Y187: 203 | Z187: 5392.2 | AA187: 5855.1 | AB187: 3055.4 | AC187: 4722.1 | AD187: -1771.6 | AE187: 5910.8 | AF187: -82.1 | AG187: -1115 | AH187: 1823.5 | AI187: -379.1 | AJ187: 2260.2 | AK187: -1921.1 | AL187: -1018.1 | AM187: -1499.2 | AN187: 6891 | AO187: -2043.4
A188: 2021-07-06 | B188: 48.3 | C188: 725.6 | D188: -1717.8 | E188: -339.5 | F188: -1503 | G188: 8450.6 | H188: 14624.1 | I188: -1669.3 | J188: 11748.5 | K188: -1811.3 | L188: 1557.1 | M188: -976.9 | N188: 674.8 | O188: 8758.1 | P188: 8918.2 | Q188: -1589.1 | R188: 8434.7 | S188: 6645 | T188: -1312.5 | U188: 16646.5 | V188: -1770.1 | W188: -1728.1 | X188: 12933 | Y188: -831.4 | Z188: 7897.1 | AA188: 3135 | AB188: 5484.2 | AC188: -30.3 | AD188: 9068 | AE188: 6247.4 | AF188: -942.5 | AG188: -1252 | AH188: 5283.2 | AI188: -1986.5 | AJ188: 78.6 | AK188: -442.9 | AL188: -1719.4 | AM188: -1730.4 | AN188: 6530.1 | AO188: 1137.9
A189: 2021-07-07 | B189: 5938 | C189: -1324.5 | D189: -1612.3 | E189: 8432.7 | F189: -1910.4 | G189: 1705 | H189: 4340.9 | I189: 6088 | J189: 3672.7 | K189: 2756.2 | L189: 2478.3 | M189: 1388.4 | N189: 5345.5 | O189: -1481.5 | P189: 2212.4 | Q189: -2141.1 | R189: 10910.4 | S189: -136 | T189: 4227.1 | U189: 5564.3 | V189: 7295.4 | W189: 16625.1 | X189: -965.1 | Y189: -1188.8 | Z189: 202.5 | AA189: 6223.7 | AB189: 4606.7 | AC189: -1715.1 | AD189: 3838.3 | AE189: 3846 | AF189: -2221.4 | AG189: 4161.4 | AH189: 247.9 | AI189: -1630.4 | AJ189: 10793.7 | AK189: 90.6 | AL189: -2279.8 | AM189: 737 | AN189: -956.1 | AO189: 13044.2
A190: 2021-07-08 | B190: 17867 | C190: -1557.8 | D190: -2087 | E190: 7219.5 | F190: -1871.5 | G190: -1881.9 | H190: 1493.4 | I190: 12057.4 | J190: 2965.2 | K190: 4962.3 | L190: 4716.5 | M190: -90.4 | N190: -759.4 | O190: -1602.5 | P190: -255.1 | Q190: -1781.9 | R190: 42753.5 | S190: -1013.2 | T190: 3582.2 | U190: 1638.6 | V190: 4274.8 | W190: 1777.5 | X190: -1988.3 | Y190: -1265.5 | Z190: 16405 | AA190: 4653.2 | AB190: 1947.2 | AC190: 1685.2 | AD190: -224.9 | AE190: 2801.5 | AF190: -2228 | AG190: 11164.1 | AH190: 1621.9 | AI190: -2032.9 | AJ190: 10017.7 | AK190: 3529.9 | AL190: -2218.3 | AM190: 826 | AN190: -1170.5 | AO190: 1793.3
A191: 2021-07-09 | B191: 13632 | C191: -1442.7 | D191: -1908.8 | E191: 1058.9 | F191: -1940.5 | G191: -1863.5 | H191: 168.1 | I191: 2913.6 | J191: -581.8 | K191: 6315.2 | L191: 461.5 | M191: 4424.6 | N191: 496.6 | O191: -1556.9 | P191: 1386.9 | Q191: -1377.8 | R191: 1192.7 | S191: -1753.2 | T191: 27 | U191: 1929.1 | V191: 5839.4 | W191: -1081.1 | X191: -199.6 | Y191: -798.4 | Z191: 8328.6 | AA191: -1144.3 | AB191: -1536.7 | AC191: 17635.9 | AD191: -969.8 | AE191: 1062.4 | AF191: -2041.8 | AG191: 608.9 | AH191: -470.6 | AI191: -1224.3 | AJ191: 10801 | AK191: -1020.2 | AL191: -2025.9 | AM191: 630.2 | AN191: -1515.8 | AO191: -1673.8
A192: 2021-07-10 | B192: 6005.1 | C192: 5245.4 | D192: 2140 | E192: -2153.3 | F192: -1921.9 | G192: -507.7 | H192: -307.2 | I192: -2028 | J192: -1897.4 | K192: 4506 | L192: 1228.6 | M192: -2053.5 | N192: 5371.9 | O192: 26331.1 | P192: -1982.4 | Q192: -1060.2 | R192: 8221.7 | S192: 1881.8 | T192: 715.7 | U192: 8421.5 | V192: 16304.7 | W192: -1394.2 | X192: 4836.3 | Y192: -1191.3 | Z192: 3014 | AA192: 10724.8 | AB192: -1600.4 | AC192: 3579.1 | AD192: -1761.1 | AE192: -549.5 | AF192: -274.8 | AG192: 2963.2 | AH192: 1962.1 | AI192: -2001.1 | AJ192: 5135.2 | AK192: -1909.5 | AL192: -2044.3 | AM192: 4885.3 | AN192: 339.4 | AO192: -1912.9
A193: 2021-07-11 | B193: 1584.6 | C193: 6918 | D193: -1971.2 | E193: -1688.7 | F193: -1484.7 | G193: -1293.4 | H193: 1286.8 | I193: -2248 | J193: -1535.9 | K193: 19186 | L193: -1575.9 | M193: -1954.5 | N193: 8716.1 | O193: 20195.4 | P193: -2265.6 | Q193: 5918.4 | R193: -303.5 | S193: 3568.2 | T193: -270.7 | U193: 8840.2 | V193: 4498.6 | W193: 238.2 | X193: -404.3 | Y193: -1173.1 | Z193: 1863.3 | AA193: 6831.5 | AB193: -1867.6 | AC193: 2550.4 | AD193: 1654.9 | AE193: -1337 | AF193: 668.2 | AG193: -1375.2 | AH193: 2323.2 | AI193: -1654.9 | AJ193: 9916.8 | AK193: -1909.6 | AL193: 4800.5 | AM193: 2148.2 | AN193: -563.7 | AO193: 465.3
A194: 2021-07-12 | B194: 1919.7 | C194: 2264 | D194: -1576.3 | E194: -1917.4 | F194: 13450.3 | G194: -1684.1 | H194: -513.4 | I194: 2253.7 | J194: 7595.4 | K194: 401 | L194: -2233.1 | M194: 6023.3 | N194: 4979.9 | O194: 6921.7 | P194: -1918.6 | Q194: 439.5 | R194: -1139.2 | S194: 190.6 | T194: -1170.6 | U194: 6781.4 | V194: 3723 | W194: -93.6 | X194: -1391.3 | Y194: -801 | Z194: 2899.1 | AA194: -572.9 | AB194: 1100.7 | AC194: -238.6 | AD194: 10018.1 | AE194: 381 | AF194: 2009.2 | AG194: -953.9 | AH194: -817.1 | AI194: -2079.3 | AJ194: 5729 | AK194: -1713.9 | AL194: 29005.6 | AM194: 1323.6 | AN194: -1022.3 | AO194: 5409.2
A195: 2021-07-13 | B195: 5159.9 | C195: 1724.4 | D195: -1570.9 | E195: 2029 | F195: 2265.7 | G195: -1859.9 | H195: -983.8 | I195: -1350.2 | J195: 1148 | K195: -876 | L195: -2211.8 | M195: 5556.4 | N195: -885.9 | O195: 304.1 | P195: -978.9 | Q195: -935.4 | R195: -1685 | S195: 578.9 | T195: 5244.3 | U195: 5268.8 | V195: 3819 | W195: 4949.3 | X195: 9263.3 | Y195: -1091.9 | Z195: 3424.3 | AA195: -2030.8 | AB195: 377.9 | AC195: -1931.2 | AD195: 21353.2 | AE195: -754.1 | AF195: -1243.7 | AG195: 20955.2 | AH195: 5053.5 | AI195: -1912.8 | AJ195: 2778.9 | AK195: -809.5 | AL195: 10869.1 | AM195: -281.2 | AN195: -1054.9 | AO195: 1545
A196: 2021-07-14 | B196: 6166.4 | C196: -851.7 | D196: -648.5 | E196: -543.7 | F196: -1229.6 | G196: -2227.2 | H196: -1788.3 | I196: 16.9 | J196: 3778.2 | K196: -467.3 | L196: -2062.9 | M196: 12196.8 | N196: -1639.1 | O196: 4742.9 | P196: 1139.8 | Q196: 1510.9 | R196: -1848.8 | S196: 7308.2 | T196: 515.6 | U196: 9337.1 | V196: 15317.5 | W196: 3173.2 | X196: 823.8 | Y196: -1028.1 | Z196: -916.6 | AA196: -2083.8 | AB196: 3074.7 | AC196: -2219.9 | AD196: 13868.3 | AE196: -325.6 | AF196: -1292 | AG196: 684.7 | AH196: -945.4 | AI196: -2073.2 | AJ196: 3075.3 | AK196: -1109.9 | AL196: 6853.1 | AM196: 2936 | AN196: -856.8 | AO196: 3142.1
A197: 2021-07-15 | B197: 12407.2 | C197: 139.4 | D197: 1492.2 | E197: -2031.4 | F197: 13802.7 | G197: 3867.6 | H197: -1888.7 | I197: 2601.2 | J197: 5424 | K197: -1668.8 | L197: -2190 | M197: -1346.1 | N197: -547.2 | O197: 7896 | P197: 1481.1 | Q197: 322.2 | R197: -1765.7 | S197: 3609.1 | T197: -1092.2 | U197: 998.5 | V197: 6213.7 | W197: 27392.9 | X197: 4042.7 | Y197: -398.3 | Z197: 191.5 | AA197: -1502.7 | AB197: -1620.2 | AC197: -2283.7 | AD197: -1724.4 | AE197: 9035.4 | AF197: 843.4 | AG197: -1085.3 | AH197: 3988.8 | AI197: -1953.1 | AJ197: -1360.3 | AK197: -1445.9 | AL197: 759.7 | AM197: 13.4 | AN197: 3465.9 | AO197: 155.7
A198: 2021-07-16 | B198: 2870.9 | C198: -586.7 | D198: 2505.6 | E198: -2062.7 | F198: 1084 | G198: 8903.2 | H198: -1933.1 | I198: 1739.5 | J198: 3185.8 | K198: -1645.5 | L198: -2030.5 | M198: -1821.8 | N198: -299.5 | O198: 4320 | P198: -1761.9 | Q198: 6344.9 | R198: -462.6 | S198: -1953.7 | T198: 5182.9 | U198: -471.4 | V198: 3271.5 | W198: 6744.9 | X198: 16921.2 | Y198: 3400.9 | Z198: -1568.5 | AA198: 1319 | AB198: -1813.5 | AC198: -2433.2 | AD198: -2037.9 | AE198: 831.4 | AF198: -388 | AG198: -1787.9 | AH198: -1313.7 | AI198: -2009.2 | AJ198: -1837 | AK198: -1397.3 | AL198: -1849.9 | AM198: -1426.4 | AN198: 254.9 | AO198: -1680.4
A199: 2021-07-17 | B199: -1379.3 | C199: 4512.1 | D199: 8952.8 | E199: -1995.6 | F199: 851.7 | G199: -1064.6 | H199: -1776.8 | I199: 6417.1 | J199: 182.1 | K199: -966.5 | L199: 2592.3 | M199: 5834.3 | N199: -1047.2 | O199: 7461 | P199: -1526 | Q199: -1328.8 | R199: -2028.5 | S199: 2712.6 | T199: -344.8 | U199: -2122.1 | V199: -892.6 | W199: -153.3 | X199: 19647 | Y199: 3782.3 | Z199: 1929.3 | AA199: -2054.9 | AB199: -1689 | AC199: -1841.8 | AD199: 9285.9 | AE199: 25040.2 | AF199: 18019.4 | AG199: 15902.8 | AH199: -1511.5 | AI199: -1313 | AJ199: -2116.4 | AK199: -540.6 | AL199: -1705.8 | AM199: -1458.1 | AN199: 530.9 | AO199: -1853.6
A200: 2021-07-18 | B200: -1029.1 | C200: 29543.4 | D200: 2491.9 | E200: -764.9 | F200: -1232 | G200: -1355.4 | H200: 11422.4 | I200: 18605.1 | J200: -86.2 | K200: 3094.5 | L200: -1575.6 | M200: -1381.7 | N200: 62.9 | O200: 17278.6 | P200: 4023.7 | Q200: -1002.1 | R200: -2070.6 | S200: 15367.2 | T200: -805.1 | U200: -1524.3 | V200: -1434.3 | W200: 4431.2 | X200: 1406.1 | Y200: -1107.5 | Z200: -519.4 | AA200: 2980 | AB200: -1554 | AC200: 942.7 | AD200: 204.6 | AE200: 10847.3 | AF200: -772.8 | AG200: -304.1 | AH200: -2048.7 | AI200: -1049.2 | AJ200: -2213.7 | AK200: 2734.2 | AL200: -1774.1 | AM200: -459.7 | AN200: -1065.8 | AO200: -1602.5
... 166 more rows

Sheet Data_Clim_Fig_Dev
B3: =+Data_Clim_Fig_Nom!B3 -> 1980 | C3: =+Data_Clim_Fig_Nom!C3 -> 1981 | D3: =+Data_Clim_Fig_Nom!D3 -> 1982 | E3: =+Data_Clim_Fig_Nom!E3 -> 1983 | F3: =+Data_Clim_Fig_Nom!F3 -> 1984 | G3: =+Data_Clim_Fig_Nom!G3 -> 1985 | H3: =+Data_Clim_Fig_Nom!H3 -> 1986 | I3: =+Data_Clim_Fig_Nom!I3 -> 1987 | J3: =+Data_Clim_Fig_Nom!J3 -> 1988 | K3: =+Data_Clim_Fig_Nom!K3 -> 1989 | L3: =+Data_Clim_Fig_Nom!L3 -> 1990 | M3: =+Data_Clim_Fig_Nom!M3 -> 1991 | N3: =+Data_Clim_Fig_Nom!N3 -> 1992 | O3: =+Data_Clim_Fig_Nom!O3 -> 1993 | P3: =+Data_Clim_Fig_Nom!P3 -> 1994 | Q3: =+Data_Clim_Fig_Nom!Q3 -> 1995 | R3: =+Data_Clim_Fig_Nom!R3 -> 1996 | S3: =+Data_Clim_Fig_Nom!S3 -> 1997 | T3: =+Data_Clim_Fig_Nom!T3 -> 1998 | U3: =+Data_Clim_Fig_Nom!U3 -> 1999 | V3: =+Data_Clim_Fig_Nom!V3 -> 2000 | W3: =+Data_Clim_Fig_Nom!W3 -> 2001 | X3: =+Data_Clim_Fig_Nom!X3 -> 2002 | Y3: =+Data_Clim_Fig_Nom!Y3 -> 2003 | Z3: =+Data_Clim_Fig_Nom!Z3 -> 2004 | AA3: =+Data_Clim_Fig_Nom!AA3 -> 2005 | AB3: =+Data_Clim_Fig_Nom!AB3 -> 2006 | AC3: =+Data_Clim_Fig_Nom!AC3 -> 2007 | AD3: =+Data_Clim_Fig_Nom!AD3 -> 2008 | AE3: =+Data_Clim_Fig_Nom!AE3 -> 2009 | AF3: =+Data_Clim_Fig_Nom!AF3 -> 2010 | AG3: =+Data_Clim_Fig_Nom!AG3 -> 2011 | AH3: =+Data_Clim_Fig_Nom!AH3 -> 2012 | AI3: =+Data_Clim_Fig_Nom!AI3 -> 2013 | AJ3: =+Data_Clim_Fig_Nom!AJ3 -> 2014 | AK3: =+Data_Clim_Fig_Nom!AK3 -> 2015 | AL3: =+Data_Clim_Fig_Nom!AL3 -> 2016 | AM3: =+Data_Clim_Fig_Nom!AM3 -> 2017 | AN3: =+Data_Clim_Fig_Nom!AN3 -> 2018 | AO3: =+Data_Clim_Fig_Nom!AO3 -> 2019 | AP3: =+Data_Clim_Fig_Nom!AP3 -> B 2021 | AQ3: Average
A4: =+Data_Clim!A2 -> 2021-01-01 | B4: =+Data_Clim_Fig_Nom!B4-Data_Clim_Fig_Nom!$AQ4 -> -1710.41 | C4: =+Data_Clim_Fig_Nom!C4-Data_Clim_Fig_Nom!$AQ4 -> 840.29 | D4: =+Data_Clim_Fig_Nom!D4-Data_Clim_Fig_Nom!$AQ4 -> 3108.69 | E4: =+Data_Clim_Fig_Nom!E4-Data_Clim_Fig_Nom!$AQ4 -> -2254.71 | F4: =+Data_Clim_Fig_Nom!F4-Data_Clim_Fig_Nom!$AQ4 -> -2391.21 | G4: =+Data_Clim_Fig_Nom!G4-Data_Clim_Fig_Nom!$AQ4 -> 1353.79 | H4: =+Data_Clim_Fig_Nom!H4-Data_Clim_Fig_Nom!$AQ4 -> -1987.01 | I4: =+Data_Clim_Fig_Nom!I4-Data_Clim_Fig_Nom!$AQ4 -> 10527.59 | J4: =+Data_Clim_Fig_Nom!J4-Data_Clim_Fig_Nom!$AQ4 -> -510.41 | K4: =+Data_Clim_Fig_Nom!K4-Data_Clim_Fig_Nom!$AQ4 -> -2218.61 | L4: =+Data_Clim_Fig_Nom!L4-Data_Clim_Fig_Nom!$AQ4 -> -1897.21 | M4: =+Data_Clim_Fig_Nom!M4-Data_Clim_Fig_Nom!$AQ4 -> 953.29 | N4: =+Data_Clim_Fig_Nom!N4-Data_Clim_Fig_Nom!$AQ4 -> -2315.51 | O4: =+Data_Clim_Fig_Nom!O4-Data_Clim_Fig_Nom!$AQ4 -> -746.41 | P4: =+Data_Clim_Fig_Nom!P4-Data_Clim_Fig_Nom!$AQ4 -> 8843.19 | Q4: =+Data_Clim_Fig_Nom!Q4-Data_Clim_Fig_Nom!$AQ4 -> 1707.19 | R4: =+Data_Clim_Fig_Nom!R4-Data_Clim_Fig_Nom!$AQ4 -> -1747.21 | S4: =+Data_Clim_Fig_Nom!S4-Data_Clim_Fig_Nom!$AQ4 -> -1843.91 | T4: =+Data_Clim_Fig_Nom!T4-Data_Clim_Fig_Nom!$AQ4 -> -1651.61 | U4: =+Data_Clim_Fig_Nom!U4-Data_Clim_Fig_Nom!$AQ4 -> -2239.21 | V4: =+Data_Clim_Fig_Nom!V4-Data_Clim_Fig_Nom!$AQ4 -> 360.39 | W4: =+Data_Clim_Fig_Nom!W4-Data_Clim_Fig_Nom!$AQ4 -> -2136.01 | X4: =+Data_Clim_Fig_Nom!X4-Data_Clim_Fig_Nom!$AQ4 -> -2219.21 | Y4: =+Data_Clim_Fig_Nom!Y4-Data_Clim_Fig_Nom!$AQ4 -> 169.09 | Z4: =+Data_Clim_Fig_Nom!Z4-Data_Clim_Fig_Nom!$AQ4 -> -1355.61 | AA4: =+Data_Clim_Fig_Nom!AA4-Data_Clim_Fig_Nom!$AQ4 -> -159.71 | AB4: =+Data_Clim_Fig_Nom!AB4-Data_Clim_Fig_Nom!$AQ4 -> 2548.39 | AC4: =+Data_Clim_Fig_Nom!AC4-Data_Clim_Fig_Nom!$AQ4 -> 9486.49 | AD4: =+Data_Clim_Fig_Nom!AD4-Data_Clim_Fig_Nom!$AQ4 -> -2069.01 | AE4: =+Data_Clim_Fig_Nom!AE4-Data_Clim_Fig_Nom!$AQ4 -> -1553.41 | AF4: =+Data_Clim_Fig_Nom!AF4-Data_Clim_Fig_Nom!$AQ4 -> 2005.59 | AG4: =+Data_Clim_Fig_Nom!AG4-Data_Clim_Fig_Nom!$AQ4 -> -1926.71 | AH4: =+Data_Clim_Fig_Nom!AH4-Data_Clim_Fig_Nom!$AQ4 -> -964.01 | AI4: =+Data_Clim_Fig_Nom!AI4-Data_Clim_Fig_Nom!$AQ4 -> 1450.99 | AJ4: =+Data_Clim_Fig_Nom!AJ4-Data_Clim_Fig_Nom!$AQ4 -> -1428.91 | AK4: =+Data_Clim_Fig_Nom!AK4-Data_Clim_Fig_Nom!$AQ4 -> -1920.91 | AL4: =+Data_Clim_Fig_Nom!AL4-Data_Clim_Fig_Nom!$AQ4 -> -1230.11 | AM4: =+Data_Clim_Fig_Nom!AM4-Data_Clim_Fig_Nom!$AQ4 -> -2163.11 | AN4: =+Data_Clim_Fig_Nom!AN4-Data_Clim_Fig_Nom!$AQ4 -> 731.39 | AO4: =+Data_Clim_Fig_Nom!AO4-Data_Clim_Fig_Nom!$AQ4 -> -1446.21 | AP4: =+Data_Clim_Fig_Nom!AP4-Data_Clim_Fig_Nom!$AQ4 -> -291.61 | AQ4: =+AVERAGE(B4:AO4) -> 3.296918294e-13
A5: =+Data_Clim!A3 -> 2021-01-02 | B5: =+Data_Clim_Fig_Nom!B5-Data_Clim_Fig_Nom!$AQ5 -> -568.6375 | C5: =+Data_Clim_Fig_Nom!C5-Data_Clim_Fig_Nom!$AQ5 -> 7652.6625 | D5: =+Data_Clim_Fig_Nom!D5-Data_Clim_Fig_Nom!$AQ5 -> -2842.1375 | E5: =+Data_Clim_Fig_Nom!E5-Data_Clim_Fig_Nom!$AQ5 -> 571.4625 | F5: =+Data_Clim_Fig_Nom!F5-Data_Clim_Fig_Nom!$AQ5 -> -3394.8375 | G5: =+Data_Clim_Fig_Nom!G5-Data_Clim_Fig_Nom!$AQ5 -> 2518.1625 | H5: =+Data_Clim_Fig_Nom!H5-Data_Clim_Fig_Nom!$AQ5 -> -61.5375 | I5: =+Data_Clim_Fig_Nom!I5-Data_Clim_Fig_Nom!$AQ5 -> 2767.9625 | J5: =+Data_Clim_Fig_Nom!J5-Data_Clim_Fig_Nom!$AQ5 -> -691.8375 | K5: =+Data_Clim_Fig_Nom!K5-Data_Clim_Fig_Nom!$AQ5 -> -3342.7375 | L5: =+Data_Clim_Fig_Nom!L5-Data_Clim_Fig_Nom!$AQ5 -> -3279.1375 | M5: =+Data_Clim_Fig_Nom!M5-Data_Clim_Fig_Nom!$AQ5 -> 3349.5625 | N5: =+Data_Clim_Fig_Nom!N5-Data_Clim_Fig_Nom!$AQ5 -> -3353.7375 | O5: =+Data_Clim_Fig_Nom!O5-Data_Clim_Fig_Nom!$AQ5 -> -3326.2375 | P5: =+Data_Clim_Fig_Nom!P5-Data_Clim_Fig_Nom!$AQ5 -> 3141.1625 | Q5: =+Data_Clim_Fig_Nom!Q5-Data_Clim_Fig_Nom!$AQ5 -> 6632.5625 | R5: =+Data_Clim_Fig_Nom!R5-Data_Clim_Fig_Nom!$AQ5 -> -3217.6375 | S5: =+Data_Clim_Fig_Nom!S5-Data_Clim_Fig_Nom!$AQ5 -> -2570.2375 | T5: =+Data_Clim_Fig_Nom!T5-Data_Clim_Fig_Nom!$AQ5 -> 2548.3625 | U5: =+Data_Clim_Fig_Nom!U5-Data_Clim_Fig_Nom!$AQ5 -> -2088.8375 | V5: =+Data_Clim_Fig_Nom!V5-Data_Clim_Fig_Nom!$AQ5 -> -2876.1375 | W5: =+Data_Clim_Fig_Nom!W5-Data_Clim_Fig_Nom!$AQ5 -> 4435.3625 | X5: =+Data_Clim_Fig_Nom!X5-Data_Clim_Fig_Nom!$AQ5 -> -3270.4375 | Y5: =+Data_Clim_Fig_Nom!Y5-Data_Clim_Fig_Nom!$AQ5 -> 5010.0625 | Z5: =+Data_Clim_Fig_Nom!Z5-Data_Clim_Fig_Nom!$AQ5 -> -1972.0375 | AA5: =+Data_Clim_Fig_Nom!AA5-Data_Clim_Fig_Nom!$AQ5 -> 1213.9625 | AB5: =+Data_Clim_Fig_Nom!AB5-Data_Clim_Fig_Nom!$AQ5 -> -994.0375 | AC5: =+Data_Clim_Fig_Nom!AC5-Data_Clim_Fig_Nom!$AQ5 -> 6725.0625 | AD5: =+Data_Clim_Fig_Nom!AD5-Data_Clim_Fig_Nom!$AQ5 -> -3343.8375 | AE5: =+Data_Clim_Fig_Nom!AE5-Data_Clim_Fig_Nom!$AQ5 -> -3100.6375 | AF5: =+Data_Clim_Fig_Nom!AF5-Data_Clim_Fig_Nom!$AQ5 -> -1783.4375 | AG5: =+Data_Clim_Fig_Nom!AG5-Data_Clim_Fig_Nom!$AQ5 -> -2380.6375 | AH5: =+Data_Clim_Fig_Nom!AH5-Data_Clim_Fig_Nom!$AQ5 -> 4031.2625 | AI5: =+Data_Clim_Fig_Nom!AI5-Data_Clim_Fig_Nom!$AQ5 -> -2397.4375 | AJ5: =+Data_Clim_Fig_Nom!AJ5-Data_Clim_Fig_Nom!$AQ5 -> 94.3625 | AK5: =+Data_Clim_Fig_Nom!AK5-Data_Clim_Fig_Nom!$AQ5 -> -420.0375 | AL5: =+Data_Clim_Fig_Nom!AL5-Data_Clim_Fig_Nom!$AQ5 -> 3148.8625 | AM5: =+Data_Clim_Fig_Nom!AM5-Data_Clim_Fig_Nom!$AQ5 -> -1365.5375 | AN5: =+Data_Clim_Fig_Nom!AN5-Data_Clim_Fig_Nom!$AQ5 -> -208.7375 | AO5: =+Data_Clim_Fig_Nom!AO5-Data_Clim_Fig_Nom!$AQ5 -> -990.3375 | AP5: =+Data_Clim_Fig_Nom!AP5-Data_Clim_Fig_Nom!$AQ5 -> -2239.7375 | AQ5: 6.821210263e-14
A6: =+Data_Clim!A4 -> 2021-01-03 | B6: =+Data_Clim_Fig_Nom!B6-Data_Clim_Fig_Nom!$AQ6 -> -309.4625 | C6: =+Data_Clim_Fig_Nom!C6-Data_Clim_Fig_Nom!$AQ6 -> 11562.7375 | D6: =+Data_Clim_Fig_Nom!D6-Data_Clim_Fig_Nom!$AQ6 -> -1855.5625 | E6: =+Data_Clim_Fig_Nom!E6-Data_Clim_Fig_Nom!$AQ6 -> 1828.6375 | F6: =+Data_Clim_Fig_Nom!F6-Data_Clim_Fig_Nom!$AQ6 -> 3173.6375 | G6: =+Data_Clim_Fig_Nom!G6-Data_Clim_Fig_Nom!$AQ6 -> 932.3375 | H6: =+Data_Clim_Fig_Nom!H6-Data_Clim_Fig_Nom!$AQ6 -> -1966.6625 | I6: =+Data_Clim_Fig_Nom!I6-Data_Clim_Fig_Nom!$AQ6 -> 1105.9375 | J6: =+Data_Clim_Fig_Nom!J6-Data_Clim_Fig_Nom!$AQ6 -> 1405.8375 | K6: =+Data_Clim_Fig_Nom!K6-Data_Clim_Fig_Nom!$AQ6 -> -2196.9625 | L6: =+Data_Clim_Fig_Nom!L6-Data_Clim_Fig_Nom!$AQ6 -> -2131.0625 | M6: =+Data_Clim_Fig_Nom!M6-Data_Clim_Fig_Nom!$AQ6 -> -1377.2625 | N6: =+Data_Clim_Fig_Nom!N6-Data_Clim_Fig_Nom!$AQ6 -> -2223.6625 | O6: =+Data_Clim_Fig_Nom!O6-Data_Clim_Fig_Nom!$AQ6 -> -2184.8625 | P6: =+Data_Clim_Fig_Nom!P6-Data_Clim_Fig_Nom!$AQ6 -> -258.1625 | Q6: =+Data_Clim_Fig_Nom!Q6-Data_Clim_Fig_Nom!$AQ6 -> -374.1625 | R6: =+Data_Clim_Fig_Nom!R6-Data_Clim_Fig_Nom!$AQ6 -> -1912.6625 | S6: =+Data_Clim_Fig_Nom!S6-Data_Clim_Fig_Nom!$AQ6 -> -2092.0625 | T6: =+Data_Clim_Fig_Nom!T6-Data_Clim_Fig_Nom!$AQ6 -> 2128.4375 | U6: =+Data_Clim_Fig_Nom!U6-Data_Clim_Fig_Nom!$AQ6 -> 1913.0375 | V6: =+Data_Clim_Fig_Nom!V6-Data_Clim_Fig_Nom!$AQ6 -> -2229.5625 | W6: =+Data_Clim_Fig_Nom!W6-Data_Clim_Fig_Nom!$AQ6 -> -906.5625 | X6: =+Data_Clim_Fig_Nom!X6-Data_Clim_Fig_Nom!$AQ6 -> -2232.7625 | Y6: =+Data_Clim_Fig_Nom!Y6-Data_Clim_Fig_Nom!$AQ6 -> 2493.8375 | Z6: =+Data_Clim_Fig_Nom!Z6-Data_Clim_Fig_Nom!$AQ6 -> -2191.5625 | AA6: =+Data_Clim_Fig_Nom!AA6-Data_Clim_Fig_Nom!$AQ6 -> -1738.6625 | AB6: =+Data_Clim_Fig_Nom!AB6-Data_Clim_Fig_Nom!$AQ6 -> -863.1625 | AC6: =+Data_Clim_Fig_Nom!AC6-Data_Clim_Fig_Nom!$AQ6 -> -111.6625 | AD6: =+Data_Clim_Fig_Nom!AD6-Data_Clim_Fig_Nom!$AQ6 -> -2228.3625 | AE6: =+Data_Clim_Fig_Nom!AE6-Data_Clim_Fig_Nom!$AQ6 -> -2243.8625 | AF6: =+Data_Clim_Fig_Nom!AF6-Data_Clim_Fig_Nom!$AQ6 -> -2181.3625 | AG6: =+Data_Clim_Fig_Nom!AG6-Data_Clim_Fig_Nom!$AQ6 -> -2123.4625 | AH6: =+Data_Clim_Fig_Nom!AH6-Data_Clim_Fig_Nom!$AQ6 -> -2256.4625 | AI6: =+Data_Clim_Fig_Nom!AI6-Data_Clim_Fig_Nom!$AQ6 -> -1382.3625 | AJ6: =+Data_Clim_Fig_Nom!AJ6-Data_Clim_Fig_Nom!$AQ6 -> -1273.5625 | AK6: =+Data_Clim_Fig_Nom!AK6-Data_Clim_Fig_Nom!$AQ6 -> 9933.8375 | AL6: =+Data_Clim_Fig_Nom!AL6-Data_Clim_Fig_Nom!$AQ6 -> 430.5375 | AM6: =+Data_Clim_Fig_Nom!AM6-Data_Clim_Fig_Nom!$AQ6 -> -2072.7625 | AN6: =+Data_Clim_Fig_Nom!AN6-Data_Clim_Fig_Nom!$AQ6 -> 9847.7375 | AO6: =+Data_Clim_Fig_Nom!AO6-Data_Clim_Fig_Nom!$AQ6 -> -1837.8625 | AP6: =+Data_Clim_Fig_Nom!AP6-Data_Clim_Fig_Nom!$AQ6 -> -1675.8625 | AQ6: -1.591615728e-13
A7: =+Data_Clim!A5 -> 2021-01-04 | B7: =+Data_Clim_Fig_Nom!B7-Data_Clim_Fig_Nom!$AQ7 -> 2381.58 | C7: =+Data_Clim_Fig_Nom!C7-Data_Clim_Fig_Nom!$AQ7 -> 14627.38 | D7: =+Data_Clim_Fig_Nom!D7-Data_Clim_Fig_Nom!$AQ7 -> -1589.02 | E7: =+Data_Clim_Fig_Nom!E7-Data_Clim_Fig_Nom!$AQ7 -> -1331.02 | F7: =+Data_Clim_Fig_Nom!F7-Data_Clim_Fig_Nom!$AQ7 -> -42.02 | G7: =+Data_Clim_Fig_Nom!G7-Data_Clim_Fig_Nom!$AQ7 -> 1579.58 | H7: =+Data_Clim_Fig_Nom!H7-Data_Clim_Fig_Nom!$AQ7 -> -301.32 | I7: =+Data_Clim_Fig_Nom!I7-Data_Clim_Fig_Nom!$AQ7 -> -3268.52 | J7: =+Data_Clim_Fig_Nom!J7-Data_Clim_Fig_Nom!$AQ7 -> 3344.88 | K7: =+Data_Clim_Fig_Nom!K7-Data_Clim_Fig_Nom!$AQ7 -> -3798.12 | L7: =+Data_Clim_Fig_Nom!L7-Data_Clim_Fig_Nom!$AQ7 -> -3748.72 | M7: =+Data_Clim_Fig_Nom!M7-Data_Clim_Fig_Nom!$AQ7 -> -920.72 | N7: =+Data_Clim_Fig_Nom!N7-Data_Clim_Fig_Nom!$AQ7 -> -3711.42 | O7: =+Data_Clim_Fig_Nom!O7-Data_Clim_Fig_Nom!$AQ7 -> -3764.82 | P7: =+Data_Clim_Fig_Nom!P7-Data_Clim_Fig_Nom!$AQ7 -> 4577.38 | Q7: =+Data_Clim_Fig_Nom!Q7-Data_Clim_Fig_Nom!$AQ7 -> -3535.82 | R7: =+Data_Clim_Fig_Nom!R7-Data_Clim_Fig_Nom!$AQ7 -> -3822.12 | S7: =+Data_Clim_Fig_Nom!S7-Data_Clim_Fig_Nom!$AQ7 -> -2008.92 | T7: =+Data_Clim_Fig_Nom!T7-Data_Clim_Fig_Nom!$AQ7 -> -1243.92 | U7: =+Data_Clim_Fig_Nom!U7-Data_Clim_Fig_Nom!$AQ7 -> -2201.42 | V7: =+Data_Clim_Fig_Nom!V7-Data_Clim_Fig_Nom!$AQ7 -> -3149.52 | W7: =+Data_Clim_Fig_Nom!W7-Data_Clim_Fig_Nom!$AQ7 -> -2088.72 | X7: =+Data_Clim_Fig_Nom!X7-Data_Clim_Fig_Nom!$AQ7 -> -3787.32 | Y7: =+Data_Clim_Fig_Nom!Y7-Data_Clim_Fig_Nom!$AQ7 -> 9138.48 | Z7: =+Data_Clim_Fig_Nom!Z7-Data_Clim_Fig_Nom!$AQ7 -> -3177.92 | AA7: =+Data_Clim_Fig_Nom!AA7-Data_Clim_Fig_Nom!$AQ7 -> -3827.92 | AB7: =+Data_Clim_Fig_Nom!AB7-Data_Clim_Fig_Nom!$AQ7 -> -3563.82 | AC7: =+Data_Clim_Fig_Nom!AC7-Data_Clim_Fig_Nom!$AQ7 -> -264.32 | AD7: =+Data_Clim_Fig_Nom!AD7-Data_Clim_Fig_Nom!$AQ7 -> -3764.32 | AE7: =+Data_Clim_Fig_Nom!AE7-Data_Clim_Fig_Nom!$AQ7 -> -3776.22 | AF7: =+Data_Clim_Fig_Nom!AF7-Data_Clim_Fig_Nom!$AQ7 -> -3628.42 | AG7: =+Data_Clim_Fig_Nom!AG7-Data_Clim_Fig_Nom!$AQ7 -> -3706.32 | AH7: =+Data_Clim_Fig_Nom!AH7-Data_Clim_Fig_Nom!$AQ7 -> 4250.48 | AI7: =+Data_Clim_Fig_Nom!AI7-Data_Clim_Fig_Nom!$AQ7 -> -1127.72 | AJ7: =+Data_Clim_Fig_Nom!AJ7-Data_Clim_Fig_Nom!$AQ7 -> 5262.28 | AK7: =+Data_Clim_Fig_Nom!AK7-Data_Clim_Fig_Nom!$AQ7 -> -176.32 | AL7: =+Data_Clim_Fig_Nom!AL7-Data_Clim_Fig_Nom!$AQ7 -> 8427.48 | AM7: =+Data_Clim_Fig_Nom!AM7-Data_Clim_Fig_Nom!$AQ7 -> 621.78 | AN7: =+Data_Clim_Fig_Nom!AN7-Data_Clim_Fig_Nom!$AQ7 -> 19902.68 | AO7: =+Data_Clim_Fig_Nom!AO7-Data_Clim_Fig_Nom!$AQ7 -> -2787.22 | AP7: =+Data_Clim_Fig_Nom!AP7-Data_Clim_Fig_Nom!$AQ7 -> -3820.62 | AQ7: 4.092726158e-13
A8: =+Data_Clim!A6 -> 2021-01-05 | B8: =+Data_Clim_Fig_Nom!B8-Data_Clim_Fig_Nom!$AQ8 -> 2544.165 | C8: =+Data_Clim_Fig_Nom!C8-Data_Clim_Fig_Nom!$AQ8 -> -419.435 | D8: =+Data_Clim_Fig_Nom!D8-Data_Clim_Fig_Nom!$AQ8 -> 3771.065 | E8: =+Data_Clim_Fig_Nom!E8-Data_Clim_Fig_Nom!$AQ8 -> 8634.265 | F8: =+Data_Clim_Fig_Nom!F8-Data_Clim_Fig_Nom!$AQ8 -> -1027.135 | G8: =+Data_Clim_Fig_Nom!G8-Data_Clim_Fig_Nom!$AQ8 -> -2276.135 | H8: =+Data_Clim_Fig_Nom!H8-Data_Clim_Fig_Nom!$AQ8 -> -2964.635 | I8: =+Data_Clim_Fig_Nom!I8-Data_Clim_Fig_Nom!$AQ8 -> 5578.965 | J8: =+Data_Clim_Fig_Nom!J8-Data_Clim_Fig_Nom!$AQ8 -> -2306.735 | K8: =+Data_Clim_Fig_Nom!K8-Data_Clim_Fig_Nom!$AQ8 -> 210.465 | L8: =+Data_Clim_Fig_Nom!L8-Data_Clim_Fig_Nom!$AQ8 -> -336.635 | M8: =+Data_Clim_Fig_Nom!M8-Data_Clim_Fig_Nom!$AQ8 -> -2495.235 | N8: =+Data_Clim_Fig_Nom!N8-Data_Clim_Fig_Nom!$AQ8 -> -2148.735 | O8: =+Data_Clim_Fig_Nom!O8-Data_Clim_Fig_Nom!$AQ8 -> -3035.735 | P8: =+Data_Clim_Fig_Nom!P8-Data_Clim_Fig_Nom!$AQ8 -> -1003.735 | Q8: =+Data_Clim_Fig_Nom!Q8-Data_Clim_Fig_Nom!$AQ8 -> -3042.635 | R8: =+Data_Clim_Fig_Nom!R8-Data_Clim_Fig_Nom!$AQ8 -> -3024.935 | S8: =+Data_Clim_Fig_Nom!S8-Data_Clim_Fig_Nom!$AQ8 -> -2633.235 | T8: =+Data_Clim_Fig_Nom!T8-Data_Clim_Fig_Nom!$AQ8 -> -603.835 | U8: =+Data_Clim_Fig_Nom!U8-Data_Clim_Fig_Nom!$AQ8 -> -3079.435 | V8: =+Data_Clim_Fig_Nom!V8-Data_Clim_Fig_Nom!$AQ8 -> -1100.835 | W8: =+Data_Clim_Fig_Nom!W8-Data_Clim_Fig_Nom!$AQ8 -> 2994.965 | X8: =+Data_Clim_Fig_Nom!X8-Data_Clim_Fig_Nom!$AQ8 -> -3043.735 | Y8: =+Data_Clim_Fig_Nom!Y8-Data_Clim_Fig_Nom!$AQ8 -> -453.335 | Z8: =+Data_Clim_Fig_Nom!Z8-Data_Clim_Fig_Nom!$AQ8 -> -1675.735 | AA8: =+Data_Clim_Fig_Nom!AA8-Data_Clim_Fig_Nom!$AQ8 -> -2566.335 | AB8: =+Data_Clim_Fig_Nom!AB8-Data_Clim_Fig_Nom!$AQ8 -> -3052.735 | AC8: =+Data_Clim_Fig_Nom!AC8-Data_Clim_Fig_Nom!$AQ8 -> -1841.635 | AD8: =+Data_Clim_Fig_Nom!AD8-Data_Clim_Fig_Nom!$AQ8 -> 5178.365 | AE8: =+Data_Clim_Fig_Nom!AE8-Data_Clim_Fig_Nom!$AQ8 -> -2372.635 | AF8: =+Data_Clim_Fig_Nom!AF8-Data_Clim_Fig_Nom!$AQ8 -> -2568.535 | AG8: =+Data_Clim_Fig_Nom!AG8-Data_Clim_Fig_Nom!$AQ8 -> -3064.135 | AH8: =+Data_Clim_Fig_Nom!AH8-Data_Clim_Fig_Nom!$AQ8 -> 13344.565 | AI8: =+Data_Clim_Fig_Nom!AI8-Data_Clim_Fig_Nom!$AQ8 -> 1821.465 | AJ8: =+Data_Clim_Fig_Nom!AJ8-Data_Clim_Fig_Nom!$AQ8 -> -365.435 | AK8: =+Data_Clim_Fig_Nom!AK8-Data_Clim_Fig_Nom!$AQ8 -> -3030.335 | AL8: =+Data_Clim_Fig_Nom!AL8-Data_Clim_Fig_Nom!$AQ8 -> 109.965 | AM8: =+Data_Clim_Fig_Nom!AM8-Data_Clim_Fig_Nom!$AQ8 -> -615.935 | AN8: =+Data_Clim_Fig_Nom!AN8-Data_Clim_Fig_Nom!$AQ8 -> 5627.765 | AO8: =+Data_Clim_Fig_Nom!AO8-Data_Clim_Fig_Nom!$AQ8 -> 6333.565 | AP8: =+Data_Clim_Fig_Nom!AP8-Data_Clim_Fig_Nom!$AQ8 -> -2932.135 | AQ8: 9.549694369e-13
A9: =+Data_Clim!A7 -> 2021-01-06 | B9: =+Data_Clim_Fig_Nom!B9-Data_Clim_Fig_Nom!$AQ9 -> 1811.6825 | C9: =+Data_Clim_Fig_Nom!C9-Data_Clim_Fig_Nom!$AQ9 -> 6773.7825 | D9: =+Data_Clim_Fig_Nom!D9-Data_Clim_Fig_Nom!$AQ9 -> 8188.2825 | E9: =+Data_Clim_Fig_Nom!E9-Data_Clim_Fig_Nom!$AQ9 -> -3046.6175 | F9: =+Data_Clim_Fig_Nom!F9-Data_Clim_Fig_Nom!$AQ9 -> -1611.4175 | G9: =+Data_Clim_Fig_Nom!G9-Data_Clim_Fig_Nom!$AQ9 -> -2810.7175 | H9: =+Data_Clim_Fig_Nom!H9-Data_Clim_Fig_Nom!$AQ9 -> -1191.6175 | I9: =+Data_Clim_Fig_Nom!I9-Data_Clim_Fig_Nom!$AQ9 -> 4343.9825 | J9: =+Data_Clim_Fig_Nom!J9-Data_Clim_Fig_Nom!$AQ9 -> 437.4825 | K9: =+Data_Clim_Fig_Nom!K9-Data_Clim_Fig_Nom!$AQ9 -> 2284.7825 | L9: =+Data_Clim_Fig_Nom!L9-Data_Clim_Fig_Nom!$AQ9 -> 1000.4825 | M9: =+Data_Clim_Fig_Nom!M9-Data_Clim_Fig_Nom!$AQ9 -> -1203.6175 | N9: =+Data_Clim_Fig_Nom!N9-Data_Clim_Fig_Nom!$AQ9 -> -2921.3175 | O9: =+Data_Clim_Fig_Nom!O9-Data_Clim_Fig_Nom!$AQ9 -> -2862.9175 | P9: =+Data_Clim_Fig_Nom!P9-Data_Clim_Fig_Nom!$AQ9 -> -1084.2175 | Q9: =+Data_Clim_Fig_Nom!Q9-Data_Clim_Fig_Nom!$AQ9 -> -2969.3175 | R9: =+Data_Clim_Fig_Nom!R9-Data_Clim_Fig_Nom!$AQ9 -> -2731.9175 | S9: =+Data_Clim_Fig_Nom!S9-Data_Clim_Fig_Nom!$AQ9 -> -2906.4175 | T9: =+Data_Clim_Fig_Nom!T9-Data_Clim_Fig_Nom!$AQ9 -> 2646.6825 | U9: =+Data_Clim_Fig_Nom!U9-Data_Clim_Fig_Nom!$AQ9 -> -3038.2175 | V9: =+Data_Clim_Fig_Nom!V9-Data_Clim_Fig_Nom!$AQ9 -> -2946.0175 | W9: =+Data_Clim_Fig_Nom!W9-Data_Clim_Fig_Nom!$AQ9 -> 13923.0825 | X9: =+Data_Clim_Fig_Nom!X9-Data_Clim_Fig_Nom!$AQ9 -> -2973.7175 | Y9: =+Data_Clim_Fig_Nom!Y9-Data_Clim_Fig_Nom!$AQ9 -> -2944.7175 | Z9: =+Data_Clim_Fig_Nom!Z9-Data_Clim_Fig_Nom!$AQ9 -> -2175.9175 | AA9: =+Data_Clim_Fig_Nom!AA9-Data_Clim_Fig_Nom!$AQ9 -> 512.4825 | AB9: =+Data_Clim_Fig_Nom!AB9-Data_Clim_Fig_Nom!$AQ9 -> -2987.2175 | AC9: =+Data_Clim_Fig_Nom!AC9-Data_Clim_Fig_Nom!$AQ9 -> -1893.0175 | AD9: =+Data_Clim_Fig_Nom!AD9-Data_Clim_Fig_Nom!$AQ9 -> 9611.3825 | AE9: =+Data_Clim_Fig_Nom!AE9-Data_Clim_Fig_Nom!$AQ9 -> -2616.5175 | AF9: =+Data_Clim_Fig_Nom!AF9-Data_Clim_Fig_Nom!$AQ9 -> -1932.3175 | AG9: =+Data_Clim_Fig_Nom!AG9-Data_Clim_Fig_Nom!$AQ9 -> 1867.8825 | AH9: =+Data_Clim_Fig_Nom!AH9-Data_Clim_Fig_Nom!$AQ9 -> 1710.3825 | AI9: =+Data_Clim_Fig_Nom!AI9-Data_Clim_Fig_Nom!$AQ9 -> -1273.2175 | AJ9: =+Data_Clim_Fig_Nom!AJ9-Data_Clim_Fig_Nom!$AQ9 -> -2962.4175 | AK9: =+Data_Clim_Fig_Nom!AK9-Data_Clim_Fig_Nom!$AQ9 -> -2995.3175 | AL9: =+Data_Clim_Fig_Nom!AL9-Data_Clim_Fig_Nom!$AQ9 -> 384.0825 | AM9: =+Data_Clim_Fig_Nom!AM9-Data_Clim_Fig_Nom!$AQ9 -> -2779.5175 | AN9: =+Data_Clim_Fig_Nom!AN9-Data_Clim_Fig_Nom!$AQ9 -> -379.9175 | AO9: =+Data_Clim_Fig_Nom!AO9-Data_Clim_Fig_Nom!$AQ9 -> 3741.6825 | AP9: =+Data_Clim_Fig_Nom!AP9-Data_Clim_Fig_Nom!$AQ9 -> 761.7825 | AQ9: 2.842170943e-13
A10: =+Data_Clim!A8 -> 2021-01-07 | B10: =+Data_Clim_Fig_Nom!B10-Data_Clim_Fig_Nom!$AQ10 -> 2594.1 | C10: =+Data_Clim_Fig_Nom!C10-Data_Clim_Fig_Nom!$AQ10 -> -693.2 | D10: =+Data_Clim_Fig_Nom!D10-Data_Clim_Fig_Nom!$AQ10 -> -2342.4 | E10: =+Data_Clim_Fig_Nom!E10-Data_Clim_Fig_Nom!$AQ10 -> 456 | F10: =+Data_Clim_Fig_Nom!F10-Data_Clim_Fig_Nom!$AQ10 -> 1267.9 | G10: =+Data_Clim_Fig_Nom!G10-Data_Clim_Fig_Nom!$AQ10 -> -2170.7 | H10: =+Data_Clim_Fig_Nom!H10-Data_Clim_Fig_Nom!$AQ10 -> -1967.1 | I10: =+Data_Clim_Fig_Nom!I10-Data_Clim_Fig_Nom!$AQ10 -> 530.1 | J10: =+Data_Clim_Fig_Nom!J10-Data_Clim_Fig_Nom!$AQ10 -> -1023.7 | K10: =+Data_Clim_Fig_Nom!K10-Data_Clim_Fig_Nom!$AQ10 -> 1329.6 | L10: =+Data_Clim_Fig_Nom!L10-Data_Clim_Fig_Nom!$AQ10 -> -2288.6 | M10: =+Data_Clim_Fig_Nom!M10-Data_Clim_Fig_Nom!$AQ10 -> 10307.8 | N10: =+Data_Clim_Fig_Nom!N10-Data_Clim_Fig_Nom!$AQ10 -> -2301.1 | O10: =+Data_Clim_Fig_Nom!O10-Data_Clim_Fig_Nom!$AQ10 -> 2113.8 | P10: =+Data_Clim_Fig_Nom!P10-Data_Clim_Fig_Nom!$AQ10 -> -625.4 | Q10: =+Data_Clim_Fig_Nom!Q10-Data_Clim_Fig_Nom!$AQ10 -> -1472 | R10: =+Data_Clim_Fig_Nom!R10-Data_Clim_Fig_Nom!$AQ10 -> 2601.7 | S10: =+Data_Clim_Fig_Nom!S10-Data_Clim_Fig_Nom!$AQ10 -> -2208.4 | T10: =+Data_Clim_Fig_Nom!T10-Data_Clim_Fig_Nom!$AQ10 -> -1835.8 | U10: =+Data_Clim_Fig_Nom!U10-Data_Clim_Fig_Nom!$AQ10 -> 418.7 | V10: =+Data_Clim_Fig_Nom!V10-Data_Clim_Fig_Nom!$AQ10 -> -2108.6 | W10: =+Data_Clim_Fig_Nom!W10-Data_Clim_Fig_Nom!$AQ10 -> 5446.7 | X10: =+Data_Clim_Fig_Nom!X10-Data_Clim_Fig_Nom!$AQ10 -> -2061 | Y10: =+Data_Clim_Fig_Nom!Y10-Data_Clim_Fig_Nom!$AQ10 -> -1170.9 | Z10: =+Data_Clim_Fig_Nom!Z10-Data_Clim_Fig_Nom!$AQ10 -> -114.8 | AA10: =+Data_Clim_Fig_Nom!AA10-Data_Clim_Fig_Nom!$AQ10 -> -2297.3 | AB10: =+Data_Clim_Fig_Nom!AB10-Data_Clim_Fig_Nom!$AQ10 -> -2232.8 | AC10: =+Data_Clim_Fig_Nom!AC10-Data_Clim_Fig_Nom!$AQ10 -> 468.5 | AD10: =+Data_Clim_Fig_Nom!AD10-Data_Clim_Fig_Nom!$AQ10 -> 6499.9 | AE10: =+Data_Clim_Fig_Nom!AE10-Data_Clim_Fig_Nom!$AQ10 -> -2250.3 | AF10: =+Data_Clim_Fig_Nom!AF10-Data_Clim_Fig_Nom!$AQ10 -> -2067.7 | AG10: =+Data_Clim_Fig_Nom!AG10-Data_Clim_Fig_Nom!$AQ10 -> 1849.7 | AH10: =+Data_Clim_Fig_Nom!AH10-Data_Clim_Fig_Nom!$AQ10 -> 3691.1 | AI10: =+Data_Clim_Fig_Nom!AI10-Data_Clim_Fig_Nom!$AQ10 -> -1780.7 | AJ10: =+Data_Clim_Fig_Nom!AJ10-Data_Clim_Fig_Nom!$AQ10 -> -2318.3 | AK10: =+Data_Clim_Fig_Nom!AK10-Data_Clim_Fig_Nom!$AQ10 -> -1637.1 | AL10: =+Data_Clim_Fig_Nom!AL10-Data_Clim_Fig_Nom!$AQ10 -> 4007.2 | AM10: =+Data_Clim_Fig_Nom!AM10-Data_Clim_Fig_Nom!$AQ10 -> -1468.6 | AN10: =+Data_Clim_Fig_Nom!AN10-Data_Clim_Fig_Nom!$AQ10 -> -2298.9 | AO10: =+Data_Clim_Fig_Nom!AO10-Data_Clim_Fig_Nom!$AQ10 -> -847.4 | AP10: =+Data_Clim_Fig_Nom!AP10-Data_Clim_Fig_Nom!$AQ10 -> -1941.2 | AQ10: 8.299139154e-13
A11: =+Data_Clim!A9 -> 2021-01-08 | B11: =+Data_Clim_Fig_Nom!B11-Data_Clim_Fig_Nom!$AQ11 -> -1546.7625 | C11: =+Data_Clim_Fig_Nom!C11-Data_Clim_Fig_Nom!$AQ11 -> -1514.8625 | D11: =+Data_Clim_Fig_Nom!D11-Data_Clim_Fig_Nom!$AQ11 -> 12611.2375 | E11: =+Data_Clim_Fig_Nom!E11-Data_Clim_Fig_Nom!$AQ11 -> 724.7375 | F11: =+Data_Clim_Fig_Nom!F11-Data_Clim_Fig_Nom!$AQ11 -> -551.2625 | G11: =+Data_Clim_Fig_Nom!G11-Data_Clim_Fig_Nom!$AQ11 -> -2030.6625 | H11: =+Data_Clim_Fig_Nom!H11-Data_Clim_Fig_Nom!$AQ11 -> -1691.5625 | I11: =+Data_Clim_Fig_Nom!I11-Data_Clim_Fig_Nom!$AQ11 -> -1997.9625 | J11: =+Data_Clim_Fig_Nom!J11-Data_Clim_Fig_Nom!$AQ11 -> -1684.7625 | K11: =+Data_Clim_Fig_Nom!K11-Data_Clim_Fig_Nom!$AQ11 -> -90.1625 | L11: =+Data_Clim_Fig_Nom!L11-Data_Clim_Fig_Nom!$AQ11 -> -2160.2625 | M11: =+Data_Clim_Fig_Nom!M11-Data_Clim_Fig_Nom!$AQ11 -> -2109.4625 | N11: =+Data_Clim_Fig_Nom!N11-Data_Clim_Fig_Nom!$AQ11 -> -2164.0625 | O11: =+Data_Clim_Fig_Nom!O11-Data_Clim_Fig_Nom!$AQ11 -> 1202.1375 | P11: =+Data_Clim_Fig_Nom!P11-Data_Clim_Fig_Nom!$AQ11 -> 437.7375 | Q11: =+Data_Clim_Fig_Nom!Q11-Data_Clim_Fig_Nom!$AQ11 -> -2013.1625 | R11: =+Data_Clim_Fig_Nom!R11-Data_Clim_Fig_Nom!$AQ11 -> -1097.4625 | S11: =+Data_Clim_Fig_Nom!S11-Data_Clim_Fig_Nom!$AQ11 -> -2161.5625 | T11: =+Data_Clim_Fig_Nom!T11-Data_Clim_Fig_Nom!$AQ11 -> -2252.6625 | U11: =+Data_Clim_Fig_Nom!U11-Data_Clim_Fig_Nom!$AQ11 -> 7634.8375 | V11: =+Data_Clim_Fig_Nom!V11-Data_Clim_Fig_Nom!$AQ11 -> -2166.1625 | W11: =+Data_Clim_Fig_Nom!W11-Data_Clim_Fig_Nom!$AQ11 -> 4183.5375 | X11: =+Data_Clim_Fig_Nom!X11-Data_Clim_Fig_Nom!$AQ11 -> -2139.4625 | Y11: =+Data_Clim_Fig_Nom!Y11-Data_Clim_Fig_Nom!$AQ11 -> -2198.6625 | Z11: =+Data_Clim_Fig_Nom!Z11-Data_Clim_Fig_Nom!$AQ11 -> 2802.0375 | AA11: =+Data_Clim_Fig_Nom!AA11-Data_Clim_Fig_Nom!$AQ11 -> -2206.7625 | AB11: =+Data_Clim_Fig_Nom!AB11-Data_Clim_Fig_Nom!$AQ11 -> -2148.4625 | AC11: =+Data_Clim_Fig_Nom!AC11-Data_Clim_Fig_Nom!$AQ11 -> -252.5625 | AD11: =+Data_Clim_Fig_Nom!AD11-Data_Clim_Fig_Nom!$AQ11 -> -2197.3625 | AE11: =+Data_Clim_Fig_Nom!AE11-Data_Clim_Fig_Nom!$AQ11 -> -2163.6625 | AF11: =+Data_Clim_Fig_Nom!AF11-Data_Clim_Fig_Nom!$AQ11 -> 1581.3375 | AG11: =+Data_Clim_Fig_Nom!AG11-Data_Clim_Fig_Nom!$AQ11 -> -23.6625 | AH11: =+Data_Clim_Fig_Nom!AH11-Data_Clim_Fig_Nom!$AQ11 -> 2149.5375 | AI11: =+Data_Clim_Fig_Nom!AI11-Data_Clim_Fig_Nom!$AQ11 -> -1172.0625 | AJ11: =+Data_Clim_Fig_Nom!AJ11-Data_Clim_Fig_Nom!$AQ11 -> -2105.2625 | AK11: =+Data_Clim_Fig_Nom!AK11-Data_Clim_Fig_Nom!$AQ11 -> -920.5625 | AL11: =+Data_Clim_Fig_Nom!AL11-Data_Clim_Fig_Nom!$AQ11 -> 6632.5375 | AM11: =+Data_Clim_Fig_Nom!AM11-Data_Clim_Fig_Nom!$AQ11 -> 1861.6375 | AN11: =+Data_Clim_Fig_Nom!AN11-Data_Clim_Fig_Nom!$AQ11 -> -2177.9625 | AO11: =+Data_Clim_Fig_Nom!AO11-Data_Clim_Fig_Nom!$AQ11 -> 5117.9375 | AP11: =+Data_Clim_Fig_Nom!AP11-Data_Clim_Fig_Nom!$AQ11 -> -2090.5625 | AQ11: -1.818989404e-13
A12: =+Data_Clim!A10 -> 2021-01-09 | B12: =+Data_Clim_Fig_Nom!B12-Data_Clim_Fig_Nom!$AQ12 -> -1882.8375 | C12: =+Data_Clim_Fig_Nom!C12-Data_Clim_Fig_Nom!$AQ12 -> -1946.5375 | D12: =+Data_Clim_Fig_Nom!D12-Data_Clim_Fig_Nom!$AQ12 -> 15446.1625 | E12: =+Data_Clim_Fig_Nom!E12-Data_Clim_Fig_Nom!$AQ12 -> -2070.1375 | F12: =+Data_Clim_Fig_Nom!F12-Data_Clim_Fig_Nom!$AQ12 -> 266.3625 | G12: =+Data_Clim_Fig_Nom!G12-Data_Clim_Fig_Nom!$AQ12 -> -1974.9375 | H12: =+Data_Clim_Fig_Nom!H12-Data_Clim_Fig_Nom!$AQ12 -> -147.7375 | I12: =+Data_Clim_Fig_Nom!I12-Data_Clim_Fig_Nom!$AQ12 -> -1965.6375 | J12: =+Data_Clim_Fig_Nom!J12-Data_Clim_Fig_Nom!$AQ12 -> -2149.4375 | K12: =+Data_Clim_Fig_Nom!K12-Data_Clim_Fig_Nom!$AQ12 -> -2150.6375 | L12: =+Data_Clim_Fig_Nom!L12-Data_Clim_Fig_Nom!$AQ12 -> -2124.1375 | M12: =+Data_Clim_Fig_Nom!M12-Data_Clim_Fig_Nom!$AQ12 -> -925.9375 | N12: =+Data_Clim_Fig_Nom!N12-Data_Clim_Fig_Nom!$AQ12 -> 1327.9625 | O12: =+Data_Clim_Fig_Nom!O12-Data_Clim_Fig_Nom!$AQ12 -> -1943.7375 | P12: =+Data_Clim_Fig_Nom!P12-Data_Clim_Fig_Nom!$AQ12 -> -2097.4375 | Q12: =+Data_Clim_Fig_Nom!Q12-Data_Clim_Fig_Nom!$AQ12 -> 343.0625 | R12: =+Data_Clim_Fig_Nom!R12-Data_Clim_Fig_Nom!$AQ12 -> -2157.8375 | S12: =+Data_Clim_Fig_Nom!S12-Data_Clim_Fig_Nom!$AQ12 -> -1865.7375 | T12: =+Data_Clim_Fig_Nom!T12-Data_Clim_Fig_Nom!$AQ12 -> -2230.3375 | U12: =+Data_Clim_Fig_Nom!U12-Data_Clim_Fig_Nom!$AQ12 -> 680.2625 | V12: =+Data_Clim_Fig_Nom!V12-Data_Clim_Fig_Nom!$AQ12 -> 571.5625 | W12: =+Data_Clim_Fig_Nom!W12-Data_Clim_Fig_Nom!$AQ12 -> -1931.6375 | X12: =+Data_Clim_Fig_Nom!X12-Data_Clim_Fig_Nom!$AQ12 -> -2123.3375 | Y12: =+Data_Clim_Fig_Nom!Y12-Data_Clim_Fig_Nom!$AQ12 -> -2090.9375 | Z12: =+Data_Clim_Fig_Nom!Z12-Data_Clim_Fig_Nom!$AQ12 -> 7114.9625 | AA12: =+Data_Clim_Fig_Nom!AA12-Data_Clim_Fig_Nom!$AQ12 -> -1449.5375 | AB12: =+Data_Clim_Fig_Nom!AB12-Data_Clim_Fig_Nom!$AQ12 -> -2120.5375 | AC12: =+Data_Clim_Fig_Nom!AC12-Data_Clim_Fig_Nom!$AQ12 -> 822.0625 | AD12: =+Data_Clim_Fig_Nom!AD12-Data_Clim_Fig_Nom!$AQ12 -> -579.8375 | AE12: =+Data_Clim_Fig_Nom!AE12-Data_Clim_Fig_Nom!$AQ12 -> -2108.7375 | AF12: =+Data_Clim_Fig_Nom!AF12-Data_Clim_Fig_Nom!$AQ12 -> 215.9625 | AG12: =+Data_Clim_Fig_Nom!AG12-Data_Clim_Fig_Nom!$AQ12 -> 6785.0625 | AH12: =+Data_Clim_Fig_Nom!AH12-Data_Clim_Fig_Nom!$AQ12 -> 291.0625 | AI12: =+Data_Clim_Fig_Nom!AI12-Data_Clim_Fig_Nom!$AQ12 -> -1798.6375 | AJ12: =+Data_Clim_Fig_Nom!AJ12-Data_Clim_Fig_Nom!$AQ12 -> -797.2375 | AK12: =+Data_Clim_Fig_Nom!AK12-Data_Clim_Fig_Nom!$AQ12 -> 1442.0625 | AL12: =+Data_Clim_Fig_Nom!AL12-Data_Clim_Fig_Nom!$AQ12 -> 6796.3625 | AM12: =+Data_Clim_Fig_Nom!AM12-Data_Clim_Fig_Nom!$AQ12 -> -1994.8375 | AN12: =+Data_Clim_Fig_Nom!AN12-Data_Clim_Fig_Nom!$AQ12 -> -1632.9375 | AO12: =+Data_Clim_Fig_Nom!AO12-Data_Clim_Fig_Nom!$AQ12 -> 4158.3625 | AP12: =+Data_Clim_Fig_Nom!AP12-Data_Clim_Fig_Nom!$AQ12 -> -2137.9375 | AQ12: 0
A13: =+Data_Clim!A11 -> 2021-01-10 | B13: =+Data_Clim_Fig_Nom!B13-Data_Clim_Fig_Nom!$AQ13 -> -2071.6325 | C13: =+Data_Clim_Fig_Nom!C13-Data_Clim_Fig_Nom!$AQ13 -> -197.9325 | D13: =+Data_Clim_Fig_Nom!D13-Data_Clim_Fig_Nom!$AQ13 -> 15225.0675 | E13: =+Data_Clim_Fig_Nom!E13-Data_Clim_Fig_Nom!$AQ13 -> -2026.7325 | F13: =+Data_Clim_Fig_Nom!F13-Data_Clim_Fig_Nom!$AQ13 -> -1338.2325 | G13: =+Data_Clim_Fig_Nom!G13-Data_Clim_Fig_Nom!$AQ13 -> -2205.7325 | H13: =+Data_Clim_Fig_Nom!H13-Data_Clim_Fig_Nom!$AQ13 -> 1083.7675 | I13: =+Data_Clim_Fig_Nom!I13-Data_Clim_Fig_Nom!$AQ13 -> 200.3675 | J13: =+Data_Clim_Fig_Nom!J13-Data_Clim_Fig_Nom!$AQ13 -> -2372.9325 | K13: =+Data_Clim_Fig_Nom!K13-Data_Clim_Fig_Nom!$AQ13 -> -2462.2325 | L13: =+Data_Clim_Fig_Nom!L13-Data_Clim_Fig_Nom!$AQ13 -> -2437.0325 | M13: =+Data_Clim_Fig_Nom!M13-Data_Clim_Fig_Nom!$AQ13 -> -1832.8325 | N13: =+Data_Clim_Fig_Nom!N13-Data_Clim_Fig_Nom!$AQ13 -> 6295.6675 | O13: =+Data_Clim_Fig_Nom!O13-Data_Clim_Fig_Nom!$AQ13 -> -2529.8325 | P13: =+Data_Clim_Fig_Nom!P13-Data_Clim_Fig_Nom!$AQ13 -> -2480.5325 | Q13: =+Data_Clim_Fig_Nom!Q13-Data_Clim_Fig_Nom!$AQ13 -> 9967.0675 | R13: =+Data_Clim_Fig_Nom!R13-Data_Clim_Fig_Nom!$AQ13 -> -2449.1325 | S13: =+Data_Clim_Fig_Nom!S13-Data_Clim_Fig_Nom!$AQ13 -> -1985.5325 | T13: =+Data_Clim_Fig_Nom!T13-Data_Clim_Fig_Nom!$AQ13 -> -2513.4325 | U13: =+Data_Clim_Fig_Nom!U13-Data_Clim_Fig_Nom!$AQ13 -> -2455.8325 | V13: =+Data_Clim_Fig_Nom!V13-Data_Clim_Fig_Nom!$AQ13 -> -472.2325 | W13: =+Data_Clim_Fig_Nom!W13-Data_Clim_Fig_Nom!$AQ13 -> -1206.7325 | X13: =+Data_Clim_Fig_Nom!X13-Data_Clim_Fig_Nom!$AQ13 -> -2436.8325 | Y13: =+Data_Clim_Fig_Nom!Y13-Data_Clim_Fig_Nom!$AQ13 -> -2118.6325 | Z13: =+Data_Clim_Fig_Nom!Z13-Data_Clim_Fig_Nom!$AQ13 -> 2609.9675 | AA13: =+Data_Clim_Fig_Nom!AA13-Data_Clim_Fig_Nom!$AQ13 -> -2514.3325 | AB13: =+Data_Clim_Fig_Nom!AB13-Data_Clim_Fig_Nom!$AQ13 -> -2462.3325 | AC13: =+Data_Clim_Fig_Nom!AC13-Data_Clim_Fig_Nom!$AQ13 -> -2402.7325 | AD13: =+Data_Clim_Fig_Nom!AD13-Data_Clim_Fig_Nom!$AQ13 -> -2510.9325 | AE13: =+Data_Clim_Fig_Nom!AE13-Data_Clim_Fig_Nom!$AQ13 -> -2428.5325 | AF13: =+Data_Clim_Fig_Nom!AF13-Data_Clim_Fig_Nom!$AQ13 -> -1726.3325 | AG13: =+Data_Clim_Fig_Nom!AG13-Data_Clim_Fig_Nom!$AQ13 -> 943.9675 | AH13: =+Data_Clim_Fig_Nom!AH13-Data_Clim_Fig_Nom!$AQ13 -> -875.8325 | AI13: =+Data_Clim_Fig_Nom!AI13-Data_Clim_Fig_Nom!$AQ13 -> 2418.8675 | AJ13: =+Data_Clim_Fig_Nom!AJ13-Data_Clim_Fig_Nom!$AQ13 -> 3311.7675 | AK13: =+Data_Clim_Fig_Nom!AK13-Data_Clim_Fig_Nom!$AQ13 -> 707.8675 | AL13: =+Data_Clim_Fig_Nom!AL13-Data_Clim_Fig_Nom!$AQ13 -> 9433.2675 | AM13: =+Data_Clim_Fig_Nom!AM13-Data_Clim_Fig_Nom!$AQ13 -> 503.9675 | AN13: =+Data_Clim_Fig_Nom!AN13-Data_Clim_Fig_Nom!$AQ13 -> -2485.2325 | AO13: =+Data_Clim_Fig_Nom!AO13-Data_Clim_Fig_Nom!$AQ13 -> 2298.6675 | AP13: =+Data_Clim_Fig_Nom!AP13-Data_Clim_Fig_Nom!$AQ13 -> -2516.7325 | AQ13: -2.046363079e-13
A14: =+Data_Clim!A12 -> 2021-01-11 | B14: =+Data_Clim_Fig_Nom!B14-Data_Clim_Fig_Nom!$AQ14 -> -2574.865 | C14: =+Data_Clim_Fig_Nom!C14-Data_Clim_Fig_Nom!$AQ14 -> -2560.965 | D14: =+Data_Clim_Fig_Nom!D14-Data_Clim_Fig_Nom!$AQ14 -> 1466.735 | E14: =+Data_Clim_Fig_Nom!E14-Data_Clim_Fig_Nom!$AQ14 -> -3001.665 | F14: =+Data_Clim_Fig_Nom!F14-Data_Clim_Fig_Nom!$AQ14 -> -2988.865 | G14: =+Data_Clim_Fig_Nom!G14-Data_Clim_Fig_Nom!$AQ14 -> -2828.665 | H14: =+Data_Clim_Fig_Nom!H14-Data_Clim_Fig_Nom!$AQ14 -> 15219.135 | I14: =+Data_Clim_Fig_Nom!I14-Data_Clim_Fig_Nom!$AQ14 -> 1160.235 | J14: =+Data_Clim_Fig_Nom!J14-Data_Clim_Fig_Nom!$AQ14 -> 1232.735 | K14: =+Data_Clim_Fig_Nom!K14-Data_Clim_Fig_Nom!$AQ14 -> -2932.065 | L14: =+Data_Clim_Fig_Nom!L14-Data_Clim_Fig_Nom!$AQ14 -> -3000.765 | M14: =+Data_Clim_Fig_Nom!M14-Data_Clim_Fig_Nom!$AQ14 -> 3440.735 | N14: =+Data_Clim_Fig_Nom!N14-Data_Clim_Fig_Nom!$AQ14 -> -2982.465 | O14: =+Data_Clim_Fig_Nom!O14-Data_Clim_Fig_Nom!$AQ14 -> -981.865 | P14: =+Data_Clim_Fig_Nom!P14-Data_Clim_Fig_Nom!$AQ14 -> -1192.565 | Q14: =+Data_Clim_Fig_Nom!Q14-Data_Clim_Fig_Nom!$AQ14 -> 13072.935 | R14: =+Data_Clim_Fig_Nom!R14-Data_Clim_Fig_Nom!$AQ14 -> -2763.765 | S14: =+Data_Clim_Fig_Nom!S14-Data_Clim_Fig_Nom!$AQ14 -> -2973.365 | T14: =+Data_Clim_Fig_Nom!T14-Data_Clim_Fig_Nom!$AQ14 -> -3033.265 | U14: =+Data_Clim_Fig_Nom!U14-Data_Clim_Fig_Nom!$AQ14 -> 1771.835 | V14: =+Data_Clim_Fig_Nom!V14-Data_Clim_Fig_Nom!$AQ14 -> -2750.365 | W14: =+Data_Clim_Fig_Nom!W14-Data_Clim_Fig_Nom!$AQ14 -> -185.165 | X14: =+Data_Clim_Fig_Nom!X14-Data_Clim_Fig_Nom!$AQ14 -> -2968.565 | Y14: =+Data_Clim_Fig_Nom!Y14-Data_Clim_Fig_Nom!$AQ14 -> -2980.865 | Z14: =+Data_Clim_Fig_Nom!Z14-Data_Clim_Fig_Nom!$AQ14 -> 2962.235 | AA14: =+Data_Clim_Fig_Nom!AA14-Data_Clim_Fig_Nom!$AQ14 -> -3056.565 | AB14: =+Data_Clim_Fig_Nom!AB14-Data_Clim_Fig_Nom!$AQ14 -> -2982.565 | AC14: =+Data_Clim_Fig_Nom!AC14-Data_Clim_Fig_Nom!$AQ14 -> 375.135 | AD14: =+Data_Clim_Fig_Nom!AD14-Data_Clim_Fig_Nom!$AQ14 -> -3094.265 | AE14: =+Data_Clim_Fig_Nom!AE14-Data_Clim_Fig_Nom!$AQ14 -> -2978.965 | AF14: =+Data_Clim_Fig_Nom!AF14-Data_Clim_Fig_Nom!$AQ14 -> -583.065 | AG14: =+Data_Clim_Fig_Nom!AG14-Data_Clim_Fig_Nom!$AQ14 -> 409.135 | AH14: =+Data_Clim_Fig_Nom!AH14-Data_Clim_Fig_Nom!$AQ14 -> -3036.165 | AI14: =+Data_Clim_Fig_Nom!AI14-Data_Clim_Fig_Nom!$AQ14 -> 1937.735 | AJ14: =+Data_Clim_Fig_Nom!AJ14-Data_Clim_Fig_Nom!$AQ14 -> -1360.465 | AK14: =+Data_Clim_Fig_Nom!AK14-Data_Clim_Fig_Nom!$AQ14 -> 8405.435 | AL14: =+Data_Clim_Fig_Nom!AL14-Data_Clim_Fig_Nom!$AQ14 -> 10611.835 | AM14: =+Data_Clim_Fig_Nom!AM14-Data_Clim_Fig_Nom!$AQ14 -> 63.235 | AN14: =+Data_Clim_Fig_Nom!AN14-Data_Clim_Fig_Nom!$AQ14 -> -1987.265 | AO14: =+Data_Clim_Fig_Nom!AO14-Data_Clim_Fig_Nom!$AQ14 -> -349.665 | AP14: =+Data_Clim_Fig_Nom!AP14-Data_Clim_Fig_Nom!$AQ14 -> -3011.765 | AQ14: -1.250555215e-13
A15: =+Data_Clim!A13 -> 2021-01-12 | B15: =+Data_Clim_Fig_Nom!B15-Data_Clim_Fig_Nom!$AQ15 -> -1963.3025 | C15: =+Data_Clim_Fig_Nom!C15-Data_Clim_Fig_Nom!$AQ15 -> -1677.2025 | D15: =+Data_Clim_Fig_Nom!D15-Data_Clim_Fig_Nom!$AQ15 -> 3296.4975 | E15: =+Data_Clim_Fig_Nom!E15-Data_Clim_Fig_Nom!$AQ15 -> -2136.0025 | F15: =+Data_Clim_Fig_Nom!F15-Data_Clim_Fig_Nom!$AQ15 -> 1190.6975 | G15: =+Data_Clim_Fig_Nom!G15-Data_Clim_Fig_Nom!$AQ15 -> -437.9025 | H15: =+Data_Clim_Fig_Nom!H15-Data_Clim_Fig_Nom!$AQ15 -> 3511.0975 | I15: =+Data_Clim_Fig_Nom!I15-Data_Clim_Fig_Nom!$AQ15 -> -1619.6025 | J15: =+Data_Clim_Fig_Nom!J15-Data_Clim_Fig_Nom!$AQ15 -> -2186.8025 | K15: =+Data_Clim_Fig_Nom!K15-Data_Clim_Fig_Nom!$AQ15 -> -1628.1025 | L15: =+Data_Clim_Fig_Nom!L15-Data_Clim_Fig_Nom!$AQ15 -> -2091.0025 | M15: =+Data_Clim_Fig_Nom!M15-Data_Clim_Fig_Nom!$AQ15 -> 2203.2975 | N15: =+Data_Clim_Fig_Nom!N15-Data_Clim_Fig_Nom!$AQ15 -> -2073.7025 | O15: =+Data_Clim_Fig_Nom!O15-Data_Clim_Fig_Nom!$AQ15 -> 1824.9975 | P15: =+Data_Clim_Fig_Nom!P15-Data_Clim_Fig_Nom!$AQ15 -> -2214.5025 | Q15: =+Data_Clim_Fig_Nom!Q15-Data_Clim_Fig_Nom!$AQ15 -> 3177.6975 | R15: =+Data_Clim_Fig_Nom!R15-Data_Clim_Fig_Nom!$AQ15 -> -2097.7025 | S15: =+Data_Clim_Fig_Nom!S15-Data_Clim_Fig_Nom!$AQ15 -> -2137.3025 | T15: =+Data_Clim_Fig_Nom!T15-Data_Clim_Fig_Nom!$AQ15 -> -2142.9025 | U15: =+Data_Clim_Fig_Nom!U15-Data_Clim_Fig_Nom!$AQ15 -> -921.8025 | V15: =+Data_Clim_Fig_Nom!V15-Data_Clim_Fig_Nom!$AQ15 -> -2122.6025 | W15: =+Data_Clim_Fig_Nom!W15-Data_Clim_Fig_Nom!$AQ15 -> -1129.3025 | X15: =+Data_Clim_Fig_Nom!X15-Data_Clim_Fig_Nom!$AQ15 -> -1787.7025 | Y15: =+Data_Clim_Fig_Nom!Y15-Data_Clim_Fig_Nom!$AQ15 -> -2105.7025 | Z15: =+Data_Clim_Fig_Nom!Z15-Data_Clim_Fig_Nom!$AQ15 -> 9843.4975 | AA15: =+Data_Clim_Fig_Nom!AA15-Data_Clim_Fig_Nom!$AQ15 -> 1948.2975 | AB15: =+Data_Clim_Fig_Nom!AB15-Data_Clim_Fig_Nom!$AQ15 -> -2072.2025 | AC15: =+Data_Clim_Fig_Nom!AC15-Data_Clim_Fig_Nom!$AQ15 -> 1330.2975 | AD15: =+Data_Clim_Fig_Nom!AD15-Data_Clim_Fig_Nom!$AQ15 -> 2006.5975 | AE15: =+Data_Clim_Fig_Nom!AE15-Data_Clim_Fig_Nom!$AQ15 -> -2096.0025 | AF15: =+Data_Clim_Fig_Nom!AF15-Data_Clim_Fig_Nom!$AQ15 -> -1744.5025 | AG15: =+Data_Clim_Fig_Nom!AG15-Data_Clim_Fig_Nom!$AQ15 -> 3040.5975 | AH15: =+Data_Clim_Fig_Nom!AH15-Data_Clim_Fig_Nom!$AQ15 -> -2073.9025 | AI15: =+Data_Clim_Fig_Nom!AI15-Data_Clim_Fig_Nom!$AQ15 -> -1626.4025 | AJ15: =+Data_Clim_Fig_Nom!AJ15-Data_Clim_Fig_Nom!$AQ15 -> -2094.3025 | AK15: =+Data_Clim_Fig_Nom!AK15-Data_Clim_Fig_Nom!$AQ15 -> -2265.9025 | AL15: =+Data_Clim_Fig_Nom!AL15-Data_Clim_Fig_Nom!$AQ15 -> 9307.9975 | AM15: =+Data_Clim_Fig_Nom!AM15-Data_Clim_Fig_Nom!$AQ15 -> 3092.0975 | AN15: =+Data_Clim_Fig_Nom!AN15-Data_Clim_Fig_Nom!$AQ15 -> -2072.0025 | AO15: =+Data_Clim_Fig_Nom!AO15-Data_Clim_Fig_Nom!$AQ15 -> 2744.6975 | AP15: =+Data_Clim_Fig_Nom!AP15-Data_Clim_Fig_Nom!$AQ15 -> 7304.9975 | AQ15: -1.023181539e-13
A16: =+Data_Clim!A14 -> 2021-01-13 | B16: =+Data_Clim_Fig_Nom!B16-Data_Clim_Fig_Nom!$AQ16 -> -2970.785 | C16: =+Data_Clim_Fig_Nom!C16-Data_Clim_Fig_Nom!$AQ16 -> 569.515 | D16: =+Data_Clim_Fig_Nom!D16-Data_Clim_Fig_Nom!$AQ16 -> -2980.885 | E16: =+Data_Clim_Fig_Nom!E16-Data_Clim_Fig_Nom!$AQ16 -> -1168.185 | F16: =+Data_Clim_Fig_Nom!F16-Data_Clim_Fig_Nom!$AQ16 -> 1353.915 | G16: =+Data_Clim_Fig_Nom!G16-Data_Clim_Fig_Nom!$AQ16 -> -1849.685 | H16: =+Data_Clim_Fig_Nom!H16-Data_Clim_Fig_Nom!$AQ16 -> 12438.715 | I16: =+Data_Clim_Fig_Nom!I16-Data_Clim_Fig_Nom!$AQ16 -> -2564.685 | J16: =+Data_Clim_Fig_Nom!J16-Data_Clim_Fig_Nom!$AQ16 -> -3035.285 | K16: =+Data_Clim_Fig_Nom!K16-Data_Clim_Fig_Nom!$AQ16 -> -121.285 | L16: =+Data_Clim_Fig_Nom!L16-Data_Clim_Fig_Nom!$AQ16 -> -2953.685 | M16: =+Data_Clim_Fig_Nom!M16-Data_Clim_Fig_Nom!$AQ16 -> 2748.615 | N16: =+Data_Clim_Fig_Nom!N16-Data_Clim_Fig_Nom!$AQ16 -> -2891.185 | O16: =+Data_Clim_Fig_Nom!O16-Data_Clim_Fig_Nom!$AQ16 -> -2990.585 | P16: =+Data_Clim_Fig_Nom!P16-Data_Clim_Fig_Nom!$AQ16 -> 326.915 | Q16: =+Data_Clim_Fig_Nom!Q16-Data_Clim_Fig_Nom!$AQ16 -> -1681.585 | R16: =+Data_Clim_Fig_Nom!R16-Data_Clim_Fig_Nom!$AQ16 -> -2974.085 | S16: =+Data_Clim_Fig_Nom!S16-Data_Clim_Fig_Nom!$AQ16 -> -3019.585 | T16: =+Data_Clim_Fig_Nom!T16-Data_Clim_Fig_Nom!$AQ16 -> -2997.485 | U16: =+Data_Clim_Fig_Nom!U16-Data_Clim_Fig_Nom!$AQ16 -> 2214.815 | V16: =+Data_Clim_Fig_Nom!V16-Data_Clim_Fig_Nom!$AQ16 -> -3028.485 | W16: =+Data_Clim_Fig_Nom!W16-Data_Clim_Fig_Nom!$AQ16 -> -3099.485 | X16: =+Data_Clim_Fig_Nom!X16-Data_Clim_Fig_Nom!$AQ16 -> -2850.285 | Y16: =+Data_Clim_Fig_Nom!Y16-Data_Clim_Fig_Nom!$AQ16 -> -11.685 | Z16: =+Data_Clim_Fig_Nom!Z16-Data_Clim_Fig_Nom!$AQ16 -> 27551.015 | AA16: =+Data_Clim_Fig_Nom!AA16-Data_Clim_Fig_Nom!$AQ16 -> -1651.785 | AB16: =+Data_Clim_Fig_Nom!AB16-Data_Clim_Fig_Nom!$AQ16 -> -2951.385 | AC16: =+Data_Clim_Fig_Nom!AC16-Data_Clim_Fig_Nom!$AQ16 -> -2977.185 | AD16: =+Data_Clim_Fig_Nom!AD16-Data_Clim_Fig_Nom!$AQ16 -> -2815.485 | AE16: =+Data_Clim_Fig_Nom!AE16-Data_Clim_Fig_Nom!$AQ16 -> -2950.985 | AF16: =+Data_Clim_Fig_Nom!AF16-Data_Clim_Fig_Nom!$AQ16 -> -1329.185 | AG16: =+Data_Clim_Fig_Nom!AG16-Data_Clim_Fig_Nom!$AQ16 -> 3450.015 | AH16: =+Data_Clim_Fig_Nom!AH16-Data_Clim_Fig_Nom!$AQ16 -> -849.785 | AI16: =+Data_Clim_Fig_Nom!AI16-Data_Clim_Fig_Nom!$AQ16 -> -2834.485 | AJ16: =+Data_Clim_Fig_Nom!AJ16-Data_Clim_Fig_Nom!$AQ16 -> -1645.085 | AK16: =+Data_Clim_Fig_Nom!AK16-Data_Clim_Fig_Nom!$AQ16 -> -3139.385 | AL16: =+Data_Clim_Fig_Nom!AL16-Data_Clim_Fig_Nom!$AQ16 -> 2046.015 | AM16: =+Data_Clim_Fig_Nom!AM16-Data_Clim_Fig_Nom!$AQ16 -> 193.415 | AN16: =+Data_Clim_Fig_Nom!AN16-Data_Clim_Fig_Nom!$AQ16 -> -3012.285 | AO16: =+Data_Clim_Fig_Nom!AO16-Data_Clim_Fig_Nom!$AQ16 -> 16453.015 | AP16: =+Data_Clim_Fig_Nom!AP16-Data_Clim_Fig_Nom!$AQ16 -> 4282.915 | AQ16: 0
A17: =+Data_Clim!A15 -> 2021-01-14 | B17: =+Data_Clim_Fig_Nom!B17-Data_Clim_Fig_Nom!$AQ17 -> -2219.11 | C17: =+Data_Clim_Fig_Nom!C17-Data_Clim_Fig_Nom!$AQ17 -> -1587.51 | D17: =+Data_Clim_Fig_Nom!D17-Data_Clim_Fig_Nom!$AQ17 -> -2220.11 | E17: =+Data_Clim_Fig_Nom!E17-Data_Clim_Fig_Nom!$AQ17 -> 3832.89 | F17: =+Data_Clim_Fig_Nom!F17-Data_Clim_Fig_Nom!$AQ17 -> 9639.79 | G17: =+Data_Clim_Fig_Nom!G17-Data_Clim_Fig_Nom!$AQ17 -> -1821.71 | H17: =+Data_Clim_Fig_Nom!H17-Data_Clim_Fig_Nom!$AQ17 -> 6499.59 | I17: =+Data_Clim_Fig_Nom!I17-Data_Clim_Fig_Nom!$AQ17 -> -2171.01 | J17: =+Data_Clim_Fig_Nom!J17-Data_Clim_Fig_Nom!$AQ17 -> -2237.01 | K17: =+Data_Clim_Fig_Nom!K17-Data_Clim_Fig_Nom!$AQ17 -> -1340.11 | L17: =+Data_Clim_Fig_Nom!L17-Data_Clim_Fig_Nom!$AQ17 -> -2166.21 | M17: =+Data_Clim_Fig_Nom!M17-Data_Clim_Fig_Nom!$AQ17 -> -1755.51 | N17: =+Data_Clim_Fig_Nom!N17-Data_Clim_Fig_Nom!$AQ17 -> -2165.51 | O17: =+Data_Clim_Fig_Nom!O17-Data_Clim_Fig_Nom!$AQ17 -> 2410.29 | P17: =+Data_Clim_Fig_Nom!P17-Data_Clim_Fig_Nom!$AQ17 -> 9214.69 | Q17: =+Data_Clim_Fig_Nom!Q17-Data_Clim_Fig_Nom!$AQ17 -> -2238.81 | R17: =+Data_Clim_Fig_Nom!R17-Data_Clim_Fig_Nom!$AQ17 -> -2237.11 | S17: =+Data_Clim_Fig_Nom!S17-Data_Clim_Fig_Nom!$AQ17 -> -2229.01 | T17: =+Data_Clim_Fig_Nom!T17-Data_Clim_Fig_Nom!$AQ17 -> -2001.21 | U17: =+Data_Clim_Fig_Nom!U17-Data_Clim_Fig_Nom!$AQ17 -> 498.09 | V17: =+Data_Clim_Fig_Nom!V17-Data_Clim_Fig_Nom!$AQ17 -> -2275.91 | W17: =+Data_Clim_Fig_Nom!W17-Data_Clim_Fig_Nom!$AQ17 -> -2314.31 | X17: =+Data_Clim_Fig_Nom!X17-Data_Clim_Fig_Nom!$AQ17 -> -2214.81 | Y17: =+Data_Clim_Fig_Nom!Y17-Data_Clim_Fig_Nom!$AQ17 -> -961.91 | Z17: =+Data_Clim_Fig_Nom!Z17-Data_Clim_Fig_Nom!$AQ17 -> 1942.99 | AA17: =+Data_Clim_Fig_Nom!AA17-Data_Clim_Fig_Nom!$AQ17 -> -2151.51 | AB17: =+Data_Clim_Fig_Nom!AB17-Data_Clim_Fig_Nom!$AQ17 -> -2214.51 | AC17: =+Data_Clim_Fig_Nom!AC17-Data_Clim_Fig_Nom!$AQ17 -> -1969.81 | AD17: =+Data_Clim_Fig_Nom!AD17-Data_Clim_Fig_Nom!$AQ17 -> -1601.21 | AE17: =+Data_Clim_Fig_Nom!AE17-Data_Clim_Fig_Nom!$AQ17 -> -252.51 | AF17: =+Data_Clim_Fig_Nom!AF17-Data_Clim_Fig_Nom!$AQ17 -> -2101.71 | AG17: =+Data_Clim_Fig_Nom!AG17-Data_Clim_Fig_Nom!$AQ17 -> -1735.21 | AH17: =+Data_Clim_Fig_Nom!AH17-Data_Clim_Fig_Nom!$AQ17 -> -2089.51 | AI17: =+Data_Clim_Fig_Nom!AI17-Data_Clim_Fig_Nom!$AQ17 -> -1458.11 | AJ17: =+Data_Clim_Fig_Nom!AJ17-Data_Clim_Fig_Nom!$AQ17 -> 5337.89 | AK17: =+Data_Clim_Fig_Nom!AK17-Data_Clim_Fig_Nom!$AQ17 -> 5412.09 | AL17: =+Data_Clim_Fig_Nom!AL17-Data_Clim_Fig_Nom!$AQ17 -> -460.51 | AM17: =+Data_Clim_Fig_Nom!AM17-Data_Clim_Fig_Nom!$AQ17 -> 3734.49 | AN17: =+Data_Clim_Fig_Nom!AN17-Data_Clim_Fig_Nom!$AQ17 -> -2139.11 | AO17: =+Data_Clim_Fig_Nom!AO17-Data_Clim_Fig_Nom!$AQ17 -> 5807.79 | AP17: =+Data_Clim_Fig_Nom!AP17-Data_Clim_Fig_Nom!$AQ17 -> 22732.39 | AQ17: 2.046363079e-13
A18: =+Data_Clim!A16 -> 2021-01-15 | B18: =+Data_Clim_Fig_Nom!B18-Data_Clim_Fig_Nom!$AQ18 -> -1349.835 | C18: =+Data_Clim_Fig_Nom!C18-Data_Clim_Fig_Nom!$AQ18 -> 11252.765 | D18: =+Data_Clim_Fig_Nom!D18-Data_Clim_Fig_Nom!$AQ18 -> -1319.735 | E18: =+Data_Clim_Fig_Nom!E18-Data_Clim_Fig_Nom!$AQ18 -> 7662.365 | F18: =+Data_Clim_Fig_Nom!F18-Data_Clim_Fig_Nom!$AQ18 -> 2998.565 | G18: =+Data_Clim_Fig_Nom!G18-Data_Clim_Fig_Nom!$AQ18 -> -1159.235 | H18: =+Data_Clim_Fig_Nom!H18-Data_Clim_Fig_Nom!$AQ18 -> 6482.265 | I18: =+Data_Clim_Fig_Nom!I18-Data_Clim_Fig_Nom!$AQ18 -> -87.435 | J18: =+Data_Clim_Fig_Nom!J18-Data_Clim_Fig_Nom!$AQ18 -> -1324.835 | K18: =+Data_Clim_Fig_Nom!K18-Data_Clim_Fig_Nom!$AQ18 -> -1105.235 | L18: =+Data_Clim_Fig_Nom!L18-Data_Clim_Fig_Nom!$AQ18 -> -1140.435 | M18: =+Data_Clim_Fig_Nom!M18-Data_Clim_Fig_Nom!$AQ18 -> -1480.135 | N18: =+Data_Clim_Fig_Nom!N18-Data_Clim_Fig_Nom!$AQ18 -> -1208.235 | O18: =+Data_Clim_Fig_Nom!O18-Data_Clim_Fig_Nom!$AQ18 -> -1351.035 | P18: =+Data_Clim_Fig_Nom!P18-Data_Clim_Fig_Nom!$AQ18 -> 1337.365 | Q18: =+Data_Clim_Fig_Nom!Q18-Data_Clim_Fig_Nom!$AQ18 -> -1225.535 | R18: =+Data_Clim_Fig_Nom!R18-Data_Clim_Fig_Nom!$AQ18 -> -1365.235 | S18: =+Data_Clim_Fig_Nom!S18-Data_Clim_Fig_Nom!$AQ18 -> -1310.535 | T18: =+Data_Clim_Fig_Nom!T18-Data_Clim_Fig_Nom!$AQ18 -> -1031.435 | U18: =+Data_Clim_Fig_Nom!U18-Data_Clim_Fig_Nom!$AQ18 -> -1439.035 | V18: =+Data_Clim_Fig_Nom!V18-Data_Clim_Fig_Nom!$AQ18 -> -1379.535 | W18: =+Data_Clim_Fig_Nom!W18-Data_Clim_Fig_Nom!$AQ18 -> -1375.935 | X18: =+Data_Clim_Fig_Nom!X18-Data_Clim_Fig_Nom!$AQ18 -> -1331.135 | Y18: =+Data_Clim_Fig_Nom!Y18-Data_Clim_Fig_Nom!$AQ18 -> -1304.735 | Z18: =+Data_Clim_Fig_Nom!Z18-Data_Clim_Fig_Nom!$AQ18 -> 3540.665 | AA18: =+Data_Clim_Fig_Nom!AA18-Data_Clim_Fig_Nom!$AQ18 -> -1346.235 | AB18: =+Data_Clim_Fig_Nom!AB18-Data_Clim_Fig_Nom!$AQ18 -> -1307.735 | AC18: =+Data_Clim_Fig_Nom!AC18-Data_Clim_Fig_Nom!$AQ18 -> -1333.735 | AD18: =+Data_Clim_Fig_Nom!AD18-Data_Clim_Fig_Nom!$AQ18 -> -1338.835 | AE18: =+Data_Clim_Fig_Nom!AE18-Data_Clim_Fig_Nom!$AQ18 -> -1218.235 | AF18: =+Data_Clim_Fig_Nom!AF18-Data_Clim_Fig_Nom!$AQ18 -> -1315.835 | AG18: =+Data_Clim_Fig_Nom!AG18-Data_Clim_Fig_Nom!$AQ18 -> 105.465 | AH18: =+Data_Clim_Fig_Nom!AH18-Data_Clim_Fig_Nom!$AQ18 -> -1343.135 | AI18: =+Data_Clim_Fig_Nom!AI18-Data_Clim_Fig_Nom!$AQ18 -> -844.535 | AJ18: =+Data_Clim_Fig_Nom!AJ18-Data_Clim_Fig_Nom!$AQ18 -> -1200.835 | AK18: =+Data_Clim_Fig_Nom!AK18-Data_Clim_Fig_Nom!$AQ18 -> -1435.235 | AL18: =+Data_Clim_Fig_Nom!AL18-Data_Clim_Fig_Nom!$AQ18 -> 2556.265 | AM18: =+Data_Clim_Fig_Nom!AM18-Data_Clim_Fig_Nom!$AQ18 -> 1324.865 | AN18: =+Data_Clim_Fig_Nom!AN18-Data_Clim_Fig_Nom!$AQ18 -> -91.335 | AO18: =+Data_Clim_Fig_Nom!AO18-Data_Clim_Fig_Nom!$AQ18 -> -1195.635 | AP18: =+Data_Clim_Fig_Nom!AP18-Data_Clim_Fig_Nom!$AQ18 -> 5265.865 | AQ18: 0
A19: =+Data_Clim!A17 -> 2021-01-16 | B19: =+Data_Clim_Fig_Nom!B19-Data_Clim_Fig_Nom!$AQ19 -> -1560.0475 | C19: =+Data_Clim_Fig_Nom!C19-Data_Clim_Fig_Nom!$AQ19 -> -148.0475 | D19: =+Data_Clim_Fig_Nom!D19-Data_Clim_Fig_Nom!$AQ19 -> -1772.3475 | E19: =+Data_Clim_Fig_Nom!E19-Data_Clim_Fig_Nom!$AQ19 -> 7040.7525 | F19: =+Data_Clim_Fig_Nom!F19-Data_Clim_Fig_Nom!$AQ19 -> 489.1525 | G19: =+Data_Clim_Fig_Nom!G19-Data_Clim_Fig_Nom!$AQ19 -> -1437.2475 | H19: =+Data_Clim_Fig_Nom!H19-Data_Clim_Fig_Nom!$AQ19 -> 3458.0525 | I19: =+Data_Clim_Fig_Nom!I19-Data_Clim_Fig_Nom!$AQ19 -> -1656.8475 | J19: =+Data_Clim_Fig_Nom!J19-Data_Clim_Fig_Nom!$AQ19 -> -1785.6475 | K19: =+Data_Clim_Fig_Nom!K19-Data_Clim_Fig_Nom!$AQ19 -> -1835.4475 | L19: =+Data_Clim_Fig_Nom!L19-Data_Clim_Fig_Nom!$AQ19 -> -1584.4475 | M19: =+Data_Clim_Fig_Nom!M19-Data_Clim_Fig_Nom!$AQ19 -> -1854.0475 | N19: =+Data_Clim_Fig_Nom!N19-Data_Clim_Fig_Nom!$AQ19 -> -1678.5475 | O19: =+Data_Clim_Fig_Nom!O19-Data_Clim_Fig_Nom!$AQ19 -> -1859.2475 | P19: =+Data_Clim_Fig_Nom!P19-Data_Clim_Fig_Nom!$AQ19 -> 76.4525 | Q19: =+Data_Clim_Fig_Nom!Q19-Data_Clim_Fig_Nom!$AQ19 -> -1801.6475 | R19: =+Data_Clim_Fig_Nom!R19-Data_Clim_Fig_Nom!$AQ19 -> -1753.4475 | S19: =+Data_Clim_Fig_Nom!S19-Data_Clim_Fig_Nom!$AQ19 -> -1778.9475 | T19: =+Data_Clim_Fig_Nom!T19-Data_Clim_Fig_Nom!$AQ19 -> 8936.0525 | U19: =+Data_Clim_Fig_Nom!U19-Data_Clim_Fig_Nom!$AQ19 -> -1941.0475 | V19: =+Data_Clim_Fig_Nom!V19-Data_Clim_Fig_Nom!$AQ19 -> -1728.7475 | W19: =+Data_Clim_Fig_Nom!W19-Data_Clim_Fig_Nom!$AQ19 -> -1806.6475 | X19: =+Data_Clim_Fig_Nom!X19-Data_Clim_Fig_Nom!$AQ19 -> -1542.5475 | Y19: =+Data_Clim_Fig_Nom!Y19-Data_Clim_Fig_Nom!$AQ19 -> -1197.2475 | Z19: =+Data_Clim_Fig_Nom!Z19-Data_Clim_Fig_Nom!$AQ19 -> 2767.8525 | AA19: =+Data_Clim_Fig_Nom!AA19-Data_Clim_Fig_Nom!$AQ19 -> -1814.4475 | AB19: =+Data_Clim_Fig_Nom!AB19-Data_Clim_Fig_Nom!$AQ19 -> -1414.3475 | AC19: =+Data_Clim_Fig_Nom!AC19-Data_Clim_Fig_Nom!$AQ19 -> -1823.1475 | AD19: =+Data_Clim_Fig_Nom!AD19-Data_Clim_Fig_Nom!$AQ19 -> 2076.8525 | AE19: =+Data_Clim_Fig_Nom!AE19-Data_Clim_Fig_Nom!$AQ19 -> -1757.2475 | AF19: =+Data_Clim_Fig_Nom!AF19-Data_Clim_Fig_Nom!$AQ19 -> -607.6475 | AG19: =+Data_Clim_Fig_Nom!AG19-Data_Clim_Fig_Nom!$AQ19 -> -1851.4475 | AH19: =+Data_Clim_Fig_Nom!AH19-Data_Clim_Fig_Nom!$AQ19 -> -1841.3475 | AI19: =+Data_Clim_Fig_Nom!AI19-Data_Clim_Fig_Nom!$AQ19 -> -120.9475 | AJ19: =+Data_Clim_Fig_Nom!AJ19-Data_Clim_Fig_Nom!$AQ19 -> 2965.1525 | AK19: =+Data_Clim_Fig_Nom!AK19-Data_Clim_Fig_Nom!$AQ19 -> 2789.2525 | AL19: =+Data_Clim_Fig_Nom!AL19-Data_Clim_Fig_Nom!$AQ19 -> 1608.6525 | AM19: =+Data_Clim_Fig_Nom!AM19-Data_Clim_Fig_Nom!$AQ19 -> -218.5475 | AN19: =+Data_Clim_Fig_Nom!AN19-Data_Clim_Fig_Nom!$AQ19 -> 11801.1525 | AO19: =+Data_Clim_Fig_Nom!AO19-Data_Clim_Fig_Nom!$AQ19 -> -1838.0475 | AP19: =+Data_Clim_Fig_Nom!AP19-Data_Clim_Fig_Nom!$AQ19 -> -639.6475 | AQ19: -4.035882739e-13
A20: =+Data_Clim!A18 -> 2021-01-17 | B20: =+Data_Clim_Fig_Nom!B20-Data_Clim_Fig_Nom!$AQ20 -> -2289.38 | C20: =+Data_Clim_Fig_Nom!C20-Data_Clim_Fig_Nom!$AQ20 -> 6125.22 | D20: =+Data_Clim_Fig_Nom!D20-Data_Clim_Fig_Nom!$AQ20 -> -2307.48 | E20: =+Data_Clim_Fig_Nom!E20-Data_Clim_Fig_Nom!$AQ20 -> -855.38 | F20: =+Data_Clim_Fig_Nom!F20-Data_Clim_Fig_Nom!$AQ20 -> 4381.42 | G20: =+Data_Clim_Fig_Nom!G20-Data_Clim_Fig_Nom!$AQ20 -> -2263.48 | H20: =+Data_Clim_Fig_Nom!H20-Data_Clim_Fig_Nom!$AQ20 -> -945.38 | I20: =+Data_Clim_Fig_Nom!I20-Data_Clim_Fig_Nom!$AQ20 -> -2059.28 | J20: =+Data_Clim_Fig_Nom!J20-Data_Clim_Fig_Nom!$AQ20 -> 1945.12 | K20: =+Data_Clim_Fig_Nom!K20-Data_Clim_Fig_Nom!$AQ20 -> -2391.88 | L20: =+Data_Clim_Fig_Nom!L20-Data_Clim_Fig_Nom!$AQ20 -> -1286.18 | M20: =+Data_Clim_Fig_Nom!M20-Data_Clim_Fig_Nom!$AQ20 -> -2367.18 | N20: =+Data_Clim_Fig_Nom!N20-Data_Clim_Fig_Nom!$AQ20 -> -2306.08 | O20: =+Data_Clim_Fig_Nom!O20-Data_Clim_Fig_Nom!$AQ20 -> -2450.68 | P20: =+Data_Clim_Fig_Nom!P20-Data_Clim_Fig_Nom!$AQ20 -> 1746.02 | Q20: =+Data_Clim_Fig_Nom!Q20-Data_Clim_Fig_Nom!$AQ20 -> -2384.38 | R20: =+Data_Clim_Fig_Nom!R20-Data_Clim_Fig_Nom!$AQ20 -> -2358.38 | S20: =+Data_Clim_Fig_Nom!S20-Data_Clim_Fig_Nom!$AQ20 -> -2327.98 | T20: =+Data_Clim_Fig_Nom!T20-Data_Clim_Fig_Nom!$AQ20 -> -215.38 | U20: =+Data_Clim_Fig_Nom!U20-Data_Clim_Fig_Nom!$AQ20 -> -2416.78 | V20: =+Data_Clim_Fig_Nom!V20-Data_Clim_Fig_Nom!$AQ20 -> -1477.38 | W20: =+Data_Clim_Fig_Nom!W20-Data_Clim_Fig_Nom!$AQ20 -> -2306.38 | X20: =+Data_Clim_Fig_Nom!X20-Data_Clim_Fig_Nom!$AQ20 -> -2165.58 | Y20: =+Data_Clim_Fig_Nom!Y20-Data_Clim_Fig_Nom!$AQ20 -> -2370.38 | Z20: =+Data_Clim_Fig_Nom!Z20-Data_Clim_Fig_Nom!$AQ20 -> 9161.92 | AA20: =+Data_Clim_Fig_Nom!AA20-Data_Clim_Fig_Nom!$AQ20 -> -2367.48 | AB20: =+Data_Clim_Fig_Nom!AB20-Data_Clim_Fig_Nom!$AQ20 -> 8563.52 | AC20: =+Data_Clim_Fig_Nom!AC20-Data_Clim_Fig_Nom!$AQ20 -> -2099.78 | AD20: =+Data_Clim_Fig_Nom!AD20-Data_Clim_Fig_Nom!$AQ20 -> -1472.48 | AE20: =+Data_Clim_Fig_Nom!AE20-Data_Clim_Fig_Nom!$AQ20 -> -2337.18 | AF20: =+Data_Clim_Fig_Nom!AF20-Data_Clim_Fig_Nom!$AQ20 -> 3616.22 | AG20: =+Data_Clim_Fig_Nom!AG20-Data_Clim_Fig_Nom!$AQ20 -> -2405.38 | AH20: =+Data_Clim_Fig_Nom!AH20-Data_Clim_Fig_Nom!$AQ20 -> -2365.48 | AI20: =+Data_Clim_Fig_Nom!AI20-Data_Clim_Fig_Nom!$AQ20 -> 2751.02 | AJ20: =+Data_Clim_Fig_Nom!AJ20-Data_Clim_Fig_Nom!$AQ20 -> 55.32 | AK20: =+Data_Clim_Fig_Nom!AK20-Data_Clim_Fig_Nom!$AQ20 -> 9084.42 | AL20: =+Data_Clim_Fig_Nom!AL20-Data_Clim_Fig_Nom!$AQ20 -> 215.72 | AM20: =+Data_Clim_Fig_Nom!AM20-Data_Clim_Fig_Nom!$AQ20 -> -2069.18 | AN20: =+Data_Clim_Fig_Nom!AN20-Data_Clim_Fig_Nom!$AQ20 -> 6574.22 | AO20: =+Data_Clim_Fig_Nom!AO20-Data_Clim_Fig_Nom!$AQ20 -> 441.82 | AP20: =+Data_Clim_Fig_Nom!AP20-Data_Clim_Fig_Nom!$AQ20 -> 2523.82 | AQ20: 5.684341886e-13
A21: =+Data_Clim!A19 -> 2021-01-18 | B21: =+Data_Clim_Fig_Nom!B21-Data_Clim_Fig_Nom!$AQ21 -> -1725.5825 | C21: =+Data_Clim_Fig_Nom!C21-Data_Clim_Fig_Nom!$AQ21 -> 2810.0175 | D21: =+Data_Clim_Fig_Nom!D21-Data_Clim_Fig_Nom!$AQ21 -> -1718.9825 | E21: =+Data_Clim_Fig_Nom!E21-Data_Clim_Fig_Nom!$AQ21 -> -1587.2825 | F21: =+Data_Clim_Fig_Nom!F21-Data_Clim_Fig_Nom!$AQ21 -> -804.9825 | G21: =+Data_Clim_Fig_Nom!G21-Data_Clim_Fig_Nom!$AQ21 -> -1485.5825 | H21: =+Data_Clim_Fig_Nom!H21-Data_Clim_Fig_Nom!$AQ21 -> 2837.1175 | I21: =+Data_Clim_Fig_Nom!I21-Data_Clim_Fig_Nom!$AQ21 -> -1380.2825 | J21: =+Data_Clim_Fig_Nom!J21-Data_Clim_Fig_Nom!$AQ21 -> -1778.9825 | K21: =+Data_Clim_Fig_Nom!K21-Data_Clim_Fig_Nom!$AQ21 -> -1764.1825 | L21: =+Data_Clim_Fig_Nom!L21-Data_Clim_Fig_Nom!$AQ21 -> 470.5175 | M21: =+Data_Clim_Fig_Nom!M21-Data_Clim_Fig_Nom!$AQ21 -> -1781.2825 | N21: =+Data_Clim_Fig_Nom!N21-Data_Clim_Fig_Nom!$AQ21 -> -1793.8825 | O21: =+Data_Clim_Fig_Nom!O21-Data_Clim_Fig_Nom!$AQ21 -> -1753.8825 | P21: =+Data_Clim_Fig_Nom!P21-Data_Clim_Fig_Nom!$AQ21 -> -1817.4825 | Q21: =+Data_Clim_Fig_Nom!Q21-Data_Clim_Fig_Nom!$AQ21 -> 754.2175 | R21: =+Data_Clim_Fig_Nom!R21-Data_Clim_Fig_Nom!$AQ21 -> -1807.1825 | S21: =+Data_Clim_Fig_Nom!S21-Data_Clim_Fig_Nom!$AQ21 -> -1740.9825 | T21: =+Data_Clim_Fig_Nom!T21-Data_Clim_Fig_Nom!$AQ21 -> 935.5175 | U21: =+Data_Clim_Fig_Nom!U21-Data_Clim_Fig_Nom!$AQ21 -> -1626.6825 | V21: =+Data_Clim_Fig_Nom!V21-Data_Clim_Fig_Nom!$AQ21 -> 2081.5175 | W21: =+Data_Clim_Fig_Nom!W21-Data_Clim_Fig_Nom!$AQ21 -> -1740.4825 | X21: =+Data_Clim_Fig_Nom!X21-Data_Clim_Fig_Nom!$AQ21 -> -1780.9825 | Y21: =+Data_Clim_Fig_Nom!Y21-Data_Clim_Fig_Nom!$AQ21 -> -1795.8825 | Z21: =+Data_Clim_Fig_Nom!Z21-Data_Clim_Fig_Nom!$AQ21 -> 939.7175 | AA21: =+Data_Clim_Fig_Nom!AA21-Data_Clim_Fig_Nom!$AQ21 -> 5843.9175 | AB21: =+Data_Clim_Fig_Nom!AB21-Data_Clim_Fig_Nom!$AQ21 -> 6702.6175 | AC21: =+Data_Clim_Fig_Nom!AC21-Data_Clim_Fig_Nom!$AQ21 -> 2976.8175 | AD21: =+Data_Clim_Fig_Nom!AD21-Data_Clim_Fig_Nom!$AQ21 -> 4869.4175 | AE21: =+Data_Clim_Fig_Nom!AE21-Data_Clim_Fig_Nom!$AQ21 -> 5087.5175 | AF21: =+Data_Clim_Fig_Nom!AF21-Data_Clim_Fig_Nom!$AQ21 -> -1095.6825 | AG21: =+Data_Clim_Fig_Nom!AG21-Data_Clim_Fig_Nom!$AQ21 -> -1669.7825 | AH21: =+Data_Clim_Fig_Nom!AH21-Data_Clim_Fig_Nom!$AQ21 -> -1803.6825 | AI21: =+Data_Clim_Fig_Nom!AI21-Data_Clim_Fig_Nom!$AQ21 -> -1484.8825 | AJ21: =+Data_Clim_Fig_Nom!AJ21-Data_Clim_Fig_Nom!$AQ21 -> -1827.3825 | AK21: =+Data_Clim_Fig_Nom!AK21-Data_Clim_Fig_Nom!$AQ21 -> -1729.3825 | AL21: =+Data_Clim_Fig_Nom!AL21-Data_Clim_Fig_Nom!$AQ21 -> -1780.4825 | AM21: =+Data_Clim_Fig_Nom!AM21-Data_Clim_Fig_Nom!$AQ21 -> -1851.2825 | AN21: =+Data_Clim_Fig_Nom!AN21-Data_Clim_Fig_Nom!$AQ21 -> 7880.3175 | AO21: =+Data_Clim_Fig_Nom!AO21-Data_Clim_Fig_Nom!$AQ21 -> -1062.0825 | AP21: =+Data_Clim_Fig_Nom!AP21-Data_Clim_Fig_Nom!$AQ21 -> -1047.9825 | AQ21: -1.023181539e-13
A22: =+Data_Clim!A20 -> 2021-01-19 | B22: =+Data_Clim_Fig_Nom!B22-Data_Clim_Fig_Nom!$AQ22 -> -2283.755 | C22: =+Data_Clim_Fig_Nom!C22-Data_Clim_Fig_Nom!$AQ22 -> 6255.845 | D22: =+Data_Clim_Fig_Nom!D22-Data_Clim_Fig_Nom!$AQ22 -> -2289.355 | E22: =+Data_Clim_Fig_Nom!E22-Data_Clim_Fig_Nom!$AQ22 -> 50.245 | F22: =+Data_Clim_Fig_Nom!F22-Data_Clim_Fig_Nom!$AQ22 -> 2333.645 | G22: =+Data_Clim_Fig_Nom!G22-Data_Clim_Fig_Nom!$AQ22 -> 10.645 | H22: =+Data_Clim_Fig_Nom!H22-Data_Clim_Fig_Nom!$AQ22 -> 1756.645 | I22: =+Data_Clim_Fig_Nom!I22-Data_Clim_Fig_Nom!$AQ22 -> -2120.455 | J22: =+Data_Clim_Fig_Nom!J22-Data_Clim_Fig_Nom!$AQ22 -> -2348.955 | K22: =+Data_Clim_Fig_Nom!K22-Data_Clim_Fig_Nom!$AQ22 -> -2332.955 | L22: =+Data_Clim_Fig_Nom!L22-Data_Clim_Fig_Nom!$AQ22 -> -2360.255 | M22: =+Data_Clim_Fig_Nom!M22-Data_Clim_Fig_Nom!$AQ22 -> -351.755 | N22: =+Data_Clim_Fig_Nom!N22-Data_Clim_Fig_Nom!$AQ22 -> 1212.845 | O22: =+Data_Clim_Fig_Nom!O22-Data_Clim_Fig_Nom!$AQ22 -> -2234.955 | P22: =+Data_Clim_Fig_Nom!P22-Data_Clim_Fig_Nom!$AQ22 -> -2328.855 | Q22: =+Data_Clim_Fig_Nom!Q22-Data_Clim_Fig_Nom!$AQ22 -> 144.145 | R22: =+Data_Clim_Fig_Nom!R22-Data_Clim_Fig_Nom!$AQ22 -> -2318.155 | S22: =+Data_Clim_Fig_Nom!S22-Data_Clim_Fig_Nom!$AQ22 -> 1859.545 | T22: =+Data_Clim_Fig_Nom!T22-Data_Clim_Fig_Nom!$AQ22 -> 8966.645 | U22: =+Data_Clim_Fig_Nom!U22-Data_Clim_Fig_Nom!$AQ22 -> -2314.355 | V22: =+Data_Clim_Fig_Nom!V22-Data_Clim_Fig_Nom!$AQ22 -> -1732.055 | W22: =+Data_Clim_Fig_Nom!W22-Data_Clim_Fig_Nom!$AQ22 -> -1529.955 | X22: =+Data_Clim_Fig_Nom!X22-Data_Clim_Fig_Nom!$AQ22 -> -1802.555 | Y22: =+Data_Clim_Fig_Nom!Y22-Data_Clim_Fig_Nom!$AQ22 -> -1939.755 | Z22: =+Data_Clim_Fig_Nom!Z22-Data_Clim_Fig_Nom!$AQ22 -> -605.655 | AA22: =+Data_Clim_Fig_Nom!AA22-Data_Clim_Fig_Nom!$AQ22 -> -629.055 | AB22: =+Data_Clim_Fig_Nom!AB22-Data_Clim_Fig_Nom!$AQ22 -> -1843.655 | AC22: =+Data_Clim_Fig_Nom!AC22-Data_Clim_Fig_Nom!$AQ22 -> 7054.045 | AD22: =+Data_Clim_Fig_Nom!AD22-Data_Clim_Fig_Nom!$AQ22 -> -2316.055 | AE22: =+Data_Clim_Fig_Nom!AE22-Data_Clim_Fig_Nom!$AQ22 -> 2925.545 | AF22: =+Data_Clim_Fig_Nom!AF22-Data_Clim_Fig_Nom!$AQ22 -> -2209.155 | AG22: =+Data_Clim_Fig_Nom!AG22-Data_Clim_Fig_Nom!$AQ22 -> 1490.945 | AH22: =+Data_Clim_Fig_Nom!AH22-Data_Clim_Fig_Nom!$AQ22 -> 7477.945 | AI22: =+Data_Clim_Fig_Nom!AI22-Data_Clim_Fig_Nom!$AQ22 -> -868.255 | AJ22: =+Data_Clim_Fig_Nom!AJ22-Data_Clim_Fig_Nom!$AQ22 -> -2221.955 | AK22: =+Data_Clim_Fig_Nom!AK22-Data_Clim_Fig_Nom!$AQ22 -> -1641.055 | AL22: =+Data_Clim_Fig_Nom!AL22-Data_Clim_Fig_Nom!$AQ22 -> -1405.155 | AM22: =+Data_Clim_Fig_Nom!AM22-Data_Clim_Fig_Nom!$AQ22 -> -2324.455 | AN22: =+Data_Clim_Fig_Nom!AN22-Data_Clim_Fig_Nom!$AQ22 -> 7122.645 | AO22: =+Data_Clim_Fig_Nom!AO22-Data_Clim_Fig_Nom!$AQ22 -> -2308.755 | AP22: =+Data_Clim_Fig_Nom!AP22-Data_Clim_Fig_Nom!$AQ22 -> -1901.155 | AQ22: 0
A23: =+Data_Clim!A21 -> 2021-01-20 | B23: =+Data_Clim_Fig_Nom!B23-Data_Clim_Fig_Nom!$AQ23 -> -2748.525 | C23: =+Data_Clim_Fig_Nom!C23-Data_Clim_Fig_Nom!$AQ23 -> 3807.075 | D23: =+Data_Clim_Fig_Nom!D23-Data_Clim_Fig_Nom!$AQ23 -> -2863.125 | E23: =+Data_Clim_Fig_Nom!E23-Data_Clim_Fig_Nom!$AQ23 -> -511.725 | F23: =+Data_Clim_Fig_Nom!F23-Data_Clim_Fig_Nom!$AQ23 -> 1613.975 | G23: =+Data_Clim_Fig_Nom!G23-Data_Clim_Fig_Nom!$AQ23 -> -2244.925 | H23: =+Data_Clim_Fig_Nom!H23-Data_Clim_Fig_Nom!$AQ23 -> 1731.975 | I23: =+Data_Clim_Fig_Nom!I23-Data_Clim_Fig_Nom!$AQ23 -> -2814.325 | J23: =+Data_Clim_Fig_Nom!J23-Data_Clim_Fig_Nom!$AQ23 -> -2923.425 | K23: =+Data_Clim_Fig_Nom!K23-Data_Clim_Fig_Nom!$AQ23 -> -2931.725 | L23: =+Data_Clim_Fig_Nom!L23-Data_Clim_Fig_Nom!$AQ23 -> -1141.925 | M23: =+Data_Clim_Fig_Nom!M23-Data_Clim_Fig_Nom!$AQ23 -> -2315.725 | N23: =+Data_Clim_Fig_Nom!N23-Data_Clim_Fig_Nom!$AQ23 -> 1333.175 | O23: =+Data_Clim_Fig_Nom!O23-Data_Clim_Fig_Nom!$AQ23 -> -2978.325 | P23: =+Data_Clim_Fig_Nom!P23-Data_Clim_Fig_Nom!$AQ23 -> -2743.425 | Q23: =+Data_Clim_Fig_Nom!Q23-Data_Clim_Fig_Nom!$AQ23 -> -305.325 | R23: =+Data_Clim_Fig_Nom!R23-Data_Clim_Fig_Nom!$AQ23 -> -2883.525 | S23: =+Data_Clim_Fig_Nom!S23-Data_Clim_Fig_Nom!$AQ23 -> -209.525 | T23: =+Data_Clim_Fig_Nom!T23-Data_Clim_Fig_Nom!$AQ23 -> 5045.975 | U23: =+Data_Clim_Fig_Nom!U23-Data_Clim_Fig_Nom!$AQ23 -> -2913.825 | V23: =+Data_Clim_Fig_Nom!V23-Data_Clim_Fig_Nom!$AQ23 -> -2750.825 | W23: =+Data_Clim_Fig_Nom!W23-Data_Clim_Fig_Nom!$AQ23 -> -1347.625 | X23: =+Data_Clim_Fig_Nom!X23-Data_Clim_Fig_Nom!$AQ23 -> -1451.525 | Y23: =+Data_Clim_Fig_Nom!Y23-Data_Clim_Fig_Nom!$AQ23 -> -2926.725 | Z23: =+Data_Clim_Fig_Nom!Z23-Data_Clim_Fig_Nom!$AQ23 -> 10844.975 | AA23: =+Data_Clim_Fig_Nom!AA23-Data_Clim_Fig_Nom!$AQ23 -> 5443.975 | AB23: =+Data_Clim_Fig_Nom!AB23-Data_Clim_Fig_Nom!$AQ23 -> -2394.925 | AC23: =+Data_Clim_Fig_Nom!AC23-Data_Clim_Fig_Nom!$AQ23 -> -2994.625 | AD23: =+Data_Clim_Fig_Nom!AD23-Data_Clim_Fig_Nom!$AQ23 -> -2952.625 | AE23: =+Data_Clim_Fig_Nom!AE23-Data_Clim_Fig_Nom!$AQ23 -> 4284.375 | AF23: =+Data_Clim_Fig_Nom!AF23-Data_Clim_Fig_Nom!$AQ23 -> -1340.825 | AG23: =+Data_Clim_Fig_Nom!AG23-Data_Clim_Fig_Nom!$AQ23 -> 1969.175 | AH23: =+Data_Clim_Fig_Nom!AH23-Data_Clim_Fig_Nom!$AQ23 -> 12707.175 | AI23: =+Data_Clim_Fig_Nom!AI23-Data_Clim_Fig_Nom!$AQ23 -> -985.025 | AJ23: =+Data_Clim_Fig_Nom!AJ23-Data_Clim_Fig_Nom!$AQ23 -> -894.825 | AK23: =+Data_Clim_Fig_Nom!AK23-Data_Clim_Fig_Nom!$AQ23 -> 784.675 | AL23: =+Data_Clim_Fig_Nom!AL23-Data_Clim_Fig_Nom!$AQ23 -> -1887.825 | AM23: =+Data_Clim_Fig_Nom!AM23-Data_Clim_Fig_Nom!$AQ23 -> -2893.225 | AN23: =+Data_Clim_Fig_Nom!AN23-Data_Clim_Fig_Nom!$AQ23 -> 10478.375 | AO23: =+Data_Clim_Fig_Nom!AO23-Data_Clim_Fig_Nom!$AQ23 -> -2694.925 | AP23: =+Data_Clim_Fig_Nom!AP23-Data_Clim_Fig_Nom!$AQ23 -> -2936.925 | AQ23: -3.97903932e-13
A24: =+Data_Clim!A22 -> 2021-01-21 | B24: =+Data_Clim_Fig_Nom!B24-Data_Clim_Fig_Nom!$AQ24 -> -1447.12 | C24: =+Data_Clim_Fig_Nom!C24-Data_Clim_Fig_Nom!$AQ24 -> -1383.32 | D24: =+Data_Clim_Fig_Nom!D24-Data_Clim_Fig_Nom!$AQ24 -> -1539.52 | E24: =+Data_Clim_Fig_Nom!E24-Data_Clim_Fig_Nom!$AQ24 -> -1279.72 | F24: =+Data_Clim_Fig_Nom!F24-Data_Clim_Fig_Nom!$AQ24 -> 1201.28 | G24: =+Data_Clim_Fig_Nom!G24-Data_Clim_Fig_Nom!$AQ24 -> 358.18 | H24: =+Data_Clim_Fig_Nom!H24-Data_Clim_Fig_Nom!$AQ24 -> -1977.82 | I24: =+Data_Clim_Fig_Nom!I24-Data_Clim_Fig_Nom!$AQ24 -> -1838.22 | J24: =+Data_Clim_Fig_Nom!J24-Data_Clim_Fig_Nom!$AQ24 -> 2560.18 | K24: =+Data_Clim_Fig_Nom!K24-Data_Clim_Fig_Nom!$AQ24 -> -1796.82 | L24: =+Data_Clim_Fig_Nom!L24-Data_Clim_Fig_Nom!$AQ24 -> -1794.22 | M24: =+Data_Clim_Fig_Nom!M24-Data_Clim_Fig_Nom!$AQ24 -> 1040.18 | N24: =+Data_Clim_Fig_Nom!N24-Data_Clim_Fig_Nom!$AQ24 -> -2021.12 | O24: =+Data_Clim_Fig_Nom!O24-Data_Clim_Fig_Nom!$AQ24 -> -1864.02 | P24: =+Data_Clim_Fig_Nom!P24-Data_Clim_Fig_Nom!$AQ24 -> -1807.72 | Q24: =+Data_Clim_Fig_Nom!Q24-Data_Clim_Fig_Nom!$AQ24 -> -1590.42 | R24: =+Data_Clim_Fig_Nom!R24-Data_Clim_Fig_Nom!$AQ24 -> -1865.52 | S24: =+Data_Clim_Fig_Nom!S24-Data_Clim_Fig_Nom!$AQ24 -> 146.68 | T24: =+Data_Clim_Fig_Nom!T24-Data_Clim_Fig_Nom!$AQ24 -> -408.92 | U24: =+Data_Clim_Fig_Nom!U24-Data_Clim_Fig_Nom!$AQ24 -> -1924.82 | V24: =+Data_Clim_Fig_Nom!V24-Data_Clim_Fig_Nom!$AQ24 -> 1168.18 | W24: =+Data_Clim_Fig_Nom!W24-Data_Clim_Fig_Nom!$AQ24 -> -1582.42 | X24: =+Data_Clim_Fig_Nom!X24-Data_Clim_Fig_Nom!$AQ24 -> 266.88 | Y24: =+Data_Clim_Fig_Nom!Y24-Data_Clim_Fig_Nom!$AQ24 -> -385.32 | Z24: =+Data_Clim_Fig_Nom!Z24-Data_Clim_Fig_Nom!$AQ24 -> -939.32 | AA24: =+Data_Clim_Fig_Nom!AA24-Data_Clim_Fig_Nom!$AQ24 -> 12201.28 | AB24: =+Data_Clim_Fig_Nom!AB24-Data_Clim_Fig_Nom!$AQ24 -> 677.08 | AC24: =+Data_Clim_Fig_Nom!AC24-Data_Clim_Fig_Nom!$AQ24 -> 544.98 | AD24: =+Data_Clim_Fig_Nom!AD24-Data_Clim_Fig_Nom!$AQ24 -> -1959.42 | AE24: =+Data_Clim_Fig_Nom!AE24-Data_Clim_Fig_Nom!$AQ24 -> 1150.08 | AF24: =+Data_Clim_Fig_Nom!AF24-Data_Clim_Fig_Nom!$AQ24 -> 58.88 | AG24: =+Data_Clim_Fig_Nom!AG24-Data_Clim_Fig_Nom!$AQ24 -> -1349.72 | AH24: =+Data_Clim_Fig_Nom!AH24-Data_Clim_Fig_Nom!$AQ24 -> 10586.48 | AI24: =+Data_Clim_Fig_Nom!AI24-Data_Clim_Fig_Nom!$AQ24 -> -61.02 | AJ24: =+Data_Clim_Fig_Nom!AJ24-Data_Clim_Fig_Nom!$AQ24 -> 1205.98 | AK24: =+Data_Clim_Fig_Nom!AK24-Data_Clim_Fig_Nom!$AQ24 -> -1951.92 | AL24: =+Data_Clim_Fig_Nom!AL24-Data_Clim_Fig_Nom!$AQ24 -> -1829.42 | AM24: =+Data_Clim_Fig_Nom!AM24-Data_Clim_Fig_Nom!$AQ24 -> -1878.22 | AN24: =+Data_Clim_Fig_Nom!AN24-Data_Clim_Fig_Nom!$AQ24 -> 5154.08 | AO24: =+Data_Clim_Fig_Nom!AO24-Data_Clim_Fig_Nom!$AQ24 -> -1844.32 | AP24: =+Data_Clim_Fig_Nom!AP24-Data_Clim_Fig_Nom!$AQ24 -> -715.02 | AQ24: -2.671640686e-13
A25: =+Data_Clim!A23 -> 2021-01-22 | B25: =+Data_Clim_Fig_Nom!B25-Data_Clim_Fig_Nom!$AQ25 -> 11723.185 | C25: =+Data_Clim_Fig_Nom!C25-Data_Clim_Fig_Nom!$AQ25 -> -2410.115 | D25: =+Data_Clim_Fig_Nom!D25-Data_Clim_Fig_Nom!$AQ25 -> -1290.015 | E25: =+Data_Clim_Fig_Nom!E25-Data_Clim_Fig_Nom!$AQ25 -> -2167.515 | F25: =+Data_Clim_Fig_Nom!F25-Data_Clim_Fig_Nom!$AQ25 -> 3223.485 | G25: =+Data_Clim_Fig_Nom!G25-Data_Clim_Fig_Nom!$AQ25 -> 7237.985 | H25: =+Data_Clim_Fig_Nom!H25-Data_Clim_Fig_Nom!$AQ25 -> -1067.215 | I25: =+Data_Clim_Fig_Nom!I25-Data_Clim_Fig_Nom!$AQ25 -> -2432.015 | J25: =+Data_Clim_Fig_Nom!J25-Data_Clim_Fig_Nom!$AQ25 -> 315.085 | K25: =+Data_Clim_Fig_Nom!K25-Data_Clim_Fig_Nom!$AQ25 -> -765.815 | L25: =+Data_Clim_Fig_Nom!L25-Data_Clim_Fig_Nom!$AQ25 -> -2467.815 | M25: =+Data_Clim_Fig_Nom!M25-Data_Clim_Fig_Nom!$AQ25 -> -1905.015 | N25: =+Data_Clim_Fig_Nom!N25-Data_Clim_Fig_Nom!$AQ25 -> -2433.015 | O25: =+Data_Clim_Fig_Nom!O25-Data_Clim_Fig_Nom!$AQ25 -> -1094.615 | P25: =+Data_Clim_Fig_Nom!P25-Data_Clim_Fig_Nom!$AQ25 -> -2490.415 | Q25: =+Data_Clim_Fig_Nom!Q25-Data_Clim_Fig_Nom!$AQ25 -> 2788.985 | R25: =+Data_Clim_Fig_Nom!R25-Data_Clim_Fig_Nom!$AQ25 -> -2477.915 | S25: =+Data_Clim_Fig_Nom!S25-Data_Clim_Fig_Nom!$AQ25 -> -2077.915 | T25: =+Data_Clim_Fig_Nom!T25-Data_Clim_Fig_Nom!$AQ25 -> -2016.315 | U25: =+Data_Clim_Fig_Nom!U25-Data_Clim_Fig_Nom!$AQ25 -> -2473.515 | V25: =+Data_Clim_Fig_Nom!V25-Data_Clim_Fig_Nom!$AQ25 -> 4268.285 | W25: =+Data_Clim_Fig_Nom!W25-Data_Clim_Fig_Nom!$AQ25 -> -1155.215 | X25: =+Data_Clim_Fig_Nom!X25-Data_Clim_Fig_Nom!$AQ25 -> -2516.015 | Y25: =+Data_Clim_Fig_Nom!Y25-Data_Clim_Fig_Nom!$AQ25 -> -949.315 | Z25: =+Data_Clim_Fig_Nom!Z25-Data_Clim_Fig_Nom!$AQ25 -> -2460.215 | AA25: =+Data_Clim_Fig_Nom!AA25-Data_Clim_Fig_Nom!$AQ25 -> -669.015 | AB25: =+Data_Clim_Fig_Nom!AB25-Data_Clim_Fig_Nom!$AQ25 -> -994.515 | AC25: =+Data_Clim_Fig_Nom!AC25-Data_Clim_Fig_Nom!$AQ25 -> -123.115 | AD25: =+Data_Clim_Fig_Nom!AD25-Data_Clim_Fig_Nom!$AQ25 -> 7089.685 | AE25: =+Data_Clim_Fig_Nom!AE25-Data_Clim_Fig_Nom!$AQ25 -> -2425.015 | AF25: =+Data_Clim_Fig_Nom!AF25-Data_Clim_Fig_Nom!$AQ25 -> -2364.015 | AG25: =+Data_Clim_Fig_Nom!AG25-Data_Clim_Fig_Nom!$AQ25 -> -2460.615 | AH25: =+Data_Clim_Fig_Nom!AH25-Data_Clim_Fig_Nom!$AQ25 -> 1904.685 | AI25: =+Data_Clim_Fig_Nom!AI25-Data_Clim_Fig_Nom!$AQ25 -> -2013.815 | AJ25: =+Data_Clim_Fig_Nom!AJ25-Data_Clim_Fig_Nom!$AQ25 -> -2465.415 | AK25: =+Data_Clim_Fig_Nom!AK25-Data_Clim_Fig_Nom!$AQ25 -> -2404.015 | AL25: =+Data_Clim_Fig_Nom!AL25-Data_Clim_Fig_Nom!$AQ25 -> -2421.415 | AM25: =+Data_Clim_Fig_Nom!AM25-Data_Clim_Fig_Nom!$AQ25 -> -2462.315 | AN25: =+Data_Clim_Fig_Nom!AN25-Data_Clim_Fig_Nom!$AQ25 -> 21320.285 | AO25: =+Data_Clim_Fig_Nom!AO25-Data_Clim_Fig_Nom!$AQ25 -> -2418.415 | AP25: =+Data_Clim_Fig_Nom!AP25-Data_Clim_Fig_Nom!$AQ25 -> 4563.485 | AQ25: 7.730704965e-13
A26: =+Data_Clim!A24 -> 2021-01-23 | B26: =+Data_Clim_Fig_Nom!B26-Data_Clim_Fig_Nom!$AQ26 -> 1299.5625 | C26: =+Data_Clim_Fig_Nom!C26-Data_Clim_Fig_Nom!$AQ26 -> -2848.4375 | D26: =+Data_Clim_Fig_Nom!D26-Data_Clim_Fig_Nom!$AQ26 -> -1132.6375 | E26: =+Data_Clim_Fig_Nom!E26-Data_Clim_Fig_Nom!$AQ26 -> -2841.9375 | F26: =+Data_Clim_Fig_Nom!F26-Data_Clim_Fig_Nom!$AQ26 -> 7664.9625 | G26: =+Data_Clim_Fig_Nom!G26-Data_Clim_Fig_Nom!$AQ26 -> 10502.5625 | H26: =+Data_Clim_Fig_Nom!H26-Data_Clim_Fig_Nom!$AQ26 -> 17524.4625 | I26: =+Data_Clim_Fig_Nom!I26-Data_Clim_Fig_Nom!$AQ26 -> -1814.6375 | J26: =+Data_Clim_Fig_Nom!J26-Data_Clim_Fig_Nom!$AQ26 -> -1179.5375 | K26: =+Data_Clim_Fig_Nom!K26-Data_Clim_Fig_Nom!$AQ26 -> -2844.0375 | L26: =+Data_Clim_Fig_Nom!L26-Data_Clim_Fig_Nom!$AQ26 -> -2904.4375 | M26: =+Data_Clim_Fig_Nom!M26-Data_Clim_Fig_Nom!$AQ26 -> -2861.1375 | N26: =+Data_Clim_Fig_Nom!N26-Data_Clim_Fig_Nom!$AQ26 -> -2816.3375 | O26: =+Data_Clim_Fig_Nom!O26-Data_Clim_Fig_Nom!$AQ26 -> 897.5625 | P26: =+Data_Clim_Fig_Nom!P26-Data_Clim_Fig_Nom!$AQ26 -> 2351.7625 | Q26: =+Data_Clim_Fig_Nom!Q26-Data_Clim_Fig_Nom!$AQ26 -> 8635.1625 | R26: =+Data_Clim_Fig_Nom!R26-Data_Clim_Fig_Nom!$AQ26 -> -2528.9375 | S26: =+Data_Clim_Fig_Nom!S26-Data_Clim_Fig_Nom!$AQ26 -> -2788.0375 | T26: =+Data_Clim_Fig_Nom!T26-Data_Clim_Fig_Nom!$AQ26 -> -2831.1375 | U26: =+Data_Clim_Fig_Nom!U26-Data_Clim_Fig_Nom!$AQ26 -> -2821.5375 | V26: =+Data_Clim_Fig_Nom!V26-Data_Clim_Fig_Nom!$AQ26 -> 2776.6625 | W26: =+Data_Clim_Fig_Nom!W26-Data_Clim_Fig_Nom!$AQ26 -> 1036.4625 | X26: =+Data_Clim_Fig_Nom!X26-Data_Clim_Fig_Nom!$AQ26 -> -1850.8375 | Y26: =+Data_Clim_Fig_Nom!Y26-Data_Clim_Fig_Nom!$AQ26 -> 3850.3625 | Z26: =+Data_Clim_Fig_Nom!Z26-Data_Clim_Fig_Nom!$AQ26 -> -2898.8375 | AA26: =+Data_Clim_Fig_Nom!AA26-Data_Clim_Fig_Nom!$AQ26 -> -1636.2375 | AB26: =+Data_Clim_Fig_Nom!AB26-Data_Clim_Fig_Nom!$AQ26 -> -2924.0375 | AC26: =+Data_Clim_Fig_Nom!AC26-Data_Clim_Fig_Nom!$AQ26 -> 1754.9625 | AD26: =+Data_Clim_Fig_Nom!AD26-Data_Clim_Fig_Nom!$AQ26 -> -2811.9375 | AE26: =+Data_Clim_Fig_Nom!AE26-Data_Clim_Fig_Nom!$AQ26 -> 5908.9625 | AF26: =+Data_Clim_Fig_Nom!AF26-Data_Clim_Fig_Nom!$AQ26 -> -2854.8375 | AG26: =+Data_Clim_Fig_Nom!AG26-Data_Clim_Fig_Nom!$AQ26 -> -2808.1375 | AH26: =+Data_Clim_Fig_Nom!AH26-Data_Clim_Fig_Nom!$AQ26 -> -114.3375 | AI26: =+Data_Clim_Fig_Nom!AI26-Data_Clim_Fig_Nom!$AQ26 -> -2832.8375 | AJ26: =+Data_Clim_Fig_Nom!AJ26-Data_Clim_Fig_Nom!$AQ26 -> -1342.3375 | AK26: =+Data_Clim_Fig_Nom!AK26-Data_Clim_Fig_Nom!$AQ26 -> -1698.4375 | AL26: =+Data_Clim_Fig_Nom!AL26-Data_Clim_Fig_Nom!$AQ26 -> -244.9375 | AM26: =+Data_Clim_Fig_Nom!AM26-Data_Clim_Fig_Nom!$AQ26 -> -2829.2375 | AN26: =+Data_Clim_Fig_Nom!AN26-Data_Clim_Fig_Nom!$AQ26 -> -2513.6375 | AO26: =+Data_Clim_Fig_Nom!AO26-Data_Clim_Fig_Nom!$AQ26 -> -2630.0375 | AP26: =+Data_Clim_Fig_Nom!AP26-Data_Clim_Fig_Nom!$AQ26 -> 4259.1625 | AQ26: -5.343281373e-13
A27: =+Data_Clim!A25 -> 2021-01-24 | B27: =+Data_Clim_Fig_Nom!B27-Data_Clim_Fig_Nom!$AQ27 -> 15473.2775 | C27: =+Data_Clim_Fig_Nom!C27-Data_Clim_Fig_Nom!$AQ27 -> -2926.5225 | D27: =+Data_Clim_Fig_Nom!D27-Data_Clim_Fig_Nom!$AQ27 -> -1617.9225 | E27: =+Data_Clim_Fig_Nom!E27-Data_Clim_Fig_Nom!$AQ27 -> -2955.7225 | F27: =+Data_Clim_Fig_Nom!F27-Data_Clim_Fig_Nom!$AQ27 -> 1712.0775 | G27: =+Data_Clim_Fig_Nom!G27-Data_Clim_Fig_Nom!$AQ27 -> 2936.7775 | H27: =+Data_Clim_Fig_Nom!H27-Data_Clim_Fig_Nom!$AQ27 -> 7057.8775 | I27: =+Data_Clim_Fig_Nom!I27-Data_Clim_Fig_Nom!$AQ27 -> -1185.3225 | J27: =+Data_Clim_Fig_Nom!J27-Data_Clim_Fig_Nom!$AQ27 -> 220.9775 | K27: =+Data_Clim_Fig_Nom!K27-Data_Clim_Fig_Nom!$AQ27 -> -2979.9225 | L27: =+Data_Clim_Fig_Nom!L27-Data_Clim_Fig_Nom!$AQ27 -> 4020.5775 | M27: =+Data_Clim_Fig_Nom!M27-Data_Clim_Fig_Nom!$AQ27 -> -2985.7225 | N27: =+Data_Clim_Fig_Nom!N27-Data_Clim_Fig_Nom!$AQ27 -> -2914.0225 | O27: =+Data_Clim_Fig_Nom!O27-Data_Clim_Fig_Nom!$AQ27 -> -2000.0225 | P27: =+Data_Clim_Fig_Nom!P27-Data_Clim_Fig_Nom!$AQ27 -> 6689.0775 | Q27: =+Data_Clim_Fig_Nom!Q27-Data_Clim_Fig_Nom!$AQ27 -> -575.7225 | R27: =+Data_Clim_Fig_Nom!R27-Data_Clim_Fig_Nom!$AQ27 -> -1404.8225 | S27: =+Data_Clim_Fig_Nom!S27-Data_Clim_Fig_Nom!$AQ27 -> -2910.2225 | T27: =+Data_Clim_Fig_Nom!T27-Data_Clim_Fig_Nom!$AQ27 -> -1350.1225 | U27: =+Data_Clim_Fig_Nom!U27-Data_Clim_Fig_Nom!$AQ27 -> -2943.5225 | V27: =+Data_Clim_Fig_Nom!V27-Data_Clim_Fig_Nom!$AQ27 -> -2415.5225 | W27: =+Data_Clim_Fig_Nom!W27-Data_Clim_Fig_Nom!$AQ27 -> 7285.5775 | X27: =+Data_Clim_Fig_Nom!X27-Data_Clim_Fig_Nom!$AQ27 -> 871.3775 | Y27: =+Data_Clim_Fig_Nom!Y27-Data_Clim_Fig_Nom!$AQ27 -> 999.2775 | Z27: =+Data_Clim_Fig_Nom!Z27-Data_Clim_Fig_Nom!$AQ27 -> 448.7775 | AA27: =+Data_Clim_Fig_Nom!AA27-Data_Clim_Fig_Nom!$AQ27 -> 2978.0775 | AB27: =+Data_Clim_Fig_Nom!AB27-Data_Clim_Fig_Nom!$AQ27 -> -2962.1225 | AC27: =+Data_Clim_Fig_Nom!AC27-Data_Clim_Fig_Nom!$AQ27 -> 5163.9775 | AD27: =+Data_Clim_Fig_Nom!AD27-Data_Clim_Fig_Nom!$AQ27 -> -3052.1225 | AE27: =+Data_Clim_Fig_Nom!AE27-Data_Clim_Fig_Nom!$AQ27 -> -2591.0225 | AF27: =+Data_Clim_Fig_Nom!AF27-Data_Clim_Fig_Nom!$AQ27 -> -2649.4225 | AG27: =+Data_Clim_Fig_Nom!AG27-Data_Clim_Fig_Nom!$AQ27 -> -1088.4225 | AH27: =+Data_Clim_Fig_Nom!AH27-Data_Clim_Fig_Nom!$AQ27 -> 986.6775 | AI27: =+Data_Clim_Fig_Nom!AI27-Data_Clim_Fig_Nom!$AQ27 -> -2588.5225 | AJ27: =+Data_Clim_Fig_Nom!AJ27-Data_Clim_Fig_Nom!$AQ27 -> 1708.1775 | AK27: =+Data_Clim_Fig_Nom!AK27-Data_Clim_Fig_Nom!$AQ27 -> -1412.3225 | AL27: =+Data_Clim_Fig_Nom!AL27-Data_Clim_Fig_Nom!$AQ27 -> -2784.7225 | AM27: =+Data_Clim_Fig_Nom!AM27-Data_Clim_Fig_Nom!$AQ27 -> -2868.0225 | AN27: =+Data_Clim_Fig_Nom!AN27-Data_Clim_Fig_Nom!$AQ27 -> -3069.6225 | AO27: =+Data_Clim_Fig_Nom!AO27-Data_Clim_Fig_Nom!$AQ27 -> -2321.1225 | AP27: =+Data_Clim_Fig_Nom!AP27-Data_Clim_Fig_Nom!$AQ27 -> -1873.0225 | AQ27: 3.183231456e-13
A28: =+Data_Clim!A26 -> 2021-01-25 | B28: =+Data_Clim_Fig_Nom!B28-Data_Clim_Fig_Nom!$AQ28 -> 1499.1275 | C28: =+Data_Clim_Fig_Nom!C28-Data_Clim_Fig_Nom!$AQ28 -> -1020.2725 | D28: =+Data_Clim_Fig_Nom!D28-Data_Clim_Fig_Nom!$AQ28 -> -1754.8725 | E28: =+Data_Clim_Fig_Nom!E28-Data_Clim_Fig_Nom!$AQ28 -> -1908.1725 | F28: =+Data_Clim_Fig_Nom!F28-Data_Clim_Fig_Nom!$AQ28 -> -174.9725 | G28: =+Data_Clim_Fig_Nom!G28-Data_Clim_Fig_Nom!$AQ28 -> -1677.6725 | H28: =+Data_Clim_Fig_Nom!H28-Data_Clim_Fig_Nom!$AQ28 -> 3254.6275 | I28: =+Data_Clim_Fig_Nom!I28-Data_Clim_Fig_Nom!$AQ28 -> -1855.1725 | J28: =+Data_Clim_Fig_Nom!J28-Data_Clim_Fig_Nom!$AQ28 -> 4430.9275 | K28: =+Data_Clim_Fig_Nom!K28-Data_Clim_Fig_Nom!$AQ28 -> -1935.5725 | L28: =+Data_Clim_Fig_Nom!L28-Data_Clim_Fig_Nom!$AQ28 -> 2046.1275 | M28: =+Data_Clim_Fig_Nom!M28-Data_Clim_Fig_Nom!$AQ28 -> -1897.6725 | N28: =+Data_Clim_Fig_Nom!N28-Data_Clim_Fig_Nom!$AQ28 -> -1855.6725 | O28: =+Data_Clim_Fig_Nom!O28-Data_Clim_Fig_Nom!$AQ28 -> 7464.2275 | P28: =+Data_Clim_Fig_Nom!P28-Data_Clim_Fig_Nom!$AQ28 -> 6098.0275 | Q28: =+Data_Clim_Fig_Nom!Q28-Data_Clim_Fig_Nom!$AQ28 -> 14406.4275 | R28: =+Data_Clim_Fig_Nom!R28-Data_Clim_Fig_Nom!$AQ28 -> -1739.0725 | S28: =+Data_Clim_Fig_Nom!S28-Data_Clim_Fig_Nom!$AQ28 -> -1820.7725 | T28: =+Data_Clim_Fig_Nom!T28-Data_Clim_Fig_Nom!$AQ28 -> -1672.7725 | U28: =+Data_Clim_Fig_Nom!U28-Data_Clim_Fig_Nom!$AQ28 -> -1936.7725 | V28: =+Data_Clim_Fig_Nom!V28-Data_Clim_Fig_Nom!$AQ28 -> -1905.4725 | W28: =+Data_Clim_Fig_Nom!W28-Data_Clim_Fig_Nom!$AQ28 -> 551.4275 | X28: =+Data_Clim_Fig_Nom!X28-Data_Clim_Fig_Nom!$AQ28 -> -117.1725 | Y28: =+Data_Clim_Fig_Nom!Y28-Data_Clim_Fig_Nom!$AQ28 -> -1889.8725 | Z28: =+Data_Clim_Fig_Nom!Z28-Data_Clim_Fig_Nom!$AQ28 -> 961.6275 | AA28: =+Data_Clim_Fig_Nom!AA28-Data_Clim_Fig_Nom!$AQ28 -> 441.6275 | AB28: =+Data_Clim_Fig_Nom!AB28-Data_Clim_Fig_Nom!$AQ28 -> -1682.5725 | AC28: =+Data_Clim_Fig_Nom!AC28-Data_Clim_Fig_Nom!$AQ28 -> -1356.4725 | AD28: =+Data_Clim_Fig_Nom!AD28-Data_Clim_Fig_Nom!$AQ28 -> -97.2725 | AE28: =+Data_Clim_Fig_Nom!AE28-Data_Clim_Fig_Nom!$AQ28 -> -1896.2725 | AF28: =+Data_Clim_Fig_Nom!AF28-Data_Clim_Fig_Nom!$AQ28 -> -281.5725 | AG28: =+Data_Clim_Fig_Nom!AG28-Data_Clim_Fig_Nom!$AQ28 -> 588.1275 | AH28: =+Data_Clim_Fig_Nom!AH28-Data_Clim_Fig_Nom!$AQ28 -> -1508.0725 | AI28: =+Data_Clim_Fig_Nom!AI28-Data_Clim_Fig_Nom!$AQ28 -> -1602.8725 | AJ28: =+Data_Clim_Fig_Nom!AJ28-Data_Clim_Fig_Nom!$AQ28 -> -1522.5725 | AK28: =+Data_Clim_Fig_Nom!AK28-Data_Clim_Fig_Nom!$AQ28 -> 505.6275 | AL28: =+Data_Clim_Fig_Nom!AL28-Data_Clim_Fig_Nom!$AQ28 -> -1512.8725 | AM28: =+Data_Clim_Fig_Nom!AM28-Data_Clim_Fig_Nom!$AQ28 -> -1864.1725 | AN28: =+Data_Clim_Fig_Nom!AN28-Data_Clim_Fig_Nom!$AQ28 -> -2000.9725 | AO28: =+Data_Clim_Fig_Nom!AO28-Data_Clim_Fig_Nom!$AQ28 -> -1760.2725 | AP28: =+Data_Clim_Fig_Nom!AP28-Data_Clim_Fig_Nom!$AQ28 -> 2478.4275 | AQ28: 4.49063009e-13
A29: =+Data_Clim!A27 -> 2021-01-26 | B29: =+Data_Clim_Fig_Nom!B29-Data_Clim_Fig_Nom!$AQ29 -> -1394.005 | C29: =+Data_Clim_Fig_Nom!C29-Data_Clim_Fig_Nom!$AQ29 -> -107.905 | D29: =+Data_Clim_Fig_Nom!D29-Data_Clim_Fig_Nom!$AQ29 -> 507.795 | E29: =+Data_Clim_Fig_Nom!E29-Data_Clim_Fig_Nom!$AQ29 -> -487.605 | F29: =+Data_Clim_Fig_Nom!F29-Data_Clim_Fig_Nom!$AQ29 -> -1811.005 | G29: =+Data_Clim_Fig_Nom!G29-Data_Clim_Fig_Nom!$AQ29 -> 6688.795 | H29: =+Data_Clim_Fig_Nom!H29-Data_Clim_Fig_Nom!$AQ29 -> 426.095 | I29: =+Data_Clim_Fig_Nom!I29-Data_Clim_Fig_Nom!$AQ29 -> -1511.605 | J29: =+Data_Clim_Fig_Nom!J29-Data_Clim_Fig_Nom!$AQ29 -> 3910.695 | K29: =+Data_Clim_Fig_Nom!K29-Data_Clim_Fig_Nom!$AQ29 -> -2040.505 | L29: =+Data_Clim_Fig_Nom!L29-Data_Clim_Fig_Nom!$AQ29 -> 2259.495 | M29: =+Data_Clim_Fig_Nom!M29-Data_Clim_Fig_Nom!$AQ29 -> -2015.705 | N29: =+Data_Clim_Fig_Nom!N29-Data_Clim_Fig_Nom!$AQ29 -> -1915.305 | O29: =+Data_Clim_Fig_Nom!O29-Data_Clim_Fig_Nom!$AQ29 -> -1530.205 | P29: =+Data_Clim_Fig_Nom!P29-Data_Clim_Fig_Nom!$AQ29 -> 6898.895 | Q29: =+Data_Clim_Fig_Nom!Q29-Data_Clim_Fig_Nom!$AQ29 -> 2250.195 | R29: =+Data_Clim_Fig_Nom!R29-Data_Clim_Fig_Nom!$AQ29 -> -1792.905 | S29: =+Data_Clim_Fig_Nom!S29-Data_Clim_Fig_Nom!$AQ29 -> -1708.605 | T29: =+Data_Clim_Fig_Nom!T29-Data_Clim_Fig_Nom!$AQ29 -> -2056.805 | U29: =+Data_Clim_Fig_Nom!U29-Data_Clim_Fig_Nom!$AQ29 -> 8309.495 | V29: =+Data_Clim_Fig_Nom!V29-Data_Clim_Fig_Nom!$AQ29 -> -2041.005 | W29: =+Data_Clim_Fig_Nom!W29-Data_Clim_Fig_Nom!$AQ29 -> -1622.705 | X29: =+Data_Clim_Fig_Nom!X29-Data_Clim_Fig_Nom!$AQ29 -> -151.505 | Y29: =+Data_Clim_Fig_Nom!Y29-Data_Clim_Fig_Nom!$AQ29 -> -235.105 | Z29: =+Data_Clim_Fig_Nom!Z29-Data_Clim_Fig_Nom!$AQ29 -> 399.195 | AA29: =+Data_Clim_Fig_Nom!AA29-Data_Clim_Fig_Nom!$AQ29 -> -246.705 | AB29: =+Data_Clim_Fig_Nom!AB29-Data_Clim_Fig_Nom!$AQ29 -> -946.605 | AC29: =+Data_Clim_Fig_Nom!AC29-Data_Clim_Fig_Nom!$AQ29 -> -1806.305 | AD29: =+Data_Clim_Fig_Nom!AD29-Data_Clim_Fig_Nom!$AQ29 -> -2144.605 | AE29: =+Data_Clim_Fig_Nom!AE29-Data_Clim_Fig_Nom!$AQ29 -> -2012.405 | AF29: =+Data_Clim_Fig_Nom!AF29-Data_Clim_Fig_Nom!$AQ29 -> 138.195 | AG29: =+Data_Clim_Fig_Nom!AG29-Data_Clim_Fig_Nom!$AQ29 -> 118.095 | AH29: =+Data_Clim_Fig_Nom!AH29-Data_Clim_Fig_Nom!$AQ29 -> -1723.505 | AI29: =+Data_Clim_Fig_Nom!AI29-Data_Clim_Fig_Nom!$AQ29 -> -2054.105 | AJ29: =+Data_Clim_Fig_Nom!AJ29-Data_Clim_Fig_Nom!$AQ29 -> 2961.095 | AK29: =+Data_Clim_Fig_Nom!AK29-Data_Clim_Fig_Nom!$AQ29 -> 3756.895 | AL29: =+Data_Clim_Fig_Nom!AL29-Data_Clim_Fig_Nom!$AQ29 -> -2073.705 | AM29: =+Data_Clim_Fig_Nom!AM29-Data_Clim_Fig_Nom!$AQ29 -> -1993.605 | AN29: =+Data_Clim_Fig_Nom!AN29-Data_Clim_Fig_Nom!$AQ29 -> -297.705 | AO29: =+Data_Clim_Fig_Nom!AO29-Data_Clim_Fig_Nom!$AQ29 -> -903.205 | AP29: =+Data_Clim_Fig_Nom!AP29-Data_Clim_Fig_Nom!$AQ29 -> -1192.105 | AQ29: -3.296918294e-13
A30: =+Data_Clim!A28 -> 2021-01-27 | B30: =+Data_Clim_Fig_Nom!B30-Data_Clim_Fig_Nom!$AQ30 -> -679.64 | C30: =+Data_Clim_Fig_Nom!C30-Data_Clim_Fig_Nom!$AQ30 -> -1859.64 | D30: =+Data_Clim_Fig_Nom!D30-Data_Clim_Fig_Nom!$AQ30 -> 2548.56 | E30: =+Data_Clim_Fig_Nom!E30-Data_Clim_Fig_Nom!$AQ30 -> -1340.94 | F30: =+Data_Clim_Fig_Nom!F30-Data_Clim_Fig_Nom!$AQ30 -> 26.76 | G30: =+Data_Clim_Fig_Nom!G30-Data_Clim_Fig_Nom!$AQ30 -> 1723.46 | H30: =+Data_Clim_Fig_Nom!H30-Data_Clim_Fig_Nom!$AQ30 -> -1959.24 | I30: =+Data_Clim_Fig_Nom!I30-Data_Clim_Fig_Nom!$AQ30 -> -1763.54 | J30: =+Data_Clim_Fig_Nom!J30-Data_Clim_Fig_Nom!$AQ30 -> -710.94 | K30: =+Data_Clim_Fig_Nom!K30-Data_Clim_Fig_Nom!$AQ30 -> -1908.54 | L30: =+Data_Clim_Fig_Nom!L30-Data_Clim_Fig_Nom!$AQ30 -> -1838.74 | M30: =+Data_Clim_Fig_Nom!M30-Data_Clim_Fig_Nom!$AQ30 -> -1864.54 | N30: =+Data_Clim_Fig_Nom!N30-Data_Clim_Fig_Nom!$AQ30 -> -1723.84 | O30: =+Data_Clim_Fig_Nom!O30-Data_Clim_Fig_Nom!$AQ30 -> 5904.76 | P30: =+Data_Clim_Fig_Nom!P30-Data_Clim_Fig_Nom!$AQ30 -> -1249.84 | Q30: =+Data_Clim_Fig_Nom!Q30-Data_Clim_Fig_Nom!$AQ30 -> -804.04 | R30: =+Data_Clim_Fig_Nom!R30-Data_Clim_Fig_Nom!$AQ30 -> -1652.14 | S30: =+Data_Clim_Fig_Nom!S30-Data_Clim_Fig_Nom!$AQ30 -> -1744.84 | T30: =+Data_Clim_Fig_Nom!T30-Data_Clim_Fig_Nom!$AQ30 -> -1920.04 | U30: =+Data_Clim_Fig_Nom!U30-Data_Clim_Fig_Nom!$AQ30 -> 6447.16 | V30: =+Data_Clim_Fig_Nom!V30-Data_Clim_Fig_Nom!$AQ30 -> -1921.24 | W30: =+Data_Clim_Fig_Nom!W30-Data_Clim_Fig_Nom!$AQ30 -> 51.66 | X30: =+Data_Clim_Fig_Nom!X30-Data_Clim_Fig_Nom!$AQ30 -> 5550.66 | Y30: =+Data_Clim_Fig_Nom!Y30-Data_Clim_Fig_Nom!$AQ30 -> 2492.46 | Z30: =+Data_Clim_Fig_Nom!Z30-Data_Clim_Fig_Nom!$AQ30 -> 4967.06 | AA30: =+Data_Clim_Fig_Nom!AA30-Data_Clim_Fig_Nom!$AQ30 -> -1517.04 | AB30: =+Data_Clim_Fig_Nom!AB30-Data_Clim_Fig_Nom!$AQ30 -> -1845.74 | AC30: =+Data_Clim_Fig_Nom!AC30-Data_Clim_Fig_Nom!$AQ30 -> 365.16 | AD30: =+Data_Clim_Fig_Nom!AD30-Data_Clim_Fig_Nom!$AQ30 -> -1894.04 | AE30: =+Data_Clim_Fig_Nom!AE30-Data_Clim_Fig_Nom!$AQ30 -> -1587.24 | AF30: =+Data_Clim_Fig_Nom!AF30-Data_Clim_Fig_Nom!$AQ30 -> -1907.44 | AG30: =+Data_Clim_Fig_Nom!AG30-Data_Clim_Fig_Nom!$AQ30 -> -1300.24 | AH30: =+Data_Clim_Fig_Nom!AH30-Data_Clim_Fig_Nom!$AQ30 -> 1226.56 | AI30: =+Data_Clim_Fig_Nom!AI30-Data_Clim_Fig_Nom!$AQ30 -> 322.36 | AJ30: =+Data_Clim_Fig_Nom!AJ30-Data_Clim_Fig_Nom!$AQ30 -> 4009.76 | AK30: =+Data_Clim_Fig_Nom!AK30-Data_Clim_Fig_Nom!$AQ30 -> 1962.26 | AL30: =+Data_Clim_Fig_Nom!AL30-Data_Clim_Fig_Nom!$AQ30 -> -1973.64 | AM30: =+Data_Clim_Fig_Nom!AM30-Data_Clim_Fig_Nom!$AQ30 -> -1891.34 | AN30: =+Data_Clim_Fig_Nom!AN30-Data_Clim_Fig_Nom!$AQ30 -> -1370.64 | AO30: =+Data_Clim_Fig_Nom!AO30-Data_Clim_Fig_Nom!$AQ30 -> 2630.46 | AP30: =+Data_Clim_Fig_Nom!AP30-Data_Clim_Fig_Nom!$AQ30 -> 2011.96 | AQ30: -5.570655048e-13
A31: =+Data_Clim!A29 -> 2021-01-28 | B31: =+Data_Clim_Fig_Nom!B31-Data_Clim_Fig_Nom!$AQ31 -> -1942.625 | C31: =+Data_Clim_Fig_Nom!C31-Data_Clim_Fig_Nom!$AQ31 -> -1992.825 | D31: =+Data_Clim_Fig_Nom!D31-Data_Clim_Fig_Nom!$AQ31 -> -1111.325 | E31: =+Data_Clim_Fig_Nom!E31-Data_Clim_Fig_Nom!$AQ31 -> -529.425 | F31: =+Data_Clim_Fig_Nom!F31-Data_Clim_Fig_Nom!$AQ31 -> -1490.525 | G31: =+Data_Clim_Fig_Nom!G31-Data_Clim_Fig_Nom!$AQ31 -> -1620.025 | H31: =+Data_Clim_Fig_Nom!H31-Data_Clim_Fig_Nom!$AQ31 -> -1600.825 | I31: =+Data_Clim_Fig_Nom!I31-Data_Clim_Fig_Nom!$AQ31 -> -72.325 | J31: =+Data_Clim_Fig_Nom!J31-Data_Clim_Fig_Nom!$AQ31 -> 2664.375 | K31: =+Data_Clim_Fig_Nom!K31-Data_Clim_Fig_Nom!$AQ31 -> -1959.225 | L31: =+Data_Clim_Fig_Nom!L31-Data_Clim_Fig_Nom!$AQ31 -> 969.775 | M31: =+Data_Clim_Fig_Nom!M31-Data_Clim_Fig_Nom!$AQ31 -> -1940.225 | N31: =+Data_Clim_Fig_Nom!N31-Data_Clim_Fig_Nom!$AQ31 -> -1959.725 | O31: =+Data_Clim_Fig_Nom!O31-Data_Clim_Fig_Nom!$AQ31 -> 2600.275 | P31: =+Data_Clim_Fig_Nom!P31-Data_Clim_Fig_Nom!$AQ31 -> 6768.775 | Q31: =+Data_Clim_Fig_Nom!Q31-Data_Clim_Fig_Nom!$AQ31 -> 4702.975 | R31: =+Data_Clim_Fig_Nom!R31-Data_Clim_Fig_Nom!$AQ31 -> -1762.125 | S31: =+Data_Clim_Fig_Nom!S31-Data_Clim_Fig_Nom!$AQ31 -> -1881.325 | T31: =+Data_Clim_Fig_Nom!T31-Data_Clim_Fig_Nom!$AQ31 -> -1914.225 | U31: =+Data_Clim_Fig_Nom!U31-Data_Clim_Fig_Nom!$AQ31 -> 15390.075 | V31: =+Data_Clim_Fig_Nom!V31-Data_Clim_Fig_Nom!$AQ31 -> -1987.225 | W31: =+Data_Clim_Fig_Nom!W31-Data_Clim_Fig_Nom!$AQ31 -> -2118.225 | X31: =+Data_Clim_Fig_Nom!X31-Data_Clim_Fig_Nom!$AQ31 -> -2029.325 | Y31: =+Data_Clim_Fig_Nom!Y31-Data_Clim_Fig_Nom!$AQ31 -> 2048.375 | Z31: =+Data_Clim_Fig_Nom!Z31-Data_Clim_Fig_Nom!$AQ31 -> 708.375 | AA31: =+Data_Clim_Fig_Nom!AA31-Data_Clim_Fig_Nom!$AQ31 -> -1065.225 | AB31: =+Data_Clim_Fig_Nom!AB31-Data_Clim_Fig_Nom!$AQ31 -> -1955.725 | AC31: =+Data_Clim_Fig_Nom!AC31-Data_Clim_Fig_Nom!$AQ31 -> -1612.725 | AD31: =+Data_Clim_Fig_Nom!AD31-Data_Clim_Fig_Nom!$AQ31 -> -2014.925 | AE31: =+Data_Clim_Fig_Nom!AE31-Data_Clim_Fig_Nom!$AQ31 -> -1567.025 | AF31: =+Data_Clim_Fig_Nom!AF31-Data_Clim_Fig_Nom!$AQ31 -> 2821.475 | AG31: =+Data_Clim_Fig_Nom!AG31-Data_Clim_Fig_Nom!$AQ31 -> -1991.525 | AH31: =+Data_Clim_Fig_Nom!AH31-Data_Clim_Fig_Nom!$AQ31 -> 1603.875 | AI31: =+Data_Clim_Fig_Nom!AI31-Data_Clim_Fig_Nom!$AQ31 -> 2534.675 | AJ31: =+Data_Clim_Fig_Nom!AJ31-Data_Clim_Fig_Nom!$AQ31 -> -1980.125 | AK31: =+Data_Clim_Fig_Nom!AK31-Data_Clim_Fig_Nom!$AQ31 -> -775.725 | AL31: =+Data_Clim_Fig_Nom!AL31-Data_Clim_Fig_Nom!$AQ31 -> 86.375 | AM31: =+Data_Clim_Fig_Nom!AM31-Data_Clim_Fig_Nom!$AQ31 -> -1921.925 | AN31: =+Data_Clim_Fig_Nom!AN31-Data_Clim_Fig_Nom!$AQ31 -> -1982.925 | AO31: =+Data_Clim_Fig_Nom!AO31-Data_Clim_Fig_Nom!$AQ31 -> 1879.975 | AP31: =+Data_Clim_Fig_Nom!AP31-Data_Clim_Fig_Nom!$AQ31 -> 14073.175 | AQ31: 4.433786671e-13
A32: =+Data_Clim!A30 -> 2021-01-29 | B32: =+Data_Clim_Fig_Nom!B32-Data_Clim_Fig_Nom!$AQ32 -> -1788.6475 | C32: =+Data_Clim_Fig_Nom!C32-Data_Clim_Fig_Nom!$AQ32 -> -1895.8475 | D32: =+Data_Clim_Fig_Nom!D32-Data_Clim_Fig_Nom!$AQ32 -> 13070.8525 | E32: =+Data_Clim_Fig_Nom!E32-Data_Clim_Fig_Nom!$AQ32 -> -178.4475 | F32: =+Data_Clim_Fig_Nom!F32-Data_Clim_Fig_Nom!$AQ32 -> -1777.0475 | G32: =+Data_Clim_Fig_Nom!G32-Data_Clim_Fig_Nom!$AQ32 -> -1797.4475 | H32: =+Data_Clim_Fig_Nom!H32-Data_Clim_Fig_Nom!$AQ32 -> -1834.5475 | I32: =+Data_Clim_Fig_Nom!I32-Data_Clim_Fig_Nom!$AQ32 -> -1827.8475 | J32: =+Data_Clim_Fig_Nom!J32-Data_Clim_Fig_Nom!$AQ32 -> 2714.3525 | K32: =+Data_Clim_Fig_Nom!K32-Data_Clim_Fig_Nom!$AQ32 -> -1872.0475 | L32: =+Data_Clim_Fig_Nom!L32-Data_Clim_Fig_Nom!$AQ32 -> -1677.9475 | M32: =+Data_Clim_Fig_Nom!M32-Data_Clim_Fig_Nom!$AQ32 -> -1856.1475 | N32: =+Data_Clim_Fig_Nom!N32-Data_Clim_Fig_Nom!$AQ32 -> -1857.4475 | O32: =+Data_Clim_Fig_Nom!O32-Data_Clim_Fig_Nom!$AQ32 -> 630.7525 | P32: =+Data_Clim_Fig_Nom!P32-Data_Clim_Fig_Nom!$AQ32 -> -1439.4475 | Q32: =+Data_Clim_Fig_Nom!Q32-Data_Clim_Fig_Nom!$AQ32 -> 2732.4525 | R32: =+Data_Clim_Fig_Nom!R32-Data_Clim_Fig_Nom!$AQ32 -> -1886.0475 | S32: =+Data_Clim_Fig_Nom!S32-Data_Clim_Fig_Nom!$AQ32 -> -1903.8475 | T32: =+Data_Clim_Fig_Nom!T32-Data_Clim_Fig_Nom!$AQ32 -> -1585.8475 | U32: =+Data_Clim_Fig_Nom!U32-Data_Clim_Fig_Nom!$AQ32 -> 1605.8525 | V32: =+Data_Clim_Fig_Nom!V32-Data_Clim_Fig_Nom!$AQ32 -> 3352.5525 | W32: =+Data_Clim_Fig_Nom!W32-Data_Clim_Fig_Nom!$AQ32 -> -1709.2475 | X32: =+Data_Clim_Fig_Nom!X32-Data_Clim_Fig_Nom!$AQ32 -> -1986.7475 | Y32: =+Data_Clim_Fig_Nom!Y32-Data_Clim_Fig_Nom!$AQ32 -> 6699.3525 | Z32: =+Data_Clim_Fig_Nom!Z32-Data_Clim_Fig_Nom!$AQ32 -> 846.3525 | AA32: =+Data_Clim_Fig_Nom!AA32-Data_Clim_Fig_Nom!$AQ32 -> -1781.5475 | AB32: =+Data_Clim_Fig_Nom!AB32-Data_Clim_Fig_Nom!$AQ32 -> -1859.3475 | AC32: =+Data_Clim_Fig_Nom!AC32-Data_Clim_Fig_Nom!$AQ32 -> -1249.1475 | AD32: =+Data_Clim_Fig_Nom!AD32-Data_Clim_Fig_Nom!$AQ32 -> -1872.0475 | AE32: =+Data_Clim_Fig_Nom!AE32-Data_Clim_Fig_Nom!$AQ32 -> -1844.7475 | AF32: =+Data_Clim_Fig_Nom!AF32-Data_Clim_Fig_Nom!$AQ32 -> 3447.4525 | AG32: =+Data_Clim_Fig_Nom!AG32-Data_Clim_Fig_Nom!$AQ32 -> -1912.9475 | AH32: =+Data_Clim_Fig_Nom!AH32-Data_Clim_Fig_Nom!$AQ32 -> -1158.0475 | AI32: =+Data_Clim_Fig_Nom!AI32-Data_Clim_Fig_Nom!$AQ32 -> 5083.5525 | AJ32: =+Data_Clim_Fig_Nom!AJ32-Data_Clim_Fig_Nom!$AQ32 -> -1937.1475 | AK32: =+Data_Clim_Fig_Nom!AK32-Data_Clim_Fig_Nom!$AQ32 -> 7120.6525 | AL32: =+Data_Clim_Fig_Nom!AL32-Data_Clim_Fig_Nom!$AQ32 -> 104.5525 | AM32: =+Data_Clim_Fig_Nom!AM32-Data_Clim_Fig_Nom!$AQ32 -> -1836.5475 | AN32: =+Data_Clim_Fig_Nom!AN32-Data_Clim_Fig_Nom!$AQ32 -> -1712.2475 | AO32: =+Data_Clim_Fig_Nom!AO32-Data_Clim_Fig_Nom!$AQ32 -> -1370.3475 | AP32: =+Data_Clim_Fig_Nom!AP32-Data_Clim_Fig_Nom!$AQ32 -> 17114.5525 | AQ32: -5.456968211e-13
A33: =+Data_Clim!A31 -> 2021-01-30 | B33: =+Data_Clim_Fig_Nom!B33-Data_Clim_Fig_Nom!$AQ33 -> -1728.4775 | C33: =+Data_Clim_Fig_Nom!C33-Data_Clim_Fig_Nom!$AQ33 -> -2648.8775 | D33: =+Data_Clim_Fig_Nom!D33-Data_Clim_Fig_Nom!$AQ33 -> 8225.4225 | E33: =+Data_Clim_Fig_Nom!E33-Data_Clim_Fig_Nom!$AQ33 -> 10647.3225 | F33: =+Data_Clim_Fig_Nom!F33-Data_Clim_Fig_Nom!$AQ33 -> 239.7225 | G33: =+Data_Clim_Fig_Nom!G33-Data_Clim_Fig_Nom!$AQ33 -> 1396.8225 | H33: =+Data_Clim_Fig_Nom!H33-Data_Clim_Fig_Nom!$AQ33 -> -2589.8775 | I33: =+Data_Clim_Fig_Nom!I33-Data_Clim_Fig_Nom!$AQ33 -> -2676.6775 | J33: =+Data_Clim_Fig_Nom!J33-Data_Clim_Fig_Nom!$AQ33 -> 2041.8225 | K33: =+Data_Clim_Fig_Nom!K33-Data_Clim_Fig_Nom!$AQ33 -> -2617.4775 | L33: =+Data_Clim_Fig_Nom!L33-Data_Clim_Fig_Nom!$AQ33 -> -2520.6775 | M33: =+Data_Clim_Fig_Nom!M33-Data_Clim_Fig_Nom!$AQ33 -> -2618.2775 | N33: =+Data_Clim_Fig_Nom!N33-Data_Clim_Fig_Nom!$AQ33 -> -2553.6775 | O33: =+Data_Clim_Fig_Nom!O33-Data_Clim_Fig_Nom!$AQ33 -> -2652.6775 | P33: =+Data_Clim_Fig_Nom!P33-Data_Clim_Fig_Nom!$AQ33 -> -2625.1775 | Q33: =+Data_Clim_Fig_Nom!Q33-Data_Clim_Fig_Nom!$AQ33 -> 8383.3225 | R33: =+Data_Clim_Fig_Nom!R33-Data_Clim_Fig_Nom!$AQ33 -> -2647.1775 | S33: =+Data_Clim_Fig_Nom!S33-Data_Clim_Fig_Nom!$AQ33 -> -2700.3775 | T33: =+Data_Clim_Fig_Nom!T33-Data_Clim_Fig_Nom!$AQ33 -> -2636.7775 | U33: =+Data_Clim_Fig_Nom!U33-Data_Clim_Fig_Nom!$AQ33 -> -1421.4775 | V33: =+Data_Clim_Fig_Nom!V33-Data_Clim_Fig_Nom!$AQ33 -> 11368.7225 | W33: =+Data_Clim_Fig_Nom!W33-Data_Clim_Fig_Nom!$AQ33 -> -1938.4775 | X33: =+Data_Clim_Fig_Nom!X33-Data_Clim_Fig_Nom!$AQ33 -> -2788.5775 | Y33: =+Data_Clim_Fig_Nom!Y33-Data_Clim_Fig_Nom!$AQ33 -> 2841.1225 | Z33: =+Data_Clim_Fig_Nom!Z33-Data_Clim_Fig_Nom!$AQ33 -> -2250.1775 | AA33: =+Data_Clim_Fig_Nom!AA33-Data_Clim_Fig_Nom!$AQ33 -> -2611.7775 | AB33: =+Data_Clim_Fig_Nom!AB33-Data_Clim_Fig_Nom!$AQ33 -> -2622.3775 | AC33: =+Data_Clim_Fig_Nom!AC33-Data_Clim_Fig_Nom!$AQ33 -> -2599.0775 | AD33: =+Data_Clim_Fig_Nom!AD33-Data_Clim_Fig_Nom!$AQ33 -> -1412.9775 | AE33: =+Data_Clim_Fig_Nom!AE33-Data_Clim_Fig_Nom!$AQ33 -> -2692.8775 | AF33: =+Data_Clim_Fig_Nom!AF33-Data_Clim_Fig_Nom!$AQ33 -> 855.8225 | AG33: =+Data_Clim_Fig_Nom!AG33-Data_Clim_Fig_Nom!$AQ33 -> -2675.8775 | AH33: =+Data_Clim_Fig_Nom!AH33-Data_Clim_Fig_Nom!$AQ33 -> -1415.0775 | AI33: =+Data_Clim_Fig_Nom!AI33-Data_Clim_Fig_Nom!$AQ33 -> 4435.8225 | AJ33: =+Data_Clim_Fig_Nom!AJ33-Data_Clim_Fig_Nom!$AQ33 -> -2511.1775 | AK33: =+Data_Clim_Fig_Nom!AK33-Data_Clim_Fig_Nom!$AQ33 -> 5404.2225 | AL33: =+Data_Clim_Fig_Nom!AL33-Data_Clim_Fig_Nom!$AQ33 -> 3393.1225 | AM33: =+Data_Clim_Fig_Nom!AM33-Data_Clim_Fig_Nom!$AQ33 -> 5015.3225 | AN33: =+Data_Clim_Fig_Nom!AN33-Data_Clim_Fig_Nom!$AQ33 -> -2100.8775 | AO33: =+Data_Clim_Fig_Nom!AO33-Data_Clim_Fig_Nom!$AQ33 -> -1991.5775 | AP33: =+Data_Clim_Fig_Nom!AP33-Data_Clim_Fig_Nom!$AQ33 -> 3734.3225 | AQ33: -8.640199667e-13
A34: =+Data_Clim!A32 -> 2021-01-31 | B34: =+Data_Clim_Fig_Nom!B34-Data_Clim_Fig_Nom!$AQ34 -> 4494.5625 | C34: =+Data_Clim_Fig_Nom!C34-Data_Clim_Fig_Nom!$AQ34 -> -2260.6375 | D34: =+Data_Clim_Fig_Nom!D34-Data_Clim_Fig_Nom!$AQ34 -> 5057.1625 | E34: =+Data_Clim_Fig_Nom!E34-Data_Clim_Fig_Nom!$AQ34 -> 4280.9625 | F34: =+Data_Clim_Fig_Nom!F34-Data_Clim_Fig_Nom!$AQ34 -> 1269.8625 | G34: =+Data_Clim_Fig_Nom!G34-Data_Clim_Fig_Nom!$AQ34 -> 3153.2625 | H34: =+Data_Clim_Fig_Nom!H34-Data_Clim_Fig_Nom!$AQ34 -> -1803.5375 | I34: =+Data_Clim_Fig_Nom!I34-Data_Clim_Fig_Nom!$AQ34 -> -2213.9375 | J34: =+Data_Clim_Fig_Nom!J34-Data_Clim_Fig_Nom!$AQ34 -> 693.1625 | K34: =+Data_Clim_Fig_Nom!K34-Data_Clim_Fig_Nom!$AQ34 -> -2209.8375 | L34: =+Data_Clim_Fig_Nom!L34-Data_Clim_Fig_Nom!$AQ34 -> -2327.3375 | M34: =+Data_Clim_Fig_Nom!M34-Data_Clim_Fig_Nom!$AQ34 -> -2200.9375 | N34: =+Data_Clim_Fig_Nom!N34-Data_Clim_Fig_Nom!$AQ34 -> -2230.4375 | O34: =+Data_Clim_Fig_Nom!O34-Data_Clim_Fig_Nom!$AQ34 -> -2295.6375 | P34: =+Data_Clim_Fig_Nom!P34-Data_Clim_Fig_Nom!$AQ34 -> -1177.0375 | Q34: =+Data_Clim_Fig_Nom!Q34-Data_Clim_Fig_Nom!$AQ34 -> -2333.9375 | R34: =+Data_Clim_Fig_Nom!R34-Data_Clim_Fig_Nom!$AQ34 -> -2244.4375 | S34: =+Data_Clim_Fig_Nom!S34-Data_Clim_Fig_Nom!$AQ34 -> -2272.7375 | T34: =+Data_Clim_Fig_Nom!T34-Data_Clim_Fig_Nom!$AQ34 -> -2065.4375 | U34: =+Data_Clim_Fig_Nom!U34-Data_Clim_Fig_Nom!$AQ34 -> -1706.5375 | V34: =+Data_Clim_Fig_Nom!V34-Data_Clim_Fig_Nom!$AQ34 -> -2193.4375 | W34: =+Data_Clim_Fig_Nom!W34-Data_Clim_Fig_Nom!$AQ34 -> -2186.5375 | X34: =+Data_Clim_Fig_Nom!X34-Data_Clim_Fig_Nom!$AQ34 -> -2301.1375 | Y34: =+Data_Clim_Fig_Nom!Y34-Data_Clim_Fig_Nom!$AQ34 -> -477.5375 | Z34: =+Data_Clim_Fig_Nom!Z34-Data_Clim_Fig_Nom!$AQ34 -> -2109.0375 | AA34: =+Data_Clim_Fig_Nom!AA34-Data_Clim_Fig_Nom!$AQ34 -> 1156.1625 | AB34: =+Data_Clim_Fig_Nom!AB34-Data_Clim_Fig_Nom!$AQ34 -> -2209.2375 | AC34: =+Data_Clim_Fig_Nom!AC34-Data_Clim_Fig_Nom!$AQ34 -> -2288.0375 | AD34: =+Data_Clim_Fig_Nom!AD34-Data_Clim_Fig_Nom!$AQ34 -> -1679.4375 | AE34: =+Data_Clim_Fig_Nom!AE34-Data_Clim_Fig_Nom!$AQ34 -> -2250.3375 | AF34: =+Data_Clim_Fig_Nom!AF34-Data_Clim_Fig_Nom!$AQ34 -> -1145.6375 | AG34: =+Data_Clim_Fig_Nom!AG34-Data_Clim_Fig_Nom!$AQ34 -> -2226.7375 | AH34: =+Data_Clim_Fig_Nom!AH34-Data_Clim_Fig_Nom!$AQ34 -> -557.7375 | AI34: =+Data_Clim_Fig_Nom!AI34-Data_Clim_Fig_Nom!$AQ34 -> -405.4375 | AJ34: =+Data_Clim_Fig_Nom!AJ34-Data_Clim_Fig_Nom!$AQ34 -> -2115.5375 | AK34: =+Data_Clim_Fig_Nom!AK34-Data_Clim_Fig_Nom!$AQ34 -> -561.2375 | AL34: =+Data_Clim_Fig_Nom!AL34-Data_Clim_Fig_Nom!$AQ34 -> 19601.1625 | AM34: =+Data_Clim_Fig_Nom!AM34-Data_Clim_Fig_Nom!$AQ34 -> 14542.3625 | AN34: =+Data_Clim_Fig_Nom!AN34-Data_Clim_Fig_Nom!$AQ34 -> -218.5375 | AO34: =+Data_Clim_Fig_Nom!AO34-Data_Clim_Fig_Nom!$AQ34 -> 19.3625 | AP34: =+Data_Clim_Fig_Nom!AP34-Data_Clim_Fig_Nom!$AQ34 -> -614.0375 | AQ34: -1.193711796e-13
A35: =+Data_Clim!A33 -> 2021-02-01 | B35: =+Data_Clim_Fig_Nom!B35-Data_Clim_Fig_Nom!$AQ35 -> 444.92 | C35: =+Data_Clim_Fig_Nom!C35-Data_Clim_Fig_Nom!$AQ35 -> -2045.48 | D35: =+Data_Clim_Fig_Nom!D35-Data_Clim_Fig_Nom!$AQ35 -> -1820.48 | E35: =+Data_Clim_Fig_Nom!E35-Data_Clim_Fig_Nom!$AQ35 -> 6120.52 | F35: =+Data_Clim_Fig_Nom!F35-Data_Clim_Fig_Nom!$AQ35 -> -617.28 | G35: =+Data_Clim_Fig_Nom!G35-Data_Clim_Fig_Nom!$AQ35 -> 4193.02 | H35: =+Data_Clim_Fig_Nom!H35-Data_Clim_Fig_Nom!$AQ35 -> 1510.72 | I35: =+Data_Clim_Fig_Nom!I35-Data_Clim_Fig_Nom!$AQ35 -> -2043.68 | J35: =+Data_Clim_Fig_Nom!J35-Data_Clim_Fig_Nom!$AQ35 -> 409.52 | K35: =+Data_Clim_Fig_Nom!K35-Data_Clim_Fig_Nom!$AQ35 -> -2031.98 | L35: =+Data_Clim_Fig_Nom!L35-Data_Clim_Fig_Nom!$AQ35 -> -2085.98 | M35: =+Data_Clim_Fig_Nom!M35-Data_Clim_Fig_Nom!$AQ35 -> -2011.48 | N35: =+Data_Clim_Fig_Nom!N35-Data_Clim_Fig_Nom!$AQ35 -> -2009.88 | O35: =+Data_Clim_Fig_Nom!O35-Data_Clim_Fig_Nom!$AQ35 -> -2138.38 | P35: =+Data_Clim_Fig_Nom!P35-Data_Clim_Fig_Nom!$AQ35 -> -2171.38 | Q35: =+Data_Clim_Fig_Nom!Q35-Data_Clim_Fig_Nom!$AQ35 -> -2189.28 | R35: =+Data_Clim_Fig_Nom!R35-Data_Clim_Fig_Nom!$AQ35 -> -2010.08 | S35: =+Data_Clim_Fig_Nom!S35-Data_Clim_Fig_Nom!$AQ35 -> -2030.48 | T35: =+Data_Clim_Fig_Nom!T35-Data_Clim_Fig_Nom!$AQ35 -> -2059.38 | U35: =+Data_Clim_Fig_Nom!U35-Data_Clim_Fig_Nom!$AQ35 -> -1862.98 | V35: =+Data_Clim_Fig_Nom!V35-Data_Clim_Fig_Nom!$AQ35 -> -2146.88 | W35: =+Data_Clim_Fig_Nom!W35-Data_Clim_Fig_Nom!$AQ35 -> -1442.68 | X35: =+Data_Clim_Fig_Nom!X35-Data_Clim_Fig_Nom!$AQ35 -> -2070.58 | Y35: =+Data_Clim_Fig_Nom!Y35-Data_Clim_Fig_Nom!$AQ35 -> -1858.48 | Z35: =+Data_Clim_Fig_Nom!Z35-Data_Clim_Fig_Nom!$AQ35 -> -2166.08 | AA35: =+Data_Clim_Fig_Nom!AA35-Data_Clim_Fig_Nom!$AQ35 -> 4148.92 | AB35: =+Data_Clim_Fig_Nom!AB35-Data_Clim_Fig_Nom!$AQ35 -> -2031.98 | AC35: =+Data_Clim_Fig_Nom!AC35-Data_Clim_Fig_Nom!$AQ35 -> -1079.78 | AD35: =+Data_Clim_Fig_Nom!AD35-Data_Clim_Fig_Nom!$AQ35 -> 886.32 | AE35: =+Data_Clim_Fig_Nom!AE35-Data_Clim_Fig_Nom!$AQ35 -> -1341.08 | AF35: =+Data_Clim_Fig_Nom!AF35-Data_Clim_Fig_Nom!$AQ35 -> -433.28 | AG35: =+Data_Clim_Fig_Nom!AG35-Data_Clim_Fig_Nom!$AQ35 -> -2040.88 | AH35: =+Data_Clim_Fig_Nom!AH35-Data_Clim_Fig_Nom!$AQ35 -> -1870.88 | AI35: =+Data_Clim_Fig_Nom!AI35-Data_Clim_Fig_Nom!$AQ35 -> 13633.92 | AJ35: =+Data_Clim_Fig_Nom!AJ35-Data_Clim_Fig_Nom!$AQ35 -> -584.78 | AK35: =+Data_Clim_Fig_Nom!AK35-Data_Clim_Fig_Nom!$AQ35 -> 1804.52 | AL35: =+Data_Clim_Fig_Nom!AL35-Data_Clim_Fig_Nom!$AQ35 -> 571.42 | AM35: =+Data_Clim_Fig_Nom!AM35-Data_Clim_Fig_Nom!$AQ35 -> 1246.02 | AN35: =+Data_Clim_Fig_Nom!AN35-Data_Clim_Fig_Nom!$AQ35 -> 10059.72 | AO35: =+Data_Clim_Fig_Nom!AO35-Data_Clim_Fig_Nom!$AQ35 -> 3166.02 | AP35: =+Data_Clim_Fig_Nom!AP35-Data_Clim_Fig_Nom!$AQ35 -> 6308.02 | AQ35: 9.094947018e-14
A36: =+Data_Clim!A34 -> 2021-02-02 | B36: =+Data_Clim_Fig_Nom!B36-Data_Clim_Fig_Nom!$AQ36 -> 878.185 | C36: =+Data_Clim_Fig_Nom!C36-Data_Clim_Fig_Nom!$AQ36 -> -2041.015 | D36: =+Data_Clim_Fig_Nom!D36-Data_Clim_Fig_Nom!$AQ36 -> -2202.615 | E36: =+Data_Clim_Fig_Nom!E36-Data_Clim_Fig_Nom!$AQ36 -> -558.415 | F36: =+Data_Clim_Fig_Nom!F36-Data_Clim_Fig_Nom!$AQ36 -> 1648.485 | G36: =+Data_Clim_Fig_Nom!G36-Data_Clim_Fig_Nom!$AQ36 -> 5612.085 | H36: =+Data_Clim_Fig_Nom!H36-Data_Clim_Fig_Nom!$AQ36 -> -1995.415 | I36: =+Data_Clim_Fig_Nom!I36-Data_Clim_Fig_Nom!$AQ36 -> -2067.915 | J36: =+Data_Clim_Fig_Nom!J36-Data_Clim_Fig_Nom!$AQ36 -> -369.715 | K36: =+Data_Clim_Fig_Nom!K36-Data_Clim_Fig_Nom!$AQ36 -> -2054.315 | L36: =+Data_Clim_Fig_Nom!L36-Data_Clim_Fig_Nom!$AQ36 -> 1409.085 | M36: =+Data_Clim_Fig_Nom!M36-Data_Clim_Fig_Nom!$AQ36 -> -2042.015 | N36: =+Data_Clim_Fig_Nom!N36-Data_Clim_Fig_Nom!$AQ36 -> -2085.215 | O36: =+Data_Clim_Fig_Nom!O36-Data_Clim_Fig_Nom!$AQ36 -> -2131.815 | P36: =+Data_Clim_Fig_Nom!P36-Data_Clim_Fig_Nom!$AQ36 -> 1916.885 | Q36: =+Data_Clim_Fig_Nom!Q36-Data_Clim_Fig_Nom!$AQ36 -> -885.615 | R36: =+Data_Clim_Fig_Nom!R36-Data_Clim_Fig_Nom!$AQ36 -> -1670.915 | S36: =+Data_Clim_Fig_Nom!S36-Data_Clim_Fig_Nom!$AQ36 -> -2077.315 | T36: =+Data_Clim_Fig_Nom!T36-Data_Clim_Fig_Nom!$AQ36 -> -2027.115 | U36: =+Data_Clim_Fig_Nom!U36-Data_Clim_Fig_Nom!$AQ36 -> -1582.915 | V36: =+Data_Clim_Fig_Nom!V36-Data_Clim_Fig_Nom!$AQ36 -> 4337.785 | W36: =+Data_Clim_Fig_Nom!W36-Data_Clim_Fig_Nom!$AQ36 -> 327.885 | X36: =+Data_Clim_Fig_Nom!X36-Data_Clim_Fig_Nom!$AQ36 -> -2227.715 | Y36: =+Data_Clim_Fig_Nom!Y36-Data_Clim_Fig_Nom!$AQ36 -> -698.915 | Z36: =+Data_Clim_Fig_Nom!Z36-Data_Clim_Fig_Nom!$AQ36 -> -1874.315 | AA36: =+Data_Clim_Fig_Nom!AA36-Data_Clim_Fig_Nom!$AQ36 -> 3640.885 | AB36: =+Data_Clim_Fig_Nom!AB36-Data_Clim_Fig_Nom!$AQ36 -> -2046.015 | AC36: =+Data_Clim_Fig_Nom!AC36-Data_Clim_Fig_Nom!$AQ36 -> -2099.915 | AD36: =+Data_Clim_Fig_Nom!AD36-Data_Clim_Fig_Nom!$AQ36 -> 5384.685 | AE36: =+Data_Clim_Fig_Nom!AE36-Data_Clim_Fig_Nom!$AQ36 -> -2044.815 | AF36: =+Data_Clim_Fig_Nom!AF36-Data_Clim_Fig_Nom!$AQ36 -> -850.715 | AG36: =+Data_Clim_Fig_Nom!AG36-Data_Clim_Fig_Nom!$AQ36 -> -2061.615 | AH36: =+Data_Clim_Fig_Nom!AH36-Data_Clim_Fig_Nom!$AQ36 -> -1125.715 | AI36: =+Data_Clim_Fig_Nom!AI36-Data_Clim_Fig_Nom!$AQ36 -> 12052.685 | AJ36: =+Data_Clim_Fig_Nom!AJ36-Data_Clim_Fig_Nom!$AQ36 -> 1923.185 | AK36: =+Data_Clim_Fig_Nom!AK36-Data_Clim_Fig_Nom!$AQ36 -> 3771.585 | AL36: =+Data_Clim_Fig_Nom!AL36-Data_Clim_Fig_Nom!$AQ36 -> -2092.315 | AM36: =+Data_Clim_Fig_Nom!AM36-Data_Clim_Fig_Nom!$AQ36 -> -2083.315 | AN36: =+Data_Clim_Fig_Nom!AN36-Data_Clim_Fig_Nom!$AQ36 -> -2210.315 | AO36: =+Data_Clim_Fig_Nom!AO36-Data_Clim_Fig_Nom!$AQ36 -> 4304.585 | AP36: =+Data_Clim_Fig_Nom!AP36-Data_Clim_Fig_Nom!$AQ36 -> 2490.585 | AQ36: 0
A37: =+Data_Clim!A35 -> 2021-02-03 | B37: =+Data_Clim_Fig_Nom!B37-Data_Clim_Fig_Nom!$AQ37 -> 7446.1875 | C37: =+Data_Clim_Fig_Nom!C37-Data_Clim_Fig_Nom!$AQ37 -> 2355.8875 | D37: =+Data_Clim_Fig_Nom!D37-Data_Clim_Fig_Nom!$AQ37 -> -2774.2125 | E37: =+Data_Clim_Fig_Nom!E37-Data_Clim_Fig_Nom!$AQ37 -> 2550.3875 | F37: =+Data_Clim_Fig_Nom!F37-Data_Clim_Fig_Nom!$AQ37 -> 3270.9875 | G37: =+Data_Clim_Fig_Nom!G37-Data_Clim_Fig_Nom!$AQ37 -> -1681.9125 | H37: =+Data_Clim_Fig_Nom!H37-Data_Clim_Fig_Nom!$AQ37 -> -2761.6125 | I37: =+Data_Clim_Fig_Nom!I37-Data_Clim_Fig_Nom!$AQ37 -> -2622.2125 | J37: =+Data_Clim_Fig_Nom!J37-Data_Clim_Fig_Nom!$AQ37 -> -1203.4125 | K37: =+Data_Clim_Fig_Nom!K37-Data_Clim_Fig_Nom!$AQ37 -> -2703.7125 | L37: =+Data_Clim_Fig_Nom!L37-Data_Clim_Fig_Nom!$AQ37 -> -2371.6125 | M37: =+Data_Clim_Fig_Nom!M37-Data_Clim_Fig_Nom!$AQ37 -> -2690.9125 | N37: =+Data_Clim_Fig_Nom!N37-Data_Clim_Fig_Nom!$AQ37 -> -347.7125 | O37: =+Data_Clim_Fig_Nom!O37-Data_Clim_Fig_Nom!$AQ37 -> -2838.6125 | P37: =+Data_Clim_Fig_Nom!P37-Data_Clim_Fig_Nom!$AQ37 -> -2731.0125 | Q37: =+Data_Clim_Fig_Nom!Q37-Data_Clim_Fig_Nom!$AQ37 -> -2758.9125 | R37: =+Data_Clim_Fig_Nom!R37-Data_Clim_Fig_Nom!$AQ37 -> -476.3125 | S37: =+Data_Clim_Fig_Nom!S37-Data_Clim_Fig_Nom!$AQ37 -> -2712.1125 | T37: =+Data_Clim_Fig_Nom!T37-Data_Clim_Fig_Nom!$AQ37 -> -2693.4125 | U37: =+Data_Clim_Fig_Nom!U37-Data_Clim_Fig_Nom!$AQ37 -> -1738.7125 | V37: =+Data_Clim_Fig_Nom!V37-Data_Clim_Fig_Nom!$AQ37 -> -2188.3125 | W37: =+Data_Clim_Fig_Nom!W37-Data_Clim_Fig_Nom!$AQ37 -> 6428.6875 | X37: =+Data_Clim_Fig_Nom!X37-Data_Clim_Fig_Nom!$AQ37 -> -2882.8125 | Y37: =+Data_Clim_Fig_Nom!Y37-Data_Clim_Fig_Nom!$AQ37 -> 13509.4875 | Z37: =+Data_Clim_Fig_Nom!Z37-Data_Clim_Fig_Nom!$AQ37 -> -2824.4125 | AA37: =+Data_Clim_Fig_Nom!AA37-Data_Clim_Fig_Nom!$AQ37 -> -381.2125 | AB37: =+Data_Clim_Fig_Nom!AB37-Data_Clim_Fig_Nom!$AQ37 -> -2688.9125 | AC37: =+Data_Clim_Fig_Nom!AC37-Data_Clim_Fig_Nom!$AQ37 -> -2260.8125 | AD37: =+Data_Clim_Fig_Nom!AD37-Data_Clim_Fig_Nom!$AQ37 -> -2789.6125 | AE37: =+Data_Clim_Fig_Nom!AE37-Data_Clim_Fig_Nom!$AQ37 -> -2739.5125 | AF37: =+Data_Clim_Fig_Nom!AF37-Data_Clim_Fig_Nom!$AQ37 -> 4153.8875 | AG37: =+Data_Clim_Fig_Nom!AG37-Data_Clim_Fig_Nom!$AQ37 -> -2159.8125 | AH37: =+Data_Clim_Fig_Nom!AH37-Data_Clim_Fig_Nom!$AQ37 -> -2711.1125 | AI37: =+Data_Clim_Fig_Nom!AI37-Data_Clim_Fig_Nom!$AQ37 -> -757.5125 | AJ37: =+Data_Clim_Fig_Nom!AJ37-Data_Clim_Fig_Nom!$AQ37 -> -2678.0125 | AK37: =+Data_Clim_Fig_Nom!AK37-Data_Clim_Fig_Nom!$AQ37 -> -2722.3125 | AL37: =+Data_Clim_Fig_Nom!AL37-Data_Clim_Fig_Nom!$AQ37 -> 8904.7875 | AM37: =+Data_Clim_Fig_Nom!AM37-Data_Clim_Fig_Nom!$AQ37 -> -24.7125 | AN37: =+Data_Clim_Fig_Nom!AN37-Data_Clim_Fig_Nom!$AQ37 -> -2037.1125 | AO37: =+Data_Clim_Fig_Nom!AO37-Data_Clim_Fig_Nom!$AQ37 -> 18332.2875 | AP37: =+Data_Clim_Fig_Nom!AP37-Data_Clim_Fig_Nom!$AQ37 -> 6720.0875 | AQ37: 0
A38: =+Data_Clim!A36 -> 2021-02-04 | B38: =+Data_Clim_Fig_Nom!B38-Data_Clim_Fig_Nom!$AQ38 -> 14832.905 | C38: =+Data_Clim_Fig_Nom!C38-Data_Clim_Fig_Nom!$AQ38 -> 10626.305 | D38: =+Data_Clim_Fig_Nom!D38-Data_Clim_Fig_Nom!$AQ38 -> -2124.895 | E38: =+Data_Clim_Fig_Nom!E38-Data_Clim_Fig_Nom!$AQ38 -> -1098.895 | F38: =+Data_Clim_Fig_Nom!F38-Data_Clim_Fig_Nom!$AQ38 -> -278.995 | G38: =+Data_Clim_Fig_Nom!G38-Data_Clim_Fig_Nom!$AQ38 -> -2297.995 | H38: =+Data_Clim_Fig_Nom!H38-Data_Clim_Fig_Nom!$AQ38 -> -2148.995 | I38: =+Data_Clim_Fig_Nom!I38-Data_Clim_Fig_Nom!$AQ38 -> -2086.595 | J38: =+Data_Clim_Fig_Nom!J38-Data_Clim_Fig_Nom!$AQ38 -> -2274.795 | K38: =+Data_Clim_Fig_Nom!K38-Data_Clim_Fig_Nom!$AQ38 -> -2082.995 | L38: =+Data_Clim_Fig_Nom!L38-Data_Clim_Fig_Nom!$AQ38 -> -2267.395 | M38: =+Data_Clim_Fig_Nom!M38-Data_Clim_Fig_Nom!$AQ38 -> -1784.895 | N38: =+Data_Clim_Fig_Nom!N38-Data_Clim_Fig_Nom!$AQ38 -> 11179.405 | O38: =+Data_Clim_Fig_Nom!O38-Data_Clim_Fig_Nom!$AQ38 -> -2171.895 | P38: =+Data_Clim_Fig_Nom!P38-Data_Clim_Fig_Nom!$AQ38 -> -2199.695 | Q38: =+Data_Clim_Fig_Nom!Q38-Data_Clim_Fig_Nom!$AQ38 -> -743.895 | R38: =+Data_Clim_Fig_Nom!R38-Data_Clim_Fig_Nom!$AQ38 -> -735.595 | S38: =+Data_Clim_Fig_Nom!S38-Data_Clim_Fig_Nom!$AQ38 -> -2099.295 | T38: =+Data_Clim_Fig_Nom!T38-Data_Clim_Fig_Nom!$AQ38 -> -2129.495 | U38: =+Data_Clim_Fig_Nom!U38-Data_Clim_Fig_Nom!$AQ38 -> -1497.695 | V38: =+Data_Clim_Fig_Nom!V38-Data_Clim_Fig_Nom!$AQ38 -> -2160.095 | W38: =+Data_Clim_Fig_Nom!W38-Data_Clim_Fig_Nom!$AQ38 -> 4566.505 | X38: =+Data_Clim_Fig_Nom!X38-Data_Clim_Fig_Nom!$AQ38 -> -2216.495 | Y38: =+Data_Clim_Fig_Nom!Y38-Data_Clim_Fig_Nom!$AQ38 -> 5630.905 | Z38: =+Data_Clim_Fig_Nom!Z38-Data_Clim_Fig_Nom!$AQ38 -> -2214.495 | AA38: =+Data_Clim_Fig_Nom!AA38-Data_Clim_Fig_Nom!$AQ38 -> -2119.695 | AB38: =+Data_Clim_Fig_Nom!AB38-Data_Clim_Fig_Nom!$AQ38 -> -1861.195 | AC38: =+Data_Clim_Fig_Nom!AC38-Data_Clim_Fig_Nom!$AQ38 -> -2058.295 | AD38: =+Data_Clim_Fig_Nom!AD38-Data_Clim_Fig_Nom!$AQ38 -> 311.805 | AE38: =+Data_Clim_Fig_Nom!AE38-Data_Clim_Fig_Nom!$AQ38 -> -2116.195 | AF38: =+Data_Clim_Fig_Nom!AF38-Data_Clim_Fig_Nom!$AQ38 -> -2073.095 | AG38: =+Data_Clim_Fig_Nom!AG38-Data_Clim_Fig_Nom!$AQ38 -> -2056.895 | AH38: =+Data_Clim_Fig_Nom!AH38-Data_Clim_Fig_Nom!$AQ38 -> -2062.195 | AI38: =+Data_Clim_Fig_Nom!AI38-Data_Clim_Fig_Nom!$AQ38 -> 7053.705 | AJ38: =+Data_Clim_Fig_Nom!AJ38-Data_Clim_Fig_Nom!$AQ38 -> -1693.595 | AK38: =+Data_Clim_Fig_Nom!AK38-Data_Clim_Fig_Nom!$AQ38 -> -2065.495 | AL38: =+Data_Clim_Fig_Nom!AL38-Data_Clim_Fig_Nom!$AQ38 -> 4217.605 | AM38: =+Data_Clim_Fig_Nom!AM38-Data_Clim_Fig_Nom!$AQ38 -> -45.695 | AN38: =+Data_Clim_Fig_Nom!AN38-Data_Clim_Fig_Nom!$AQ38 -> -1705.995 | AO38: =+Data_Clim_Fig_Nom!AO38-Data_Clim_Fig_Nom!$AQ38 -> -1945.695 | AP38: =+Data_Clim_Fig_Nom!AP38-Data_Clim_Fig_Nom!$AQ38 -> -2164.395 | AQ38: 2.160049917e-13
A39: =+Data_Clim!A37 -> 2021-02-05 | B39: =+Data_Clim_Fig_Nom!B39-Data_Clim_Fig_Nom!$AQ39 -> 4828.4025 | C39: =+Data_Clim_Fig_Nom!C39-Data_Clim_Fig_Nom!$AQ39 -> 691.9025 | D39: =+Data_Clim_Fig_Nom!D39-Data_Clim_Fig_Nom!$AQ39 -> -2335.5975 | E39: =+Data_Clim_Fig_Nom!E39-Data_Clim_Fig_Nom!$AQ39 -> 9416.4025 | F39: =+Data_Clim_Fig_Nom!F39-Data_Clim_Fig_Nom!$AQ39 -> 879.0025 | G39: =+Data_Clim_Fig_Nom!G39-Data_Clim_Fig_Nom!$AQ39 -> -2269.0975 | H39: =+Data_Clim_Fig_Nom!H39-Data_Clim_Fig_Nom!$AQ39 -> -2216.6975 | I39: =+Data_Clim_Fig_Nom!I39-Data_Clim_Fig_Nom!$AQ39 -> -2293.3975 | J39: =+Data_Clim_Fig_Nom!J39-Data_Clim_Fig_Nom!$AQ39 -> 893.8025 | K39: =+Data_Clim_Fig_Nom!K39-Data_Clim_Fig_Nom!$AQ39 -> -2041.8975 | L39: =+Data_Clim_Fig_Nom!L39-Data_Clim_Fig_Nom!$AQ39 -> -2423.1975 | M39: =+Data_Clim_Fig_Nom!M39-Data_Clim_Fig_Nom!$AQ39 -> -1683.9975 | N39: =+Data_Clim_Fig_Nom!N39-Data_Clim_Fig_Nom!$AQ39 -> 8567.7025 | O39: =+Data_Clim_Fig_Nom!O39-Data_Clim_Fig_Nom!$AQ39 -> -2392.6975 | P39: =+Data_Clim_Fig_Nom!P39-Data_Clim_Fig_Nom!$AQ39 -> -2420.9975 | Q39: =+Data_Clim_Fig_Nom!Q39-Data_Clim_Fig_Nom!$AQ39 -> -1705.3975 | R39: =+Data_Clim_Fig_Nom!R39-Data_Clim_Fig_Nom!$AQ39 -> -2181.7975 | S39: =+Data_Clim_Fig_Nom!S39-Data_Clim_Fig_Nom!$AQ39 -> 2131.9025 | T39: =+Data_Clim_Fig_Nom!T39-Data_Clim_Fig_Nom!$AQ39 -> -2303.1975 | U39: =+Data_Clim_Fig_Nom!U39-Data_Clim_Fig_Nom!$AQ39 -> 6223.3025 | V39: =+Data_Clim_Fig_Nom!V39-Data_Clim_Fig_Nom!$AQ39 -> -1731.9975 | W39: =+Data_Clim_Fig_Nom!W39-Data_Clim_Fig_Nom!$AQ39 -> -98.6975 | X39: =+Data_Clim_Fig_Nom!X39-Data_Clim_Fig_Nom!$AQ39 -> -1239.1975 | Y39: =+Data_Clim_Fig_Nom!Y39-Data_Clim_Fig_Nom!$AQ39 -> 2088.4025 | Z39: =+Data_Clim_Fig_Nom!Z39-Data_Clim_Fig_Nom!$AQ39 -> -2530.1975 | AA39: =+Data_Clim_Fig_Nom!AA39-Data_Clim_Fig_Nom!$AQ39 -> -2321.8975 | AB39: =+Data_Clim_Fig_Nom!AB39-Data_Clim_Fig_Nom!$AQ39 -> -2128.9975 | AC39: =+Data_Clim_Fig_Nom!AC39-Data_Clim_Fig_Nom!$AQ39 -> -7.0975 | AD39: =+Data_Clim_Fig_Nom!AD39-Data_Clim_Fig_Nom!$AQ39 -> -1657.5975 | AE39: =+Data_Clim_Fig_Nom!AE39-Data_Clim_Fig_Nom!$AQ39 -> -1906.6975 | AF39: =+Data_Clim_Fig_Nom!AF39-Data_Clim_Fig_Nom!$AQ39 -> 7230.9025 | AG39: =+Data_Clim_Fig_Nom!AG39-Data_Clim_Fig_Nom!$AQ39 -> -2409.8975 | AH39: =+Data_Clim_Fig_Nom!AH39-Data_Clim_Fig_Nom!$AQ39 -> -2276.5975 | AI39: =+Data_Clim_Fig_Nom!AI39-Data_Clim_Fig_Nom!$AQ39 -> 6358.5025 | AJ39: =+Data_Clim_Fig_Nom!AJ39-Data_Clim_Fig_Nom!$AQ39 -> -853.0975 | AK39: =+Data_Clim_Fig_Nom!AK39-Data_Clim_Fig_Nom!$AQ39 -> -724.5975 | AL39: =+Data_Clim_Fig_Nom!AL39-Data_Clim_Fig_Nom!$AQ39 -> -885.2975 | AM39: =+Data_Clim_Fig_Nom!AM39-Data_Clim_Fig_Nom!$AQ39 -> 2409.1025 | AN39: =+Data_Clim_Fig_Nom!AN39-Data_Clim_Fig_Nom!$AQ39 -> -2382.3975 | AO39: =+Data_Clim_Fig_Nom!AO39-Data_Clim_Fig_Nom!$AQ39 -> -2297.0975 | AP39: =+Data_Clim_Fig_Nom!AP39-Data_Clim_Fig_Nom!$AQ39 -> -565.3975 | AQ39: 0
A40: =+Data_Clim!A38 -> 2021-02-06 | B40: =+Data_Clim_Fig_Nom!B40-Data_Clim_Fig_Nom!$AQ40 -> 390.7275 | C40: =+Data_Clim_Fig_Nom!C40-Data_Clim_Fig_Nom!$AQ40 -> 4098.6275 | D40: =+Data_Clim_Fig_Nom!D40-Data_Clim_Fig_Nom!$AQ40 -> -918.6725 | E40: =+Data_Clim_Fig_Nom!E40-Data_Clim_Fig_Nom!$AQ40 -> 5156.1275 | F40: =+Data_Clim_Fig_Nom!F40-Data_Clim_Fig_Nom!$AQ40 -> 7249.9275 | G40: =+Data_Clim_Fig_Nom!G40-Data_Clim_Fig_Nom!$AQ40 -> 955.0275 | H40: =+Data_Clim_Fig_Nom!H40-Data_Clim_Fig_Nom!$AQ40 -> -1551.4725 | I40: =+Data_Clim_Fig_Nom!I40-Data_Clim_Fig_Nom!$AQ40 -> -2046.7725 | J40: =+Data_Clim_Fig_Nom!J40-Data_Clim_Fig_Nom!$AQ40 -> 5987.6275 | K40: =+Data_Clim_Fig_Nom!K40-Data_Clim_Fig_Nom!$AQ40 -> -2054.9725 | L40: =+Data_Clim_Fig_Nom!L40-Data_Clim_Fig_Nom!$AQ40 -> -2326.2725 | M40: =+Data_Clim_Fig_Nom!M40-Data_Clim_Fig_Nom!$AQ40 -> -1704.7725 | N40: =+Data_Clim_Fig_Nom!N40-Data_Clim_Fig_Nom!$AQ40 -> -1297.5725 | O40: =+Data_Clim_Fig_Nom!O40-Data_Clim_Fig_Nom!$AQ40 -> -1987.8725 | P40: =+Data_Clim_Fig_Nom!P40-Data_Clim_Fig_Nom!$AQ40 -> -1582.2725 | Q40: =+Data_Clim_Fig_Nom!Q40-Data_Clim_Fig_Nom!$AQ40 -> -1877.8725 | R40: =+Data_Clim_Fig_Nom!R40-Data_Clim_Fig_Nom!$AQ40 -> -2218.2725 | S40: =+Data_Clim_Fig_Nom!S40-Data_Clim_Fig_Nom!$AQ40 -> -2182.0725 | T40: =+Data_Clim_Fig_Nom!T40-Data_Clim_Fig_Nom!$AQ40 -> -2212.7725 | U40: =+Data_Clim_Fig_Nom!U40-Data_Clim_Fig_Nom!$AQ40 -> 4934.3275 | V40: =+Data_Clim_Fig_Nom!V40-Data_Clim_Fig_Nom!$AQ40 -> -2326.8725 | W40: =+Data_Clim_Fig_Nom!W40-Data_Clim_Fig_Nom!$AQ40 -> -2338.0725 | X40: =+Data_Clim_Fig_Nom!X40-Data_Clim_Fig_Nom!$AQ40 -> 10478.2275 | Y40: =+Data_Clim_Fig_Nom!Y40-Data_Clim_Fig_Nom!$AQ40 -> 43.4275 | Z40: =+Data_Clim_Fig_Nom!Z40-Data_Clim_Fig_Nom!$AQ40 -> -2448.7725 | AA40: =+Data_Clim_Fig_Nom!AA40-Data_Clim_Fig_Nom!$AQ40 -> -2254.5725 | AB40: =+Data_Clim_Fig_Nom!AB40-Data_Clim_Fig_Nom!$AQ40 -> -1787.3725 | AC40: =+Data_Clim_Fig_Nom!AC40-Data_Clim_Fig_Nom!$AQ40 -> 5713.8275 | AD40: =+Data_Clim_Fig_Nom!AD40-Data_Clim_Fig_Nom!$AQ40 -> 4388.3275 | AE40: =+Data_Clim_Fig_Nom!AE40-Data_Clim_Fig_Nom!$AQ40 -> 322.1275 | AF40: =+Data_Clim_Fig_Nom!AF40-Data_Clim_Fig_Nom!$AQ40 -> -563.3725 | AG40: =+Data_Clim_Fig_Nom!AG40-Data_Clim_Fig_Nom!$AQ40 -> -2327.8725 | AH40: =+Data_Clim_Fig_Nom!AH40-Data_Clim_Fig_Nom!$AQ40 -> -2159.3725 | AI40: =+Data_Clim_Fig_Nom!AI40-Data_Clim_Fig_Nom!$AQ40 -> 1923.5275 | AJ40: =+Data_Clim_Fig_Nom!AJ40-Data_Clim_Fig_Nom!$AQ40 -> -2429.6725 | AK40: =+Data_Clim_Fig_Nom!AK40-Data_Clim_Fig_Nom!$AQ40 -> -2135.8725 | AL40: =+Data_Clim_Fig_Nom!AL40-Data_Clim_Fig_Nom!$AQ40 -> -2335.8725 | AM40: =+Data_Clim_Fig_Nom!AM40-Data_Clim_Fig_Nom!$AQ40 -> -84.7725 | AN40: =+Data_Clim_Fig_Nom!AN40-Data_Clim_Fig_Nom!$AQ40 -> -2271.8725 | AO40: =+Data_Clim_Fig_Nom!AO40-Data_Clim_Fig_Nom!$AQ40 -> -2215.8725 | AP40: =+Data_Clim_Fig_Nom!AP40-Data_Clim_Fig_Nom!$AQ40 -> -1461.8725 | AQ40: -7.50333129e-13
A41: =+Data_Clim!A39 -> 2021-02-07 | B41: =+Data_Clim_Fig_Nom!B41-Data_Clim_Fig_Nom!$AQ41 -> 3014.675 | C41: =+Data_Clim_Fig_Nom!C41-Data_Clim_Fig_Nom!$AQ41 -> 405.475 | D41: =+Data_Clim_Fig_Nom!D41-Data_Clim_Fig_Nom!$AQ41 -> -1795.625 | E41: =+Data_Clim_Fig_Nom!E41-Data_Clim_Fig_Nom!$AQ41 -> 627.475 | F41: =+Data_Clim_Fig_Nom!F41-Data_Clim_Fig_Nom!$AQ41 -> 17651.775 | G41: =+Data_Clim_Fig_Nom!G41-Data_Clim_Fig_Nom!$AQ41 -> -1820.325 | H41: =+Data_Clim_Fig_Nom!H41-Data_Clim_Fig_Nom!$AQ41 -> -2053.025 | I41: =+Data_Clim_Fig_Nom!I41-Data_Clim_Fig_Nom!$AQ41 -> 4996.375 | J41: =+Data_Clim_Fig_Nom!J41-Data_Clim_Fig_Nom!$AQ41 -> 6923.175 | K41: =+Data_Clim_Fig_Nom!K41-Data_Clim_Fig_Nom!$AQ41 -> -2738.625 | L41: =+Data_Clim_Fig_Nom!L41-Data_Clim_Fig_Nom!$AQ41 -> -2883.125 | M41: =+Data_Clim_Fig_Nom!M41-Data_Clim_Fig_Nom!$AQ41 -> -2379.925 | N41: =+Data_Clim_Fig_Nom!N41-Data_Clim_Fig_Nom!$AQ41 -> -2806.425 | O41: =+Data_Clim_Fig_Nom!O41-Data_Clim_Fig_Nom!$AQ41 -> -2647.425 | P41: =+Data_Clim_Fig_Nom!P41-Data_Clim_Fig_Nom!$AQ41 -> -1157.925 | Q41: =+Data_Clim_Fig_Nom!Q41-Data_Clim_Fig_Nom!$AQ41 -> -2980.425 | R41: =+Data_Clim_Fig_Nom!R41-Data_Clim_Fig_Nom!$AQ41 -> -2054.625 | S41: =+Data_Clim_Fig_Nom!S41-Data_Clim_Fig_Nom!$AQ41 -> -2840.725 | T41: =+Data_Clim_Fig_Nom!T41-Data_Clim_Fig_Nom!$AQ41 -> -2200.925 | U41: =+Data_Clim_Fig_Nom!U41-Data_Clim_Fig_Nom!$AQ41 -> 8115.275 | V41: =+Data_Clim_Fig_Nom!V41-Data_Clim_Fig_Nom!$AQ41 -> -1264.325 | W41: =+Data_Clim_Fig_Nom!W41-Data_Clim_Fig_Nom!$AQ41 -> -2888.525 | X41: =+Data_Clim_Fig_Nom!X41-Data_Clim_Fig_Nom!$AQ41 -> 175.575 | Y41: =+Data_Clim_Fig_Nom!Y41-Data_Clim_Fig_Nom!$AQ41 -> -2221.425 | Z41: =+Data_Clim_Fig_Nom!Z41-Data_Clim_Fig_Nom!$AQ41 -> -976.725 | AA41: =+Data_Clim_Fig_Nom!AA41-Data_Clim_Fig_Nom!$AQ41 -> -2795.425 | AB41: =+Data_Clim_Fig_Nom!AB41-Data_Clim_Fig_Nom!$AQ41 -> -263.925 | AC41: =+Data_Clim_Fig_Nom!AC41-Data_Clim_Fig_Nom!$AQ41 -> 4.375 | AD41: =+Data_Clim_Fig_Nom!AD41-Data_Clim_Fig_Nom!$AQ41 -> -2389.225 | AE41: =+Data_Clim_Fig_Nom!AE41-Data_Clim_Fig_Nom!$AQ41 -> 3032.975 | AF41: =+Data_Clim_Fig_Nom!AF41-Data_Clim_Fig_Nom!$AQ41 -> -1715.325 | AG41: =+Data_Clim_Fig_Nom!AG41-Data_Clim_Fig_Nom!$AQ41 -> -2847.425 | AH41: =+Data_Clim_Fig_Nom!AH41-Data_Clim_Fig_Nom!$AQ41 -> -1933.625 | AI41: =+Data_Clim_Fig_Nom!AI41-Data_Clim_Fig_Nom!$AQ41 -> 2434.475 | AJ41: =+Data_Clim_Fig_Nom!AJ41-Data_Clim_Fig_Nom!$AQ41 -> 2848.775 | AK41: =+Data_Clim_Fig_Nom!AK41-Data_Clim_Fig_Nom!$AQ41 -> -2854.325 | AL41: =+Data_Clim_Fig_Nom!AL41-Data_Clim_Fig_Nom!$AQ41 -> -544.925 | AM41: =+Data_Clim_Fig_Nom!AM41-Data_Clim_Fig_Nom!$AQ41 -> -658.225 | AN41: =+Data_Clim_Fig_Nom!AN41-Data_Clim_Fig_Nom!$AQ41 -> -1155.125 | AO41: =+Data_Clim_Fig_Nom!AO41-Data_Clim_Fig_Nom!$AQ41 -> 4637.275 | AP41: =+Data_Clim_Fig_Nom!AP41-Data_Clim_Fig_Nom!$AQ41 -> 1786.375 | AQ41: 7.50333129e-13
A42: =+Data_Clim!A40 -> 2021-02-08 | B42: =+Data_Clim_Fig_Nom!B42-Data_Clim_Fig_Nom!$AQ42 -> -2721.5725 | C42: =+Data_Clim_Fig_Nom!C42-Data_Clim_Fig_Nom!$AQ42 -> -2214.3725 | D42: =+Data_Clim_Fig_Nom!D42-Data_Clim_Fig_Nom!$AQ42 -> -157.0725 | E42: =+Data_Clim_Fig_Nom!E42-Data_Clim_Fig_Nom!$AQ42 -> -2353.0725 | F42: =+Data_Clim_Fig_Nom!F42-Data_Clim_Fig_Nom!$AQ42 -> 10095.3275 | G42: =+Data_Clim_Fig_Nom!G42-Data_Clim_Fig_Nom!$AQ42 -> 4061.7275 | H42: =+Data_Clim_Fig_Nom!H42-Data_Clim_Fig_Nom!$AQ42 -> -2376.0725 | I42: =+Data_Clim_Fig_Nom!I42-Data_Clim_Fig_Nom!$AQ42 -> -1552.7725 | J42: =+Data_Clim_Fig_Nom!J42-Data_Clim_Fig_Nom!$AQ42 -> 5758.9275 | K42: =+Data_Clim_Fig_Nom!K42-Data_Clim_Fig_Nom!$AQ42 -> -2626.8725 | L42: =+Data_Clim_Fig_Nom!L42-Data_Clim_Fig_Nom!$AQ42 -> -1635.3725 | M42: =+Data_Clim_Fig_Nom!M42-Data_Clim_Fig_Nom!$AQ42 -> -1136.2725 | N42: =+Data_Clim_Fig_Nom!N42-Data_Clim_Fig_Nom!$AQ42 -> -2628.4725 | O42: =+Data_Clim_Fig_Nom!O42-Data_Clim_Fig_Nom!$AQ42 -> -2639.6725 | P42: =+Data_Clim_Fig_Nom!P42-Data_Clim_Fig_Nom!$AQ42 -> 2705.7275 | Q42: =+Data_Clim_Fig_Nom!Q42-Data_Clim_Fig_Nom!$AQ42 -> -183.4725 | R42: =+Data_Clim_Fig_Nom!R42-Data_Clim_Fig_Nom!$AQ42 -> 257.0275 | S42: =+Data_Clim_Fig_Nom!S42-Data_Clim_Fig_Nom!$AQ42 -> -2761.0725 | T42: =+Data_Clim_Fig_Nom!T42-Data_Clim_Fig_Nom!$AQ42 -> -2517.6725 | U42: =+Data_Clim_Fig_Nom!U42-Data_Clim_Fig_Nom!$AQ42 -> 25.7275 | V42: =+Data_Clim_Fig_Nom!V42-Data_Clim_Fig_Nom!$AQ42 -> 9739.8275 | W42: =+Data_Clim_Fig_Nom!W42-Data_Clim_Fig_Nom!$AQ42 -> -1979.4725 | X42: =+Data_Clim_Fig_Nom!X42-Data_Clim_Fig_Nom!$AQ42 -> 1786.1275 | Y42: =+Data_Clim_Fig_Nom!Y42-Data_Clim_Fig_Nom!$AQ42 -> -387.4725 | Z42: =+Data_Clim_Fig_Nom!Z42-Data_Clim_Fig_Nom!$AQ42 -> 5356.1275 | AA42: =+Data_Clim_Fig_Nom!AA42-Data_Clim_Fig_Nom!$AQ42 -> -2650.1725 | AB42: =+Data_Clim_Fig_Nom!AB42-Data_Clim_Fig_Nom!$AQ42 -> 657.0275 | AC42: =+Data_Clim_Fig_Nom!AC42-Data_Clim_Fig_Nom!$AQ42 -> 4740.5275 | AD42: =+Data_Clim_Fig_Nom!AD42-Data_Clim_Fig_Nom!$AQ42 -> -2773.5725 | AE42: =+Data_Clim_Fig_Nom!AE42-Data_Clim_Fig_Nom!$AQ42 -> 2759.5275 | AF42: =+Data_Clim_Fig_Nom!AF42-Data_Clim_Fig_Nom!$AQ42 -> -2640.5725 | AG42: =+Data_Clim_Fig_Nom!AG42-Data_Clim_Fig_Nom!$AQ42 -> -2603.5725 | AH42: =+Data_Clim_Fig_Nom!AH42-Data_Clim_Fig_Nom!$AQ42 -> -2517.2725 | AI42: =+Data_Clim_Fig_Nom!AI42-Data_Clim_Fig_Nom!$AQ42 -> 599.4275 | AJ42: =+Data_Clim_Fig_Nom!AJ42-Data_Clim_Fig_Nom!$AQ42 -> -362.9725 | AK42: =+Data_Clim_Fig_Nom!AK42-Data_Clim_Fig_Nom!$AQ42 -> -923.9725 | AL42: =+Data_Clim_Fig_Nom!AL42-Data_Clim_Fig_Nom!$AQ42 -> 1406.1275 | AM42: =+Data_Clim_Fig_Nom!AM42-Data_Clim_Fig_Nom!$AQ42 -> -1654.6725 | AN42: =+Data_Clim_Fig_Nom!AN42-Data_Clim_Fig_Nom!$AQ42 -> -1383.6725 | AO42: =+Data_Clim_Fig_Nom!AO42-Data_Clim_Fig_Nom!$AQ42 -> -2567.9725 | AP42: =+Data_Clim_Fig_Nom!AP42-Data_Clim_Fig_Nom!$AQ42 -> -1098.6725 | AQ42: 6.025402399e-13
A43: =+Data_Clim!A41 -> 2021-02-09 | B43: =+Data_Clim_Fig_Nom!B43-Data_Clim_Fig_Nom!$AQ43 -> -2147.67 | C43: =+Data_Clim_Fig_Nom!C43-Data_Clim_Fig_Nom!$AQ43 -> -2051.07 | D43: =+Data_Clim_Fig_Nom!D43-Data_Clim_Fig_Nom!$AQ43 -> -2006.67 | E43: =+Data_Clim_Fig_Nom!E43-Data_Clim_Fig_Nom!$AQ43 -> -887.67 | F43: =+Data_Clim_Fig_Nom!F43-Data_Clim_Fig_Nom!$AQ43 -> 2799.73 | G43: =+Data_Clim_Fig_Nom!G43-Data_Clim_Fig_Nom!$AQ43 -> 5054.03 | H43: =+Data_Clim_Fig_Nom!H43-Data_Clim_Fig_Nom!$AQ43 -> -200.87 | I43: =+Data_Clim_Fig_Nom!I43-Data_Clim_Fig_Nom!$AQ43 -> -1232.87 | J43: =+Data_Clim_Fig_Nom!J43-Data_Clim_Fig_Nom!$AQ43 -> 1052.93 | K43: =+Data_Clim_Fig_Nom!K43-Data_Clim_Fig_Nom!$AQ43 -> -2085.27 | L43: =+Data_Clim_Fig_Nom!L43-Data_Clim_Fig_Nom!$AQ43 -> -1886.37 | M43: =+Data_Clim_Fig_Nom!M43-Data_Clim_Fig_Nom!$AQ43 -> 2574.53 | N43: =+Data_Clim_Fig_Nom!N43-Data_Clim_Fig_Nom!$AQ43 -> -2117.17 | O43: =+Data_Clim_Fig_Nom!O43-Data_Clim_Fig_Nom!$AQ43 -> -2104.17 | P43: =+Data_Clim_Fig_Nom!P43-Data_Clim_Fig_Nom!$AQ43 -> -1394.77 | Q43: =+Data_Clim_Fig_Nom!Q43-Data_Clim_Fig_Nom!$AQ43 -> 6185.13 | R43: =+Data_Clim_Fig_Nom!R43-Data_Clim_Fig_Nom!$AQ43 -> -1809.07 | S43: =+Data_Clim_Fig_Nom!S43-Data_Clim_Fig_Nom!$AQ43 -> -2218.57 | T43: =+Data_Clim_Fig_Nom!T43-Data_Clim_Fig_Nom!$AQ43 -> -2084.17 | U43: =+Data_Clim_Fig_Nom!U43-Data_Clim_Fig_Nom!$AQ43 -> 14860.03 | V43: =+Data_Clim_Fig_Nom!V43-Data_Clim_Fig_Nom!$AQ43 -> 2520.23 | W43: =+Data_Clim_Fig_Nom!W43-Data_Clim_Fig_Nom!$AQ43 -> 499.23 | X43: =+Data_Clim_Fig_Nom!X43-Data_Clim_Fig_Nom!$AQ43 -> -470.57 | Y43: =+Data_Clim_Fig_Nom!Y43-Data_Clim_Fig_Nom!$AQ43 -> -1901.27 | Z43: =+Data_Clim_Fig_Nom!Z43-Data_Clim_Fig_Nom!$AQ43 -> 106.33 | AA43: =+Data_Clim_Fig_Nom!AA43-Data_Clim_Fig_Nom!$AQ43 -> -2131.37 | AB43: =+Data_Clim_Fig_Nom!AB43-Data_Clim_Fig_Nom!$AQ43 -> 1176.43 | AC43: =+Data_Clim_Fig_Nom!AC43-Data_Clim_Fig_Nom!$AQ43 -> -1161.07 | AD43: =+Data_Clim_Fig_Nom!AD43-Data_Clim_Fig_Nom!$AQ43 -> -2198.57 | AE43: =+Data_Clim_Fig_Nom!AE43-Data_Clim_Fig_Nom!$AQ43 -> -31.07 | AF43: =+Data_Clim_Fig_Nom!AF43-Data_Clim_Fig_Nom!$AQ43 -> -1664.87 | AG43: =+Data_Clim_Fig_Nom!AG43-Data_Clim_Fig_Nom!$AQ43 -> -2041.07 | AH43: =+Data_Clim_Fig_Nom!AH43-Data_Clim_Fig_Nom!$AQ43 -> -1312.57 | AI43: =+Data_Clim_Fig_Nom!AI43-Data_Clim_Fig_Nom!$AQ43 -> 575.33 | AJ43: =+Data_Clim_Fig_Nom!AJ43-Data_Clim_Fig_Nom!$AQ43 -> -1108.37 | AK43: =+Data_Clim_Fig_Nom!AK43-Data_Clim_Fig_Nom!$AQ43 -> -1482.37 | AL43: =+Data_Clim_Fig_Nom!AL43-Data_Clim_Fig_Nom!$AQ43 -> 7039.93 | AM43: =+Data_Clim_Fig_Nom!AM43-Data_Clim_Fig_Nom!$AQ43 -> -2090.87 | AN43: =+Data_Clim_Fig_Nom!AN43-Data_Clim_Fig_Nom!$AQ43 -> -2079.27 | AO43: =+Data_Clim_Fig_Nom!AO43-Data_Clim_Fig_Nom!$AQ43 -> -544.17 | AP43: =+Data_Clim_Fig_Nom!AP43-Data_Clim_Fig_Nom!$AQ43 -> 690.03 | AQ43: -4.035882739e-13
A44: =+Data_Clim!A42 -> 2021-02-10 | B44: =+Data_Clim_Fig_Nom!B44-Data_Clim_Fig_Nom!$AQ44 -> 1544.455 | C44: =+Data_Clim_Fig_Nom!C44-Data_Clim_Fig_Nom!$AQ44 -> 1304.955 | D44: =+Data_Clim_Fig_Nom!D44-Data_Clim_Fig_Nom!$AQ44 -> -1913.745 | E44: =+Data_Clim_Fig_Nom!E44-Data_Clim_Fig_Nom!$AQ44 -> -1391.545 | F44: =+Data_Clim_Fig_Nom!F44-Data_Clim_Fig_Nom!$AQ44 -> -976.545 | G44: =+Data_Clim_Fig_Nom!G44-Data_Clim_Fig_Nom!$AQ44 -> 20.555 | H44: =+Data_Clim_Fig_Nom!H44-Data_Clim_Fig_Nom!$AQ44 -> 115.655 | I44: =+Data_Clim_Fig_Nom!I44-Data_Clim_Fig_Nom!$AQ44 -> 4144.755 | J44: =+Data_Clim_Fig_Nom!J44-Data_Clim_Fig_Nom!$AQ44 -> 1109.655 | K44: =+Data_Clim_Fig_Nom!K44-Data_Clim_Fig_Nom!$AQ44 -> -1783.545 | L44: =+Data_Clim_Fig_Nom!L44-Data_Clim_Fig_Nom!$AQ44 -> 100.255 | M44: =+Data_Clim_Fig_Nom!M44-Data_Clim_Fig_Nom!$AQ44 -> 2276.255 | N44: =+Data_Clim_Fig_Nom!N44-Data_Clim_Fig_Nom!$AQ44 -> 1497.355 | O44: =+Data_Clim_Fig_Nom!O44-Data_Clim_Fig_Nom!$AQ44 -> -1860.845 | P44: =+Data_Clim_Fig_Nom!P44-Data_Clim_Fig_Nom!$AQ44 -> 1922.955 | Q44: =+Data_Clim_Fig_Nom!Q44-Data_Clim_Fig_Nom!$AQ44 -> -1576.045 | R44: =+Data_Clim_Fig_Nom!R44-Data_Clim_Fig_Nom!$AQ44 -> -1536.045 | S44: =+Data_Clim_Fig_Nom!S44-Data_Clim_Fig_Nom!$AQ44 -> -2015.945 | T44: =+Data_Clim_Fig_Nom!T44-Data_Clim_Fig_Nom!$AQ44 -> -1861.045 | U44: =+Data_Clim_Fig_Nom!U44-Data_Clim_Fig_Nom!$AQ44 -> -924.645 | V44: =+Data_Clim_Fig_Nom!V44-Data_Clim_Fig_Nom!$AQ44 -> -1632.945 | W44: =+Data_Clim_Fig_Nom!W44-Data_Clim_Fig_Nom!$AQ44 -> -1774.045 | X44: =+Data_Clim_Fig_Nom!X44-Data_Clim_Fig_Nom!$AQ44 -> 2222.755 | Y44: =+Data_Clim_Fig_Nom!Y44-Data_Clim_Fig_Nom!$AQ44 -> -1716.245 | Z44: =+Data_Clim_Fig_Nom!Z44-Data_Clim_Fig_Nom!$AQ44 -> -1677.845 | AA44: =+Data_Clim_Fig_Nom!AA44-Data_Clim_Fig_Nom!$AQ44 -> -1033.045 | AB44: =+Data_Clim_Fig_Nom!AB44-Data_Clim_Fig_Nom!$AQ44 -> 1594.755 | AC44: =+Data_Clim_Fig_Nom!AC44-Data_Clim_Fig_Nom!$AQ44 -> -154.245 | AD44: =+Data_Clim_Fig_Nom!AD44-Data_Clim_Fig_Nom!$AQ44 -> -1883.845 | AE44: =+Data_Clim_Fig_Nom!AE44-Data_Clim_Fig_Nom!$AQ44 -> 3120.555 | AF44: =+Data_Clim_Fig_Nom!AF44-Data_Clim_Fig_Nom!$AQ44 -> 2163.455 | AG44: =+Data_Clim_Fig_Nom!AG44-Data_Clim_Fig_Nom!$AQ44 -> -1892.345 | AH44: =+Data_Clim_Fig_Nom!AH44-Data_Clim_Fig_Nom!$AQ44 -> -1232.445 | AI44: =+Data_Clim_Fig_Nom!AI44-Data_Clim_Fig_Nom!$AQ44 -> -1651.045 | AJ44: =+Data_Clim_Fig_Nom!AJ44-Data_Clim_Fig_Nom!$AQ44 -> 452.755 | AK44: =+Data_Clim_Fig_Nom!AK44-Data_Clim_Fig_Nom!$AQ44 -> -1664.845 | AL44: =+Data_Clim_Fig_Nom!AL44-Data_Clim_Fig_Nom!$AQ44 -> 1319.955 | AM44: =+Data_Clim_Fig_Nom!AM44-Data_Clim_Fig_Nom!$AQ44 -> -1425.745 | AN44: =+Data_Clim_Fig_Nom!AN44-Data_Clim_Fig_Nom!$AQ44 -> -1279.645 | AO44: =+Data_Clim_Fig_Nom!AO44-Data_Clim_Fig_Nom!$AQ44 -> 9947.155 | AP44: =+Data_Clim_Fig_Nom!AP44-Data_Clim_Fig_Nom!$AQ44 -> 6027.655 | AQ44: 0
A45: =+Data_Clim!A43 -> 2021-02-11 | B45: =+Data_Clim_Fig_Nom!B45-Data_Clim_Fig_Nom!$AQ45 -> 103.8575 | C45: =+Data_Clim_Fig_Nom!C45-Data_Clim_Fig_Nom!$AQ45 -> -1782.3425 | D45: =+Data_Clim_Fig_Nom!D45-Data_Clim_Fig_Nom!$AQ45 -> -2515.2425 | E45: =+Data_Clim_Fig_Nom!E45-Data_Clim_Fig_Nom!$AQ45 -> -621.9425 | F45: =+Data_Clim_Fig_Nom!F45-Data_Clim_Fig_Nom!$AQ45 -> 3038.1575 | G45: =+Data_Clim_Fig_Nom!G45-Data_Clim_Fig_Nom!$AQ45 -> -1324.9425 | H45: =+Data_Clim_Fig_Nom!H45-Data_Clim_Fig_Nom!$AQ45 -> -1799.2425 | I45: =+Data_Clim_Fig_Nom!I45-Data_Clim_Fig_Nom!$AQ45 -> -2395.7425 | J45: =+Data_Clim_Fig_Nom!J45-Data_Clim_Fig_Nom!$AQ45 -> 2659.4575 | K45: =+Data_Clim_Fig_Nom!K45-Data_Clim_Fig_Nom!$AQ45 -> -2415.7425 | L45: =+Data_Clim_Fig_Nom!L45-Data_Clim_Fig_Nom!$AQ45 -> 1229.7575 | M45: =+Data_Clim_Fig_Nom!M45-Data_Clim_Fig_Nom!$AQ45 -> -1775.9425 | N45: =+Data_Clim_Fig_Nom!N45-Data_Clim_Fig_Nom!$AQ45 -> 1028.4575 | O45: =+Data_Clim_Fig_Nom!O45-Data_Clim_Fig_Nom!$AQ45 -> -2504.2425 | P45: =+Data_Clim_Fig_Nom!P45-Data_Clim_Fig_Nom!$AQ45 -> 1222.8575 | Q45: =+Data_Clim_Fig_Nom!Q45-Data_Clim_Fig_Nom!$AQ45 -> -391.7425 | R45: =+Data_Clim_Fig_Nom!R45-Data_Clim_Fig_Nom!$AQ45 -> 601.1575 | S45: =+Data_Clim_Fig_Nom!S45-Data_Clim_Fig_Nom!$AQ45 -> 1746.3575 | T45: =+Data_Clim_Fig_Nom!T45-Data_Clim_Fig_Nom!$AQ45 -> -2505.1425 | U45: =+Data_Clim_Fig_Nom!U45-Data_Clim_Fig_Nom!$AQ45 -> -477.0425 | V45: =+Data_Clim_Fig_Nom!V45-Data_Clim_Fig_Nom!$AQ45 -> 6880.0575 | W45: =+Data_Clim_Fig_Nom!W45-Data_Clim_Fig_Nom!$AQ45 -> -2541.0425 | X45: =+Data_Clim_Fig_Nom!X45-Data_Clim_Fig_Nom!$AQ45 -> -2357.3425 | Y45: =+Data_Clim_Fig_Nom!Y45-Data_Clim_Fig_Nom!$AQ45 -> -2424.2425 | Z45: =+Data_Clim_Fig_Nom!Z45-Data_Clim_Fig_Nom!$AQ45 -> 5729.6575 | AA45: =+Data_Clim_Fig_Nom!AA45-Data_Clim_Fig_Nom!$AQ45 -> 4434.6575 | AB45: =+Data_Clim_Fig_Nom!AB45-Data_Clim_Fig_Nom!$AQ45 -> -2076.0425 | AC45: =+Data_Clim_Fig_Nom!AC45-Data_Clim_Fig_Nom!$AQ45 -> 4250.8575 | AD45: =+Data_Clim_Fig_Nom!AD45-Data_Clim_Fig_Nom!$AQ45 -> -2558.6425 | AE45: =+Data_Clim_Fig_Nom!AE45-Data_Clim_Fig_Nom!$AQ45 -> -447.5425 | AF45: =+Data_Clim_Fig_Nom!AF45-Data_Clim_Fig_Nom!$AQ45 -> 2238.7575 | AG45: =+Data_Clim_Fig_Nom!AG45-Data_Clim_Fig_Nom!$AQ45 -> -1455.1425 | AH45: =+Data_Clim_Fig_Nom!AH45-Data_Clim_Fig_Nom!$AQ45 -> -2197.2425 | AI45: =+Data_Clim_Fig_Nom!AI45-Data_Clim_Fig_Nom!$AQ45 -> -132.7425 | AJ45: =+Data_Clim_Fig_Nom!AJ45-Data_Clim_Fig_Nom!$AQ45 -> -1186.3425 | AK45: =+Data_Clim_Fig_Nom!AK45-Data_Clim_Fig_Nom!$AQ45 -> -2388.4425 | AL45: =+Data_Clim_Fig_Nom!AL45-Data_Clim_Fig_Nom!$AQ45 -> -2048.9425 | AM45: =+Data_Clim_Fig_Nom!AM45-Data_Clim_Fig_Nom!$AQ45 -> -2409.1425 | AN45: =+Data_Clim_Fig_Nom!AN45-Data_Clim_Fig_Nom!$AQ45 -> 1097.9575 | AO45: =+Data_Clim_Fig_Nom!AO45-Data_Clim_Fig_Nom!$AQ45 -> 8470.1575 | AP45: =+Data_Clim_Fig_Nom!AP45-Data_Clim_Fig_Nom!$AQ45 -> -1997.7425 | AQ45: 0
A46: =+Data_Clim!A44 -> 2021-02-12 | B46: =+Data_Clim_Fig_Nom!B46-Data_Clim_Fig_Nom!$AQ46 -> -605.6825 | C46: =+Data_Clim_Fig_Nom!C46-Data_Clim_Fig_Nom!$AQ46 -> -1595.2825 | D46: =+Data_Clim_Fig_Nom!D46-Data_Clim_Fig_Nom!$AQ46 -> -1949.9825 | E46: =+Data_Clim_Fig_Nom!E46-Data_Clim_Fig_Nom!$AQ46 -> 1217.5175 | F46: =+Data_Clim_Fig_Nom!F46-Data_Clim_Fig_Nom!$AQ46 -> -1949.5825 | G46: =+Data_Clim_Fig_Nom!G46-Data_Clim_Fig_Nom!$AQ46 -> -1878.6825 | H46: =+Data_Clim_Fig_Nom!H46-Data_Clim_Fig_Nom!$AQ46 -> -1790.2825 | I46: =+Data_Clim_Fig_Nom!I46-Data_Clim_Fig_Nom!$AQ46 -> -1460.6825 | J46: =+Data_Clim_Fig_Nom!J46-Data_Clim_Fig_Nom!$AQ46 -> 3471.9175 | K46: =+Data_Clim_Fig_Nom!K46-Data_Clim_Fig_Nom!$AQ46 -> -277.5825 | L46: =+Data_Clim_Fig_Nom!L46-Data_Clim_Fig_Nom!$AQ46 -> 4473.7175 | M46: =+Data_Clim_Fig_Nom!M46-Data_Clim_Fig_Nom!$AQ46 -> -768.5825 | N46: =+Data_Clim_Fig_Nom!N46-Data_Clim_Fig_Nom!$AQ46 -> 1713.3175 | O46: =+Data_Clim_Fig_Nom!O46-Data_Clim_Fig_Nom!$AQ46 -> -1945.7825 | P46: =+Data_Clim_Fig_Nom!P46-Data_Clim_Fig_Nom!$AQ46 -> -1603.5825 | Q46: =+Data_Clim_Fig_Nom!Q46-Data_Clim_Fig_Nom!$AQ46 -> 57.8175 | R46: =+Data_Clim_Fig_Nom!R46-Data_Clim_Fig_Nom!$AQ46 -> 5533.9175 | S46: =+Data_Clim_Fig_Nom!S46-Data_Clim_Fig_Nom!$AQ46 -> 1868.4175 | T46: =+Data_Clim_Fig_Nom!T46-Data_Clim_Fig_Nom!$AQ46 -> -2045.4825 | U46: =+Data_Clim_Fig_Nom!U46-Data_Clim_Fig_Nom!$AQ46 -> -1724.8825 | V46: =+Data_Clim_Fig_Nom!V46-Data_Clim_Fig_Nom!$AQ46 -> -1772.9825 | W46: =+Data_Clim_Fig_Nom!W46-Data_Clim_Fig_Nom!$AQ46 -> -2033.2825 | X46: =+Data_Clim_Fig_Nom!X46-Data_Clim_Fig_Nom!$AQ46 -> -1988.0825 | Y46: =+Data_Clim_Fig_Nom!Y46-Data_Clim_Fig_Nom!$AQ46 -> -1836.7825 | Z46: =+Data_Clim_Fig_Nom!Z46-Data_Clim_Fig_Nom!$AQ46 -> -1721.8825 | AA46: =+Data_Clim_Fig_Nom!AA46-Data_Clim_Fig_Nom!$AQ46 -> 12034.9175 | AB46: =+Data_Clim_Fig_Nom!AB46-Data_Clim_Fig_Nom!$AQ46 -> -1805.8825 | AC46: =+Data_Clim_Fig_Nom!AC46-Data_Clim_Fig_Nom!$AQ46 -> 4605.1175 | AD46: =+Data_Clim_Fig_Nom!AD46-Data_Clim_Fig_Nom!$AQ46 -> -1969.4825 | AE46: =+Data_Clim_Fig_Nom!AE46-Data_Clim_Fig_Nom!$AQ46 -> 2911.2175 | AF46: =+Data_Clim_Fig_Nom!AF46-Data_Clim_Fig_Nom!$AQ46 -> -657.8825 | AG46: =+Data_Clim_Fig_Nom!AG46-Data_Clim_Fig_Nom!$AQ46 -> -989.4825 | AH46: =+Data_Clim_Fig_Nom!AH46-Data_Clim_Fig_Nom!$AQ46 -> -1777.0825 | AI46: =+Data_Clim_Fig_Nom!AI46-Data_Clim_Fig_Nom!$AQ46 -> 375.0175 | AJ46: =+Data_Clim_Fig_Nom!AJ46-Data_Clim_Fig_Nom!$AQ46 -> -1515.3825 | AK46: =+Data_Clim_Fig_Nom!AK46-Data_Clim_Fig_Nom!$AQ46 -> -1825.7825 | AL46: =+Data_Clim_Fig_Nom!AL46-Data_Clim_Fig_Nom!$AQ46 -> 1695.9175 | AM46: =+Data_Clim_Fig_Nom!AM46-Data_Clim_Fig_Nom!$AQ46 -> -1958.8825 | AN46: =+Data_Clim_Fig_Nom!AN46-Data_Clim_Fig_Nom!$AQ46 -> 2082.1175 | AO46: =+Data_Clim_Fig_Nom!AO46-Data_Clim_Fig_Nom!$AQ46 -> -591.9825 | AP46: =+Data_Clim_Fig_Nom!AP46-Data_Clim_Fig_Nom!$AQ46 -> -1864.4825 | AQ46: 3.183231456e-13
A47: =+Data_Clim!A45 -> 2021-02-13 | B47: =+Data_Clim_Fig_Nom!B47-Data_Clim_Fig_Nom!$AQ47 -> -2098.345 | C47: =+Data_Clim_Fig_Nom!C47-Data_Clim_Fig_Nom!$AQ47 -> -2124.445 | D47: =+Data_Clim_Fig_Nom!D47-Data_Clim_Fig_Nom!$AQ47 -> -2173.945 | E47: =+Data_Clim_Fig_Nom!E47-Data_Clim_Fig_Nom!$AQ47 -> -2126.045 | F47: =+Data_Clim_Fig_Nom!F47-Data_Clim_Fig_Nom!$AQ47 -> -2104.445 | G47: =+Data_Clim_Fig_Nom!G47-Data_Clim_Fig_Nom!$AQ47 -> 591.655 | H47: =+Data_Clim_Fig_Nom!H47-Data_Clim_Fig_Nom!$AQ47 -> -2051.945 | I47: =+Data_Clim_Fig_Nom!I47-Data_Clim_Fig_Nom!$AQ47 -> 735.355 | J47: =+Data_Clim_Fig_Nom!J47-Data_Clim_Fig_Nom!$AQ47 -> -1965.345 | K47: =+Data_Clim_Fig_Nom!K47-Data_Clim_Fig_Nom!$AQ47 -> -299.845 | L47: =+Data_Clim_Fig_Nom!L47-Data_Clim_Fig_Nom!$AQ47 -> 7968.855 | M47: =+Data_Clim_Fig_Nom!M47-Data_Clim_Fig_Nom!$AQ47 -> -899.545 | N47: =+Data_Clim_Fig_Nom!N47-Data_Clim_Fig_Nom!$AQ47 -> 3696.655 | O47: =+Data_Clim_Fig_Nom!O47-Data_Clim_Fig_Nom!$AQ47 -> -2190.045 | P47: =+Data_Clim_Fig_Nom!P47-Data_Clim_Fig_Nom!$AQ47 -> -1879.445 | Q47: =+Data_Clim_Fig_Nom!Q47-Data_Clim_Fig_Nom!$AQ47 -> 406.555 | R47: =+Data_Clim_Fig_Nom!R47-Data_Clim_Fig_Nom!$AQ47 -> 6063.055 | S47: =+Data_Clim_Fig_Nom!S47-Data_Clim_Fig_Nom!$AQ47 -> 3044.155 | T47: =+Data_Clim_Fig_Nom!T47-Data_Clim_Fig_Nom!$AQ47 -> -2225.545 | U47: =+Data_Clim_Fig_Nom!U47-Data_Clim_Fig_Nom!$AQ47 -> -687.745 | V47: =+Data_Clim_Fig_Nom!V47-Data_Clim_Fig_Nom!$AQ47 -> 8228.555 | W47: =+Data_Clim_Fig_Nom!W47-Data_Clim_Fig_Nom!$AQ47 -> -961.445 | X47: =+Data_Clim_Fig_Nom!X47-Data_Clim_Fig_Nom!$AQ47 -> -917.445 | Y47: =+Data_Clim_Fig_Nom!Y47-Data_Clim_Fig_Nom!$AQ47 -> -2078.745 | Z47: =+Data_Clim_Fig_Nom!Z47-Data_Clim_Fig_Nom!$AQ47 -> -2091.845 | AA47: =+Data_Clim_Fig_Nom!AA47-Data_Clim_Fig_Nom!$AQ47 -> 4794.655 | AB47: =+Data_Clim_Fig_Nom!AB47-Data_Clim_Fig_Nom!$AQ47 -> -1963.645 | AC47: =+Data_Clim_Fig_Nom!AC47-Data_Clim_Fig_Nom!$AQ47 -> 1525.855 | AD47: =+Data_Clim_Fig_Nom!AD47-Data_Clim_Fig_Nom!$AQ47 -> -2133.845 | AE47: =+Data_Clim_Fig_Nom!AE47-Data_Clim_Fig_Nom!$AQ47 -> -1020.345 | AF47: =+Data_Clim_Fig_Nom!AF47-Data_Clim_Fig_Nom!$AQ47 -> -1939.845 | AG47: =+Data_Clim_Fig_Nom!AG47-Data_Clim_Fig_Nom!$AQ47 -> -1542.345 | AH47: =+Data_Clim_Fig_Nom!AH47-Data_Clim_Fig_Nom!$AQ47 -> -1230.745 | AI47: =+Data_Clim_Fig_Nom!AI47-Data_Clim_Fig_Nom!$AQ47 -> -1851.645 | AJ47: =+Data_Clim_Fig_Nom!AJ47-Data_Clim_Fig_Nom!$AQ47 -> 7300.655 | AK47: =+Data_Clim_Fig_Nom!AK47-Data_Clim_Fig_Nom!$AQ47 -> -2064.645 | AL47: =+Data_Clim_Fig_Nom!AL47-Data_Clim_Fig_Nom!$AQ47 -> 4797.055 | AM47: =+Data_Clim_Fig_Nom!AM47-Data_Clim_Fig_Nom!$AQ47 -> -2196.245 | AN47: =+Data_Clim_Fig_Nom!AN47-Data_Clim_Fig_Nom!$AQ47 -> -2180.345 | AO47: =+Data_Clim_Fig_Nom!AO47-Data_Clim_Fig_Nom!$AQ47 -> -2153.245 | AP47: =+Data_Clim_Fig_Nom!AP47-Data_Clim_Fig_Nom!$AQ47 -> -2106.545 | AQ47: 0
A48: =+Data_Clim!A46 -> 2021-02-14 | B48: =+Data_Clim_Fig_Nom!B48-Data_Clim_Fig_Nom!$AQ48 -> -2315.285 | C48: =+Data_Clim_Fig_Nom!C48-Data_Clim_Fig_Nom!$AQ48 -> -2364.985 | D48: =+Data_Clim_Fig_Nom!D48-Data_Clim_Fig_Nom!$AQ48 -> -1305.585 | E48: =+Data_Clim_Fig_Nom!E48-Data_Clim_Fig_Nom!$AQ48 -> -1952.985 | F48: =+Data_Clim_Fig_Nom!F48-Data_Clim_Fig_Nom!$AQ48 -> -2331.785 | G48: =+Data_Clim_Fig_Nom!G48-Data_Clim_Fig_Nom!$AQ48 -> 3537.315 | H48: =+Data_Clim_Fig_Nom!H48-Data_Clim_Fig_Nom!$AQ48 -> -2343.485 | I48: =+Data_Clim_Fig_Nom!I48-Data_Clim_Fig_Nom!$AQ48 -> -1880.485 | J48: =+Data_Clim_Fig_Nom!J48-Data_Clim_Fig_Nom!$AQ48 -> -2553.285 | K48: =+Data_Clim_Fig_Nom!K48-Data_Clim_Fig_Nom!$AQ48 -> 5043.515 | L48: =+Data_Clim_Fig_Nom!L48-Data_Clim_Fig_Nom!$AQ48 -> 32892.315 | M48: =+Data_Clim_Fig_Nom!M48-Data_Clim_Fig_Nom!$AQ48 -> -1453.885 | N48: =+Data_Clim_Fig_Nom!N48-Data_Clim_Fig_Nom!$AQ48 -> -1304.285 | O48: =+Data_Clim_Fig_Nom!O48-Data_Clim_Fig_Nom!$AQ48 -> -2474.785 | P48: =+Data_Clim_Fig_Nom!P48-Data_Clim_Fig_Nom!$AQ48 -> -2412.685 | Q48: =+Data_Clim_Fig_Nom!Q48-Data_Clim_Fig_Nom!$AQ48 -> 299.715 | R48: =+Data_Clim_Fig_Nom!R48-Data_Clim_Fig_Nom!$AQ48 -> 2215.515 | S48: =+Data_Clim_Fig_Nom!S48-Data_Clim_Fig_Nom!$AQ48 -> 7368.115 | T48: =+Data_Clim_Fig_Nom!T48-Data_Clim_Fig_Nom!$AQ48 -> -2433.285 | U48: =+Data_Clim_Fig_Nom!U48-Data_Clim_Fig_Nom!$AQ48 -> -994.585 | V48: =+Data_Clim_Fig_Nom!V48-Data_Clim_Fig_Nom!$AQ48 -> -651.185 | W48: =+Data_Clim_Fig_Nom!W48-Data_Clim_Fig_Nom!$AQ48 -> -2529.485 | X48: =+Data_Clim_Fig_Nom!X48-Data_Clim_Fig_Nom!$AQ48 -> 3.215 | Y48: =+Data_Clim_Fig_Nom!Y48-Data_Clim_Fig_Nom!$AQ48 -> -2381.885 | Z48: =+Data_Clim_Fig_Nom!Z48-Data_Clim_Fig_Nom!$AQ48 -> -2335.485 | AA48: =+Data_Clim_Fig_Nom!AA48-Data_Clim_Fig_Nom!$AQ48 -> 3624.615 | AB48: =+Data_Clim_Fig_Nom!AB48-Data_Clim_Fig_Nom!$AQ48 -> -2258.385 | AC48: =+Data_Clim_Fig_Nom!AC48-Data_Clim_Fig_Nom!$AQ48 -> 611.615 | AD48: =+Data_Clim_Fig_Nom!AD48-Data_Clim_Fig_Nom!$AQ48 -> -2395.885 | AE48: =+Data_Clim_Fig_Nom!AE48-Data_Clim_Fig_Nom!$AQ48 -> 1202.415 | AF48: =+Data_Clim_Fig_Nom!AF48-Data_Clim_Fig_Nom!$AQ48 -> -2201.685 | AG48: =+Data_Clim_Fig_Nom!AG48-Data_Clim_Fig_Nom!$AQ48 -> -2504.885 | AH48: =+Data_Clim_Fig_Nom!AH48-Data_Clim_Fig_Nom!$AQ48 -> -913.185 | AI48: =+Data_Clim_Fig_Nom!AI48-Data_Clim_Fig_Nom!$AQ48 -> -2121.985 | AJ48: =+Data_Clim_Fig_Nom!AJ48-Data_Clim_Fig_Nom!$AQ48 -> -2367.385 | AK48: =+Data_Clim_Fig_Nom!AK48-Data_Clim_Fig_Nom!$AQ48 -> -2013.585 | AL48: =+Data_Clim_Fig_Nom!AL48-Data_Clim_Fig_Nom!$AQ48 -> 3278.815 | AM48: =+Data_Clim_Fig_Nom!AM48-Data_Clim_Fig_Nom!$AQ48 -> -2465.885 | AN48: =+Data_Clim_Fig_Nom!AN48-Data_Clim_Fig_Nom!$AQ48 -> -2402.085 | AO48: =+Data_Clim_Fig_Nom!AO48-Data_Clim_Fig_Nom!$AQ48 -> -2412.785 | AP48: =+Data_Clim_Fig_Nom!AP48-Data_Clim_Fig_Nom!$AQ48 -> -2362.385 | AQ48: 7.50333129e-13
A49: =+Data_Clim!A47 -> 2021-02-15 | B49: =+Data_Clim_Fig_Nom!B49-Data_Clim_Fig_Nom!$AQ49 -> -2810.2175 | C49: =+Data_Clim_Fig_Nom!C49-Data_Clim_Fig_Nom!$AQ49 -> -2780.3175 | D49: =+Data_Clim_Fig_Nom!D49-Data_Clim_Fig_Nom!$AQ49 -> -1925.9175 | E49: =+Data_Clim_Fig_Nom!E49-Data_Clim_Fig_Nom!$AQ49 -> -2779.6175 | F49: =+Data_Clim_Fig_Nom!F49-Data_Clim_Fig_Nom!$AQ49 -> -2701.6175 | G49: =+Data_Clim_Fig_Nom!G49-Data_Clim_Fig_Nom!$AQ49 -> 6927.9825 | H49: =+Data_Clim_Fig_Nom!H49-Data_Clim_Fig_Nom!$AQ49 -> -2579.2175 | I49: =+Data_Clim_Fig_Nom!I49-Data_Clim_Fig_Nom!$AQ49 -> -821.7175 | J49: =+Data_Clim_Fig_Nom!J49-Data_Clim_Fig_Nom!$AQ49 -> -2900.7175 | K49: =+Data_Clim_Fig_Nom!K49-Data_Clim_Fig_Nom!$AQ49 -> -2704.4175 | L49: =+Data_Clim_Fig_Nom!L49-Data_Clim_Fig_Nom!$AQ49 -> 19673.8825 | M49: =+Data_Clim_Fig_Nom!M49-Data_Clim_Fig_Nom!$AQ49 -> 304.1825 | N49: =+Data_Clim_Fig_Nom!N49-Data_Clim_Fig_Nom!$AQ49 -> 2252.7825 | O49: =+Data_Clim_Fig_Nom!O49-Data_Clim_Fig_Nom!$AQ49 -> -2860.6175 | P49: =+Data_Clim_Fig_Nom!P49-Data_Clim_Fig_Nom!$AQ49 -> -2604.3175 | Q49: =+Data_Clim_Fig_Nom!Q49-Data_Clim_Fig_Nom!$AQ49 -> 1140.1825 | R49: =+Data_Clim_Fig_Nom!R49-Data_Clim_Fig_Nom!$AQ49 -> -2527.9175 | S49: =+Data_Clim_Fig_Nom!S49-Data_Clim_Fig_Nom!$AQ49 -> 9032.4825 | T49: =+Data_Clim_Fig_Nom!T49-Data_Clim_Fig_Nom!$AQ49 -> -2873.2175 | U49: =+Data_Clim_Fig_Nom!U49-Data_Clim_Fig_Nom!$AQ49 -> -2650.7175 | V49: =+Data_Clim_Fig_Nom!V49-Data_Clim_Fig_Nom!$AQ49 -> 1976.0825 | W49: =+Data_Clim_Fig_Nom!W49-Data_Clim_Fig_Nom!$AQ49 -> -2941.5175 | X49: =+Data_Clim_Fig_Nom!X49-Data_Clim_Fig_Nom!$AQ49 -> -2821.5175 | Y49: =+Data_Clim_Fig_Nom!Y49-Data_Clim_Fig_Nom!$AQ49 -> -2759.9175 | Z49: =+Data_Clim_Fig_Nom!Z49-Data_Clim_Fig_Nom!$AQ49 -> -2555.1175 | AA49: =+Data_Clim_Fig_Nom!AA49-Data_Clim_Fig_Nom!$AQ49 -> 2655.6825 | AB49: =+Data_Clim_Fig_Nom!AB49-Data_Clim_Fig_Nom!$AQ49 -> 5070.1825 | AC49: =+Data_Clim_Fig_Nom!AC49-Data_Clim_Fig_Nom!$AQ49 -> 369.9825 | AD49: =+Data_Clim_Fig_Nom!AD49-Data_Clim_Fig_Nom!$AQ49 -> -2691.4175 | AE49: =+Data_Clim_Fig_Nom!AE49-Data_Clim_Fig_Nom!$AQ49 -> -2570.0175 | AF49: =+Data_Clim_Fig_Nom!AF49-Data_Clim_Fig_Nom!$AQ49 -> -2777.1175 | AG49: =+Data_Clim_Fig_Nom!AG49-Data_Clim_Fig_Nom!$AQ49 -> -1991.4175 | AH49: =+Data_Clim_Fig_Nom!AH49-Data_Clim_Fig_Nom!$AQ49 -> 6798.8825 | AI49: =+Data_Clim_Fig_Nom!AI49-Data_Clim_Fig_Nom!$AQ49 -> 1111.5825 | AJ49: =+Data_Clim_Fig_Nom!AJ49-Data_Clim_Fig_Nom!$AQ49 -> 2758.9825 | AK49: =+Data_Clim_Fig_Nom!AK49-Data_Clim_Fig_Nom!$AQ49 -> -2495.4175 | AL49: =+Data_Clim_Fig_Nom!AL49-Data_Clim_Fig_Nom!$AQ49 -> -1132.6175 | AM49: =+Data_Clim_Fig_Nom!AM49-Data_Clim_Fig_Nom!$AQ49 -> -2891.4175 | AN49: =+Data_Clim_Fig_Nom!AN49-Data_Clim_Fig_Nom!$AQ49 -> 5910.9825 | AO49: =+Data_Clim_Fig_Nom!AO49-Data_Clim_Fig_Nom!$AQ49 -> -2835.8175 | AP49: =+Data_Clim_Fig_Nom!AP49-Data_Clim_Fig_Nom!$AQ49 -> -2075.2175 | AQ49: -2.046363079e-13
A50: =+Data_Clim!A48 -> 2021-02-16 | B50: =+Data_Clim_Fig_Nom!B50-Data_Clim_Fig_Nom!$AQ50 -> 1612.895 | C50: =+Data_Clim_Fig_Nom!C50-Data_Clim_Fig_Nom!$AQ50 -> -2107.605 | D50: =+Data_Clim_Fig_Nom!D50-Data_Clim_Fig_Nom!$AQ50 -> -2219.105 | E50: =+Data_Clim_Fig_Nom!E50-Data_Clim_Fig_Nom!$AQ50 -> -2183.405 | F50: =+Data_Clim_Fig_Nom!F50-Data_Clim_Fig_Nom!$AQ50 -> -1996.705 | G50: =+Data_Clim_Fig_Nom!G50-Data_Clim_Fig_Nom!$AQ50 -> -2138.605 | H50: =+Data_Clim_Fig_Nom!H50-Data_Clim_Fig_Nom!$AQ50 -> -2019.205 | I50: =+Data_Clim_Fig_Nom!I50-Data_Clim_Fig_Nom!$AQ50 -> -1360.105 | J50: =+Data_Clim_Fig_Nom!J50-Data_Clim_Fig_Nom!$AQ50 -> -2255.205 | K50: =+Data_Clim_Fig_Nom!K50-Data_Clim_Fig_Nom!$AQ50 -> 3497.195 | L50: =+Data_Clim_Fig_Nom!L50-Data_Clim_Fig_Nom!$AQ50 -> 1673.995 | M50: =+Data_Clim_Fig_Nom!M50-Data_Clim_Fig_Nom!$AQ50 -> 2261.195 | N50: =+Data_Clim_Fig_Nom!N50-Data_Clim_Fig_Nom!$AQ50 -> 3350.995 | O50: =+Data_Clim_Fig_Nom!O50-Data_Clim_Fig_Nom!$AQ50 -> -1188.805 | P50: =+Data_Clim_Fig_Nom!P50-Data_Clim_Fig_Nom!$AQ50 -> -2041.705 | Q50: =+Data_Clim_Fig_Nom!Q50-Data_Clim_Fig_Nom!$AQ50 -> 6987.295 | R50: =+Data_Clim_Fig_Nom!R50-Data_Clim_Fig_Nom!$AQ50 -> 2441.295 | S50: =+Data_Clim_Fig_Nom!S50-Data_Clim_Fig_Nom!$AQ50 -> -2050.505 | T50: =+Data_Clim_Fig_Nom!T50-Data_Clim_Fig_Nom!$AQ50 -> -2170.705 | U50: =+Data_Clim_Fig_Nom!U50-Data_Clim_Fig_Nom!$AQ50 -> 780.395 | V50: =+Data_Clim_Fig_Nom!V50-Data_Clim_Fig_Nom!$AQ50 -> 7057.095 | W50: =+Data_Clim_Fig_Nom!W50-Data_Clim_Fig_Nom!$AQ50 -> -2206.305 | X50: =+Data_Clim_Fig_Nom!X50-Data_Clim_Fig_Nom!$AQ50 -> -2062.405 | Y50: =+Data_Clim_Fig_Nom!Y50-Data_Clim_Fig_Nom!$AQ50 -> -1928.305 | Z50: =+Data_Clim_Fig_Nom!Z50-Data_Clim_Fig_Nom!$AQ50 -> -2138.005 | AA50: =+Data_Clim_Fig_Nom!AA50-Data_Clim_Fig_Nom!$AQ50 -> 3100.195 | AB50: =+Data_Clim_Fig_Nom!AB50-Data_Clim_Fig_Nom!$AQ50 -> 14405.695 | AC50: =+Data_Clim_Fig_Nom!AC50-Data_Clim_Fig_Nom!$AQ50 -> -2282.705 | AD50: =+Data_Clim_Fig_Nom!AD50-Data_Clim_Fig_Nom!$AQ50 -> -2179.705 | AE50: =+Data_Clim_Fig_Nom!AE50-Data_Clim_Fig_Nom!$AQ50 -> -501.705 | AF50: =+Data_Clim_Fig_Nom!AF50-Data_Clim_Fig_Nom!$AQ50 -> -2080.905 | AG50: =+Data_Clim_Fig_Nom!AG50-Data_Clim_Fig_Nom!$AQ50 -> -1858.005 | AH50: =+Data_Clim_Fig_Nom!AH50-Data_Clim_Fig_Nom!$AQ50 -> -1026.505 | AI50: =+Data_Clim_Fig_Nom!AI50-Data_Clim_Fig_Nom!$AQ50 -> -1384.905 | AJ50: =+Data_Clim_Fig_Nom!AJ50-Data_Clim_Fig_Nom!$AQ50 -> 328.095 | AK50: =+Data_Clim_Fig_Nom!AK50-Data_Clim_Fig_Nom!$AQ50 -> -2155.105 | AL50: =+Data_Clim_Fig_Nom!AL50-Data_Clim_Fig_Nom!$AQ50 -> -1403.005 | AM50: =+Data_Clim_Fig_Nom!AM50-Data_Clim_Fig_Nom!$AQ50 -> -2085.805 | AN50: =+Data_Clim_Fig_Nom!AN50-Data_Clim_Fig_Nom!$AQ50 -> 3670.595 | AO50: =+Data_Clim_Fig_Nom!AO50-Data_Clim_Fig_Nom!$AQ50 -> -2141.905 | AP50: =+Data_Clim_Fig_Nom!AP50-Data_Clim_Fig_Nom!$AQ50 -> -1603.405 | AQ50: -5.115907697e-13
A51: =+Data_Clim!A49 -> 2021-02-17 | B51: =+Data_Clim_Fig_Nom!B51-Data_Clim_Fig_Nom!$AQ51 -> 2426.6675 | C51: =+Data_Clim_Fig_Nom!C51-Data_Clim_Fig_Nom!$AQ51 -> -2009.1325 | D51: =+Data_Clim_Fig_Nom!D51-Data_Clim_Fig_Nom!$AQ51 -> -2262.9325 | E51: =+Data_Clim_Fig_Nom!E51-Data_Clim_Fig_Nom!$AQ51 -> -2194.0325 | F51: =+Data_Clim_Fig_Nom!F51-Data_Clim_Fig_Nom!$AQ51 -> -2116.5325 | G51: =+Data_Clim_Fig_Nom!G51-Data_Clim_Fig_Nom!$AQ51 -> -1676.8325 | H51: =+Data_Clim_Fig_Nom!H51-Data_Clim_Fig_Nom!$AQ51 -> -1364.9325 | I51: =+Data_Clim_Fig_Nom!I51-Data_Clim_Fig_Nom!$AQ51 -> 1325.2675 | J51: =+Data_Clim_Fig_Nom!J51-Data_Clim_Fig_Nom!$AQ51 -> -2095.2325 | K51: =+Data_Clim_Fig_Nom!K51-Data_Clim_Fig_Nom!$AQ51 -> -2079.7325 | L51: =+Data_Clim_Fig_Nom!L51-Data_Clim_Fig_Nom!$AQ51 -> -1930.7325 | M51: =+Data_Clim_Fig_Nom!M51-Data_Clim_Fig_Nom!$AQ51 -> -2141.9325 | N51: =+Data_Clim_Fig_Nom!N51-Data_Clim_Fig_Nom!$AQ51 -> 1738.3675 | O51: =+Data_Clim_Fig_Nom!O51-Data_Clim_Fig_Nom!$AQ51 -> 3160.1675 | P51: =+Data_Clim_Fig_Nom!P51-Data_Clim_Fig_Nom!$AQ51 -> -1996.0325 | Q51: =+Data_Clim_Fig_Nom!Q51-Data_Clim_Fig_Nom!$AQ51 -> 4873.1675 | R51: =+Data_Clim_Fig_Nom!R51-Data_Clim_Fig_Nom!$AQ51 -> 2268.4675 | S51: =+Data_Clim_Fig_Nom!S51-Data_Clim_Fig_Nom!$AQ51 -> -1842.7325 | T51: =+Data_Clim_Fig_Nom!T51-Data_Clim_Fig_Nom!$AQ51 -> 2.2675 | U51: =+Data_Clim_Fig_Nom!U51-Data_Clim_Fig_Nom!$AQ51 -> 3003.3675 | V51: =+Data_Clim_Fig_Nom!V51-Data_Clim_Fig_Nom!$AQ51 -> 1944.0675 | W51: =+Data_Clim_Fig_Nom!W51-Data_Clim_Fig_Nom!$AQ51 -> -768.5325 | X51: =+Data_Clim_Fig_Nom!X51-Data_Clim_Fig_Nom!$AQ51 -> -2252.3325 | Y51: =+Data_Clim_Fig_Nom!Y51-Data_Clim_Fig_Nom!$AQ51 -> -2210.3325 | Z51: =+Data_Clim_Fig_Nom!Z51-Data_Clim_Fig_Nom!$AQ51 -> -2252.0325 | AA51: =+Data_Clim_Fig_Nom!AA51-Data_Clim_Fig_Nom!$AQ51 -> -1405.9325 | AB51: =+Data_Clim_Fig_Nom!AB51-Data_Clim_Fig_Nom!$AQ51 -> 4330.4675 | AC51: =+Data_Clim_Fig_Nom!AC51-Data_Clim_Fig_Nom!$AQ51 -> -2309.0325 | AD51: =+Data_Clim_Fig_Nom!AD51-Data_Clim_Fig_Nom!$AQ51 -> -2199.0325 | AE51: =+Data_Clim_Fig_Nom!AE51-Data_Clim_Fig_Nom!$AQ51 -> 11498.1675 | AF51: =+Data_Clim_Fig_Nom!AF51-Data_Clim_Fig_Nom!$AQ51 -> -1261.3325 | AG51: =+Data_Clim_Fig_Nom!AG51-Data_Clim_Fig_Nom!$AQ51 -> -2114.5325 | AH51: =+Data_Clim_Fig_Nom!AH51-Data_Clim_Fig_Nom!$AQ51 -> -1225.4325 | AI51: =+Data_Clim_Fig_Nom!AI51-Data_Clim_Fig_Nom!$AQ51 -> -1999.5325 | AJ51: =+Data_Clim_Fig_Nom!AJ51-Data_Clim_Fig_Nom!$AQ51 -> -2264.8325 | AK51: =+Data_Clim_Fig_Nom!AK51-Data_Clim_Fig_Nom!$AQ51 -> -2158.1325 | AL51: =+Data_Clim_Fig_Nom!AL51-Data_Clim_Fig_Nom!$AQ51 -> -1608.2325 | AM51: =+Data_Clim_Fig_Nom!AM51-Data_Clim_Fig_Nom!$AQ51 -> 4684.7675 | AN51: =+Data_Clim_Fig_Nom!AN51-Data_Clim_Fig_Nom!$AQ51 -> 10716.4675 | AO51: =+Data_Clim_Fig_Nom!AO51-Data_Clim_Fig_Nom!$AQ51 -> -2231.6325 | AP51: =+Data_Clim_Fig_Nom!AP51-Data_Clim_Fig_Nom!$AQ51 -> -964.0325 | AQ51: -1.932676241e-13
A52: =+Data_Clim!A50 -> 2021-02-18 | B52: =+Data_Clim_Fig_Nom!B52-Data_Clim_Fig_Nom!$AQ52 -> -1501.95 | C52: =+Data_Clim_Fig_Nom!C52-Data_Clim_Fig_Nom!$AQ52 -> -542.95 | D52: =+Data_Clim_Fig_Nom!D52-Data_Clim_Fig_Nom!$AQ52 -> -878.65 | E52: =+Data_Clim_Fig_Nom!E52-Data_Clim_Fig_Nom!$AQ52 -> -1621.35 | F52: =+Data_Clim_Fig_Nom!F52-Data_Clim_Fig_Nom!$AQ52 -> -1533.85 | G52: =+Data_Clim_Fig_Nom!G52-Data_Clim_Fig_Nom!$AQ52 -> -1592.15 | H52: =+Data_Clim_Fig_Nom!H52-Data_Clim_Fig_Nom!$AQ52 -> 4835.55 | I52: =+Data_Clim_Fig_Nom!I52-Data_Clim_Fig_Nom!$AQ52 -> 2588.15 | J52: =+Data_Clim_Fig_Nom!J52-Data_Clim_Fig_Nom!$AQ52 -> -948.25 | K52: =+Data_Clim_Fig_Nom!K52-Data_Clim_Fig_Nom!$AQ52 -> 2194.25 | L52: =+Data_Clim_Fig_Nom!L52-Data_Clim_Fig_Nom!$AQ52 -> -1681.15 | M52: =+Data_Clim_Fig_Nom!M52-Data_Clim_Fig_Nom!$AQ52 -> -1287.65 | N52: =+Data_Clim_Fig_Nom!N52-Data_Clim_Fig_Nom!$AQ52 -> -1148.75 | O52: =+Data_Clim_Fig_Nom!O52-Data_Clim_Fig_Nom!$AQ52 -> -1216.05 | P52: =+Data_Clim_Fig_Nom!P52-Data_Clim_Fig_Nom!$AQ52 -> -1566.95 | Q52: =+Data_Clim_Fig_Nom!Q52-Data_Clim_Fig_Nom!$AQ52 -> 7154.35 | R52: =+Data_Clim_Fig_Nom!R52-Data_Clim_Fig_Nom!$AQ52 -> 4926.65 | S52: =+Data_Clim_Fig_Nom!S52-Data_Clim_Fig_Nom!$AQ52 -> 4215.45 | T52: =+Data_Clim_Fig_Nom!T52-Data_Clim_Fig_Nom!$AQ52 -> -1706.35 | U52: =+Data_Clim_Fig_Nom!U52-Data_Clim_Fig_Nom!$AQ52 -> 8565.25 | V52: =+Data_Clim_Fig_Nom!V52-Data_Clim_Fig_Nom!$AQ52 -> 4805.85 | W52: =+Data_Clim_Fig_Nom!W52-Data_Clim_Fig_Nom!$AQ52 -> -1687.15 | X52: =+Data_Clim_Fig_Nom!X52-Data_Clim_Fig_Nom!$AQ52 -> -1114.45 | Y52: =+Data_Clim_Fig_Nom!Y52-Data_Clim_Fig_Nom!$AQ52 -> -1607.95 | Z52: =+Data_Clim_Fig_Nom!Z52-Data_Clim_Fig_Nom!$AQ52 -> -603.25 | AA52: =+Data_Clim_Fig_Nom!AA52-Data_Clim_Fig_Nom!$AQ52 -> -1400.15 | AB52: =+Data_Clim_Fig_Nom!AB52-Data_Clim_Fig_Nom!$AQ52 -> 2586.35 | AC52: =+Data_Clim_Fig_Nom!AC52-Data_Clim_Fig_Nom!$AQ52 -> -1770.95 | AD52: =+Data_Clim_Fig_Nom!AD52-Data_Clim_Fig_Nom!$AQ52 -> -1628.85 | AE52: =+Data_Clim_Fig_Nom!AE52-Data_Clim_Fig_Nom!$AQ52 -> -1616.65 | AF52: =+Data_Clim_Fig_Nom!AF52-Data_Clim_Fig_Nom!$AQ52 -> -58.45 | AG52: =+Data_Clim_Fig_Nom!AG52-Data_Clim_Fig_Nom!$AQ52 -> -1167.15 | AH52: =+Data_Clim_Fig_Nom!AH52-Data_Clim_Fig_Nom!$AQ52 -> -1400.85 | AI52: =+Data_Clim_Fig_Nom!AI52-Data_Clim_Fig_Nom!$AQ52 -> -1591.85 | AJ52: =+Data_Clim_Fig_Nom!AJ52-Data_Clim_Fig_Nom!$AQ52 -> -1696.75 | AK52: =+Data_Clim_Fig_Nom!AK52-Data_Clim_Fig_Nom!$AQ52 -> -1591.95 | AL52: =+Data_Clim_Fig_Nom!AL52-Data_Clim_Fig_Nom!$AQ52 -> -1621.35 | AM52: =+Data_Clim_Fig_Nom!AM52-Data_Clim_Fig_Nom!$AQ52 -> -1540.15 | AN52: =+Data_Clim_Fig_Nom!AN52-Data_Clim_Fig_Nom!$AQ52 -> -887.35 | AO52: =+Data_Clim_Fig_Nom!AO52-Data_Clim_Fig_Nom!$AQ52 -> -1660.55 | AP52: =+Data_Clim_Fig_Nom!AP52-Data_Clim_Fig_Nom!$AQ52 -> -1689.85 | AQ52: -1.762145985e-13
A53: =+Data_Clim!A51 -> 2021-02-19 | B53: =+Data_Clim_Fig_Nom!B53-Data_Clim_Fig_Nom!$AQ53 -> -1827.8925 | C53: =+Data_Clim_Fig_Nom!C53-Data_Clim_Fig_Nom!$AQ53 -> -1056.1925 | D53: =+Data_Clim_Fig_Nom!D53-Data_Clim_Fig_Nom!$AQ53 -> 748.6075 | E53: =+Data_Clim_Fig_Nom!E53-Data_Clim_Fig_Nom!$AQ53 -> -1624.6925 | F53: =+Data_Clim_Fig_Nom!F53-Data_Clim_Fig_Nom!$AQ53 -> -1606.8925 | G53: =+Data_Clim_Fig_Nom!G53-Data_Clim_Fig_Nom!$AQ53 -> -1705.9925 | H53: =+Data_Clim_Fig_Nom!H53-Data_Clim_Fig_Nom!$AQ53 -> 2101.0075 | I53: =+Data_Clim_Fig_Nom!I53-Data_Clim_Fig_Nom!$AQ53 -> 1125.1075 | J53: =+Data_Clim_Fig_Nom!J53-Data_Clim_Fig_Nom!$AQ53 -> 2121.8075 | K53: =+Data_Clim_Fig_Nom!K53-Data_Clim_Fig_Nom!$AQ53 -> -1597.0925 | L53: =+Data_Clim_Fig_Nom!L53-Data_Clim_Fig_Nom!$AQ53 -> -1725.8925 | M53: =+Data_Clim_Fig_Nom!M53-Data_Clim_Fig_Nom!$AQ53 -> -1648.2925 | N53: =+Data_Clim_Fig_Nom!N53-Data_Clim_Fig_Nom!$AQ53 -> -1660.7925 | O53: =+Data_Clim_Fig_Nom!O53-Data_Clim_Fig_Nom!$AQ53 -> 2068.0075 | P53: =+Data_Clim_Fig_Nom!P53-Data_Clim_Fig_Nom!$AQ53 -> -1655.9925 | Q53: =+Data_Clim_Fig_Nom!Q53-Data_Clim_Fig_Nom!$AQ53 -> -1741.9925 | R53: =+Data_Clim_Fig_Nom!R53-Data_Clim_Fig_Nom!$AQ53 -> 1135.1075 | S53: =+Data_Clim_Fig_Nom!S53-Data_Clim_Fig_Nom!$AQ53 -> -51.6925 | T53: =+Data_Clim_Fig_Nom!T53-Data_Clim_Fig_Nom!$AQ53 -> -1905.2925 | U53: =+Data_Clim_Fig_Nom!U53-Data_Clim_Fig_Nom!$AQ53 -> 11627.7075 | V53: =+Data_Clim_Fig_Nom!V53-Data_Clim_Fig_Nom!$AQ53 -> 7487.4075 | W53: =+Data_Clim_Fig_Nom!W53-Data_Clim_Fig_Nom!$AQ53 -> -1712.7925 | X53: =+Data_Clim_Fig_Nom!X53-Data_Clim_Fig_Nom!$AQ53 -> 1451.0075 | Y53: =+Data_Clim_Fig_Nom!Y53-Data_Clim_Fig_Nom!$AQ53 -> -1685.5925 | Z53: =+Data_Clim_Fig_Nom!Z53-Data_Clim_Fig_Nom!$AQ53 -> -1361.2925 | AA53: =+Data_Clim_Fig_Nom!AA53-Data_Clim_Fig_Nom!$AQ53 -> 1399.7075 | AB53: =+Data_Clim_Fig_Nom!AB53-Data_Clim_Fig_Nom!$AQ53 -> -1127.0925 | AC53: =+Data_Clim_Fig_Nom!AC53-Data_Clim_Fig_Nom!$AQ53 -> -1627.5925 | AD53: =+Data_Clim_Fig_Nom!AD53-Data_Clim_Fig_Nom!$AQ53 -> -1703.0925 | AE53: =+Data_Clim_Fig_Nom!AE53-Data_Clim_Fig_Nom!$AQ53 -> -1664.2925 | AF53: =+Data_Clim_Fig_Nom!AF53-Data_Clim_Fig_Nom!$AQ53 -> 4952.6075 | AG53: =+Data_Clim_Fig_Nom!AG53-Data_Clim_Fig_Nom!$AQ53 -> -1645.1925 | AH53: =+Data_Clim_Fig_Nom!AH53-Data_Clim_Fig_Nom!$AQ53 -> 3535.5075 | AI53: =+Data_Clim_Fig_Nom!AI53-Data_Clim_Fig_Nom!$AQ53 -> 32.6075 | AJ53: =+Data_Clim_Fig_Nom!AJ53-Data_Clim_Fig_Nom!$AQ53 -> -1065.6925 | AK53: =+Data_Clim_Fig_Nom!AK53-Data_Clim_Fig_Nom!$AQ53 -> -1739.9925 | AL53: =+Data_Clim_Fig_Nom!AL53-Data_Clim_Fig_Nom!$AQ53 -> 478.4075 | AM53: =+Data_Clim_Fig_Nom!AM53-Data_Clim_Fig_Nom!$AQ53 -> -1710.8925 | AN53: =+Data_Clim_Fig_Nom!AN53-Data_Clim_Fig_Nom!$AQ53 -> -1663.6925 | AO53: =+Data_Clim_Fig_Nom!AO53-Data_Clim_Fig_Nom!$AQ53 -> -1748.6925 | AP53: =+Data_Clim_Fig_Nom!AP53-Data_Clim_Fig_Nom!$AQ53 -> 686.8075 | AQ53: 0
A54: =+Data_Clim!A52 -> 2021-02-20 | B54: =+Data_Clim_Fig_Nom!B54-Data_Clim_Fig_Nom!$AQ54 -> -2185.3625 | C54: =+Data_Clim_Fig_Nom!C54-Data_Clim_Fig_Nom!$AQ54 -> -1752.6625 | D54: =+Data_Clim_Fig_Nom!D54-Data_Clim_Fig_Nom!$AQ54 -> -1889.2625 | E54: =+Data_Clim_Fig_Nom!E54-Data_Clim_Fig_Nom!$AQ54 -> -1955.6625 | F54: =+Data_Clim_Fig_Nom!F54-Data_Clim_Fig_Nom!$AQ54 -> -355.2625 | G54: =+Data_Clim_Fig_Nom!G54-Data_Clim_Fig_Nom!$AQ54 -> -2032.3625 | H54: =+Data_Clim_Fig_Nom!H54-Data_Clim_Fig_Nom!$AQ54 -> -1869.5625 | I54: =+Data_Clim_Fig_Nom!I54-Data_Clim_Fig_Nom!$AQ54 -> 1550.3375 | J54: =+Data_Clim_Fig_Nom!J54-Data_Clim_Fig_Nom!$AQ54 -> -223.1625 | K54: =+Data_Clim_Fig_Nom!K54-Data_Clim_Fig_Nom!$AQ54 -> 1137.0375 | L54: =+Data_Clim_Fig_Nom!L54-Data_Clim_Fig_Nom!$AQ54 -> -2224.5625 | M54: =+Data_Clim_Fig_Nom!M54-Data_Clim_Fig_Nom!$AQ54 -> -1993.6625 | N54: =+Data_Clim_Fig_Nom!N54-Data_Clim_Fig_Nom!$AQ54 -> -1860.7625 | O54: =+Data_Clim_Fig_Nom!O54-Data_Clim_Fig_Nom!$AQ54 -> 250.2375 | P54: =+Data_Clim_Fig_Nom!P54-Data_Clim_Fig_Nom!$AQ54 -> 1236.0375 | Q54: =+Data_Clim_Fig_Nom!Q54-Data_Clim_Fig_Nom!$AQ54 -> -1444.5625 | R54: =+Data_Clim_Fig_Nom!R54-Data_Clim_Fig_Nom!$AQ54 -> -1594.1625 | S54: =+Data_Clim_Fig_Nom!S54-Data_Clim_Fig_Nom!$AQ54 -> -1171.8625 | T54: =+Data_Clim_Fig_Nom!T54-Data_Clim_Fig_Nom!$AQ54 -> -2132.1625 | U54: =+Data_Clim_Fig_Nom!U54-Data_Clim_Fig_Nom!$AQ54 -> 14162.2375 | V54: =+Data_Clim_Fig_Nom!V54-Data_Clim_Fig_Nom!$AQ54 -> 1454.1375 | W54: =+Data_Clim_Fig_Nom!W54-Data_Clim_Fig_Nom!$AQ54 -> -920.8625 | X54: =+Data_Clim_Fig_Nom!X54-Data_Clim_Fig_Nom!$AQ54 -> 11760.7375 | Y54: =+Data_Clim_Fig_Nom!Y54-Data_Clim_Fig_Nom!$AQ54 -> -1984.0625 | Z54: =+Data_Clim_Fig_Nom!Z54-Data_Clim_Fig_Nom!$AQ54 -> -2166.3625 | AA54: =+Data_Clim_Fig_Nom!AA54-Data_Clim_Fig_Nom!$AQ54 -> 507.6375 | AB54: =+Data_Clim_Fig_Nom!AB54-Data_Clim_Fig_Nom!$AQ54 -> 2633.8375 | AC54: =+Data_Clim_Fig_Nom!AC54-Data_Clim_Fig_Nom!$AQ54 -> -2163.0625 | AD54: =+Data_Clim_Fig_Nom!AD54-Data_Clim_Fig_Nom!$AQ54 -> -1160.8625 | AE54: =+Data_Clim_Fig_Nom!AE54-Data_Clim_Fig_Nom!$AQ54 -> -272.4625 | AF54: =+Data_Clim_Fig_Nom!AF54-Data_Clim_Fig_Nom!$AQ54 -> -1025.1625 | AG54: =+Data_Clim_Fig_Nom!AG54-Data_Clim_Fig_Nom!$AQ54 -> 4875.7375 | AH54: =+Data_Clim_Fig_Nom!AH54-Data_Clim_Fig_Nom!$AQ54 -> -1927.1625 | AI54: =+Data_Clim_Fig_Nom!AI54-Data_Clim_Fig_Nom!$AQ54 -> -942.1625 | AJ54: =+Data_Clim_Fig_Nom!AJ54-Data_Clim_Fig_Nom!$AQ54 -> -1750.1625 | AK54: =+Data_Clim_Fig_Nom!AK54-Data_Clim_Fig_Nom!$AQ54 -> -2070.3625 | AL54: =+Data_Clim_Fig_Nom!AL54-Data_Clim_Fig_Nom!$AQ54 -> 4223.0375 | AM54: =+Data_Clim_Fig_Nom!AM54-Data_Clim_Fig_Nom!$AQ54 -> 753.5375 | AN54: =+Data_Clim_Fig_Nom!AN54-Data_Clim_Fig_Nom!$AQ54 -> -1375.0625 | AO54: =+Data_Clim_Fig_Nom!AO54-Data_Clim_Fig_Nom!$AQ54 -> -2101.7625 | AP54: =+Data_Clim_Fig_Nom!AP54-Data_Clim_Fig_Nom!$AQ54 -> -2220.4625 | AQ54: 0
A55: =+Data_Clim!A53 -> 2021-02-21 | B55: =+Data_Clim_Fig_Nom!B55-Data_Clim_Fig_Nom!$AQ55 -> -2062.3275 | C55: =+Data_Clim_Fig_Nom!C55-Data_Clim_Fig_Nom!$AQ55 -> -986.7275 | D55: =+Data_Clim_Fig_Nom!D55-Data_Clim_Fig_Nom!$AQ55 -> -2026.6275 | E55: =+Data_Clim_Fig_Nom!E55-Data_Clim_Fig_Nom!$AQ55 -> -1718.8275 | F55: =+Data_Clim_Fig_Nom!F55-Data_Clim_Fig_Nom!$AQ55 -> -1350.3275 | G55: =+Data_Clim_Fig_Nom!G55-Data_Clim_Fig_Nom!$AQ55 -> -1734.1275 | H55: =+Data_Clim_Fig_Nom!H55-Data_Clim_Fig_Nom!$AQ55 -> -1820.5275 | I55: =+Data_Clim_Fig_Nom!I55-Data_Clim_Fig_Nom!$AQ55 -> 1539.8725 | J55: =+Data_Clim_Fig_Nom!J55-Data_Clim_Fig_Nom!$AQ55 -> -2021.7275 | K55: =+Data_Clim_Fig_Nom!K55-Data_Clim_Fig_Nom!$AQ55 -> 12038.5725 | L55: =+Data_Clim_Fig_Nom!L55-Data_Clim_Fig_Nom!$AQ55 -> -2116.1275 | M55: =+Data_Clim_Fig_Nom!M55-Data_Clim_Fig_Nom!$AQ55 -> -1868.7275 | N55: =+Data_Clim_Fig_Nom!N55-Data_Clim_Fig_Nom!$AQ55 -> -1546.4275 | O55: =+Data_Clim_Fig_Nom!O55-Data_Clim_Fig_Nom!$AQ55 -> 7397.5725 | P55: =+Data_Clim_Fig_Nom!P55-Data_Clim_Fig_Nom!$AQ55 -> 1042.4725 | Q55: =+Data_Clim_Fig_Nom!Q55-Data_Clim_Fig_Nom!$AQ55 -> 384.3725 | R55: =+Data_Clim_Fig_Nom!R55-Data_Clim_Fig_Nom!$AQ55 -> -1178.7275 | S55: =+Data_Clim_Fig_Nom!S55-Data_Clim_Fig_Nom!$AQ55 -> -2076.9275 | T55: =+Data_Clim_Fig_Nom!T55-Data_Clim_Fig_Nom!$AQ55 -> -2128.4275 | U55: =+Data_Clim_Fig_Nom!U55-Data_Clim_Fig_Nom!$AQ55 -> 10386.6725 | V55: =+Data_Clim_Fig_Nom!V55-Data_Clim_Fig_Nom!$AQ55 -> -1779.8275 | W55: =+Data_Clim_Fig_Nom!W55-Data_Clim_Fig_Nom!$AQ55 -> -814.6275 | X55: =+Data_Clim_Fig_Nom!X55-Data_Clim_Fig_Nom!$AQ55 -> 1999.0725 | Y55: =+Data_Clim_Fig_Nom!Y55-Data_Clim_Fig_Nom!$AQ55 -> -1832.7275 | Z55: =+Data_Clim_Fig_Nom!Z55-Data_Clim_Fig_Nom!$AQ55 -> -1700.1275 | AA55: =+Data_Clim_Fig_Nom!AA55-Data_Clim_Fig_Nom!$AQ55 -> 959.9725 | AB55: =+Data_Clim_Fig_Nom!AB55-Data_Clim_Fig_Nom!$AQ55 -> -1779.6275 | AC55: =+Data_Clim_Fig_Nom!AC55-Data_Clim_Fig_Nom!$AQ55 -> -2087.7275 | AD55: =+Data_Clim_Fig_Nom!AD55-Data_Clim_Fig_Nom!$AQ55 -> -611.7275 | AE55: =+Data_Clim_Fig_Nom!AE55-Data_Clim_Fig_Nom!$AQ55 -> 75.6725 | AF55: =+Data_Clim_Fig_Nom!AF55-Data_Clim_Fig_Nom!$AQ55 -> -1824.6275 | AG55: =+Data_Clim_Fig_Nom!AG55-Data_Clim_Fig_Nom!$AQ55 -> 1421.2725 | AH55: =+Data_Clim_Fig_Nom!AH55-Data_Clim_Fig_Nom!$AQ55 -> -1871.9275 | AI55: =+Data_Clim_Fig_Nom!AI55-Data_Clim_Fig_Nom!$AQ55 -> -1758.8275 | AJ55: =+Data_Clim_Fig_Nom!AJ55-Data_Clim_Fig_Nom!$AQ55 -> 3057.2725 | AK55: =+Data_Clim_Fig_Nom!AK55-Data_Clim_Fig_Nom!$AQ55 -> 1877.3725 | AL55: =+Data_Clim_Fig_Nom!AL55-Data_Clim_Fig_Nom!$AQ55 -> -1231.0275 | AM55: =+Data_Clim_Fig_Nom!AM55-Data_Clim_Fig_Nom!$AQ55 -> 3472.9725 | AN55: =+Data_Clim_Fig_Nom!AN55-Data_Clim_Fig_Nom!$AQ55 -> -1735.8275 | AO55: =+Data_Clim_Fig_Nom!AO55-Data_Clim_Fig_Nom!$AQ55 -> -1987.9275 | AP55: =+Data_Clim_Fig_Nom!AP55-Data_Clim_Fig_Nom!$AQ55 -> -2114.1275 | AQ55: 5.570655048e-13
